Workbook

Sheet Filtros (hidden)
A1: departamento | B1: ciudad | F1: departamento
A2: AMAZONAS | B2: LA PEDRERA | F2: =+_xlfn.UNIQUE(A2:A1500) -> AMAZONAS | G2: =+_xlfn._xlws.FILTER(B2:B1500,A2:A1500=Visor!M7,"") -> ABEJORRAL | J2: =+COUNTA(G:G) -> 60
A3: AMAZONAS | B3: LA VICTORIA | F3: ANTIOQUIA | G3: AMAGÁ
A4: AMAZONAS | B4: LETICIA | F4: ARAUCA | G4: ANDES
A5: ANTIOQUIA | B5: ABEJORRAL | F5: ARCHIPIÉLAGO DE SAN ANDRÉS, PROVIDENCIA Y SANTA CATALINA | G5: ANZA
A6: ANTIOQUIA | B6: AMAGÁ | F6: ATLÁNTICO | G6: APARTADÓ
A7: ANTIOQUIA | B7: ANDES | F7: BOGOTÁ, D.C. | G7: ARMENIA
A8: ANTIOQUIA | B8: ANZA | F8: BOLÍVAR | G8: BARBOSA
A9: ANTIOQUIA | B9: APARTADÓ | F9: BOYACÁ | G9: BELLO
A10: ANTIOQUIA | B10: ARMENIA | F10: CALDAS | G10: BETULIA
A11: ANTIOQUIA | B11: BARBOSA | F11: CAQUETÁ | G11: CALDAS
A12: ANTIOQUIA | B12: BELLO | F12: CASANARE | G12: CAÑASGORDAS
A13: ANTIOQUIA | B13: BETULIA | F13: CAUCA | G13: CAREPA
A14: ANTIOQUIA | B14: CALDAS | F14: CESAR | G14: CAUCASIA
A15: ANTIOQUIA | B15: CAÑASGORDAS | F15: CHOCÓ | G15: CHIGORODÓ
A16: ANTIOQUIA | B16: CAREPA | F16: CÓRDOBA | G16: CIUDAD BOLÍVAR
A17: ANTIOQUIA | B17: CAUCASIA | F17: CUNDINAMARCA | G17: COCORNÁ
A18: ANTIOQUIA | B18: CHIGORODÓ | F18: GUAINÍA | G18: COPACABANA
A19: ANTIOQUIA | B19: CIUDAD BOLÍVAR | F19: GUAVIARE | G19: DABEIBA
A20: ANTIOQUIA | B20: COCORNÁ | F20: HUILA | G20: DON MATÍAS
A21: ANTIOQUIA | B21: COPACABANA | F21: LA GUAJIRA | G21: EL CARMEN DE VIBORAL
A22: ANTIOQUIA | B22: DABEIBA | F22: MAGDALENA | G22: EL SANTUARIO
A23: ANTIOQUIA | B23: DON MATÍAS | F23: META | G23: ENTRERRIOS
A24: ANTIOQUIA | B24: EL CARMEN DE VIBORAL | F24: NARIÑO | G24: ENVIGADO
A25: ANTIOQUIA | B25: EL SANTUARIO | F25: NORTE DE SANTANDER | G25: FREDONIA
A26: ANTIOQUIA | B26: ENTRERRIOS | F26: PUTUMAYO | G26: GIRARDOTA
A27: ANTIOQUIA | B27: ENVIGADO | F27: QUINDIO | G27: GÓMEZ PLATA
A28: ANTIOQUIA | B28: FREDONIA | F28: RISARALDA | G28: GRANADA
A29: ANTIOQUIA | B29: GIRARDOTA | F29: SANTANDER | G29: GUADALUPE
A30: ANTIOQUIA | B30: GÓMEZ PLATA | F30: SUCRE | G30: GUARNE
A31: ANTIOQUIA | B31: GRANADA | F31: TOLIMA | G31: ITAGUI
A32: ANTIOQUIA | B32: GUADALUPE | F32: VALLE DEL CAUCA | G32: JERICÓ
A33: ANTIOQUIA | B33: GUARNE | F33: VICHADA | G33: LA CEJA
A34: ANTIOQUIA | B34: ITAGUI | F34: 0 | G34: LA ESTRELLA
A35: ANTIOQUIA | B35: JERICÓ | G35: LA UNIÓN
A36: ANTIOQUIA | B36: LA CEJA | G36: MARINILLA
A37: ANTIOQUIA | B37: LA ESTRELLA | G37: MEDELLÍN
A38: ANTIOQUIA | B38: LA UNIÓN | G38: NECOCLÍ
A39: ANTIOQUIA | B39: MARINILLA | G39: PUERTO BERRÍO
A40: ANTIOQUIA | B40: MEDELLÍN | G40: PUERTO TRIUNFO
A41: ANTIOQUIA | B41: NECOCLÍ | G41: REMEDIOS
A42: ANTIOQUIA | B42: PUERTO BERRÍO | G42: RETIRO
A43: ANTIOQUIA | B43: PUERTO TRIUNFO | G43: RIONEGRO
A44: ANTIOQUIA | B44: REMEDIOS | G44: SABANALARGA
A45: ANTIOQUIA | B45: RETIRO | G45: SABANETA
A46: ANTIOQUIA | B46: RIONEGRO | G46: SALGAR
A47: ANTIOQUIA | B47: SABANALARGA | G47: SAN ANDRÉS DE CUERQUÍA
A48: ANTIOQUIA | B48: SABANETA | G48: SAN JERÓNIMO
A49: ANTIOQUIA | B49: SALGAR | G49: SAN LUIS
A50: ANTIOQUIA | B50: SAN ANDRÉS DE CUERQUÍA | G50: SAN PEDRO DE LOS MILAGROS
A51: ANTIOQUIA | B51: SAN JERÓNIMO | G51: SAN PEDRO DE URABA
A52: ANTIOQUIA | B52: SAN LUIS | G52: SAN RAFAEL
A53: ANTIOQUIA | B53: SAN PEDRO DE LOS MILAGROS | G53: SAN ROQUE
A54: ANTIOQUIA | B54: SAN PEDRO DE URABA | G54: SAN VICENTE
A55: ANTIOQUIA | B55: SAN RAFAEL | G55: SANTA ROSA DE OSOS
A56: ANTIOQUIA | B56: SAN ROQUE | G56: SANTAFÉ DE ANTIOQUIA
A57: ANTIOQUIA | B57: SAN VICENTE | G57: SEGOVIA
A58: ANTIOQUIA | B58: SANTA ROSA DE OSOS | G58: TURBO
A59: ANTIOQUIA | B59: SANTAFÉ DE ANTIOQUIA | G59: VALPARAÍSO
A60: ANTIOQUIA | B60: SEGOVIA | G60: VENECIA
A61: ANTIOQUIA | B61: TURBO | G61: YOLOMBÓ
A62: ANTIOQUIA | B62: VALPARAÍSO
A63: ANTIOQUIA | B63: VENECIA
A64: ANTIOQUIA | B64: YOLOMBÓ
A65: ARAUCA | B65: ARAUCA
A66: ARAUCA | B66: ARAUQUITA
A67: ARAUCA | B67: SARAVENA
A68: ARAUCA | B68: TAME
A69: ARCHIPIÉLAGO DE SAN ANDRÉS, PROVIDENCIA Y SANTA CATALINA | B69: SAN ANDRÉS
A70: ATLÁNTICO | B70: BARRANQUILLA
A71: ATLÁNTICO | B71: CAMPO DE LA CRUZ
A72: ATLÁNTICO | B72: CANDELARIA
A73: ATLÁNTICO | B73: GALAPA
A74: ATLÁNTICO | B74: JUAN DE ACOSTA
A75: ATLÁNTICO | B75: MALAMBO
A76: ATLÁNTICO | B76: PUERTO COLOMBIA
A77: ATLÁNTICO | B77: SABANAGRANDE
A78: ATLÁNTICO | B78: SOLEDAD
A79: BOGOTÁ, D.C. | B79: BOGOTÁ, D.C.
A80: BOLÍVAR | B80: ARJONA
A81: BOLÍVAR | B81: CARTAGENA
A82: BOLÍVAR | B82: CÓRDOBA
A83: BOLÍVAR | B83: EL CARMEN DE BOLÍVAR
A84: BOLÍVAR | B84: MAGANGUÉ
A85: BOLÍVAR | B85: MAHATES
A86: BOLÍVAR | B86: MOMPÓS
A87: BOLÍVAR | B87: RÍO VIEJO
A88: BOLÍVAR | B88: SAN ESTANISLAO
A89: BOLÍVAR | B89: SAN PABLO
A90: BOLÍVAR | B90: SANTA ROSA DEL SUR
A91: BOLÍVAR | B91: TURBACO
A92: BOLÍVAR | B92: VILLANUEVA
A93: BOYACÁ | B93: BELÉN
A94: BOYACÁ | B94: CHIQUINQUIRÁ
A95: BOYACÁ | B95: CHIVATÁ
A96: BOYACÁ | B96: CIÉNEGA
A97: BOYACÁ | B97: DUITAMA
A98: BOYACÁ | B98: MIRAFLORES
A99: BOYACÁ | B99: NOBSA
A100: BOYACÁ | B100: PÁEZ
A101: BOYACÁ | B101: PAIPA
A102: BOYACÁ | B102: PAZ DE RÍO
A103: BOYACÁ | B103: PESCA
A104: BOYACÁ | B104: PISBA
A105: BOYACÁ | B105: PUERTO BOYACÁ
A106: BOYACÁ | B106: RÁQUIRA
A107: BOYACÁ | B107: SÁCHICA
A108: BOYACÁ | B108: SAMACÁ
A109: BOYACÁ | B109: SAN LUIS DE GACENO
A110: BOYACÁ | B110: SANTA MARÍA
A111: BOYACÁ | B111: SANTA ROSA DE VITERBO
A112: BOYACÁ | B112: SANTANA
A113: BOYACÁ | B113: SOGAMOSO
A114: BOYACÁ | B114: SORACÁ
A115: BOYACÁ | B115: TOCA
A116: BOYACÁ | B116: TÓPAGA
A117: BOYACÁ | B117: TUNJA
A118: BOYACÁ | B118: UMBITA
A119: BOYACÁ | B119: VENTAQUEMADA
A120: BOYACÁ | B120: VILLA DE LEYVA
A121: CALDAS | B121: ANSERMA
A122: CALDAS | B122: BELALCÁZAR
A123: CALDAS | B123: CHINCHINÁ
A124: CALDAS | B124: LA DORADA
A125: CALDAS | B125: MANIZALES
A126: CALDAS | B126: PENSILVANIA
A127: CALDAS | B127: RIOSUCIO
A128: CALDAS | B128: RISARALDA
A129: CALDAS | B129: SAMANÁ
A130: CALDAS | B130: SUPÍA
A131: CALDAS | B131: VILLAMARÍA
A132: CAQUETÁ | B132: FLORENCIA
A133: CAQUETÁ | B133: PUERTO RICO
A134: CAQUETÁ | B134: SAN VICENTE DEL CAGUÁN
A135: CASANARE | B135: AGUAZUL
A136: CASANARE | B136: PAZ DE ARIPORO
A137: CASANARE | B137: TRINIDAD
A138: CASANARE | B138: YOPAL
A139: CAUCA | B139: GUACHENÉ
A140: CAUCA | B140: MIRANDA
A141: CAUCA | B141: PIAMONTE
A142: CAUCA | B142: POPAYÁN
A143: CAUCA | B143: PUERTO TEJADA
A144: CAUCA | B144: SANTANDER DE QUILICHAO
A145: CAUCA | B145: VILLA RICA
A146: CESAR | B146: AGUACHICA
A147: CESAR | B147: CHIRIGUANÁ
A148: CESAR | B148: CURUMANÍ
A149: CESAR | B149: EL PASO
A150: CESAR | B150: LA JAGUA DE IBIRICO
A151: CESAR | B151: LA PAZ
A152: CESAR | B152: SAN ALBERTO
A153: CESAR | B153: SAN MARTÍN
A154: CESAR | B154: VALLEDUPAR
A155: CHOCÓ | B155: ATRATO
A156: CHOCÓ | B156: ISTMINA
A157: CHOCÓ | B157: QUIBDÓ
A158: CÓRDOBA | B158: CERETÉ
A159: CÓRDOBA | B159: CIÉNAGA DE ORO
A160: CÓRDOBA | B160: MONTELÍBANO
A161: CÓRDOBA | B161: MONTERÍA
A162: CÓRDOBA | B162: PUEBLO NUEVO
A163: CÓRDOBA | B163: SAHAGÚN
A164: CÓRDOBA | B164: TIERRALTA
A165: CÓRDOBA | B165: VALENCIA
A166: CUNDINAMARCA | B166: AGUA DE DIOS
A167: CUNDINAMARCA | B167: BOJACÁ
A168: CUNDINAMARCA | B168: CACHIPAY
A169: CUNDINAMARCA | B169: CAJICÁ
A170: CUNDINAMARCA | B170: CHÍA
A171: CUNDINAMARCA | B171: CHOACHÍ
A172: CUNDINAMARCA | B172: CHOCONTÁ
A173: CUNDINAMARCA | B173: COGUA
A174: CUNDINAMARCA | B174: COTA
A175: CUNDINAMARCA | B175: EL ROSAL
A176: CUNDINAMARCA | B176: FACATATIVÁ
A177: CUNDINAMARCA | B177: FOMEQUE
A178: CUNDINAMARCA | B178: FUNZA
A179: CUNDINAMARCA | B179: FUSAGASUGÁ
A180: CUNDINAMARCA | B180: GACHANCIPÁ
A181: CUNDINAMARCA | B181: GIRARDOT
A182: CUNDINAMARCA | B182: GUADUAS
A183: CUNDINAMARCA | B183: GUASCA
A184: CUNDINAMARCA | B184: LA CALERA
A185: CUNDINAMARCA | B185: LA MESA
A186: CUNDINAMARCA | B186: MADRID
A187: CUNDINAMARCA | B187: MEDINA
A188: CUNDINAMARCA | B188: MOSQUERA
A189: CUNDINAMARCA | B189: NEMOCÓN
A190: CUNDINAMARCA | B190: PUERTO SALGAR
A191: CUNDINAMARCA | B191: SAN ANTONIO DEL TEQUENDAMA
A192: CUNDINAMARCA | B192: SESQUILÉ
A193: CUNDINAMARCA | B193: SIBATÉ
A194: CUNDINAMARCA | B194: SIMIJACA
A195: CUNDINAMARCA | B195: SOACHA
A196: CUNDINAMARCA | B196: SOPÓ
A197: CUNDINAMARCA | B197: SUBACHOQUE
A198: CUNDINAMARCA | B198: TABIO
A199: CUNDINAMARCA | B199: TAUSA
A200: CUNDINAMARCA | B200: TENJO
... 117 more rows

Sheet Base (hidden)
A1: LLAVE (TIPO ID - DOCUMENTO) | B1: CIUDAD - DIVIPOLA - R | C1: Ciudad | D1: TOTAL COTIZANTES CON CONCEPTO DE CONFORMIDAD TOTAL A GIRAR | E1: TOTAL COTIZANTES CON CONCEPTO DE NO CONFORMIDAD | F1: TIPO DE PERSONA | G1: Departamento DIVIPOLA (P) | H1: NOMBRE DEPTO DIVIOLA | I1: ESTADO_TOTAL A GIRAR | J1: Numero total empleados | K1: Tamaño del Empleador | L1: STRCODPAR_CIIU_EMPRESA | M1: ACTIVIDAD ECONOMICA | N1: SEXO_F_ | O1: SEXO_M_ | P1: SEXO_ND_ | U1: LLAVE (TIPO ID - DOCUMENTO) | V1: CIUDAD - DIVIPOLA - R | W1: Ciudad | X1: TOTAL COTIZANTES CON CONCEPTO DE CONFORMIDAD TOTAL A GIRAR | Y1: TOTAL COTIZANTES CON CONCEPTO DE NO CONFORMIDAD | Z1: TIPO DE PERSONA | AA1: Departamento DIVIPOLA (P) | AB1: NOMBRE DEPTO DIVIOLA | AC1: ESTADO_TOTAL A GIRAR | AD1: Numero total empleados | AE1: Tamaño del Empleador | AF1: STRCODPAR_CIIU_EMPRESA | AG1: ACTIVIDAD ECONOMICA | AH1: SEXO_F_ | AI1: SEXO_M_ | AJ1: SEXO_ND_ | AO1: Empleadores | AP1: % | AQ1: Empleados | AR1: % | AS1: Recursos | AT1: Mpio
B2: 11001 | C2: BOGOTÁ, D.C. | D2: 0 | E2: 0 | F2: Jurídica | G2: 11 | H2: BOGOTÁ, D.C. | I2: =IF(D2>0,"Aprobado con subsidio","") ->  | J2: 0 | K2: MICRO | M2: INDUSTRIAS MANUFACTURERAS | N2: 0 | O2: 0 | P2: 0 | R2: =+_xlfn.UNIQUE(M2:M399999) -> INDUSTRIAS MANUFACTURERAS | U2: =+_xlfn._xlws.FILTER($A$2:$P$399999,$H$2:$H$399999=Visor!$M$7,"") -> 0 | V2: 5088 | W2: BELLO | X2: 0 | Y2: 0 | Z2: Jurídica | AA2: 5 | AB2: ANTIOQUIA | AD2: 0 | AE2: PEQUEÑA | AF2: 0 | AG2: ACTIVIDADES PROFESIONALES, CIENTÍFICAS Y TÉCNICAS | AH2: 0 | AI2: 0 | AJ2: 0 | AN2: =CONCATENATE(AO2,COUNTIF($AO$2:AO2,AO2)) -> 271 | AO2: =+COUNTIFS($W$2:$W$399999,AT2,$AC$2:$AC$399999,"Aprobado con subsidio")*1 -> 27 | AP2: =+AO2/SUM($AO$2:$AO$129) -> 0.02303754266 | AQ2: =+SUMIFS($X$2:$X$399999,$W$2:$W$399999,AT2,$AC$2:$AC$399999,"Aprobado con subsidio") -> 168 | AR2: =+AQ2/SUM($AQ$2:$AQ$129) -> 0.01422764228 | AS2: =+(SUMIFS(Montos!$Y$2:$Y$396864,Montos!$R$2:$R$396864,Base!AT2)/1000000) -> 38.158008 | AT2: =_xlfn.UNIQUE('$Base'!$AB$2:$AB$400000) -> BELLO
B3: 5088 | C3: BELLO | D3: 0 | E3: 0 | F3: Jurídica | G3: 5 | H3: ANTIOQUIA | I3: =IF(D3>0,"Aprobado con subsidio","") ->  | J3: 0 | K3: PEQUEÑA | M3: ACTIVIDADES PROFESIONALES, CIENTÍFICAS Y TÉCNICAS | N3: 0 | O3: 0 | P3: 0 | R3: ACTIVIDADES PROFESIONALES, CIENTÍFICAS Y TÉCNICAS | U3: 0 | V3: 5001 | W3: MEDELLÍN | X3: 0 | Y3: 0 | Z3: Jurídica | AA3: 5 | AB3: ANTIOQUIA | AD3: 0 | AE3: MICRO | AF3: 0 | AG3: ACTIVIDADES INMOBILIARIAS | AH3: 0 | AI3: 0 | AJ3: 0 | AN3: =CONCATENATE(AO3,COUNTIF($AO$2:AO3,AO3)) -> 7661 | AO3: 766 | AP3: 0.6535836177 | AQ3: 8941 | AR3: =+AQ3/SUM($AQ$2:$AQ$129) -> 0.7571985095 | AS3: =+(SUMIFS(Montos!$Y$2:$Y$396864,Montos!$R$2:$R$396864,Base!AT3)/1000000) -> 2030.778271 | AT3: MEDELLÍN
B4: 86568 | C4: PUERTO ASÍS | D4: 1 | E4: 10 | F4: Jurídica | G4: 86 | H4: PUTUMAYO | I4: Aprobado con subsidio | J4: 11 | K4: PEQUEÑA | M4: ACTIVIDADES PROFESIONALES, CIENTÍFICAS Y TÉCNICAS | N4: 0 | O4: 1 | P4: 0 | R4: ACTIVIDADES INMOBILIARIAS | U4: 0 | V4: 5001 | W4: MEDELLÍN | X4: 0 | Y4: 0 | Z4: Jurídica | AA4: 5 | AB4: ANTIOQUIA | AD4: 0 | AE4: MICRO | AF4: 0 | AG4: ACTIVIDADES PROFESIONALES, CIENTÍFICAS Y TÉCNICAS | AH4: 0 | AI4: 0 | AJ4: 0 | AN4: =CONCATENATE(AO4,COUNTIF($AO$2:AO4,AO4)) -> 801 | AO4: 80 | AP4: 0.06825938567 | AQ4: 317 | AR4: 0.02684620596 | AS4: =+(SUMIFS(Montos!$Y$2:$Y$396864,Montos!$R$2:$R$396864,Base!AT4)/1000000) -> 72.000527 | AT4: ITAGUI
B5: 5001 | C5: MEDELLÍN | D5: 0 | E5: 0 | F5: Jurídica | G5: 5 | H5: ANTIOQUIA | J5: 0 | K5: MICRO | M5: ACTIVIDADES INMOBILIARIAS | N5: 0 | O5: 0 | P5: 0 | R5: CONSTRUCCIÓN | U5: 0 | V5: 5360 | W5: ITAGUI | X5: 0 | Y5: 0 | Z5: Jurídica | AA5: 5 | AB5: ANTIOQUIA | AD5: 0 | AE5: MEDIANA | AF5: 0 | AG5: INDUSTRIAS MANUFACTURERAS | AH5: 0 | AI5: 0 | AJ5: 0 | AN5: =CONCATENATE(AO5,COUNTIF($AO$2:AO5,AO5)) -> 321 | AO5: 32 | AP5: 0.02730375427 | AQ5: 94 | AR5: 0.007960704607 | AS5: =+(SUMIFS(Montos!$Y$2:$Y$396864,Montos!$R$2:$R$396864,Base!AT5)/1000000) -> 21.350314 | AT5: SABANETA
B6: 5001 | C6: MEDELLÍN | D6: 0 | E6: 0 | F6: Jurídica | G6: 5 | H6: ANTIOQUIA | J6: 0 | K6: MICRO | M6: ACTIVIDADES PROFESIONALES, CIENTÍFICAS Y TÉCNICAS | N6: 0 | O6: 0 | P6: 0 | R6: COMERCIO AL POR MAYOR Y AL POR MENOR; REPARACIÓN DE VEHÍCULOS AUTOMOTORES Y MOTOCICLETAS | U6: 0 | V6: 5631 | W6: SABANETA | X6: 0 | Y6: 0 | Z6: Jurídica | AA6: 5 | AB6: ANTIOQUIA | AD6: 0 | AE6: PEQUEÑA | AF6: 0 | AG6: COMERCIO AL POR MAYOR Y AL POR MENOR; REPARACIÓN DE VEHÍCULOS AUTOMOTORES Y MOTOCICLETAS | AH6: 0 | AI6: 0 | AJ6: 0 | AN6: =CONCATENATE(AO6,COUNTIF($AO$2:AO6,AO6)) -> 21 | AO6: 2 | AP6: 0.001706484642 | AQ6: 5 | AR6: 0.0004234417344 | AS6: =+(SUMIFS(Montos!$Y$2:$Y$396864,Montos!$R$2:$R$396864,Base!AT6)/1000000) -> 1.135655 | AT6: ABEJORRAL
B7: 5360 | C7: ITAGUI | D7: 0 | E7: 0 | F7: Jurídica | G7: 5 | H7: ANTIOQUIA | J7: 0 | K7: MEDIANA | M7: INDUSTRIAS MANUFACTURERAS | N7: 0 | O7: 0 | P7: 0 | R7: AGRICULTURA, GANADERÍA, CAZA, SILVICULTURA Y PESCA | U7: 0 | V7: 5002 | W7: ABEJORRAL | X7: 0 | Y7: 0 | Z7: Jurídica | AA7: 5 | AB7: ANTIOQUIA | AD7: 0 | AE7: MICRO | AF7: 0 | AG7: COMERCIO AL POR MAYOR Y AL POR MENOR; REPARACIÓN DE VEHÍCULOS AUTOMOTORES Y MOTOCICLETAS | AH7: 0 | AI7: 0 | AJ7: 0 | AN7: =CONCATENATE(AO7,COUNTIF($AO$2:AO7,AO7)) -> 22 | AO7: 2 | AP7: 0.001706484642 | AQ7: 2 | AR7: 0.0001693766938 | AS7: =+(SUMIFS(Montos!$Y$2:$Y$396864,Montos!$R$2:$R$396864,Base!AT7)/1000000) -> 0.454262 | AT7: GRANADA
B8: 11001 | C8: BOGOTÁ, D.C. | D8: 0 | E8: 0 | F8: Jurídica | G8: 11 | H8: BOGOTÁ, D.C. | J8: 0 | K8: MICRO | M8: ACTIVIDADES PROFESIONALES, CIENTÍFICAS Y TÉCNICAS | N8: 0 | O8: 0 | P8: 0 | R8: ACTIVIDADES DE SERVICIOS ADMINISTRATIVOS Y DE APOYO | U8: 0 | V8: 5001 | W8: MEDELLÍN | X8: 0 | Y8: 0 | Z8: Jurídica | AA8: 5 | AB8: ANTIOQUIA | AD8: 0 | AE8: PEQUEÑA | AF8: 0 | AG8: INDUSTRIAS MANUFACTURERAS | AH8: 0 | AI8: 0 | AJ8: 0 | AN8: =CONCATENATE(AO8,COUNTIF($AO$2:AO8,AO8)) -> 71 | AO8: 7 | AP8: 0.005972696246 | AQ8: 188 | AR8: 0.01592140921 | AS8: =+(SUMIFS(Montos!$Y$2:$Y$396864,Montos!$R$2:$R$396864,Base!AT8)/1000000) -> 42.700628 | AT8: COPACABANA
B9: 11001 | C9: BOGOTÁ, D.C. | D9: 0 | E9: 0 | F9: Jurídica | G9: 11 | H9: BOGOTÁ, D.C. | J9: 0 | K9: MICRO | M9: ACTIVIDADES PROFESIONALES, CIENTÍFICAS Y TÉCNICAS | N9: 0 | O9: 0 | P9: 0 | R9: EDUCACIÓN | U9: 0 | V9: 5001 | W9: MEDELLÍN | X9: 1 | Y9: 6 | Z9: Jurídica | AA9: 5 | AB9: ANTIOQUIA | AC9: Aprobado con subsidio | AD9: 7 | AE9: PEQUEÑA | AF9: 0 | AG9: COMERCIO AL POR MAYOR Y AL POR MENOR; REPARACIÓN DE VEHÍCULOS AUTOMOTORES Y MOTOCICLETAS | AH9: 1 | AI9: 0 | AJ9: 0 | AN9: =CONCATENATE(AO9,COUNTIF($AO$2:AO9,AO9)) -> 671 | AO9: 67 | AP9: 0.05716723549 | AQ9: 1051 | AR9: 0.08900745257 | AS9: =+(SUMIFS(Montos!$Y$2:$Y$396864,Montos!$R$2:$R$396864,Base!AT9)/1000000) -> 238.714681 | AT9: ENVIGADO
B10: 8001 | C10: BARRANQUILLA | D10: 0 | E10: 0 | F10: Jurídica | G10: 8 | H10: ATLÁNTICO | J10: 0 | K10: MEDIANA | M10: CONSTRUCCIÓN | N10: 0 | O10: 0 | P10: 0 | R10: ACTIVIDADES DE ATENCIÓN DE LA SALUD HUMANA Y DE ASISTENCIA SOCIAL | U10: 0 | V10: 5001 | W10: MEDELLÍN | X10: 0 | Y10: 0 | Z10: Jurídica | AA10: 5 | AB10: ANTIOQUIA | AD10: 0 | AE10: MICRO | AF10: 0 | AG10: ACTIVIDADES PROFESIONALES, CIENTÍFICAS Y TÉCNICAS | AH10: 0 | AI10: 0 | AJ10: 0 | AN10: =CONCATENATE(AO10,COUNTIF($AO$2:AO10,AO10)) -> 471 | AO10: 47 | AP10: 0.04010238908 | AQ10: 315 | AR10: 0.02667682927 | AS10: =+(SUMIFS(Montos!$Y$2:$Y$396864,Montos!$R$2:$R$396864,Base!AT10)/1000000) -> 71.546265 | AT10: RIONEGRO
B11: 5631 | C11: SABANETA | D11: 0 | E11: 0 | F11: Jurídica | G11: 5 | H11: ANTIOQUIA | J11: 0 | K11: PEQUEÑA | M11: COMERCIO AL POR MAYOR Y AL POR MENOR; REPARACIÓN DE VEHÍCULOS AUTOMOTORES Y MOTOCICLETAS | N11: 0 | O11: 0 | P11: 0 | R11: TRANSPORTE Y ALMACENAMIENTO | U11: 0 | V11: 5001 | W11: MEDELLÍN | X11: 0 | Y11: 0 | Z11: Jurídica | AA11: 5 | AB11: ANTIOQUIA | AD11: 0 | AE11: PEQUEÑA | AF11: 0 | AG11: COMERCIO AL POR MAYOR Y AL POR MENOR; REPARACIÓN DE VEHÍCULOS AUTOMOTORES Y MOTOCICLETAS | AH11: 0 | AI11: 0 | AJ11: 0 | AN11: =CONCATENATE(AO11,COUNTIF($AO$2:AO11,AO11)) -> 251 | AO11: 25 | AP11: 0.02133105802 | AQ11: 95 | AR11: 0.008045392954 | AS11: =+(SUMIFS(Montos!$Y$2:$Y$396864,Montos!$R$2:$R$396864,Base!AT11)/1000000) -> 21.577445 | AT11: LA ESTRELLA
B12: 5002 | C12: ABEJORRAL | D12: 0 | E12: 0 | F12: Jurídica | G12: 5 | H12: ANTIOQUIA | J12: 0 | K12: MICRO | M12: COMERCIO AL POR MAYOR Y AL POR MENOR; REPARACIÓN DE VEHÍCULOS AUTOMOTORES Y MOTOCICLETAS | N12: 0 | O12: 0 | P12: 0 | R12: ALOJAMIENTO Y SERVICIOS DE COMIDA | U12: 0 | V12: 5313 | W12: GRANADA | X12: 1 | Y12: 2 | Z12: Jurídica | AA12: 5 | AB12: ANTIOQUIA | AC12: Aprobado con subsidio | AD12: 3 | AE12: MICRO | AF12: 0 | AG12: COMERCIO AL POR MAYOR Y AL POR MENOR; REPARACIÓN DE VEHÍCULOS AUTOMOTORES Y MOTOCICLETAS | AH12: 1 | AI12: 0 | AJ12: 0 | AN12: =CONCATENATE(AO12,COUNTIF($AO$2:AO12,AO12)) -> 231 | AO12: 23 | AP12: 0.01962457338 | AQ12: 92 | AR12: 0.007791327913 | AS12: =+(SUMIFS(Montos!$Y$2:$Y$396864,Montos!$R$2:$R$396864,Base!AT12)/1000000) -> 20.896052 | AT12: APARTADÓ
B13: 5001 | C13: MEDELLÍN | D13: 0 | E13: 0 | F13: Jurídica | G13: 5 | H13: ANTIOQUIA | J13: 0 | K13: PEQUEÑA | M13: INDUSTRIAS MANUFACTURERAS | N13: 0 | O13: 0 | P13: 0 | R13: ACTIVIDADES FINANCIERAS Y DE SEGUROS | U13: 0 | V13: 5001 | W13: MEDELLÍN | X13: 0 | Y13: 0 | Z13: Jurídica | AA13: 5 | AB13: ANTIOQUIA | AD13: 0 | AE13: PEQUEÑA | AF13: 0 | AG13: INDUSTRIAS MANUFACTURERAS | AH13: 0 | AI13: 0 | AJ13: 0 | AN13: =CONCATENATE(AO13,COUNTIF($AO$2:AO13,AO13)) -> 01 | AO13: 0 | AP13: 0 | AQ13: 0 | AR13: 0 | AS13: =+(SUMIFS(Montos!$Y$2:$Y$396864,Montos!$R$2:$R$396864,Base!AT13)/1000000) -> 0 | AT13: SAN LUIS
B14: 95001 | C14: SAN JOSÉ DEL GUAVIARE | D14: 0 | E14: 0 | F14: Jurídica | G14: 95 | H14: GUAVIARE | J14: 0 | K14: MICRO | M14: AGRICULTURA, GANADERÍA, CAZA, SILVICULTURA Y PESCA | N14: 0 | O14: 0 | P14: 0 | R14: INFORMACIÓN Y COMUNICACIONES | U14: 0 | V14: 5212 | W14: COPACABANA | X14: 3 | Y14: 11 | Z14: Jurídica | AA14: 5 | AB14: ANTIOQUIA | AC14: Aprobado con subsidio | AD14: 14 | AE14: PEQUEÑA | AF14: 0 | AG14: INDUSTRIAS MANUFACTURERAS | AH14: 0 | AI14: 3 | AJ14: 0 | AN14: =CONCATENATE(AO14,COUNTIF($AO$2:AO14,AO14)) -> 91 | AO14: 9 | AP14: 0.007679180887 | AQ14: 131 | AR14: 0.01109417344 | AS14: =+(SUMIFS(Montos!$Y$2:$Y$396864,Montos!$R$2:$R$396864,Base!AT14)/1000000) -> 29.754161 | AT14: GIRARDOTA
B15: 5001 | C15: MEDELLÍN | D15: 1 | E15: 6 | F15: Jurídica | G15: 5 | H15: ANTIOQUIA | I15: Aprobado con subsidio | J15: 7 | K15: PEQUEÑA | M15: COMERCIO AL POR MAYOR Y AL POR MENOR; REPARACIÓN DE VEHÍCULOS AUTOMOTORES Y MOTOCICLETAS | N15: 1 | O15: 0 | P15: 0 | R15: OTRAS ACTIVIDADES DE SERVICIOS | U15: 0 | V15: 5631 | W15: SABANETA | X15: 0 | Y15: 0 | Z15: Jurídica | AA15: 5 | AB15: ANTIOQUIA | AD15: 0 | AE15: PEQUEÑA | AF15: 0 | AG15: CONSTRUCCIÓN | AH15: 0 | AI15: 0 | AJ15: 0 | AN15: =CONCATENATE(AO15,COUNTIF($AO$2:AO15,AO15)) -> 31 | AO15: 3 | AP15: 0.002559726962 | AQ15: 5 | AR15: 0.0004234417344 | AS15: =+(SUMIFS(Montos!$Y$2:$Y$396864,Montos!$R$2:$R$396864,Base!AT15)/1000000) -> 1.135655 | AT15: JERICÓ
B16: 52001 | C16: PASTO | D16: 0 | E16: 0 | F16: Jurídica | G16: 52 | H16: NARIÑO | J16: 0 | K16: PEQUEÑA | M16: CONSTRUCCIÓN | N16: 0 | O16: 0 | P16: 0 | R16: ACTIVIDADES ARTÍSTICAS, DE ENTRETENIMIENTO Y RECREACIÓN | U16: 0 | V16: 5001 | W16: MEDELLÍN | X16: 0 | Y16: 0 | Z16: Jurídica | AA16: 5 | AB16: ANTIOQUIA | AD16: 0 | AE16: MEDIANA | AF16: 0 | AG16: ACTIVIDADES DE ATENCIÓN DE LA SALUD HUMANA Y DE ASISTENCIA SOCIAL | AH16: 0 | AI16: 0 | AJ16: 0 | AN16: =CONCATENATE(AO16,COUNTIF($AO$2:AO16,AO16)) -> 23 | AO16: 2 | AP16: 0.001706484642 | AQ16: 8 | AR16: 0.0006775067751 | AS16: =+(SUMIFS(Montos!$Y$2:$Y$396864,Montos!$R$2:$R$396864,Base!AT16)/1000000) -> 1.817048 | AT16: LA UNIÓN
B17: 76001 | C17: CALI | D17: 1 | E17: 11 | F17: Jurídica | G17: 76 | H17: VALLE DEL CAUCA | I17: Aprobado con subsidio | J17: 12 | K17: MEDIANA | M17: COMERCIO AL POR MAYOR Y AL POR MENOR; REPARACIÓN DE VEHÍCULOS AUTOMOTORES Y MOTOCICLETAS | N17: 1 | O17: 0 | P17: 0 | R17: DISTRIBUCIÓN DE AGUA; EVACUACIÓN Y TRATAMIENTO DE AGUAS RESIDUALES, GESTIÓN DE DESECHOS Y ACTIVIDADES DE SANEAMIENTO AMBIENTAL | U17: 0 | V17: 5001 | W17: MEDELLÍN | X17: 3 | Y17: 11 | Z17: Jurídica | AA17: 5 | AB17: ANTIOQUIA | AC17: Aprobado con subsidio | AD17: 14 | AE17: PEQUEÑA | AF17: 0 | AG17: ACTIVIDADES PROFESIONALES, CIENTÍFICAS Y TÉCNICAS | AH17: 2 | AI17: 1 | AJ17: 0 | AN17: =CONCATENATE(AO17,COUNTIF($AO$2:AO17,AO17)) -> 24 | AO17: 2 | AP17: 0.001706484642 | AQ17: 2 | AR17: 0.0001693766938 | AS17: =+(SUMIFS(Montos!$Y$2:$Y$396864,Montos!$R$2:$R$396864,Base!AT17)/1000000) -> 0.454262 | AT17: DON MATÍAS
B18: 13001 | C18: CARTAGENA | D18: 0 | E18: 0 | F18: Jurídica | G18: 13 | H18: BOLÍVAR | J18: 0 | K18: MICRO | M18: ACTIVIDADES PROFESIONALES, CIENTÍFICAS Y TÉCNICAS | N18: 0 | O18: 0 | P18: 0 | R18: SUMINISTRO DE ELECTRICIDAD, GAS, VAPOR Y AIRE ACONDICIONADO | U18: 0 | V18: 5001 | W18: MEDELLÍN | X18: 1 | Y18: 14 | Z18: Jurídica | AA18: 5 | AB18: ANTIOQUIA | AC18: Aprobado con subsidio | AD18: 15 | AE18: MEDIANA | AF18: 0 | AG18: COMERCIO AL POR MAYOR Y AL POR MENOR; REPARACIÓN DE VEHÍCULOS AUTOMOTORES Y MOTOCICLETAS | AH18: 0 | AI18: 1 | AJ18: 0 | AN18: =CONCATENATE(AO18,COUNTIF($AO$2:AO18,AO18)) -> 32 | AO18: 3 | AP18: 0.002559726962 | AQ18: 23 | AR18: 0.001947831978 | AS18: =+(SUMIFS(Montos!$Y$2:$Y$396864,Montos!$R$2:$R$396864,Base!AT18)/1000000) -> 5.224013 | AT18: ENTRERRIOS
B19: 5001 | C19: MEDELLÍN | D19: 0 | E19: 0 | F19: Jurídica | G19: 5 | H19: ANTIOQUIA | J19: 0 | K19: MICRO | M19: ACTIVIDADES PROFESIONALES, CIENTÍFICAS Y TÉCNICAS | N19: 0 | O19: 0 | P19: 0 | R19: EXPLOTACIÓN DE MINAS Y CANTERAS | U19: 0 | V19: 5001 | W19: MEDELLÍN | X19: 0 | Y19: 0 | Z19: Jurídica | AA19: 5 | AB19: ANTIOQUIA | AD19: 0 | AE19: PEQUEÑA | AF19: 0 | AG19: ACTIVIDADES PROFESIONALES, CIENTÍFICAS Y TÉCNICAS | AH19: 0 | AI19: 0 | AJ19: 0 | AN19: =CONCATENATE(AO19,COUNTIF($AO$2:AO19,AO19)) -> 92 | AO19: 9 | AP19: 0.007679180887 | AQ19: 46 | AR19: 0.003895663957 | AS19: =+(SUMIFS(Montos!$Y$2:$Y$396864,Montos!$R$2:$R$396864,Base!AT19)/1000000) -> 10.448026 | AT19: GUARNE
B20: 5001 | C20: MEDELLÍN | D20: 0 | E20: 0 | F20: Jurídica | G20: 5 | H20: ANTIOQUIA | J20: 0 | K20: PEQUEÑA | M20: COMERCIO AL POR MAYOR Y AL POR MENOR; REPARACIÓN DE VEHÍCULOS AUTOMOTORES Y MOTOCICLETAS | N20: 0 | O20: 0 | P20: 0 | R20: ADMINISTRACIÓN PÚBLICA Y DEFENSA; PLANES DE SEGURIDAD SOCIAL DE AFILIACIÓN OBLIGATORIA | U20: 0 | V20: 5001 | W20: MEDELLÍN | X20: 152 | Y20: 166 | Z20: Jurídica | AA20: 5 | AB20: ANTIOQUIA | AC20: Aprobado con subsidio | AD20: 318 | AE20: MUY GRANDE | AF20: 0 | AG20: EDUCACIÓN | AH20: 142 | AI20: 10 | AJ20: 0 | AN20: =CONCATENATE(AO20,COUNTIF($AO$2:AO20,AO20)) -> 02 | AO20: 0 | AP20: 0 | AQ20: 0 | AR20: 0 | AS20: =+(SUMIFS(Montos!$Y$2:$Y$396864,Montos!$R$2:$R$396864,Base!AT20)/1000000) -> 0 | AT20: ARMENIA
B21: 5313 | C21: GRANADA | D21: 1 | E21: 2 | F21: Jurídica | G21: 5 | H21: ANTIOQUIA | I21: Aprobado con subsidio | J21: 3 | K21: MICRO | M21: COMERCIO AL POR MAYOR Y AL POR MENOR; REPARACIÓN DE VEHÍCULOS AUTOMOTORES Y MOTOCICLETAS | N21: 1 | O21: 0 | P21: 0 | R21: OTRAS | U21: 0 | V21: 5266 | W21: ENVIGADO | X21: 1 | Y21: 0 | Z21: Jurídica | AA21: 5 | AB21: ANTIOQUIA | AC21: Aprobado con subsidio | AD21: 1 | AE21: MICRO | AF21: 0 | AG21: COMERCIO AL POR MAYOR Y AL POR MENOR; REPARACIÓN DE VEHÍCULOS AUTOMOTORES Y MOTOCICLETAS | AH21: 1 | AI21: 0 | AJ21: 0 | AN21: =CONCATENATE(AO21,COUNTIF($AO$2:AO21,AO21)) -> 25 | AO21: 2 | AP21: 0.001706484642 | AQ21: 2 | AR21: 0.0001693766938 | AS21: =+(SUMIFS(Montos!$Y$2:$Y$396864,Montos!$R$2:$R$396864,Base!AT21)/1000000) -> 0.454262 | AT21: EL CARMEN DE VIBORAL
B22: 5001 | C22: MEDELLÍN | D22: 0 | E22: 0 | F22: Jurídica | G22: 5 | H22: ANTIOQUIA | J22: 0 | K22: PEQUEÑA | M22: INDUSTRIAS MANUFACTURERAS | N22: 0 | O22: 0 | P22: 0 | R22: ACTIVIDADES DE LOS HOGARES INDIVIDUALES EN CALIDAD DE EMPLEADORES; ACTIVIDADES NO DIFERENCIADAS DE LOS HOGARES INDIVIDUALES COMO PRODUCTORES DE BIENES Y SERVICIOS PARA USO PROPIO | U22: 0 | V22: 5615 | W22: RIONEGRO | X22: 2 | Y22: 4 | Z22: Jurídica | AA22: 5 | AB22: ANTIOQUIA | AC22: Aprobado con subsidio | AD22: 6 | AE22: PEQUEÑA | AF22: 0 | AG22: ACTIVIDADES DE SERVICIOS ADMINISTRATIVOS Y DE APOYO | AH22: 0 | AI22: 2 | AJ22: 0 | AN22: =CONCATENATE(AO22,COUNTIF($AO$2:AO22,AO22)) -> 121 | AO22: 12 | AP22: 0.01023890785 | AQ22: 45 | AR22: 0.00381097561 | AS22: =+(SUMIFS(Montos!$Y$2:$Y$396864,Montos!$R$2:$R$396864,Base!AT22)/1000000) -> 10.220895 | AT22: LA CEJA
B23: 5212 | C23: COPACABANA | D23: 3 | E23: 11 | F23: Jurídica | G23: 5 | H23: ANTIOQUIA | I23: Aprobado con subsidio | J23: 14 | K23: PEQUEÑA | M23: INDUSTRIAS MANUFACTURERAS | N23: 0 | O23: 3 | P23: 0 | R23: 0 | U23: 0 | V23: 5631 | W23: SABANETA | X23: 2 | Y23: 10 | Z23: Jurídica | AA23: 5 | AB23: ANTIOQUIA | AC23: Aprobado con subsidio | AD23: 12 | AE23: PEQUEÑA | AF23: 0 | AG23: ACTIVIDADES DE ATENCIÓN DE LA SALUD HUMANA Y DE ASISTENCIA SOCIAL | AH23: 2 | AI23: 0 | AJ23: 0 | AN23: =CONCATENATE(AO23,COUNTIF($AO$2:AO23,AO23)) -> 11 | AO23: 1 | AP23: 0.0008532423208 | AQ23: 9 | AR23: 0.000762195122 | AS23: =+(SUMIFS(Montos!$Y$2:$Y$396864,Montos!$R$2:$R$396864,Base!AT23)/1000000) -> 2.044179 | AT23: SAN JERÓNIMO
B24: 68001 | C24: BUCARAMANGA | D24: 313 | E24: 5584 | F24: Jurídica | G24: 68 | H24: SANTANDER | I24: Aprobado con subsidio | J24: 5897 | K24: MUY GRANDE | M24: ACTIVIDADES DE SERVICIOS ADMINISTRATIVOS Y DE APOYO | N24: 172 | O24: 139 | P24: 2 | U24: 0 | V24: 5001 | W24: MEDELLÍN | X24: 0 | Y24: 0 | Z24: Jurídica | AA24: 5 | AB24: ANTIOQUIA | AD24: 0 | AE24: GRANDE | AF24: 0 | AG24: CONSTRUCCIÓN | AH24: 0 | AI24: 0 | AJ24: 0 | AN24: =CONCATENATE(AO24,COUNTIF($AO$2:AO24,AO24)) -> 12 | AO24: 1 | AP24: 0.0008532423208 | AQ24: 1 | AR24: 8.468834688e-05 | AS24: =+(SUMIFS(Montos!$Y$2:$Y$396864,Montos!$R$2:$R$396864,Base!AT24)/1000000) -> 0.227131 | AT24: BARBOSA
B25: 68001 | C25: BUCARAMANGA | D25: 0 | E25: 0 | F25: Jurídica | G25: 68 | H25: SANTANDER | J25: 0 | K25: GRANDE | M25: ACTIVIDADES DE SERVICIOS ADMINISTRATIVOS Y DE APOYO | N25: 0 | O25: 0 | P25: 0 | U25: 0 | V25: 5001 | W25: MEDELLÍN | X25: 0 | Y25: 0 | Z25: Natural | AA25: 5 | AB25: ANTIOQUIA | AD25: 0 | AE25: MICRO | AF25: 0 | AG25: EDUCACIÓN | AH25: 0 | AI25: 0 | AJ25: 0 | AN25: =CONCATENATE(AO25,COUNTIF($AO$2:AO25,AO25)) -> 111 | AO25: 11 | AP25: 0.009385665529 | AQ25: 26 | AR25: 0.002201897019 | AS25: =+(SUMIFS(Montos!$Y$2:$Y$396864,Montos!$R$2:$R$396864,Base!AT25)/1000000) -> 5.905406 | AT25: CALDAS
B26: 5631 | C26: SABANETA | D26: 0 | E26: 0 | F26: Jurídica | G26: 5 | H26: ANTIOQUIA | J26: 0 | K26: PEQUEÑA | M26: CONSTRUCCIÓN | N26: 0 | O26: 0 | P26: 0 | U26: 0 | V26: 5380 | W26: LA ESTRELLA | X26: 1 | Y26: 9 | Z26: Jurídica | AA26: 5 | AB26: ANTIOQUIA | AC26: Aprobado con subsidio | AD26: 10 | AE26: PEQUEÑA | AF26: 0 | AG26: INDUSTRIAS MANUFACTURERAS | AH26: 0 | AI26: 1 | AJ26: 0 | AN26: =CONCATENATE(AO26,COUNTIF($AO$2:AO26,AO26)) -> 26 | AO26: 2 | AP26: 0.001706484642 | AQ26: 5 | AR26: 0.0004234417344 | AS26: =+(SUMIFS(Montos!$Y$2:$Y$396864,Montos!$R$2:$R$396864,Base!AT26)/1000000) -> 1.135655 | AT26: CAUCASIA
B27: 23001 | C27: MONTERÍA | D27: 38 | E27: 92 | F27: Jurídica | G27: 23 | H27: CÓRDOBA | I27: Aprobado con subsidio | J27: 130 | K27: GRANDE | M27: ACTIVIDADES DE SERVICIOS ADMINISTRATIVOS Y DE APOYO | N27: 6 | O27: 32 | P27: 0 | U27: 0 | V27: 5001 | W27: MEDELLÍN | X27: 0 | Y27: 0 | Z27: Natural | AA27: 5 | AB27: ANTIOQUIA | AD27: 0 | AE27: PEQUEÑA | AF27: 0 | AG27: COMERCIO AL POR MAYOR Y AL POR MENOR; REPARACIÓN DE VEHÍCULOS AUTOMOTORES Y MOTOCICLETAS | AH27: 0 | AI27: 0 | AJ27: 0 | AN27: =CONCATENATE(AO27,COUNTIF($AO$2:AO27,AO27)) -> 81 | AO27: 8 | AP27: 0.006825938567 | AQ27: 24 | AR27: 0.002032520325 | AS27: =+(SUMIFS(Montos!$Y$2:$Y$396864,Montos!$R$2:$R$396864,Base!AT27)/1000000) -> 5.451144 | AT27: RETIRO
B28: 73001 | C28: IBAGUÉ | D28: 0 | E28: 0 | F28: Jurídica | G28: 73 | H28: TOLIMA | J28: 0 | K28: MICRO | M28: EDUCACIÓN | N28: 0 | O28: 0 | P28: 0 | U28: 0 | V28: 5360 | W28: ITAGUI | X28: 1 | Y28: 1 | Z28: Jurídica | AA28: 5 | AB28: ANTIOQUIA | AC28: Aprobado con subsidio | AD28: 2 | AE28: PEQUEÑA | AF28: 0 | AG28: ACTIVIDADES DE SERVICIOS ADMINISTRATIVOS Y DE APOYO | AH28: 0 | AI28: 1 | AJ28: 0 | AN28: =CONCATENATE(AO28,COUNTIF($AO$2:AO28,AO28)) -> 27 | AO28: 2 | AP28: 0.001706484642 | AQ28: 2 | AR28: 0.0001693766938 | AS28: =+(SUMIFS(Montos!$Y$2:$Y$396864,Montos!$R$2:$R$396864,Base!AT28)/1000000) -> 0.454262 | AT28: PUERTO TRIUNFO
B29: 5001 | C29: MEDELLÍN | D29: 0 | E29: 0 | F29: Jurídica | G29: 5 | H29: ANTIOQUIA | J29: 0 | K29: MEDIANA | M29: ACTIVIDADES DE ATENCIÓN DE LA SALUD HUMANA Y DE ASISTENCIA SOCIAL | N29: 0 | O29: 0 | P29: 0 | U29: 0 | V29: 5212 | W29: COPACABANA | X29: 0 | Y29: 0 | Z29: Jurídica | AA29: 5 | AB29: ANTIOQUIA | AD29: 0 | AE29: PEQUEÑA | AF29: 0 | AG29: INDUSTRIAS MANUFACTURERAS | AH29: 0 | AI29: 0 | AJ29: 0 | AN29: =CONCATENATE(AO29,COUNTIF($AO$2:AO29,AO29)) -> 03 | AO29: 0 | AP29: 0 | AQ29: 0 | AR29: 0 | AS29: =+(SUMIFS(Montos!$Y$2:$Y$396864,Montos!$R$2:$R$396864,Base!AT29)/1000000) -> 0 | AT29: SAN RAFAEL
B30: 73001 | C30: IBAGUÉ | D30: 0 | E30: 0 | F30: Jurídica | G30: 73 | H30: TOLIMA | J30: 0 | K30: PEQUEÑA | M30: COMERCIO AL POR MAYOR Y AL POR MENOR; REPARACIÓN DE VEHÍCULOS AUTOMOTORES Y MOTOCICLETAS | N30: 0 | O30: 0 | P30: 0 | U30: 0 | V30: 5001 | W30: MEDELLÍN | X30: 10 | Y30: 7 | Z30: Jurídica | AA30: 5 | AB30: ANTIOQUIA | AC30: Aprobado con subsidio | AD30: 17 | AE30: PEQUEÑA | AF30: 0 | AG30: ACTIVIDADES PROFESIONALES, CIENTÍFICAS Y TÉCNICAS | AH30: 2 | AI30: 8 | AJ30: 0 | AN30: =CONCATENATE(AO30,COUNTIF($AO$2:AO30,AO30)) -> 41 | AO30: 4 | AP30: 0.003412969283 | AQ30: 12 | AR30: 0.001016260163 | AS30: =+(SUMIFS(Montos!$Y$2:$Y$396864,Montos!$R$2:$R$396864,Base!AT30)/1000000) -> 2.725572 | AT30: MARINILLA
B31: 25126 | C31: CAJICÁ | D31: 0 | E31: 0 | F31: Jurídica | G31: 25 | H31: CUNDINAMARCA | J31: 0 | K31: PEQUEÑA | M31: TRANSPORTE Y ALMACENAMIENTO | N31: 0 | O31: 0 | P31: 0 | U31: 0 | V31: 5001 | W31: MEDELLÍN | X31: 1 | Y31: 2 | Z31: Jurídica | AA31: 5 | AB31: ANTIOQUIA | AC31: Aprobado con subsidio | AD31: 3 | AE31: MICRO | AF31: 0 | AG31: INDUSTRIAS MANUFACTURERAS | AH31: 1 | AI31: 0 | AJ31: 0 | AN31: =CONCATENATE(AO31,COUNTIF($AO$2:AO31,AO31)) -> 13 | AO31: 1 | AP31: 0.0008532423208 | AQ31: 7 | AR31: 0.0005928184282 | AS31: =+(SUMIFS(Montos!$Y$2:$Y$396864,Montos!$R$2:$R$396864,Base!AT31)/1000000) -> 1.589917 | AT31: SAN PEDRO DE LOS MILAGROS
B32: 8001 | C32: BARRANQUILLA | D32: 0 | E32: 0 | F32: Jurídica | G32: 8 | H32: ATLÁNTICO | J32: 0 | K32: MICRO | M32: ACTIVIDADES INMOBILIARIAS | N32: 0 | O32: 0 | P32: 0 | U32: 0 | V32: 5360 | W32: ITAGUI | X32: 2 | Y32: 3 | Z32: Jurídica | AA32: 5 | AB32: ANTIOQUIA | AC32: Aprobado con subsidio | AD32: 5 | AE32: PEQUEÑA | AF32: 0 | AG32: ACTIVIDADES DE SERVICIOS ADMINISTRATIVOS Y DE APOYO | AH32: 2 | AI32: 0 | AJ32: 0 | AN32: =CONCATENATE(AO32,COUNTIF($AO$2:AO32,AO32)) -> 14 | AO32: 1 | AP32: 0.0008532423208 | AQ32: 2 | AR32: 0.0001693766938 | AS32: =+(SUMIFS(Montos!$Y$2:$Y$396864,Montos!$R$2:$R$396864,Base!AT32)/1000000) -> 0.454262 | AT32: ANDES
B33: 66001 | C33: PEREIRA | D33: 0 | E33: 0 | F33: Jurídica | G33: 66 | H33: RISARALDA | J33: 0 | K33: PEQUEÑA | M33: ALOJAMIENTO Y SERVICIOS DE COMIDA | N33: 0 | O33: 0 | P33: 0 | U33: 0 | V33: 5001 | W33: MEDELLÍN | X33: 0 | Y33: 0 | Z33: Jurídica | AA33: 5 | AB33: ANTIOQUIA | AD33: 0 | AE33: MICRO | AF33: 0 | AG33: INDUSTRIAS MANUFACTURERAS | AH33: 0 | AI33: 0 | AJ33: 0 | AN33: =CONCATENATE(AO33,COUNTIF($AO$2:AO33,AO33)) -> 15 | AO33: 1 | AP33: 0.0008532423208 | AQ33: 13 | AR33: 0.001100948509 | AS33: =+(SUMIFS(Montos!$Y$2:$Y$396864,Montos!$R$2:$R$396864,Base!AT33)/1000000) -> 2.952703 | AT33: REMEDIOS
B34: 5001 | C34: MEDELLÍN | D34: 3 | E34: 11 | F34: Jurídica | G34: 5 | H34: ANTIOQUIA | I34: Aprobado con subsidio | J34: 14 | K34: PEQUEÑA | M34: ACTIVIDADES PROFESIONALES, CIENTÍFICAS Y TÉCNICAS | N34: 2 | O34: 1 | P34: 0 | U34: 0 | V34: 5360 | W34: ITAGUI | X34: 4 | Y34: 21 | Z34: Jurídica | AA34: 5 | AB34: ANTIOQUIA | AC34: Aprobado con subsidio | AD34: 25 | AE34: MEDIANA | AF34: 0 | AG34: INDUSTRIAS MANUFACTURERAS | AH34: 2 | AI34: 2 | AJ34: 0 | AN34: =CONCATENATE(AO34,COUNTIF($AO$2:AO34,AO34)) -> 16 | AO34: =+COUNTIFS($W$2:$W$399999,AT34,$AC$2:$AC$399999,"Aprobado con subsidio")*1 -> 1 | AP34: =+AO34/SUM($AO$2:$AO$129) -> 0.0008532423208 | AQ34: =+SUMIFS($X$2:$X$399999,$W$2:$W$399999,AT34,$AC$2:$AC$399999,"Aprobado con subsidio") -> 2 | AR34: 0.0001693766938 | AS34: =+(SUMIFS(Montos!$Y$2:$Y$396864,Montos!$R$2:$R$396864,Base!AT34)/1000000) -> 0.454262 | AT34: CHIGORODÓ
B35: 25175 | C35: CHÍA | D35: 8 | E35: 41 | F35: Jurídica | G35: 25 | H35: CUNDINAMARCA | I35: Aprobado con subsidio | J35: 49 | K35: MEDIANA | M35: COMERCIO AL POR MAYOR Y AL POR MENOR; REPARACIÓN DE VEHÍCULOS AUTOMOTORES Y MOTOCICLETAS | N35: 1 | O35: 7 | P35: 0 | U35: 0 | V35: 5001 | W35: MEDELLÍN | X35: 1 | Y35: 1 | Z35: Jurídica | AA35: 5 | AB35: ANTIOQUIA | AC35: Aprobado con subsidio | AD35: 2 | AE35: MICRO | AF35: 0 | AG35: COMERCIO AL POR MAYOR Y AL POR MENOR; REPARACIÓN DE VEHÍCULOS AUTOMOTORES Y MOTOCICLETAS | AH35: 0 | AI35: 1 | AJ35: 0 | AN35: =CONCATENATE(AO35,COUNTIF($AO$2:AO35,AO35)) -> 04 | AO35: 0 | AP35: 0 | AQ35: 0 | AR35: 0 | AS35: =+(SUMIFS(Montos!$Y$2:$Y$396864,Montos!$R$2:$R$396864,Base!AT35)/1000000) -> 0 | AT35: CIUDAD BOLÍVAR
B36: 5001 | C36: MEDELLÍN | D36: 1 | E36: 14 | F36: Jurídica | G36: 5 | H36: ANTIOQUIA | I36: Aprobado con subsidio | J36: 15 | K36: MEDIANA | M36: COMERCIO AL POR MAYOR Y AL POR MENOR; REPARACIÓN DE VEHÍCULOS AUTOMOTORES Y MOTOCICLETAS | N36: 0 | O36: 1 | P36: 0 | U36: 0 | V36: 5001 | W36: MEDELLÍN | X36: 1 | Y36: 31 | Z36: Jurídica | AA36: 5 | AB36: ANTIOQUIA | AC36: Aprobado con subsidio | AD36: 32 | AE36: MEDIANA | AF36: 0 | AG36: ACTIVIDADES DE ATENCIÓN DE LA SALUD HUMANA Y DE ASISTENCIA SOCIAL | AH36: 1 | AI36: 0 | AJ36: 0 | AN36: =CONCATENATE(AO36,COUNTIF($AO$2:AO36,AO36)) -> 17 | AO36: 1 | AP36: 0.0008532423208 | AQ36: 3 | AR36: 0.0002540650407 | AS36: =+(SUMIFS(Montos!$Y$2:$Y$396864,Montos!$R$2:$R$396864,Base!AT36)/1000000) -> 0.681393 | AT36: SAN VICENTE
B37: 5001 | C37: MEDELLÍN | D37: 0 | E37: 0 | F37: Jurídica | G37: 5 | H37: ANTIOQUIA | J37: 0 | K37: PEQUEÑA | M37: ACTIVIDADES PROFESIONALES, CIENTÍFICAS Y TÉCNICAS | N37: 0 | O37: 0 | P37: 0 | U37: 0 | V37: 5001 | W37: MEDELLÍN | X37: 0 | Y37: 0 | Z37: Natural | AA37: 5 | AB37: ANTIOQUIA | AD37: 0 | AE37: PEQUEÑA | AF37: 0 | AG37: INDUSTRIAS MANUFACTURERAS | AH37: 0 | AI37: 0 | AJ37: 0 | AN37: =CONCATENATE(AO37,COUNTIF($AO$2:AO37,AO37)) -> 18 | AO37: 1 | AP37: 0.0008532423208 | AQ37: 1 | AR37: 8.468834688e-05 | AS37: =+(SUMIFS(Montos!$Y$2:$Y$396864,Montos!$R$2:$R$396864,Base!AT37)/1000000) -> 0.227131 | AT37: SAN ANDRÉS DE CUERQUÍA
B38: 11001 | C38: BOGOTÁ, D.C. | D38: 4 | E38: 1 | F38: Jurídica | G38: 11 | H38: BOGOTÁ, D.C. | I38: Aprobado con subsidio | J38: 5 | K38: MICRO | M38: INDUSTRIAS MANUFACTURERAS | N38: 0 | O38: 1 | P38: 3 | U38: 0 | V38: 5001 | W38: MEDELLÍN | X38: 0 | Y38: 0 | Z38: Jurídica | AA38: 5 | AB38: ANTIOQUIA | AD38: 0 | AE38: PEQUEÑA | AF38: 0 | AG38: INDUSTRIAS MANUFACTURERAS | AH38: 0 | AI38: 0 | AJ38: 0 | AN38: =CONCATENATE(AO38,COUNTIF($AO$2:AO38,AO38)) -> 05 | AO38: 0 | AP38: 0 | AQ38: 0 | AR38: 0 | AS38: =+(SUMIFS(Montos!$Y$2:$Y$396864,Montos!$R$2:$R$396864,Base!AT38)/1000000) -> 0 | AT38: AMAGÁ
B39: 15238 | C39: DUITAMA | D39: 1 | E39: 1 | F39: Jurídica | G39: 15 | H39: BOYACÁ | I39: Aprobado con subsidio | J39: 2 | K39: MICRO | M39: COMERCIO AL POR MAYOR Y AL POR MENOR; REPARACIÓN DE VEHÍCULOS AUTOMOTORES Y MOTOCICLETAS | N39: 0 | O39: 1 | P39: 0 | U39: 0 | V39: 5045 | W39: APARTADÓ | X39: 0 | Y39: 0 | Z39: Jurídica | AA39: 5 | AB39: ANTIOQUIA | AD39: 0 | AE39: MEDIANA | AF39: 0 | AG39: COMERCIO AL POR MAYOR Y AL POR MENOR; REPARACIÓN DE VEHÍCULOS AUTOMOTORES Y MOTOCICLETAS | AH39: 0 | AI39: 0 | AJ39: 0 | AN39: =CONCATENATE(AO39,COUNTIF($AO$2:AO39,AO39)) -> 06 | AO39: 0 | AP39: 0 | AQ39: 0 | AR39: 0 | AS39: =+(SUMIFS(Montos!$Y$2:$Y$396864,Montos!$R$2:$R$396864,Base!AT39)/1000000) -> 0 | AT39: SEGOVIA
B40: 5001 | C40: MEDELLÍN | D40: 152 | E40: 166 | F40: Jurídica | G40: 5 | H40: ANTIOQUIA | I40: Aprobado con subsidio | J40: 318 | K40: MUY GRANDE | M40: EDUCACIÓN | N40: 142 | O40: 10 | P40: 0 | U40: 0 | V40: 5266 | W40: ENVIGADO | X40: 0 | Y40: 0 | Z40: Jurídica | AA40: 5 | AB40: ANTIOQUIA | AD40: 0 | AE40: PEQUEÑA | AF40: 0 | AG40: ACTIVIDADES PROFESIONALES, CIENTÍFICAS Y TÉCNICAS | AH40: 0 | AI40: 0 | AJ40: 0 | AN40: =CONCATENATE(AO40,COUNTIF($AO$2:AO40,AO40)) -> 07 | AO40: 0 | AP40: 0 | AQ40: 0 | AR40: 0 | AS40: =+(SUMIFS(Montos!$Y$2:$Y$396864,Montos!$R$2:$R$396864,Base!AT40)/1000000) -> 0 | AT40: CAÑASGORDAS
B41: 11001 | C41: BOGOTÁ, D.C. | D41: 0 | E41: 0 | F41: Jurídica | G41: 11 | H41: BOGOTÁ, D.C. | J41: 0 | K41: MUY GRANDE | M41: ACTIVIDADES DE SERVICIOS ADMINISTRATIVOS Y DE APOYO | N41: 0 | O41: 0 | P41: 0 | U41: 0 | V41: 5001 | W41: MEDELLÍN | X41: 1 | Y41: 4 | Z41: Jurídica | AA41: 5 | AB41: ANTIOQUIA | AC41: Aprobado con subsidio | AD41: 5 | AE41: MICRO | AF41: 0 | AG41: INDUSTRIAS MANUFACTURERAS | AH41: 1 | AI41: 0 | AJ41: 0 | AN41: =CONCATENATE(AO41,COUNTIF($AO$2:AO41,AO41)) -> 19 | AO41: 1 | AP41: 0.0008532423208 | AQ41: 3 | AR41: 0.0002540650407 | AS41: =+(SUMIFS(Montos!$Y$2:$Y$396864,Montos!$R$2:$R$396864,Base!AT41)/1000000) -> 0.681393 | AT41: SANTAFÉ DE ANTIOQUIA
B42: 76001 | C42: CALI | D42: 0 | E42: 0 | F42: Jurídica | G42: 76 | H42: VALLE DEL CAUCA | J42: 0 | K42: PEQUEÑA | M42: COMERCIO AL POR MAYOR Y AL POR MENOR; REPARACIÓN DE VEHÍCULOS AUTOMOTORES Y MOTOCICLETAS | N42: 0 | O42: 0 | P42: 0 | U42: 0 | V42: 5615 | W42: RIONEGRO | X42: 0 | Y42: 0 | Z42: Jurídica | AA42: 5 | AB42: ANTIOQUIA | AD42: 0 | AE42: MICRO | AF42: 0 | AG42: ACTIVIDADES DE ATENCIÓN DE LA SALUD HUMANA Y DE ASISTENCIA SOCIAL | AH42: 0 | AI42: 0 | AJ42: 0 | AN42: =CONCATENATE(AO42,COUNTIF($AO$2:AO42,AO42)) -> 08 | AO42: 0 | AP42: 0 | AQ42: 0 | AR42: 0 | AS42: =+(SUMIFS(Montos!$Y$2:$Y$396864,Montos!$R$2:$R$396864,Base!AT42)/1000000) -> 0 | AT42: SALGAR
B43: 8001 | C43: BARRANQUILLA | D43: 1 | E43: 11 | F43: Jurídica | G43: 8 | H43: ATLÁNTICO | I43: Aprobado con subsidio | J43: 12 | K43: PEQUEÑA | M43: INDUSTRIAS MANUFACTURERAS | N43: 0 | O43: 1 | P43: 0 | U43: 0 | V43: 5001 | W43: MEDELLÍN | X43: 1 | Y43: 2 | Z43: Jurídica | AA43: 5 | AB43: ANTIOQUIA | AC43: Aprobado con subsidio | AD43: 3 | AE43: MICRO | AF43: 0 | AG43: INFORMACIÓN Y COMUNICACIONES | AH43: 1 | AI43: 0 | AJ43: 0 | AN43: =CONCATENATE(AO43,COUNTIF($AO$2:AO43,AO43)) -> 28 | AO43: 2 | AP43: 0.001706484642 | AQ43: 14 | AR43: 0.001185636856 | AS43: =+(SUMIFS(Montos!$Y$2:$Y$396864,Montos!$R$2:$R$396864,Base!AT43)/1000000) -> 3.179834 | AT43: SAN ROQUE
B44: 11001 | C44: BOGOTÁ, D.C. | D44: 0 | E44: 0 | F44: Jurídica | G44: 11 | H44: BOGOTÁ, D.C. | J44: 0 | K44: MUY GRANDE | M44: ACTIVIDADES DE ATENCIÓN DE LA SALUD HUMANA Y DE ASISTENCIA SOCIAL | N44: 0 | O44: 0 | P44: 0 | U44: 0 | V44: 5001 | W44: MEDELLÍN | X44: 1 | Y44: 23 | Z44: Jurídica | AA44: 5 | AB44: ANTIOQUIA | AC44: Aprobado con subsidio | AD44: 24 | AE44: PEQUEÑA | AF44: 0 | AG44: COMERCIO AL POR MAYOR Y AL POR MENOR; REPARACIÓN DE VEHÍCULOS AUTOMOTORES Y MOTOCICLETAS | AH44: 0 | AI44: 1 | AJ44: 0 | AN44: =CONCATENATE(AO44,COUNTIF($AO$2:AO44,AO44)) -> 72 | AO44: 7 | AP44: 0.005972696246 | AQ44: 17 | AR44: 0.001439701897 | AS44: =+(SUMIFS(Montos!$Y$2:$Y$396864,Montos!$R$2:$R$396864,Base!AT44)/1000000) -> 3.861227 | AT44: EL SANTUARIO
B45: 5266 | C45: ENVIGADO | D45: 1 | E45: 0 | F45: Jurídica | G45: 5 | H45: ANTIOQUIA | I45: Aprobado con subsidio | J45: 1 | K45: MICRO | M45: COMERCIO AL POR MAYOR Y AL POR MENOR; REPARACIÓN DE VEHÍCULOS AUTOMOTORES Y MOTOCICLETAS | N45: 1 | O45: 0 | P45: 0 | U45: 0 | V45: 5001 | W45: MEDELLÍN | X45: 5 | Y45: 152 | Z45: Jurídica | AA45: 5 | AB45: ANTIOQUIA | AC45: Aprobado con subsidio | AD45: 157 | AE45: MUY GRANDE | AF45: 0 | AG45: ACTIVIDADES DE SERVICIOS ADMINISTRATIVOS Y DE APOYO | AH45: 0 | AI45: 5 | AJ45: 0 | AN45: =CONCATENATE(AO45,COUNTIF($AO$2:AO45,AO45)) -> 110 | AO45: 1 | AP45: 0.0008532423208 | AQ45: 23 | AR45: 0.001947831978 | AS45: =+(SUMIFS(Montos!$Y$2:$Y$396864,Montos!$R$2:$R$396864,Base!AT45)/1000000) -> 5.224013 | AT45: VENECIA
B46: 5615 | C46: RIONEGRO | D46: 2 | E46: 4 | F46: Jurídica | G46: 5 | H46: ANTIOQUIA | I46: Aprobado con subsidio | J46: 6 | K46: PEQUEÑA | M46: ACTIVIDADES DE SERVICIOS ADMINISTRATIVOS Y DE APOYO | N46: 0 | O46: 2 | P46: 0 | U46: 0 | V46: 5266 | W46: ENVIGADO | X46: 0 | Y46: 0 | Z46: Jurídica | AA46: 5 | AB46: ANTIOQUIA | AD46: 0 | AE46: MICRO | AF46: 0 | AG46: INDUSTRIAS MANUFACTURERAS | AH46: 0 | AI46: 0 | AJ46: 0 | AN46: =CONCATENATE(AO46,COUNTIF($AO$2:AO46,AO46)) -> 09 | AO46: 0 | AP46: 0 | AQ46: 0 | AR46: 0 | AS46: =+(SUMIFS(Montos!$Y$2:$Y$396864,Montos!$R$2:$R$396864,Base!AT46)/1000000) -> 0 | AT46: TURBO
B47: 5631 | C47: SABANETA | D47: 2 | E47: 10 | F47: Jurídica | G47: 5 | H47: ANTIOQUIA | I47: Aprobado con subsidio | J47: 12 | K47: PEQUEÑA | M47: ACTIVIDADES DE ATENCIÓN DE LA SALUD HUMANA Y DE ASISTENCIA SOCIAL | N47: 2 | O47: 0 | P47: 0 | U47: 0 | V47: 5360 | W47: ITAGUI | X47: 0 | Y47: 0 | Z47: Jurídica | AA47: 5 | AB47: ANTIOQUIA | AD47: 0 | AE47: MEDIANA | AF47: 0 | AG47: COMERCIO AL POR MAYOR Y AL POR MENOR; REPARACIÓN DE VEHÍCULOS AUTOMOTORES Y MOTOCICLETAS | AH47: 0 | AI47: 0 | AJ47: 0 | AN47: =CONCATENATE(AO47,COUNTIF($AO$2:AO47,AO47)) -> 010 | AO47: 0 | AP47: 0 | AQ47: 0 | AR47: 0 | AS47: =+(SUMIFS(Montos!$Y$2:$Y$396864,Montos!$R$2:$R$396864,Base!AT47)/1000000) -> 0 | AT47: FREDONIA
B48: 50001 | C48: VILLAVICENCIO | D48: 0 | E48: 0 | F48: Jurídica | G48: 50 | H48: META | J48: 0 | K48: MICRO | M48: TRANSPORTE Y ALMACENAMIENTO | N48: 0 | O48: 0 | P48: 0 | U48: 0 | V48: 5001 | W48: MEDELLÍN | X48: 0 | Y48: 0 | Z48: Jurídica | AA48: 5 | AB48: ANTIOQUIA | AD48: 0 | AE48: MICRO | AF48: 0 | AG48: ACTIVIDADES DE SERVICIOS ADMINISTRATIVOS Y DE APOYO | AH48: 0 | AI48: 0 | AJ48: 0 | AN48: =CONCATENATE(AO48,COUNTIF($AO$2:AO48,AO48)) -> 011 | AO48: 0 | AP48: 0 | AQ48: 0 | AR48: 0 | AS48: =+(SUMIFS(Montos!$Y$2:$Y$396864,Montos!$R$2:$R$396864,Base!AT48)/1000000) -> 0 | AT48: ANZA
B49: 5001 | C49: MEDELLÍN | D49: 0 | E49: 0 | F49: Jurídica | G49: 5 | H49: ANTIOQUIA | J49: 0 | K49: GRANDE | M49: CONSTRUCCIÓN | N49: 0 | O49: 0 | P49: 0 | U49: 0 | V49: 5001 | W49: MEDELLÍN | X49: 207 | Y49: 614 | Z49: Jurídica | AA49: 5 | AB49: ANTIOQUIA | AC49: Aprobado con subsidio | AD49: 821 | AE49: MUY GRANDE | AF49: 0 | AG49: ACTIVIDADES DE SERVICIOS ADMINISTRATIVOS Y DE APOYO | AH49: 107 | AI49: 91 | AJ49: 9 | AN49: =CONCATENATE(AO49,COUNTIF($AO$2:AO49,AO49)) -> 29 | AO49: 2 | AP49: 0.001706484642 | AQ49: 12 | AR49: 0.001016260163 | AS49: =+(SUMIFS(Montos!$Y$2:$Y$396864,Montos!$R$2:$R$396864,Base!AT49)/1000000) -> 2.725572 | AT49: YOLOMBÓ
B50: 5001 | C50: MEDELLÍN | D50: 0 | E50: 0 | F50: Natural | G50: 5 | H50: ANTIOQUIA | J50: 0 | K50: MICRO | M50: EDUCACIÓN | N50: 0 | O50: 0 | P50: 0 | U50: 0 | V50: 5001 | W50: MEDELLÍN | X50: 1 | Y50: 1 | Z50: Jurídica | AA50: 5 | AB50: ANTIOQUIA | AC50: Aprobado con subsidio | AD50: 2 | AE50: MICRO | AF50: 0 | AG50: COMERCIO AL POR MAYOR Y AL POR MENOR; REPARACIÓN DE VEHÍCULOS AUTOMOTORES Y MOTOCICLETAS | AH50: 1 | AI50: 0 | AJ50: 0 | AN50: =CONCATENATE(AO50,COUNTIF($AO$2:AO50,AO50)) -> 111 | AO50: 1 | AP50: 0.0008532423208 | AQ50: 1 | AR50: 8.468834688e-05 | AS50: =+(SUMIFS(Montos!$Y$2:$Y$396864,Montos!$R$2:$R$396864,Base!AT50)/1000000) -> 0.227131 | AT50: GÓMEZ PLATA
B51: 5380 | C51: LA ESTRELLA | D51: 1 | E51: 9 | F51: Jurídica | G51: 5 | H51: ANTIOQUIA | I51: Aprobado con subsidio | J51: 10 | K51: PEQUEÑA | M51: INDUSTRIAS MANUFACTURERAS | N51: 0 | O51: 1 | P51: 0 | U51: 0 | V51: 5360 | W51: ITAGUI | X51: 39 | Y51: 509 | Z51: Jurídica | AA51: 5 | AB51: ANTIOQUIA | AC51: Aprobado con subsidio | AD51: 548 | AE51: MUY GRANDE | AF51: 0 | AG51: INDUSTRIAS MANUFACTURERAS | AH51: 9 | AI51: 30 | AJ51: 0 | AN51: =CONCATENATE(AO51,COUNTIF($AO$2:AO51,AO51)) -> 112 | AO51: 1 | AP51: 0.0008532423208 | AQ51: 98 | AR51: 0.008299457995 | AS51: =+(SUMIFS(Montos!$Y$2:$Y$396864,Montos!$R$2:$R$396864,Base!AT51)/1000000) -> 22.258838 | AT51: SANTA ROSA DE OSOS
B52: 5001 | C52: MEDELLÍN | D52: 0 | E52: 0 | F52: Natural | G52: 5 | H52: ANTIOQUIA | J52: 0 | K52: PEQUEÑA | M52: COMERCIO AL POR MAYOR Y AL POR MENOR; REPARACIÓN DE VEHÍCULOS AUTOMOTORES Y MOTOCICLETAS | N52: 0 | O52: 0 | P52: 0 | U52: 0 | V52: 5615 | W52: RIONEGRO | X52: 0 | Y52: 0 | Z52: Jurídica | AA52: 5 | AB52: ANTIOQUIA | AD52: 0 | AE52: MEDIANA | AF52: 0 | AG52: CONSTRUCCIÓN | AH52: 0 | AI52: 0 | AJ52: 0 | AN52: =CONCATENATE(AO52,COUNTIF($AO$2:AO52,AO52)) -> 113 | AO52: 1 | AP52: 0.0008532423208 | AQ52: 1 | AR52: 8.468834688e-05 | AS52: =+(SUMIFS(Montos!$Y$2:$Y$396864,Montos!$R$2:$R$396864,Base!AT52)/1000000) -> 0.227131 | AT52: COCORNÁ
B53: 54001 | C53: CÚCUTA | D53: 3 | E53: 2 | F53: Jurídica | G53: 54 | H53: NORTE DE SANTANDER | I53: Aprobado con subsidio | J53: 5 | K53: MICRO | M53: ACTIVIDADES PROFESIONALES, CIENTÍFICAS Y TÉCNICAS | N53: 3 | O53: 0 | P53: 0 | U53: 0 | V53: 5266 | W53: ENVIGADO | X53: 0 | Y53: 0 | Z53: Jurídica | AA53: 5 | AB53: ANTIOQUIA | AD53: 0 | AE53: PEQUEÑA | AF53: 0 | AG53: ACTIVIDADES DE SERVICIOS ADMINISTRATIVOS Y DE APOYO | AH53: 0 | AI53: 0 | AJ53: 0 | AN53: =CONCATENATE(AO53,COUNTIF($AO$2:AO53,AO53)) -> 012 | AO53: 0 | AP53: 0 | AQ53: 0 | AR53: 0 | AS53: =+(SUMIFS(Montos!$Y$2:$Y$396864,Montos!$R$2:$R$396864,Base!AT53)/1000000) -> 0 | AT53: SAN PEDRO DE URABA
B54: 76001 | C54: CALI | D54: 1 | E54: 3 | F54: Jurídica | G54: 76 | H54: VALLE DEL CAUCA | I54: Aprobado con subsidio | J54: 4 | K54: PEQUEÑA | M54: COMERCIO AL POR MAYOR Y AL POR MENOR; REPARACIÓN DE VEHÍCULOS AUTOMOTORES Y MOTOCICLETAS | N54: 1 | O54: 0 | P54: 0 | U54: 0 | V54: 5001 | W54: MEDELLÍN | X54: 10 | Y54: 232 | Z54: Jurídica | AA54: 5 | AB54: ANTIOQUIA | AC54: Aprobado con subsidio | AD54: 242 | AE54: MUY GRANDE | AF54: 0 | AG54: ACTIVIDADES DE ATENCIÓN DE LA SALUD HUMANA Y DE ASISTENCIA SOCIAL | AH54: 10 | AI54: 0 | AJ54: 0 | AN54: =CONCATENATE(AO54,COUNTIF($AO$2:AO54,AO54)) -> 013 | AO54: 0 | AP54: 0 | AQ54: 0 | AR54: 0 | AS54: =+(SUMIFS(Montos!$Y$2:$Y$396864,Montos!$R$2:$R$396864,Base!AT54)/1000000) -> 0 | AT54: SABANALARGA
B55: 5360 | C55: ITAGUI | D55: 1 | E55: 1 | F55: Jurídica | G55: 5 | H55: ANTIOQUIA | I55: Aprobado con subsidio | J55: 2 | K55: PEQUEÑA | M55: ACTIVIDADES DE SERVICIOS ADMINISTRATIVOS Y DE APOYO | N55: 0 | O55: 1 | P55: 0 | U55: 0 | V55: 5001 | W55: MEDELLÍN | X55: 2 | Y55: 4 | Z55: Jurídica | AA55: 5 | AB55: ANTIOQUIA | AC55: Aprobado con subsidio | AD55: 6 | AE55: PEQUEÑA | AF55: 0 | AG55: ALOJAMIENTO Y SERVICIOS DE COMIDA | AH55: 1 | AI55: 1 | AJ55: 0 | AN55: =CONCATENATE(AO55,COUNTIF($AO$2:AO55,AO55)) -> 014 | AO55: 0 | AP55: 0 | AQ55: 0 | AR55: 0 | AS55: =+(SUMIFS(Montos!$Y$2:$Y$396864,Montos!$R$2:$R$396864,Base!AT55)/1000000) -> 0 | AT55: DABEIBA
B56: 11001 | C56: BOGOTÁ, D.C. | D56: 0 | E56: 0 | F56: Jurídica | G56: 11 | H56: BOGOTÁ, D.C. | J56: 0 | K56: PEQUEÑA | M56: COMERCIO AL POR MAYOR Y AL POR MENOR; REPARACIÓN DE VEHÍCULOS AUTOMOTORES Y MOTOCICLETAS | N56: 0 | O56: 0 | P56: 0 | U56: 0 | V56: 5001 | W56: MEDELLÍN | X56: 0 | Y56: 0 | Z56: Jurídica | AA56: 5 | AB56: ANTIOQUIA | AD56: 0 | AE56: MEDIANA | AF56: 0 | AG56: INFORMACIÓN Y COMUNICACIONES | AH56: 0 | AI56: 0 | AJ56: 0 | AN56: =CONCATENATE(AO56,COUNTIF($AO$2:AO56,AO56)) -> 015 | AO56: 0 | AP56: 0 | AQ56: 0 | AR56: 0 | AS56: =+(SUMIFS(Montos!$Y$2:$Y$396864,Montos!$R$2:$R$396864,Base!AT56)/1000000) -> 0 | AT56: VALPARAÍSO
B57: 76001 | C57: CALI | D57: 1 | E57: 3 | F57: Natural | G57: 76 | H57: VALLE DEL CAUCA | I57: Aprobado con subsidio | J57: 4 | K57: MICRO | M57: COMERCIO AL POR MAYOR Y AL POR MENOR; REPARACIÓN DE VEHÍCULOS AUTOMOTORES Y MOTOCICLETAS | N57: 1 | O57: 0 | P57: 0 | U57: 0 | V57: 5660 | W57: SAN LUIS | X57: 0 | Y57: 0 | Z57: Jurídica | AA57: 5 | AB57: ANTIOQUIA | AD57: 0 | AE57: MEDIANA | AF57: 0 | AG57: CONSTRUCCIÓN | AH57: 0 | AI57: 0 | AJ57: 0 | AN57: =CONCATENATE(AO57,COUNTIF($AO$2:AO57,AO57)) -> 016 | AO57: 0 | AP57: 0 | AQ57: 0 | AR57: 0 | AS57: =+(SUMIFS(Montos!$Y$2:$Y$396864,Montos!$R$2:$R$396864,Base!AT57)/1000000) -> 0 | AT57: PUERTO BERRÍO
B58: 54001 | C58: CÚCUTA | D58: 1 | E58: 1 | F58: Jurídica | G58: 54 | H58: NORTE DE SANTANDER | I58: Aprobado con subsidio | J58: 2 | K58: PEQUEÑA | M58: CONSTRUCCIÓN | N58: 0 | O58: 1 | P58: 0 | U58: 0 | V58: 5266 | W58: ENVIGADO | X58: 1 | Y58: 1 | Z58: Jurídica | AA58: 5 | AB58: ANTIOQUIA | AC58: Aprobado con subsidio | AD58: 2 | AE58: MICRO | AF58: 0 | AG58: INFORMACIÓN Y COMUNICACIONES | AH58: 0 | AI58: 1 | AJ58: 0 | AN58: =CONCATENATE(AO58,COUNTIF($AO$2:AO58,AO58)) -> 114 | AO58: 1 | AP58: 0.0008532423208 | AQ58: 2 | AR58: 0.0001693766938 | AS58: =+(SUMIFS(Montos!$Y$2:$Y$396864,Montos!$R$2:$R$396864,Base!AT58)/1000000) -> 0.454262 | AT58: CAREPA
B59: 73001 | C59: IBAGUÉ | D59: 0 | E59: 0 | F59: Jurídica | G59: 73 | H59: TOLIMA | J59: 0 | K59: MEDIANA | M59: COMERCIO AL POR MAYOR Y AL POR MENOR; REPARACIÓN DE VEHÍCULOS AUTOMOTORES Y MOTOCICLETAS | N59: 0 | O59: 0 | P59: 0 | U59: 0 | V59: 5001 | W59: MEDELLÍN | X59: 0 | Y59: 0 | Z59: Jurídica | AA59: 5 | AB59: ANTIOQUIA | AD59: 0 | AE59: GRANDE | AF59: 0 | AG59: COMERCIO AL POR MAYOR Y AL POR MENOR; REPARACIÓN DE VEHÍCULOS AUTOMOTORES Y MOTOCICLETAS | AH59: 0 | AI59: 0 | AJ59: 0 | AN59: =CONCATENATE(AO59,COUNTIF($AO$2:AO59,AO59)) -> 017 | AO59: 0 | AP59: 0 | AQ59: 0 | AR59: 0 | AS59: =+(SUMIFS(Montos!$Y$2:$Y$396864,Montos!$R$2:$R$396864,Base!AT59)/1000000) -> 0 | AT59: BETULIA
B60: 11001 | C60: BOGOTÁ, D.C. | D60: 19 | E60: 60 | F60: Jurídica | G60: 11 | H60: BOGOTÁ, D.C. | I60: Aprobado con subsidio | J60: 79 | K60: MEDIANA | M60: ACTIVIDADES DE SERVICIOS ADMINISTRATIVOS Y DE APOYO | N60: 12 | O60: 7 | P60: 0 | U60: 0 | V60: 5001 | W60: MEDELLÍN | X60: 0 | Y60: 0 | Z60: Jurídica | AA60: 5 | AB60: ANTIOQUIA | AD60: 0 | AE60: MICRO | AF60: 0 | AG60: ACTIVIDADES DE SERVICIOS ADMINISTRATIVOS Y DE APOYO | AH60: 0 | AI60: 0 | AJ60: 0 | AN60: =CONCATENATE(AO60,COUNTIF($AO$2:AO60,AO60)) -> 018 | AO60: 0 | AP60: 0 | AQ60: 0 | AR60: 0 | AS60: =+(SUMIFS(Montos!$Y$2:$Y$396864,Montos!$R$2:$R$396864,Base!AT60)/1000000) -> 0 | AT60: NECOCLÍ
B61: 5212 | C61: COPACABANA | D61: 0 | E61: 0 | F61: Jurídica | G61: 5 | H61: ANTIOQUIA | J61: 0 | K61: PEQUEÑA | M61: INDUSTRIAS MANUFACTURERAS | N61: 0 | O61: 0 | P61: 0 | U61: 0 | V61: 5001 | W61: MEDELLÍN | X61: 0 | Y61: 0 | Z61: Jurídica | AA61: 5 | AB61: ANTIOQUIA | AD61: 0 | AE61: MEDIANA | AF61: 0 | AG61: ALOJAMIENTO Y SERVICIOS DE COMIDA | AH61: 0 | AI61: 0 | AJ61: 0 | AN61: =CONCATENATE(AO61,COUNTIF($AO$2:AO61,AO61)) -> 019 | AO61: 0 | AP61: 0 | AQ61: 0 | AR61: 0 | AS61: =+(SUMIFS(Montos!$Y$2:$Y$396864,Montos!$R$2:$R$396864,Base!AT61)/1000000) -> 0 | AT61: GUADALUPE
B62: 11001 | C62: BOGOTÁ, D.C. | D62: 1 | E62: 2 | F62: Jurídica | G62: 11 | H62: BOGOTÁ, D.C. | I62: Aprobado con subsidio | J62: 3 | K62: PEQUEÑA | M62: COMERCIO AL POR MAYOR Y AL POR MENOR; REPARACIÓN DE VEHÍCULOS AUTOMOTORES Y MOTOCICLETAS | N62: 1 | O62: 0 | P62: 0 | U62: 0 | V62: 5266 | W62: ENVIGADO | X62: 0 | Y62: 0 | Z62: Jurídica | AA62: 5 | AB62: ANTIOQUIA | AD62: 0 | AE62: MICRO | AF62: 0 | AG62: ACTIVIDADES PROFESIONALES, CIENTÍFICAS Y TÉCNICAS | AH62: 0 | AI62: 0 | AJ62: 0 | AN62: =CONCATENATE(AO62,COUNTIF($AO$2:AO62,AO62)) -> 020 | AO62: 0 | AP62: 0 | AQ62: 0 | AR62: 0 | AS62: =+(SUMIFS(Montos!$Y$2:$Y$396864,Montos!$R$2:$R$396864,Base!AT62)/1000000) -> 0 | AT62: 0
B63: 68167 | C63: CHARALÁ | D63: 0 | E63: 0 | F63: Natural | G63: 68 | H63: SANTANDER | J63: 0 | K63: MICRO | M63: ACTIVIDADES FINANCIERAS Y DE SEGUROS | N63: 0 | O63: 0 | P63: 0 | U63: 0 | V63: 5001 | W63: MEDELLÍN | X63: 0 | Y63: 0 | Z63: Jurídica | AA63: 5 | AB63: ANTIOQUIA | AD63: 0 | AE63: MICRO | AF63: 0 | AG63: INFORMACIÓN Y COMUNICACIONES | AH63: 0 | AI63: 0 | AJ63: 0 | AN63: =CONCATENATE(AO63,COUNTIF($AO$2:AO63,AO63)) -> 021 | AO63: 0 | AP63: 0 | AQ63: 0 | AR63: 0 | AS63: =+(SUMIFS(Montos!$Y$2:$Y$396864,Montos!$R$2:$R$396864,Base!AT63)/1000000) -> 0
B64: 11001 | C64: BOGOTÁ, D.C. | D64: 0 | E64: 0 | F64: Jurídica | G64: 11 | H64: BOGOTÁ, D.C. | J64: 0 | K64: MEDIANA | M64: INDUSTRIAS MANUFACTURERAS | N64: 0 | O64: 0 | P64: 0 | U64: 0 | V64: 5001 | W64: MEDELLÍN | X64: 1 | Y64: 3 | Z64: Jurídica | AA64: 5 | AB64: ANTIOQUIA | AC64: Aprobado con subsidio | AD64: 4 | AE64: MICRO | AF64: 0 | AG64: CONSTRUCCIÓN | AH64: 0 | AI64: 1 | AJ64: 0 | AN64: =CONCATENATE(AO64,COUNTIF($AO$2:AO64,AO64)) -> 022 | AO64: 0 | AP64: 0 | AQ64: 0 | AR64: 0 | AS64: =+(SUMIFS(Montos!$Y$2:$Y$396864,Montos!$R$2:$R$396864,Base!AT64)/1000000) -> 0
B65: 11001 | C65: BOGOTÁ, D.C. | D65: 0 | E65: 0 | F65: Jurídica | G65: 11 | H65: BOGOTÁ, D.C. | J65: 0 | K65: PEQUEÑA | M65: ACTIVIDADES PROFESIONALES, CIENTÍFICAS Y TÉCNICAS | N65: 0 | O65: 0 | P65: 0 | U65: 0 | V65: 5001 | W65: MEDELLÍN | X65: 4 | Y65: 5 | Z65: Jurídica | AA65: 5 | AB65: ANTIOQUIA | AC65: Aprobado con subsidio | AD65: 9 | AE65: PEQUEÑA | AF65: 0 | AG65: CONSTRUCCIÓN | AH65: 0 | AI65: 4 | AJ65: 0 | AN65: =CONCATENATE(AO65,COUNTIF($AO$2:AO65,AO65)) -> 023 | AO65: 0 | AP65: 0 | AQ65: 0 | AR65: 0 | AS65: =+(SUMIFS(Montos!$Y$2:$Y$396864,Montos!$R$2:$R$396864,Base!AT65)/1000000) -> 0
B66: 5001 | C66: MEDELLÍN | D66: 10 | E66: 7 | F66: Jurídica | G66: 5 | H66: ANTIOQUIA | I66: Aprobado con subsidio | J66: 17 | K66: PEQUEÑA | M66: ACTIVIDADES PROFESIONALES, CIENTÍFICAS Y TÉCNICAS | N66: 2 | O66: 8 | P66: 0 | U66: 0 | V66: 5615 | W66: RIONEGRO | X66: 1 | Y66: 6 | Z66: Jurídica | AA66: 5 | AB66: ANTIOQUIA | AC66: Aprobado con subsidio | AD66: 7 | AE66: PEQUEÑA | AF66: 0 | AG66: TRANSPORTE Y ALMACENAMIENTO | AH66: 0 | AI66: 1 | AJ66: 0 | AN66: =CONCATENATE(AO66,COUNTIF($AO$2:AO66,AO66)) -> 024 | AO66: =+COUNTIFS($W$2:$W$399999,AT66,$AC$2:$AC$399999,"Aprobado con subsidio")*1 -> 0 | AP66: =+AO66/SUM($AO$2:$AO$129) -> 0 | AQ66: =+SUMIFS($X$2:$X$399999,$W$2:$W$399999,AT66,$AC$2:$AC$399999,"Aprobado con subsidio") -> 0 | AR66: 0 | AS66: =+(SUMIFS(Montos!$Y$2:$Y$396864,Montos!$R$2:$R$396864,Base!AT66)/1000000) -> 0
B67: 11001 | C67: BOGOTÁ, D.C. | D67: 2 | E67: 12 | F67: Jurídica | G67: 11 | H67: BOGOTÁ, D.C. | I67: =IF(D67>0,"Aprobado con subsidio","") -> Aprobado con subsidio | J67: 14 | K67: MEDIANA | M67: CONSTRUCCIÓN | N67: 0 | O67: 2 | P67: 0 | U67: 0 | V67: 5212 | W67: COPACABANA | X67: 1 | Y67: 28 | Z67: Jurídica | AA67: 5 | AB67: ANTIOQUIA | AC67: Aprobado con subsidio | AD67: 29 | AE67: MEDIANA | AF67: 0 | AG67: COMERCIO AL POR MAYOR Y AL POR MENOR; REPARACIÓN DE VEHÍCULOS AUTOMOTORES Y MOTOCICLETAS | AH67: 1 | AI67: 0 | AJ67: 0 | AN67: =CONCATENATE(AO67,COUNTIF($AO$2:AO67,AO67)) -> 025 | AO67: 0 | AP67: 0 | AQ67: 0 | AR67: =+AQ67/SUM($AQ$2:$AQ$129) -> 0 | AS67: =+(SUMIFS(Montos!$Y$2:$Y$396864,Montos!$R$2:$R$396864,Base!AT67)/1000000) -> 0
B68: 66001 | C68: PEREIRA | D68: 0 | E68: 0 | F68: Natural | G68: 66 | H68: RISARALDA | J68: 0 | K68: MICRO | M68: AGRICULTURA, GANADERÍA, CAZA, SILVICULTURA Y PESCA | N68: 0 | O68: 0 | P68: 0 | U68: 0 | V68: 5001 | W68: MEDELLÍN | X68: 29 | Y68: 333 | Z68: Jurídica | AA68: 5 | AB68: ANTIOQUIA | AC68: Aprobado con subsidio | AD68: 362 | AE68: MUY GRANDE | AF68: 0 | AG68: ALOJAMIENTO Y SERVICIOS DE COMIDA | AH68: 24 | AI68: 5 | AJ68: 0 | AN68: =CONCATENATE(AO68,COUNTIF($AO$2:AO68,AO68)) -> 026 | AO68: 0 | AP68: 0 | AQ68: 0 | AR68: 0 | AS68: =+(SUMIFS(Montos!$Y$2:$Y$396864,Montos!$R$2:$R$396864,Base!AT68)/1000000) -> 0
B69: 68276 | C69: FLORIDABLANCA | D69: 8 | E69: 17 | F69: Jurídica | G69: 68 | H69: SANTANDER | I69: Aprobado con subsidio | J69: 25 | K69: MEDIANA | M69: AGRICULTURA, GANADERÍA, CAZA, SILVICULTURA Y PESCA | N69: 1 | O69: 7 | P69: 0 | U69: 0 | V69: 5360 | W69: ITAGUI | X69: 0 | Y69: 0 | Z69: Natural | AA69: 5 | AB69: ANTIOQUIA | AD69: 0 | AE69: MICRO | AF69: 0 | AG69: COMERCIO AL POR MAYOR Y AL POR MENOR; REPARACIÓN DE VEHÍCULOS AUTOMOTORES Y MOTOCICLETAS | AH69: 0 | AI69: 0 | AJ69: 0 | AN69: =CONCATENATE(AO69,COUNTIF($AO$2:AO69,AO69)) -> 027 | AO69: 0 | AP69: 0 | AQ69: 0 | AR69: 0 | AS69: =+(SUMIFS(Montos!$Y$2:$Y$396864,Montos!$R$2:$R$396864,Base!AT69)/1000000) -> 0
B70: 73001 | C70: IBAGUÉ | D70: 1 | E70: 7 | F70: Jurídica | G70: 73 | H70: TOLIMA | I70: Aprobado con subsidio | J70: 8 | K70: PEQUEÑA | M70: EDUCACIÓN | N70: 1 | O70: 0 | P70: 0 | U70: 0 | V70: 5001 | W70: MEDELLÍN | X70: 6 | Y70: 10 | Z70: Jurídica | AA70: 5 | AB70: ANTIOQUIA | AC70: Aprobado con subsidio | AD70: 16 | AE70: PEQUEÑA | AF70: 0 | AG70: CONSTRUCCIÓN | AH70: 0 | AI70: 6 | AJ70: 0 | AN70: =CONCATENATE(AO70,COUNTIF($AO$2:AO70,AO70)) -> 028 | AO70: 0 | AP70: 0 | AQ70: 0 | AR70: 0 | AS70: =+(SUMIFS(Montos!$Y$2:$Y$396864,Montos!$R$2:$R$396864,Base!AT70)/1000000) -> 0
B71: 5001 | C71: MEDELLÍN | D71: 1 | E71: 2 | F71: Jurídica | G71: 5 | H71: ANTIOQUIA | I71: Aprobado con subsidio | J71: 3 | K71: MICRO | M71: INDUSTRIAS MANUFACTURERAS | N71: 1 | O71: 0 | P71: 0 | U71: 0 | V71: 5001 | W71: MEDELLÍN | X71: 0 | Y71: 0 | Z71: Jurídica | AA71: 5 | AB71: ANTIOQUIA | AD71: 0 | AE71: PEQUEÑA | AF71: 0 | AG71: INDUSTRIAS MANUFACTURERAS | AH71: 0 | AI71: 0 | AJ71: 0 | AN71: =CONCATENATE(AO71,COUNTIF($AO$2:AO71,AO71)) -> 029 | AO71: 0 | AP71: 0 | AQ71: 0 | AR71: 0 | AS71: =+(SUMIFS(Montos!$Y$2:$Y$396864,Montos!$R$2:$R$396864,Base!AT71)/1000000) -> 0
B72: 8001 | C72: BARRANQUILLA | D72: 0 | E72: 0 | F72: Jurídica | G72: 8 | H72: ATLÁNTICO | J72: 0 | K72: MEDIANA | M72: ACTIVIDADES DE SERVICIOS ADMINISTRATIVOS Y DE APOYO | N72: 0 | O72: 0 | P72: 0 | U72: 0 | V72: 5308 | W72: GIRARDOTA | X72: 0 | Y72: 0 | Z72: Jurídica | AA72: 5 | AB72: ANTIOQUIA | AD72: 0 | AE72: PEQUEÑA | AF72: 0 | AG72: INDUSTRIAS MANUFACTURERAS | AH72: 0 | AI72: 0 | AJ72: 0 | AN72: =CONCATENATE(AO72,COUNTIF($AO$2:AO72,AO72)) -> 030 | AO72: 0 | AP72: 0 | AQ72: 0 | AR72: 0 | AS72: =+(SUMIFS(Montos!$Y$2:$Y$396864,Montos!$R$2:$R$396864,Base!AT72)/1000000) -> 0
B73: 5360 | C73: ITAGUI | D73: 2 | E73: 3 | F73: Jurídica | G73: 5 | H73: ANTIOQUIA | I73: Aprobado con subsidio | J73: 5 | K73: PEQUEÑA | M73: ACTIVIDADES DE SERVICIOS ADMINISTRATIVOS Y DE APOYO | N73: 2 | O73: 0 | P73: 0 | U73: 0 | V73: 5001 | W73: MEDELLÍN | X73: 2 | Y73: 6 | Z73: Jurídica | AA73: 5 | AB73: ANTIOQUIA | AC73: Aprobado con subsidio | AD73: 8 | AE73: PEQUEÑA | AF73: 0 | AG73: ACTIVIDADES FINANCIERAS Y DE SEGUROS | AH73: 2 | AI73: 0 | AJ73: 0 | AN73: =CONCATENATE(AO73,COUNTIF($AO$2:AO73,AO73)) -> 031 | AO73: 0 | AP73: 0 | AQ73: 0 | AR73: 0 | AS73: =+(SUMIFS(Montos!$Y$2:$Y$396864,Montos!$R$2:$R$396864,Base!AT73)/1000000) -> 0
B74: 54001 | C74: CÚCUTA | D74: 0 | E74: 0 | F74: Natural | G74: 54 | H74: NORTE DE SANTANDER | J74: 0 | K74: MICRO | M74: EDUCACIÓN | N74: 0 | O74: 0 | P74: 0 | U74: 0 | V74: 5266 | W74: ENVIGADO | X74: 0 | Y74: 0 | Z74: Jurídica | AA74: 5 | AB74: ANTIOQUIA | AD74: 0 | AE74: MICRO | AF74: 0 | AG74: ACTIVIDADES PROFESIONALES, CIENTÍFICAS Y TÉCNICAS | AH74: 0 | AI74: 0 | AJ74: 0 | AN74: =CONCATENATE(AO74,COUNTIF($AO$2:AO74,AO74)) -> 032 | AO74: 0 | AP74: 0 | AQ74: 0 | AR74: 0 | AS74: =+(SUMIFS(Montos!$Y$2:$Y$396864,Montos!$R$2:$R$396864,Base!AT74)/1000000) -> 0
B75: 11001 | C75: BOGOTÁ, D.C. | D75: 0 | E75: 0 | F75: Jurídica | G75: 11 | H75: BOGOTÁ, D.C. | J75: 0 | K75: PEQUEÑA | M75: INDUSTRIAS MANUFACTURERAS | N75: 0 | O75: 0 | P75: 0 | U75: 0 | V75: 5001 | W75: MEDELLÍN | X75: 1 | Y75: 8 | Z75: Jurídica | AA75: 5 | AB75: ANTIOQUIA | AC75: Aprobado con subsidio | AD75: 9 | AE75: MEDIANA | AF75: 0 | AG75: ACTIVIDADES PROFESIONALES, CIENTÍFICAS Y TÉCNICAS | AH75: 0 | AI75: 1 | AJ75: 0 | AN75: =CONCATENATE(AO75,COUNTIF($AO$2:AO75,AO75)) -> 033 | AO75: 0 | AP75: 0 | AQ75: 0 | AR75: 0 | AS75: =+(SUMIFS(Montos!$Y$2:$Y$396864,Montos!$R$2:$R$396864,Base!AT75)/1000000) -> 0
B76: 5001 | C76: MEDELLÍN | D76: 0 | E76: 0 | F76: Jurídica | G76: 5 | H76: ANTIOQUIA | J76: 0 | K76: MICRO | M76: INDUSTRIAS MANUFACTURERAS | N76: 0 | O76: 0 | P76: 0 | U76: 0 | V76: 5001 | W76: MEDELLÍN | X76: 0 | Y76: 0 | Z76: Jurídica | AA76: 5 | AB76: ANTIOQUIA | AD76: 0 | AE76: MUY GRANDE | AF76: 0 | AG76: ACTIVIDADES DE SERVICIOS ADMINISTRATIVOS Y DE APOYO | AH76: 0 | AI76: 0 | AJ76: 0 | AN76: =CONCATENATE(AO76,COUNTIF($AO$2:AO76,AO76)) -> 034 | AO76: 0 | AP76: 0 | AQ76: 0 | AR76: 0 | AS76: =+(SUMIFS(Montos!$Y$2:$Y$396864,Montos!$R$2:$R$396864,Base!AT76)/1000000) -> 0
B77: 8001 | C77: BARRANQUILLA | D77: 3 | E77: 6 | F77: Jurídica | G77: 8 | H77: ATLÁNTICO | I77: Aprobado con subsidio | J77: 9 | K77: PEQUEÑA | M77: COMERCIO AL POR MAYOR Y AL POR MENOR; REPARACIÓN DE VEHÍCULOS AUTOMOTORES Y MOTOCICLETAS | N77: 0 | O77: 3 | P77: 0 | U77: 0 | V77: 5001 | W77: MEDELLÍN | X77: 0 | Y77: 0 | Z77: Jurídica | AA77: 5 | AB77: ANTIOQUIA | AD77: 0 | AE77: MUY GRANDE | AF77: 0 | AG77: ACTIVIDADES DE ATENCIÓN DE LA SALUD HUMANA Y DE ASISTENCIA SOCIAL | AH77: 0 | AI77: 0 | AJ77: 0 | AN77: =CONCATENATE(AO77,COUNTIF($AO$2:AO77,AO77)) -> 035 | AO77: 0 | AP77: 0 | AQ77: 0 | AR77: 0 | AS77: =+(SUMIFS(Montos!$Y$2:$Y$396864,Montos!$R$2:$R$396864,Base!AT77)/1000000) -> 0
B78: 11001 | C78: BOGOTÁ, D.C. | D78: 0 | E78: 0 | F78: Jurídica | G78: 11 | H78: BOGOTÁ, D.C. | J78: 0 | K78: MICRO | M78: CONSTRUCCIÓN | N78: 0 | O78: 0 | P78: 0 | U78: 0 | V78: 5001 | W78: MEDELLÍN | X78: 0 | Y78: 0 | Z78: Natural | AA78: 5 | AB78: ANTIOQUIA | AD78: 0 | AE78: MICRO | AF78: 0 | AG78: ACTIVIDADES DE SERVICIOS ADMINISTRATIVOS Y DE APOYO | AH78: 0 | AI78: 0 | AJ78: 0 | AN78: =CONCATENATE(AO78,COUNTIF($AO$2:AO78,AO78)) -> 036 | AO78: 0 | AP78: 0 | AQ78: 0 | AR78: 0 | AS78: =+(SUMIFS(Montos!$Y$2:$Y$396864,Montos!$R$2:$R$396864,Base!AT78)/1000000) -> 0
B79: 5360 | C79: ITAGUI | D79: 4 | E79: 21 | F79: Jurídica | G79: 5 | H79: ANTIOQUIA | I79: Aprobado con subsidio | J79: 25 | K79: MEDIANA | M79: INDUSTRIAS MANUFACTURERAS | N79: 2 | O79: 2 | P79: 0 | U79: 0 | V79: 5368 | W79: JERICÓ | X79: 0 | Y79: 0 | Z79: Natural | AA79: 5 | AB79: ANTIOQUIA | AD79: 0 | AE79: MICRO | AF79: 0 | AG79: ALOJAMIENTO Y SERVICIOS DE COMIDA | AH79: 0 | AI79: 0 | AJ79: 0 | AN79: =CONCATENATE(AO79,COUNTIF($AO$2:AO79,AO79)) -> 037 | AO79: 0 | AP79: 0 | AQ79: 0 | AR79: 0 | AS79: =+(SUMIFS(Montos!$Y$2:$Y$396864,Montos!$R$2:$R$396864,Base!AT79)/1000000) -> 0
B80: 52001 | C80: PASTO | D80: 0 | E80: 0 | F80: Jurídica | G80: 52 | H80: NARIÑO | J80: 0 | K80: PEQUEÑA | M80: COMERCIO AL POR MAYOR Y AL POR MENOR; REPARACIÓN DE VEHÍCULOS AUTOMOTORES Y MOTOCICLETAS | N80: 0 | O80: 0 | P80: 0 | U80: 0 | V80: 5001 | W80: MEDELLÍN | X80: 1 | Y80: 13 | Z80: Natural | AA80: 5 | AB80: ANTIOQUIA | AC80: Aprobado con subsidio | AD80: 14 | AE80: PEQUEÑA | AF80: 0 | AG80: COMERCIO AL POR MAYOR Y AL POR MENOR; REPARACIÓN DE VEHÍCULOS AUTOMOTORES Y MOTOCICLETAS | AH80: 1 | AI80: 0 | AJ80: 0 | AN80: =CONCATENATE(AO80,COUNTIF($AO$2:AO80,AO80)) -> 038 | AO80: 0 | AP80: 0 | AQ80: 0 | AR80: 0 | AS80: =+(SUMIFS(Montos!$Y$2:$Y$396864,Montos!$R$2:$R$396864,Base!AT80)/1000000) -> 0
B81: 25126 | C81: CAJICÁ | D81: 0 | E81: 0 | F81: Jurídica | G81: 25 | H81: CUNDINAMARCA | J81: 0 | K81: PEQUEÑA | M81: INDUSTRIAS MANUFACTURERAS | N81: 0 | O81: 0 | P81: 0 | U81: 0 | V81: 5400 | W81: LA UNIÓN | X81: 0 | Y81: 0 | Z81: Jurídica | AA81: 5 | AB81: ANTIOQUIA | AD81: 0 | AE81: PEQUEÑA | AF81: 0 | AG81: INDUSTRIAS MANUFACTURERAS | AH81: 0 | AI81: 0 | AJ81: 0 | AN81: =CONCATENATE(AO81,COUNTIF($AO$2:AO81,AO81)) -> 039 | AO81: 0 | AP81: 0 | AQ81: 0 | AR81: 0 | AS81: =+(SUMIFS(Montos!$Y$2:$Y$396864,Montos!$R$2:$R$396864,Base!AT81)/1000000) -> 0
B82: 5001 | C82: MEDELLÍN | D82: 1 | E82: 1 | F82: Jurídica | G82: 5 | H82: ANTIOQUIA | I82: Aprobado con subsidio | J82: 2 | K82: MICRO | M82: COMERCIO AL POR MAYOR Y AL POR MENOR; REPARACIÓN DE VEHÍCULOS AUTOMOTORES Y MOTOCICLETAS | N82: 0 | O82: 1 | P82: 0 | U82: 0 | V82: 5001 | W82: MEDELLÍN | X82: 2 | Y82: 3 | Z82: Jurídica | AA82: 5 | AB82: ANTIOQUIA | AC82: Aprobado con subsidio | AD82: 5 | AE82: MICRO | AF82: 0 | AG82: ACTIVIDADES PROFESIONALES, CIENTÍFICAS Y TÉCNICAS | AH82: 1 | AI82: 1 | AJ82: 0 | AN82: =CONCATENATE(AO82,COUNTIF($AO$2:AO82,AO82)) -> 040 | AO82: 0 | AP82: 0 | AQ82: 0 | AR82: 0 | AS82: =+(SUMIFS(Montos!$Y$2:$Y$396864,Montos!$R$2:$R$396864,Base!AT82)/1000000) -> 0
B83: 5001 | C83: MEDELLÍN | D83: 1 | E83: 31 | F83: Jurídica | G83: 5 | H83: ANTIOQUIA | I83: Aprobado con subsidio | J83: 32 | K83: MEDIANA | M83: ACTIVIDADES DE ATENCIÓN DE LA SALUD HUMANA Y DE ASISTENCIA SOCIAL | N83: 1 | O83: 0 | P83: 0 | U83: 0 | V83: 5001 | W83: MEDELLÍN | X83: 0 | Y83: 0 | Z83: Jurídica | AA83: 5 | AB83: ANTIOQUIA | AD83: 0 | AE83: MUY GRANDE | AF83: 0 | AG83: ACTIVIDADES DE SERVICIOS ADMINISTRATIVOS Y DE APOYO | AH83: 0 | AI83: 0 | AJ83: 0 | AN83: =CONCATENATE(AO83,COUNTIF($AO$2:AO83,AO83)) -> 041 | AO83: 0 | AP83: 0 | AQ83: 0 | AR83: 0 | AS83: =+(SUMIFS(Montos!$Y$2:$Y$396864,Montos!$R$2:$R$396864,Base!AT83)/1000000) -> 0
B84: 5001 | C84: MEDELLÍN | D84: 0 | E84: 0 | F84: Natural | G84: 5 | H84: ANTIOQUIA | J84: 0 | K84: PEQUEÑA | M84: INDUSTRIAS MANUFACTURERAS | N84: 0 | O84: 0 | P84: 0 | U84: 0 | V84: 5237 | W84: DON MATÍAS | X84: 0 | Y84: 0 | Z84: Jurídica | AA84: 5 | AB84: ANTIOQUIA | AD84: 0 | AE84: PEQUEÑA | AF84: 0 | AG84: INDUSTRIAS MANUFACTURERAS | AH84: 0 | AI84: 0 | AJ84: 0 | AN84: =CONCATENATE(AO84,COUNTIF($AO$2:AO84,AO84)) -> 042 | AO84: 0 | AP84: 0 | AQ84: 0 | AR84: 0 | AS84: =+(SUMIFS(Montos!$Y$2:$Y$396864,Montos!$R$2:$R$396864,Base!AT84)/1000000) -> 0
B85: 11001 | C85: BOGOTÁ, D.C. | D85: 1 | E85: 4 | F85: Jurídica | G85: 11 | H85: BOGOTÁ, D.C. | I85: Aprobado con subsidio | J85: 5 | K85: MICRO | M85: INFORMACIÓN Y COMUNICACIONES | N85: 1 | O85: 0 | P85: 0 | U85: 0 | V85: 5001 | W85: MEDELLÍN | X85: 5 | Y85: 8 | Z85: Jurídica | AA85: 5 | AB85: ANTIOQUIA | AC85: Aprobado con subsidio | AD85: 13 | AE85: PEQUEÑA | AF85: 0 | AG85: CONSTRUCCIÓN | AH85: 0 | AI85: 5 | AJ85: 0 | AN85: =CONCATENATE(AO85,COUNTIF($AO$2:AO85,AO85)) -> 043 | AO85: 0 | AP85: 0 | AQ85: 0 | AR85: 0 | AS85: =+(SUMIFS(Montos!$Y$2:$Y$396864,Montos!$R$2:$R$396864,Base!AT85)/1000000) -> 0
B86: 25799 | C86: TENJO | D86: 0 | E86: 0 | F86: Jurídica | G86: 25 | H86: CUNDINAMARCA | J86: 0 | K86: PEQUEÑA | M86: ACTIVIDADES DE ATENCIÓN DE LA SALUD HUMANA Y DE ASISTENCIA SOCIAL | N86: 0 | O86: 0 | P86: 0 | U86: 0 | V86: 5001 | W86: MEDELLÍN | X86: 4 | Y86: 44 | Z86: Jurídica | AA86: 5 | AB86: ANTIOQUIA | AC86: Aprobado con subsidio | AD86: 48 | AE86: MEDIANA | AF86: 0 | AG86: INDUSTRIAS MANUFACTURERAS | AH86: 2 | AI86: 2 | AJ86: 0 | AN86: =CONCATENATE(AO86,COUNTIF($AO$2:AO86,AO86)) -> 044 | AO86: 0 | AP86: 0 | AQ86: 0 | AR86: 0 | AS86: =+(SUMIFS(Montos!$Y$2:$Y$396864,Montos!$R$2:$R$396864,Base!AT86)/1000000) -> 0
B87: 5001 | C87: MEDELLÍN | D87: 0 | E87: 0 | F87: Jurídica | G87: 5 | H87: ANTIOQUIA | J87: 0 | K87: PEQUEÑA | M87: INDUSTRIAS MANUFACTURERAS | N87: 0 | O87: 0 | P87: 0 | U87: 0 | V87: 5001 | W87: MEDELLÍN | X87: 5 | Y87: 26 | Z87: Jurídica | AA87: 5 | AB87: ANTIOQUIA | AC87: Aprobado con subsidio | AD87: 31 | AE87: MEDIANA | AF87: 0 | AG87: INDUSTRIAS MANUFACTURERAS | AH87: 1 | AI87: 3 | AJ87: 1 | AN87: =CONCATENATE(AO87,COUNTIF($AO$2:AO87,AO87)) -> 045 | AO87: 0 | AP87: 0 | AQ87: 0 | AR87: 0 | AS87: =+(SUMIFS(Montos!$Y$2:$Y$396864,Montos!$R$2:$R$396864,Base!AT87)/1000000) -> 0
B88: 5045 | C88: APARTADÓ | D88: 0 | E88: 0 | F88: Jurídica | G88: 5 | H88: ANTIOQUIA | J88: 0 | K88: MEDIANA | M88: COMERCIO AL POR MAYOR Y AL POR MENOR; REPARACIÓN DE VEHÍCULOS AUTOMOTORES Y MOTOCICLETAS | N88: 0 | O88: 0 | P88: 0 | U88: 0 | V88: 5001 | W88: MEDELLÍN | X88: 1 | Y88: 0 | Z88: Jurídica | AA88: 5 | AB88: ANTIOQUIA | AC88: Aprobado con subsidio | AD88: 1 | AE88: MICRO | AF88: 0 | AG88: ACTIVIDADES INMOBILIARIAS | AH88: 0 | AI88: 1 | AJ88: 0 | AN88: =CONCATENATE(AO88,COUNTIF($AO$2:AO88,AO88)) -> 046 | AO88: 0 | AP88: 0 | AQ88: 0 | AR88: 0 | AS88: =+(SUMIFS(Montos!$Y$2:$Y$396864,Montos!$R$2:$R$396864,Base!AT88)/1000000) -> 0
B89: 5266 | C89: ENVIGADO | D89: 0 | E89: 0 | F89: Jurídica | G89: 5 | H89: ANTIOQUIA | J89: 0 | K89: PEQUEÑA | M89: ACTIVIDADES PROFESIONALES, CIENTÍFICAS Y TÉCNICAS | N89: 0 | O89: 0 | P89: 0 | U89: 0 | V89: 5001 | W89: MEDELLÍN | X89: 1 | Y89: 2 | Z89: Natural | AA89: 5 | AB89: ANTIOQUIA | AC89: Aprobado con subsidio | AD89: 3 | AE89: MICRO | AF89: 0 | AG89: COMERCIO AL POR MAYOR Y AL POR MENOR; REPARACIÓN DE VEHÍCULOS AUTOMOTORES Y MOTOCICLETAS | AH89: 0 | AI89: 1 | AJ89: 0 | AN89: =CONCATENATE(AO89,COUNTIF($AO$2:AO89,AO89)) -> 047 | AO89: 0 | AP89: 0 | AQ89: 0 | AR89: 0 | AS89: =+(SUMIFS(Montos!$Y$2:$Y$396864,Montos!$R$2:$R$396864,Base!AT89)/1000000) -> 0
B90: 19001 | C90: POPAYÁN | D90: 5 | E90: 17 | F90: Jurídica | G90: 19 | H90: CAUCA | I90: Aprobado con subsidio | J90: 22 | K90: MEDIANA | M90: INDUSTRIAS MANUFACTURERAS | N90: 1 | O90: 4 | P90: 0 | U90: 0 | V90: 5088 | W90: BELLO | X90: 0 | Y90: 0 | Z90: Natural | AA90: 5 | AB90: ANTIOQUIA | AD90: 0 | AE90: PEQUEÑA | AF90: 0 | AG90: ALOJAMIENTO Y SERVICIOS DE COMIDA | AH90: 0 | AI90: 0 | AJ90: 0 | AN90: =CONCATENATE(AO90,COUNTIF($AO$2:AO90,AO90)) -> 048 | AO90: 0 | AP90: 0 | AQ90: 0 | AR90: 0 | AS90: =+(SUMIFS(Montos!$Y$2:$Y$396864,Montos!$R$2:$R$396864,Base!AT90)/1000000) -> 0
B91: 68307 | C91: GIRÓN | D91: 3 | E91: 11 | F91: Jurídica | G91: 68 | H91: SANTANDER | I91: Aprobado con subsidio | J91: 14 | K91: PEQUEÑA | M91: ACTIVIDADES PROFESIONALES, CIENTÍFICAS Y TÉCNICAS | N91: 0 | O91: 3 | P91: 0 | U91: 0 | V91: 5264 | W91: ENTRERRIOS | X91: 0 | Y91: 0 | Z91: Jurídica | AA91: 5 | AB91: ANTIOQUIA | AD91: 0 | AE91: PEQUEÑA | AF91: 0 | AG91: AGRICULTURA, GANADERÍA, CAZA, SILVICULTURA Y PESCA | AH91: 0 | AI91: 0 | AJ91: 0 | AN91: =CONCATENATE(AO91,COUNTIF($AO$2:AO91,AO91)) -> 049 | AO91: 0 | AP91: 0 | AQ91: 0 | AR91: 0 | AS91: =+(SUMIFS(Montos!$Y$2:$Y$396864,Montos!$R$2:$R$396864,Base!AT91)/1000000) -> 0
B92: 25430 | C92: MADRID | D92: 1 | E92: 1 | F92: Jurídica | G92: 25 | H92: CUNDINAMARCA | I92: Aprobado con subsidio | J92: 2 | K92: MICRO | M92: TRANSPORTE Y ALMACENAMIENTO | N92: 1 | O92: 0 | P92: 0 | U92: 0 | V92: 5001 | W92: MEDELLÍN | X92: 0 | Y92: 0 | Z92: Jurídica | AA92: 5 | AB92: ANTIOQUIA | AD92: 0 | AE92: GRANDE | AF92: 0 | AG92: TRANSPORTE Y ALMACENAMIENTO | AH92: 0 | AI92: 0 | AJ92: 0 | AN92: =CONCATENATE(AO92,COUNTIF($AO$2:AO92,AO92)) -> 050 | AO92: 0 | AP92: 0 | AQ92: 0 | AR92: 0 | AS92: =+(SUMIFS(Montos!$Y$2:$Y$396864,Montos!$R$2:$R$396864,Base!AT92)/1000000) -> 0
B93: 5001 | C93: MEDELLÍN | D93: 1 | E93: 4 | F93: Jurídica | G93: 5 | H93: ANTIOQUIA | I93: Aprobado con subsidio | J93: 5 | K93: MICRO | M93: INDUSTRIAS MANUFACTURERAS | N93: 1 | O93: 0 | P93: 0 | U93: 0 | V93: 5001 | W93: MEDELLÍN | X93: 0 | Y93: 0 | Z93: Jurídica | AA93: 5 | AB93: ANTIOQUIA | AD93: 0 | AE93: PEQUEÑA | AF93: 0 | AG93: INDUSTRIAS MANUFACTURERAS | AH93: 0 | AI93: 0 | AJ93: 0 | AN93: =CONCATENATE(AO93,COUNTIF($AO$2:AO93,AO93)) -> 051 | AO93: 0 | AP93: 0 | AQ93: 0 | AR93: 0 | AS93: =+(SUMIFS(Montos!$Y$2:$Y$396864,Montos!$R$2:$R$396864,Base!AT93)/1000000) -> 0
B94: 68001 | C94: BUCARAMANGA | D94: 1 | E94: 8 | F94: Jurídica | G94: 68 | H94: SANTANDER | I94: Aprobado con subsidio | J94: 9 | K94: PEQUEÑA | M94: COMERCIO AL POR MAYOR Y AL POR MENOR; REPARACIÓN DE VEHÍCULOS AUTOMOTORES Y MOTOCICLETAS | N94: 0 | O94: 1 | P94: 0 | U94: 0 | V94: 5001 | W94: MEDELLÍN | X94: 1 | Y94: 0 | Z94: Jurídica | AA94: 5 | AB94: ANTIOQUIA | AC94: Aprobado con subsidio | AD94: 1 | AE94: MICRO | AF94: 0 | AG94: INDUSTRIAS MANUFACTURERAS | AH94: 1 | AI94: 0 | AJ94: 0 | AN94: =CONCATENATE(AO94,COUNTIF($AO$2:AO94,AO94)) -> 052 | AO94: 0 | AP94: 0 | AQ94: 0 | AR94: 0 | AS94: =+(SUMIFS(Montos!$Y$2:$Y$396864,Montos!$R$2:$R$396864,Base!AT94)/1000000) -> 0
B95: 5615 | C95: RIONEGRO | D95: 0 | E95: 0 | F95: Jurídica | G95: 5 | H95: ANTIOQUIA | J95: 0 | K95: MICRO | M95: ACTIVIDADES DE ATENCIÓN DE LA SALUD HUMANA Y DE ASISTENCIA SOCIAL | N95: 0 | O95: 0 | P95: 0 | U95: 0 | V95: 5001 | W95: MEDELLÍN | X95: 2 | Y95: 0 | Z95: Natural | AA95: 5 | AB95: ANTIOQUIA | AC95: Aprobado con subsidio | AD95: 2 | AE95: MICRO | AF95: 0 | AG95: ALOJAMIENTO Y SERVICIOS DE COMIDA | AH95: 0 | AI95: 2 | AJ95: 0 | AN95: =CONCATENATE(AO95,COUNTIF($AO$2:AO95,AO95)) -> 053 | AO95: 0 | AP95: 0 | AQ95: 0 | AR95: 0 | AS95: =+(SUMIFS(Montos!$Y$2:$Y$396864,Montos!$R$2:$R$396864,Base!AT95)/1000000) -> 0
B96: 5001 | C96: MEDELLÍN | D96: 1 | E96: 2 | F96: Jurídica | G96: 5 | H96: ANTIOQUIA | I96: Aprobado con subsidio | J96: 3 | K96: MICRO | M96: INFORMACIÓN Y COMUNICACIONES | N96: 1 | O96: 0 | P96: 0 | U96: 0 | V96: 5001 | W96: MEDELLÍN | X96: 0 | Y96: 0 | Z96: Jurídica | AA96: 5 | AB96: ANTIOQUIA | AD96: 0 | AE96: MUY GRANDE | AF96: 0 | AG96: ACTIVIDADES DE SERVICIOS ADMINISTRATIVOS Y DE APOYO | AH96: 0 | AI96: 0 | AJ96: 0 | AN96: =CONCATENATE(AO96,COUNTIF($AO$2:AO96,AO96)) -> 054 | AO96: 0 | AP96: 0 | AQ96: 0 | AR96: 0 | AS96: =+(SUMIFS(Montos!$Y$2:$Y$396864,Montos!$R$2:$R$396864,Base!AT96)/1000000) -> 0
B97: 11001 | C97: BOGOTÁ, D.C. | D97: 0 | E97: 0 | F97: Jurídica | G97: 11 | H97: BOGOTÁ, D.C. | J97: 0 | K97: MICRO | M97: OTRAS ACTIVIDADES DE SERVICIOS | N97: 0 | O97: 0 | P97: 0 | U97: 0 | V97: 5318 | W97: GUARNE | X97: 2 | Y97: 15 | Z97: Jurídica | AA97: 5 | AB97: ANTIOQUIA | AC97: Aprobado con subsidio | AD97: 17 | AE97: PEQUEÑA | AF97: 0 | AG97: INDUSTRIAS MANUFACTURERAS | AH97: 0 | AI97: 1 | AJ97: 1 | AN97: =CONCATENATE(AO97,COUNTIF($AO$2:AO97,AO97)) -> 055 | AO97: 0 | AP97: 0 | AQ97: 0 | AR97: 0 | AS97: =+(SUMIFS(Montos!$Y$2:$Y$396864,Montos!$R$2:$R$396864,Base!AT97)/1000000) -> 0
B98: 19001 | C98: POPAYÁN | D98: 2 | E98: 9 | F98: Jurídica | G98: 19 | H98: CAUCA | I98: Aprobado con subsidio | J98: 11 | K98: PEQUEÑA | M98: COMERCIO AL POR MAYOR Y AL POR MENOR; REPARACIÓN DE VEHÍCULOS AUTOMOTORES Y MOTOCICLETAS | N98: 0 | O98: 2 | P98: 0 | U98: 0 | V98: 5212 | W98: COPACABANA | X98: 2 | Y98: 3 | Z98: Jurídica | AA98: 5 | AB98: ANTIOQUIA | AC98: Aprobado con subsidio | AD98: 5 | AE98: PEQUEÑA | AF98: 0 | AG98: INDUSTRIAS MANUFACTURERAS | AH98: 0 | AI98: 2 | AJ98: 0 | AN98: =CONCATENATE(AO98,COUNTIF($AO$2:AO98,AO98)) -> 056 | AO98: =+COUNTIFS($W$2:$W$399999,AT98,$AC$2:$AC$399999,"Aprobado con subsidio")*1 -> 0 | AP98: =+AO98/SUM($AO$2:$AO$129) -> 0 | AQ98: =+SUMIFS($X$2:$X$399999,$W$2:$W$399999,AT98,$AC$2:$AC$399999,"Aprobado con subsidio") -> 0 | AR98: 0 | AS98: =+(SUMIFS(Montos!$Y$2:$Y$396864,Montos!$R$2:$R$396864,Base!AT98)/1000000) -> 0
B99: 25214 | C99: COTA | D99: 9 | E99: 13 | F99: Jurídica | G99: 25 | H99: CUNDINAMARCA | I99: Aprobado con subsidio | J99: 22 | K99: PEQUEÑA | M99: ACTIVIDADES DE SERVICIOS ADMINISTRATIVOS Y DE APOYO | N99: 1 | O99: 6 | P99: 2 | U99: 0 | V99: 5615 | W99: RIONEGRO | X99: 3 | Y99: 29 | Z99: Jurídica | AA99: 5 | AB99: ANTIOQUIA | AC99: Aprobado con subsidio | AD99: 32 | AE99: PEQUEÑA | AF99: 0 | AG99: ACTIVIDADES PROFESIONALES, CIENTÍFICAS Y TÉCNICAS | AH99: 0 | AI99: 3 | AJ99: 0 | AN99: =CONCATENATE(AO99,COUNTIF($AO$2:AO99,AO99)) -> 057 | AO99: 0 | AP99: 0 | AQ99: 0 | AR99: 0 | AS99: =+(SUMIFS(Montos!$Y$2:$Y$396864,Montos!$R$2:$R$396864,Base!AT99)/1000000) -> 0
B100: 11001 | C100: BOGOTÁ, D.C. | D100: 14 | E100: 39 | F100: Jurídica | G100: 11 | H100: BOGOTÁ, D.C. | I100: Aprobado con subsidio | J100: 53 | K100: MEDIANA | M100: COMERCIO AL POR MAYOR Y AL POR MENOR; REPARACIÓN DE VEHÍCULOS AUTOMOTORES Y MOTOCICLETAS | N100: 7 | O100: 7 | P100: 0 | U100: 0 | V100: 5001 | W100: MEDELLÍN | X100: 0 | Y100: 0 | Z100: Jurídica | AA100: 5 | AB100: ANTIOQUIA | AD100: 0 | AE100: MICRO | AF100: 0 | AG100: ACTIVIDADES PROFESIONALES, CIENTÍFICAS Y TÉCNICAS | AH100: 0 | AI100: 0 | AJ100: 0 | AN100: =CONCATENATE(AO100,COUNTIF($AO$2:AO100,AO100)) -> 058 | AO100: 0 | AP100: 0 | AQ100: 0 | AR100: 0 | AS100: =+(SUMIFS(Montos!$Y$2:$Y$396864,Montos!$R$2:$R$396864,Base!AT100)/1000000) -> 0
B101: 70001 | C101: SINCELEJO | D101: 0 | E101: 0 | F101: Jurídica | G101: 70 | H101: SUCRE | J101: 0 | M101: CONSTRUCCIÓN | N101: 0 | O101: 0 | P101: 0 | U101: 0 | V101: 5001 | W101: MEDELLÍN | X101: 2 | Y101: 3 | Z101: Jurídica | AA101: 5 | AB101: ANTIOQUIA | AC101: Aprobado con subsidio | AD101: 5 | AE101: PEQUEÑA | AF101: 0 | AG101: CONSTRUCCIÓN | AH101: 0 | AI101: 2 | AJ101: 0 | AN101: =CONCATENATE(AO101,COUNTIF($AO$2:AO101,AO101)) -> 059 | AO101: 0 | AP101: 0 | AQ101: 0 | AR101: 0 | AS101: =+(SUMIFS(Montos!$Y$2:$Y$396864,Montos!$R$2:$R$396864,Base!AT101)/1000000) -> 0
B102: 5001 | C102: MEDELLÍN | D102: 1 | E102: 23 | F102: Jurídica | G102: 5 | H102: ANTIOQUIA | I102: Aprobado con subsidio | J102: 24 | K102: PEQUEÑA | M102: COMERCIO AL POR MAYOR Y AL POR MENOR; REPARACIÓN DE VEHÍCULOS AUTOMOTORES Y MOTOCICLETAS | N102: 0 | O102: 1 | P102: 0 | U102: 0 | V102: 5001 | W102: MEDELLÍN | X102: 16 | Y102: 27 | Z102: Jurídica | AA102: 5 | AB102: ANTIOQUIA | AC102: Aprobado con subsidio | AD102: 43 | AE102: MEDIANA | AF102: 0 | AG102: INDUSTRIAS MANUFACTURERAS | AH102: 4 | AI102: 12 | AJ102: 0 | AN102: =CONCATENATE(AO102,COUNTIF($AO$2:AO102,AO102)) -> 060 | AO102: 0 | AP102: 0 | AQ102: 0 | AR102: 0 | AS102: =+(SUMIFS(Montos!$Y$2:$Y$396864,Montos!$R$2:$R$396864,Base!AT102)/1000000) -> 0
B103: 8001 | C103: BARRANQUILLA | D103: 0 | E103: 0 | F103: Jurídica | G103: 8 | H103: ATLÁNTICO | J103: 0 | K103: MICRO | M103: OTRAS ACTIVIDADES DE SERVICIOS | N103: 0 | O103: 0 | P103: 0 | U103: 0 | V103: 5045 | W103: APARTADÓ | X103: 0 | Y103: 0 | Z103: Jurídica | AA103: 5 | AB103: ANTIOQUIA | AD103: 0 | AE103: MEDIANA | AF103: 0 | AG103: AGRICULTURA, GANADERÍA, CAZA, SILVICULTURA Y PESCA | AH103: 0 | AI103: 0 | AJ103: 0 | AN103: =CONCATENATE(AO103,COUNTIF($AO$2:AO103,AO103)) -> 061 | AO103: 0 | AP103: 0 | AQ103: 0 | AR103: 0 | AS103: =+(SUMIFS(Montos!$Y$2:$Y$396864,Montos!$R$2:$R$396864,Base!AT103)/1000000) -> 0
B104: 11001 | C104: BOGOTÁ, D.C. | D104: 0 | E104: 0 | F104: Jurídica | G104: 11 | H104: BOGOTÁ, D.C. | J104: 0 | K104: PEQUEÑA | M104: EDUCACIÓN | N104: 0 | O104: 0 | P104: 0 | U104: 0 | V104: 5001 | W104: MEDELLÍN | X104: 0 | Y104: 0 | Z104: Jurídica | AA104: 5 | AB104: ANTIOQUIA | AD104: 0 | AE104: MEDIANA | AF104: 0 | AG104: ACTIVIDADES FINANCIERAS Y DE SEGUROS | AH104: 0 | AI104: 0 | AJ104: 0 | AN104: =CONCATENATE(AO104,COUNTIF($AO$2:AO104,AO104)) -> 062 | AO104: 0 | AP104: 0 | AQ104: 0 | AR104: 0 | AS104: =+(SUMIFS(Montos!$Y$2:$Y$396864,Montos!$R$2:$R$396864,Base!AT104)/1000000) -> 0
B105: 5001 | C105: MEDELLÍN | D105: 5 | E105: 152 | F105: Jurídica | G105: 5 | H105: ANTIOQUIA | I105: Aprobado con subsidio | J105: 157 | K105: MUY GRANDE | M105: ACTIVIDADES DE SERVICIOS ADMINISTRATIVOS Y DE APOYO | N105: 0 | O105: 5 | P105: 0 | U105: 0 | V105: 5380 | W105: LA ESTRELLA | X105: 2 | Y105: 5 | Z105: Jurídica | AA105: 5 | AB105: ANTIOQUIA | AC105: Aprobado con subsidio | AD105: 7 | AE105: PEQUEÑA | AF105: 0 | AG105: INFORMACIÓN Y COMUNICACIONES | AH105: 2 | AI105: 0 | AJ105: 0 | AN105: =CONCATENATE(AO105,COUNTIF($AO$2:AO105,AO105)) -> 063 | AO105: 0 | AP105: 0 | AQ105: 0 | AR105: 0 | AS105: =+(SUMIFS(Montos!$Y$2:$Y$396864,Montos!$R$2:$R$396864,Base!AT105)/1000000) -> 0
B106: 8001 | C106: BARRANQUILLA | D106: 0 | E106: 0 | F106: Jurídica | G106: 8 | H106: ATLÁNTICO | J106: 0 | K106: PEQUEÑA | M106: AGRICULTURA, GANADERÍA, CAZA, SILVICULTURA Y PESCA | N106: 0 | O106: 0 | P106: 0 | U106: 0 | V106: 5001 | W106: MEDELLÍN | X106: 1 | Y106: 6 | Z106: Jurídica | AA106: 5 | AB106: ANTIOQUIA | AC106: Aprobado con subsidio | AD106: 7 | AE106: MICRO | AF106: 0 | AG106: ACTIVIDADES PROFESIONALES, CIENTÍFICAS Y TÉCNICAS | AH106: 0 | AI106: 1 | AJ106: 0 | AN106: =CONCATENATE(AO106,COUNTIF($AO$2:AO106,AO106)) -> 064 | AO106: 0 | AP106: 0 | AQ106: 0 | AR106: 0 | AS106: =+(SUMIFS(Montos!$Y$2:$Y$396864,Montos!$R$2:$R$396864,Base!AT106)/1000000) -> 0
B107: 5266 | C107: ENVIGADO | D107: 0 | E107: 0 | F107: Jurídica | G107: 5 | H107: ANTIOQUIA | J107: 0 | K107: MICRO | M107: INDUSTRIAS MANUFACTURERAS | N107: 0 | O107: 0 | P107: 0 | U107: 0 | V107: 5001 | W107: MEDELLÍN | X107: 3 | Y107: 1 | Z107: Jurídica | AA107: 5 | AB107: ANTIOQUIA | AC107: Aprobado con subsidio | AD107: 4 | AE107: MICRO | AF107: 0 | AG107: ACTIVIDADES DE SERVICIOS ADMINISTRATIVOS Y DE APOYO | AH107: 1 | AI107: 2 | AJ107: 0 | AN107: =CONCATENATE(AO107,COUNTIF($AO$2:AO107,AO107)) -> 065 | AO107: 0 | AP107: 0 | AQ107: 0 | AR107: 0 | AS107: =+(SUMIFS(Montos!$Y$2:$Y$396864,Montos!$R$2:$R$396864,Base!AT107)/1000000) -> 0
B108: 11001 | C108: BOGOTÁ, D.C. | D108: 0 | E108: 0 | F108: Jurídica | G108: 11 | H108: BOGOTÁ, D.C. | J108: 0 | K108: PEQUEÑA | M108: COMERCIO AL POR MAYOR Y AL POR MENOR; REPARACIÓN DE VEHÍCULOS AUTOMOTORES Y MOTOCICLETAS | N108: 0 | O108: 0 | P108: 0 | U108: 0 | V108: 5001 | W108: MEDELLÍN | X108: 2 | Y108: 0 | Z108: Jurídica | AA108: 5 | AB108: ANTIOQUIA | AC108: Aprobado con subsidio | AD108: 2 | AE108: MICRO | AF108: 0 | AG108: ALOJAMIENTO Y SERVICIOS DE COMIDA | AH108: 1 | AI108: 1 | AJ108: 0 | AN108: =CONCATENATE(AO108,COUNTIF($AO$2:AO108,AO108)) -> 066 | AO108: 0 | AP108: 0 | AQ108: 0 | AR108: 0 | AS108: =+(SUMIFS(Montos!$Y$2:$Y$396864,Montos!$R$2:$R$396864,Base!AT108)/1000000) -> 0
B109: 68001 | C109: BUCARAMANGA | D109: 6 | E109: 32 | F109: Jurídica | G109: 68 | H109: SANTANDER | I109: Aprobado con subsidio | J109: 38 | K109: PEQUEÑA | M109: AGRICULTURA, GANADERÍA, CAZA, SILVICULTURA Y PESCA | N109: 3 | O109: 3 | P109: 0 | U109: 0 | V109: 5001 | W109: MEDELLÍN | X109: 1 | Y109: 1 | Z109: Jurídica | AA109: 5 | AB109: ANTIOQUIA | AC109: Aprobado con subsidio | AD109: 2 | AE109: PEQUEÑA | AF109: 0 | AG109: INDUSTRIAS MANUFACTURERAS | AH109: 1 | AI109: 0 | AJ109: 0 | AN109: =CONCATENATE(AO109,COUNTIF($AO$2:AO109,AO109)) -> 067 | AO109: 0 | AP109: 0 | AQ109: 0 | AR109: 0 | AS109: =+(SUMIFS(Montos!$Y$2:$Y$396864,Montos!$R$2:$R$396864,Base!AT109)/1000000) -> 0
B110: 66001 | C110: PEREIRA | D110: 0 | E110: 0 | F110: Jurídica | G110: 66 | H110: RISARALDA | J110: 0 | K110: MICRO | M110: ACTIVIDADES DE SERVICIOS ADMINISTRATIVOS Y DE APOYO | N110: 0 | O110: 0 | P110: 0 | U110: 0 | V110: 5001 | W110: MEDELLÍN | X110: 0 | Y110: 0 | Z110: Jurídica | AA110: 5 | AB110: ANTIOQUIA | AD110: 0 | AE110: PEQUEÑA | AF110: 0 | AG110: COMERCIO AL POR MAYOR Y AL POR MENOR; REPARACIÓN DE VEHÍCULOS AUTOMOTORES Y MOTOCICLETAS | AH110: 0 | AI110: 0 | AJ110: 0 | AN110: =CONCATENATE(AO110,COUNTIF($AO$2:AO110,AO110)) -> 068 | AO110: 0 | AP110: 0 | AQ110: 0 | AR110: 0 | AS110: =+(SUMIFS(Montos!$Y$2:$Y$396864,Montos!$R$2:$R$396864,Base!AT110)/1000000) -> 0
B111: 68001 | C111: BUCARAMANGA | D111: 3 | E111: 13 | F111: Jurídica | G111: 68 | H111: SANTANDER | I111: Aprobado con subsidio | J111: 16 | K111: PEQUEÑA | M111: TRANSPORTE Y ALMACENAMIENTO | N111: 0 | O111: 3 | P111: 0 | U111: 0 | V111: 5045 | W111: APARTADÓ | X111: 0 | Y111: 0 | Z111: Natural | AA111: 5 | AB111: ANTIOQUIA | AD111: 0 | AE111: PEQUEÑA | AF111: 0 | AG111: AGRICULTURA, GANADERÍA, CAZA, SILVICULTURA Y PESCA | AH111: 0 | AI111: 0 | AJ111: 0 | AN111: =CONCATENATE(AO111,COUNTIF($AO$2:AO111,AO111)) -> 069 | AO111: 0 | AP111: 0 | AQ111: 0 | AR111: 0 | AS111: =+(SUMIFS(Montos!$Y$2:$Y$396864,Montos!$R$2:$R$396864,Base!AT111)/1000000) -> 0
B112: 11001 | C112: BOGOTÁ, D.C. | D112: 1 | E112: 105 | F112: Jurídica | G112: 11 | H112: BOGOTÁ, D.C. | I112: Aprobado con subsidio | J112: 106 | K112: GRANDE | M112: INFORMACIÓN Y COMUNICACIONES | N112: 1 | O112: 0 | P112: 0 | U112: 0 | V112: 5318 | W112: GUARNE | X112: 1 | Y112: 1 | Z112: Jurídica | AA112: 5 | AB112: ANTIOQUIA | AC112: Aprobado con subsidio | AD112: 2 | AE112: MICRO | AF112: 0 | AG112: INDUSTRIAS MANUFACTURERAS | AH112: 0 | AI112: 1 | AJ112: 0 | AN112: =CONCATENATE(AO112,COUNTIF($AO$2:AO112,AO112)) -> 070 | AO112: 0 | AP112: 0 | AQ112: 0 | AR112: 0 | AS112: =+(SUMIFS(Montos!$Y$2:$Y$396864,Montos!$R$2:$R$396864,Base!AT112)/1000000) -> 0
B113: 13001 | C113: CARTAGENA | D113: 21 | E113: 69 | F113: Jurídica | G113: 13 | H113: BOLÍVAR | I113: Aprobado con subsidio | J113: 90 | K113: GRANDE | M113: ALOJAMIENTO Y SERVICIOS DE COMIDA | N113: 8 | O113: 13 | P113: 0 | U113: 0 | V113: 5212 | W113: COPACABANA | X113: 6 | Y113: 46 | Z113: Jurídica | AA113: 5 | AB113: ANTIOQUIA | AC113: Aprobado con subsidio | AD113: 52 | AE113: MEDIANA | AF113: 0 | AG113: CONSTRUCCIÓN | AH113: 0 | AI113: 5 | AJ113: 1 | AN113: =CONCATENATE(AO113,COUNTIF($AO$2:AO113,AO113)) -> 071 | AO113: 0 | AP113: 0 | AQ113: 0 | AR113: 0 | AS113: =+(SUMIFS(Montos!$Y$2:$Y$396864,Montos!$R$2:$R$396864,Base!AT113)/1000000) -> 0
B114: 76892 | C114: YUMBO | D114: 0 | E114: 0 | F114: Natural | G114: 76 | H114: VALLE DEL CAUCA | J114: 0 | K114: MICRO | M114: INDUSTRIAS MANUFACTURERAS | N114: 0 | O114: 0 | P114: 0 | U114: 0 | V114: 5148 | W114: EL CARMEN DE VIBORAL | X114: 0 | Y114: 0 | Z114: Natural | AA114: 5 | AB114: ANTIOQUIA | AD114: 0 | AE114: MICRO | AF114: 0 | AG114: INDUSTRIAS MANUFACTURERAS | AH114: 0 | AI114: 0 | AJ114: 0 | AN114: =CONCATENATE(AO114,COUNTIF($AO$2:AO114,AO114)) -> 072 | AO114: 0 | AP114: 0 | AQ114: 0 | AR114: 0 | AS114: =+(SUMIFS(Montos!$Y$2:$Y$396864,Montos!$R$2:$R$396864,Base!AT114)/1000000) -> 0
B115: 5360 | C115: ITAGUI | D115: 0 | E115: 0 | F115: Jurídica | G115: 5 | H115: ANTIOQUIA | J115: 0 | K115: MEDIANA | M115: COMERCIO AL POR MAYOR Y AL POR MENOR; REPARACIÓN DE VEHÍCULOS AUTOMOTORES Y MOTOCICLETAS | N115: 0 | O115: 0 | P115: 0 | U115: 0 | V115: 5631 | W115: SABANETA | X115: 0 | Y115: 0 | Z115: Jurídica | AA115: 5 | AB115: ANTIOQUIA | AD115: 0 | AE115: MICRO | AF115: 0 | AG115: INDUSTRIAS MANUFACTURERAS | AH115: 0 | AI115: 0 | AJ115: 0 | AN115: =CONCATENATE(AO115,COUNTIF($AO$2:AO115,AO115)) -> 073 | AO115: 0 | AP115: 0 | AQ115: 0 | AR115: 0 | AS115: =+(SUMIFS(Montos!$Y$2:$Y$396864,Montos!$R$2:$R$396864,Base!AT115)/1000000) -> 0
B116: 5001 | C116: MEDELLÍN | D116: 0 | E116: 0 | F116: Jurídica | G116: 5 | H116: ANTIOQUIA | J116: 0 | K116: MICRO | M116: ACTIVIDADES DE SERVICIOS ADMINISTRATIVOS Y DE APOYO | N116: 0 | O116: 0 | P116: 0 | U116: 0 | V116: 5001 | W116: MEDELLÍN | X116: 4 | Y116: 5 | Z116: Jurídica | AA116: 5 | AB116: ANTIOQUIA | AC116: Aprobado con subsidio | AD116: 9 | AE116: MICRO | AF116: 0 | AG116: CONSTRUCCIÓN | AH116: 0 | AI116: 4 | AJ116: 0 | AN116: =CONCATENATE(AO116,COUNTIF($AO$2:AO116,AO116)) -> 074 | AO116: 0 | AP116: 0 | AQ116: 0 | AR116: 0 | AS116: =+(SUMIFS(Montos!$Y$2:$Y$396864,Montos!$R$2:$R$396864,Base!AT116)/1000000) -> 0
B117: 68001 | C117: BUCARAMANGA | D117: 0 | E117: 0 | F117: Natural | G117: 68 | H117: SANTANDER | J117: 0 | K117: MICRO | M117: ACTIVIDADES PROFESIONALES, CIENTÍFICAS Y TÉCNICAS | N117: 0 | O117: 0 | P117: 0 | U117: 0 | V117: 5631 | W117: SABANETA | X117: 1 | Y117: 9 | Z117: Natural | AA117: 5 | AB117: ANTIOQUIA | AC117: Aprobado con subsidio | AD117: 10 | AE117: MEDIANA | AF117: 0 | AG117: COMERCIO AL POR MAYOR Y AL POR MENOR; REPARACIÓN DE VEHÍCULOS AUTOMOTORES Y MOTOCICLETAS | AH117: 0 | AI117: 1 | AJ117: 0 | AN117: =CONCATENATE(AO117,COUNTIF($AO$2:AO117,AO117)) -> 075 | AO117: 0 | AP117: 0 | AQ117: 0 | AR117: 0 | AS117: =+(SUMIFS(Montos!$Y$2:$Y$396864,Montos!$R$2:$R$396864,Base!AT117)/1000000) -> 0
B118: 5001 | C118: MEDELLÍN | D118: 207 | E118: 614 | F118: Jurídica | G118: 5 | H118: ANTIOQUIA | I118: Aprobado con subsidio | J118: 821 | K118: MUY GRANDE | M118: ACTIVIDADES DE SERVICIOS ADMINISTRATIVOS Y DE APOYO | N118: 107 | O118: 91 | P118: 9 | U118: 0 | V118: 5001 | W118: MEDELLÍN | X118: 0 | Y118: 0 | Z118: Jurídica | AA118: 5 | AB118: ANTIOQUIA | AD118: 0 | AE118: MICRO | AF118: 0 | AG118: COMERCIO AL POR MAYOR Y AL POR MENOR; REPARACIÓN DE VEHÍCULOS AUTOMOTORES Y MOTOCICLETAS | AH118: 0 | AI118: 0 | AJ118: 0 | AN118: =CONCATENATE(AO118,COUNTIF($AO$2:AO118,AO118)) -> 076 | AO118: 0 | AP118: 0 | AQ118: 0 | AR118: 0 | AS118: =+(SUMIFS(Montos!$Y$2:$Y$396864,Montos!$R$2:$R$396864,Base!AT118)/1000000) -> 0
B119: 11001 | C119: BOGOTÁ, D.C. | D119: 1 | E119: 6 | F119: Jurídica | G119: 11 | H119: BOGOTÁ, D.C. | I119: Aprobado con subsidio | J119: 7 | K119: PEQUEÑA | M119: ACTIVIDADES PROFESIONALES, CIENTÍFICAS Y TÉCNICAS | N119: 1 | O119: 0 | P119: 0 | U119: 0 | V119: 5001 | W119: MEDELLÍN | X119: 18 | Y119: 397 | Z119: Jurídica | AA119: 5 | AB119: ANTIOQUIA | AC119: Aprobado con subsidio | AD119: 415 | AE119: MUY GRANDE | AF119: 0 | AG119: INDUSTRIAS MANUFACTURERAS | AH119: 8 | AI119: 10 | AJ119: 0 | AN119: =CONCATENATE(AO119,COUNTIF($AO$2:AO119,AO119)) -> 077 | AO119: 0 | AP119: 0 | AQ119: 0 | AR119: 0 | AS119: =+(SUMIFS(Montos!$Y$2:$Y$396864,Montos!$R$2:$R$396864,Base!AT119)/1000000) -> 0
B120: 11001 | C120: BOGOTÁ, D.C. | D120: 2 | E120: 8 | F120: Jurídica | G120: 11 | H120: BOGOTÁ, D.C. | I120: Aprobado con subsidio | J120: 10 | K120: PEQUEÑA | M120: COMERCIO AL POR MAYOR Y AL POR MENOR; REPARACIÓN DE VEHÍCULOS AUTOMOTORES Y MOTOCICLETAS | N120: 1 | O120: 1 | P120: 0 | U120: 0 | V120: 5001 | W120: MEDELLÍN | X120: 1 | Y120: 4 | Z120: Jurídica | AA120: 5 | AB120: ANTIOQUIA | AC120: Aprobado con subsidio | AD120: 5 | AE120: MICRO | AF120: 0 | AG120: INDUSTRIAS MANUFACTURERAS | AH120: 1 | AI120: 0 | AJ120: 0 | AN120: =CONCATENATE(AO120,COUNTIF($AO$2:AO120,AO120)) -> 078 | AO120: 0 | AP120: 0 | AQ120: 0 | AR120: 0 | AS120: =+(SUMIFS(Montos!$Y$2:$Y$396864,Montos!$R$2:$R$396864,Base!AT120)/1000000) -> 0
B121: 5001 | C121: MEDELLÍN | D121: 1 | E121: 1 | F121: Jurídica | G121: 5 | H121: ANTIOQUIA | I121: Aprobado con subsidio | J121: 2 | K121: MICRO | M121: COMERCIO AL POR MAYOR Y AL POR MENOR; REPARACIÓN DE VEHÍCULOS AUTOMOTORES Y MOTOCICLETAS | N121: 1 | O121: 0 | P121: 0 | U121: 0 | V121: 5001 | W121: MEDELLÍN | X121: 1 | Y121: 6 | Z121: Jurídica | AA121: 5 | AB121: ANTIOQUIA | AC121: Aprobado con subsidio | AD121: 7 | AE121: MEDIANA | AF121: 0 | AG121: CONSTRUCCIÓN | AH121: 0 | AI121: 1 | AJ121: 0 | AN121: =CONCATENATE(AO121,COUNTIF($AO$2:AO121,AO121)) -> 079 | AO121: 0 | AP121: 0 | AQ121: 0 | AR121: 0 | AS121: =+(SUMIFS(Montos!$Y$2:$Y$396864,Montos!$R$2:$R$396864,Base!AT121)/1000000) -> 0
B122: 11001 | C122: BOGOTÁ, D.C. | D122: 3 | E122: 6 | F122: Jurídica | G122: 11 | H122: BOGOTÁ, D.C. | I122: Aprobado con subsidio | J122: 9 | K122: MICRO | M122: COMERCIO AL POR MAYOR Y AL POR MENOR; REPARACIÓN DE VEHÍCULOS AUTOMOTORES Y MOTOCICLETAS | N122: 3 | O122: 0 | P122: 0 | U122: 0 | V122: 5001 | W122: MEDELLÍN | X122: 2 | Y122: 10 | Z122: Jurídica | AA122: 5 | AB122: ANTIOQUIA | AC122: Aprobado con subsidio | AD122: 12 | AE122: MEDIANA | AF122: 0 | AG122: ALOJAMIENTO Y SERVICIOS DE COMIDA | AH122: 1 | AI122: 1 | AJ122: 0 | AN122: =CONCATENATE(AO122,COUNTIF($AO$2:AO122,AO122)) -> 080 | AO122: 0 | AP122: 0 | AQ122: 0 | AR122: 0 | AS122: =+(SUMIFS(Montos!$Y$2:$Y$396864,Montos!$R$2:$R$396864,Base!AT122)/1000000) -> 0
B123: 27361 | C123: ISTMINA | D123: 2 | E123: 1 | F123: Jurídica | G123: 27 | H123: CHOCÓ | I123: Aprobado con subsidio | J123: 3 | K123: MICRO | M123: COMERCIO AL POR MAYOR Y AL POR MENOR; REPARACIÓN DE VEHÍCULOS AUTOMOTORES Y MOTOCICLETAS | N123: 1 | O123: 1 | P123: 0 | U123: 0 | V123: 5001 | W123: MEDELLÍN | X123: 0 | Y123: 0 | Z123: Jurídica | AA123: 5 | AB123: ANTIOQUIA | AD123: 0 | AE123: MEDIANA | AF123: 0 | AG123: CONSTRUCCIÓN | AH123: 0 | AI123: 0 | AJ123: 0 | AN123: =CONCATENATE(AO123,COUNTIF($AO$2:AO123,AO123)) -> 081 | AO123: 0 | AP123: 0 | AQ123: 0 | AR123: 0 | AS123: =+(SUMIFS(Montos!$Y$2:$Y$396864,Montos!$R$2:$R$396864,Base!AT123)/1000000) -> 0
B124: 11001 | C124: BOGOTÁ, D.C. | D124: 10 | E124: 142 | F124: Jurídica | G124: 11 | H124: BOGOTÁ, D.C. | I124: Aprobado con subsidio | J124: 152 | K124: MUY GRANDE | M124: TRANSPORTE Y ALMACENAMIENTO | N124: 1 | O124: 9 | P124: 0 | U124: 0 | V124: 5001 | W124: MEDELLÍN | X124: 0 | Y124: 0 | Z124: Jurídica | AA124: 5 | AB124: ANTIOQUIA | AD124: 0 | AE124: PEQUEÑA | AF124: 0 | AG124: INFORMACIÓN Y COMUNICACIONES | AH124: 0 | AI124: 0 | AJ124: 0 | AN124: =CONCATENATE(AO124,COUNTIF($AO$2:AO124,AO124)) -> 082 | AO124: 0 | AP124: 0 | AQ124: 0 | AR124: 0 | AS124: =+(SUMIFS(Montos!$Y$2:$Y$396864,Montos!$R$2:$R$396864,Base!AT124)/1000000) -> 0
B125: 5360 | C125: ITAGUI | D125: 39 | E125: 509 | F125: Jurídica | G125: 5 | H125: ANTIOQUIA | I125: Aprobado con subsidio | J125: 548 | K125: MUY GRANDE | M125: INDUSTRIAS MANUFACTURERAS | N125: 9 | O125: 30 | P125: 0 | U125: 0 | V125: 5045 | W125: APARTADÓ | X125: 2 | Y125: 12 | Z125: Jurídica | AA125: 5 | AB125: ANTIOQUIA | AC125: Aprobado con subsidio | AD125: 14 | AE125: PEQUEÑA | AF125: 0 | AG125: DISTRIBUCIÓN DE AGUA; EVACUACIÓN Y TRATAMIENTO DE AGUAS RESIDUALES, GESTIÓN DE DESECHOS Y ACTIVIDADES DE SANEAMIENTO AMBIENTAL | AH125: 0 | AI125: 2 | AJ125: 0 | AN125: =CONCATENATE(AO125,COUNTIF($AO$2:AO125,AO125)) -> 083 | AO125: 0 | AP125: 0 | AQ125: 0 | AR125: 0 | AS125: =+(SUMIFS(Montos!$Y$2:$Y$396864,Montos!$R$2:$R$396864,Base!AT125)/1000000) -> 0
B126: 11001 | C126: BOGOTÁ, D.C. | D126: 0 | E126: 0 | F126: Jurídica | G126: 11 | H126: BOGOTÁ, D.C. | J126: 0 | K126: MEDIANA | M126: COMERCIO AL POR MAYOR Y AL POR MENOR; REPARACIÓN DE VEHÍCULOS AUTOMOTORES Y MOTOCICLETAS | N126: 0 | O126: 0 | P126: 0 | U126: 0 | V126: 5360 | W126: ITAGUI | X126: 0 | Y126: 0 | Z126: Jurídica | AA126: 5 | AB126: ANTIOQUIA | AD126: 0 | AE126: MICRO | AF126: 0 | AG126: COMERCIO AL POR MAYOR Y AL POR MENOR; REPARACIÓN DE VEHÍCULOS AUTOMOTORES Y MOTOCICLETAS | AH126: 0 | AI126: 0 | AJ126: 0 | AN126: =CONCATENATE(AO126,COUNTIF($AO$2:AO126,AO126)) -> 084 | AO126: 0 | AP126: 0 | AQ126: 0 | AR126: 0 | AS126: =+(SUMIFS(Montos!$Y$2:$Y$396864,Montos!$R$2:$R$396864,Base!AT126)/1000000) -> 0
B127: 5615 | C127: RIONEGRO | D127: 0 | E127: 0 | F127: Jurídica | G127: 5 | H127: ANTIOQUIA | J127: 0 | K127: MEDIANA | M127: CONSTRUCCIÓN | N127: 0 | O127: 0 | P127: 0 | U127: 0 | V127: 5615 | W127: RIONEGRO | X127: 0 | Y127: 0 | Z127: Jurídica | AA127: 5 | AB127: ANTIOQUIA | AD127: 0 | AE127: PEQUEÑA | AF127: 0 | AG127: COMERCIO AL POR MAYOR Y AL POR MENOR; REPARACIÓN DE VEHÍCULOS AUTOMOTORES Y MOTOCICLETAS | AH127: 0 | AI127: 0 | AJ127: 0 | AN127: =CONCATENATE(AO127,COUNTIF($AO$2:AO127,AO127)) -> 085 | AO127: 0 | AP127: 0 | AQ127: 0 | AR127: 0 | AS127: =+(SUMIFS(Montos!$Y$2:$Y$396864,Montos!$R$2:$R$396864,Base!AT127)/1000000) -> 0
B128: 11001 | C128: BOGOTÁ, D.C. | D128: 3 | E128: 14 | F128: Jurídica | G128: 11 | H128: BOGOTÁ, D.C. | I128: Aprobado con subsidio | J128: 17 | K128: MEDIANA | M128: INDUSTRIAS MANUFACTURERAS | N128: 0 | O128: 3 | P128: 0 | U128: 0 | V128: 5001 | W128: MEDELLÍN | X128: 2 | Y128: 6 | Z128: Jurídica | AA128: 5 | AB128: ANTIOQUIA | AC128: Aprobado con subsidio | AD128: 8 | AE128: MICRO | AF128: 0 | AG128: INDUSTRIAS MANUFACTURERAS | AH128: 2 | AI128: 0 | AJ128: 0 | AN128: =CONCATENATE(AO128,COUNTIF($AO$2:AO128,AO128)) -> 086 | AO128: 0 | AP128: 0 | AQ128: 0 | AR128: 0 | AS128: =+(SUMIFS(Montos!$Y$2:$Y$396864,Montos!$R$2:$R$396864,Base!AT128)/1000000) -> 0
B129: 11001 | C129: BOGOTÁ, D.C. | D129: 0 | E129: 0 | F129: Jurídica | G129: 11 | H129: BOGOTÁ, D.C. | J129: 0 | K129: MICRO | M129: ACTIVIDADES PROFESIONALES, CIENTÍFICAS Y TÉCNICAS | N129: 0 | O129: 0 | P129: 0 | U129: 0 | V129: 5001 | W129: MEDELLÍN | X129: 0 | Y129: 0 | Z129: Natural | AA129: 5 | AB129: ANTIOQUIA | AD129: 0 | AE129: PEQUEÑA | AF129: 0 | AG129: ACTIVIDADES DE SERVICIOS ADMINISTRATIVOS Y DE APOYO | AH129: 0 | AI129: 0 | AJ129: 0 | AN129: =CONCATENATE(AO129,COUNTIF($AO$2:AO129,AO129)) -> 087 | AO129: 0 | AP129: 0 | AQ129: =+SUMIFS($X$2:$X$399999,$W$2:$W$399999,AT129,$AC$2:$AC$399999,"Aprobado con subsidio") -> 0 | AR129: 0 | AS129: =+(SUMIFS(Montos!$Y$2:$Y$396864,Montos!$R$2:$R$396864,Base!AT129)/1000000) -> 0
B130: 76001 | C130: CALI | D130: 1 | E130: 0 | F130: Jurídica | G130: 76 | H130: VALLE DEL CAUCA | I130: Aprobado con subsidio | J130: 1 | K130: MICRO | M130: INFORMACIÓN Y COMUNICACIONES | N130: 0 | O130: 1 | P130: 0 | U130: 0 | V130: 5001 | W130: MEDELLÍN | X130: 7 | Y130: 55 | Z130: Jurídica | AA130: 5 | AB130: ANTIOQUIA | AC130: Aprobado con subsidio | AD130: 62 | AE130: MEDIANA | AF130: 0 | AG130: COMERCIO AL POR MAYOR Y AL POR MENOR; REPARACIÓN DE VEHÍCULOS AUTOMOTORES Y MOTOCICLETAS | AH130: 3 | AI130: 4 | AJ130: 0 | AN130: =CONCATENATE(AO130,COUNTIF($AO$2:AO130,AO130)) -> 088 | AO130: 0 | AP130: 0 | AQ130: =+SUMIFS($X$2:$X$399999,$W$2:$W$399999,AT130,$AC$2:$AC$399999,"Aprobado con subsidio") -> 0 | AR130: 0 | AS130: =+(SUMIFS(Montos!$Y$2:$Y$396864,Montos!$R$2:$R$396864,Base!AT130)/1000000) -> 0
B131: 11001 | C131: BOGOTÁ, D.C. | D131: 1 | E131: 2 | F131: Jurídica | G131: 11 | H131: BOGOTÁ, D.C. | I131: =IF(D131>0,"Aprobado con subsidio","") -> Aprobado con subsidio | J131: 3 | K131: PEQUEÑA | M131: CONSTRUCCIÓN | N131: 0 | O131: 1 | P131: 0 | U131: 0 | V131: 5631 | W131: SABANETA | X131: 0 | Y131: 0 | Z131: Jurídica | AA131: 5 | AB131: ANTIOQUIA | AD131: 0 | AE131: MEDIANA | AF131: 0 | AG131: COMERCIO AL POR MAYOR Y AL POR MENOR; REPARACIÓN DE VEHÍCULOS AUTOMOTORES Y MOTOCICLETAS | AH131: 0 | AI131: 0 | AJ131: 0
B132: 5266 | C132: ENVIGADO | D132: 0 | E132: 0 | F132: Jurídica | G132: 5 | H132: ANTIOQUIA | J132: 0 | K132: PEQUEÑA | M132: ACTIVIDADES DE SERVICIOS ADMINISTRATIVOS Y DE APOYO | N132: 0 | O132: 0 | P132: 0 | U132: 0 | V132: 5001 | W132: MEDELLÍN | X132: 0 | Y132: 0 | Z132: Jurídica | AA132: 5 | AB132: ANTIOQUIA | AD132: 0 | AE132: MICRO | AF132: 0 | AG132: INDUSTRIAS MANUFACTURERAS | AH132: 0 | AI132: 0 | AJ132: 0
B133: 5001 | C133: MEDELLÍN | D133: 10 | E133: 232 | F133: Jurídica | G133: 5 | H133: ANTIOQUIA | I133: Aprobado con subsidio | J133: 242 | K133: MUY GRANDE | M133: ACTIVIDADES DE ATENCIÓN DE LA SALUD HUMANA Y DE ASISTENCIA SOCIAL | N133: 10 | O133: 0 | P133: 0 | U133: 0 | V133: 5380 | W133: LA ESTRELLA | X133: 0 | Y133: 0 | Z133: Jurídica | AA133: 5 | AB133: ANTIOQUIA | AD133: 0 | AE133: MICRO | AF133: 0 | AG133: AGRICULTURA, GANADERÍA, CAZA, SILVICULTURA Y PESCA | AH133: 0 | AI133: 0 | AJ133: 0
B134: 5001 | C134: MEDELLÍN | D134: 2 | E134: 4 | F134: Jurídica | G134: 5 | H134: ANTIOQUIA | I134: Aprobado con subsidio | J134: 6 | K134: PEQUEÑA | M134: ALOJAMIENTO Y SERVICIOS DE COMIDA | N134: 1 | O134: 1 | P134: 0 | U134: 0 | V134: 5001 | W134: MEDELLÍN | X134: 1 | Y134: 7 | Z134: Jurídica | AA134: 5 | AB134: ANTIOQUIA | AC134: Aprobado con subsidio | AD134: 8 | AE134: PEQUEÑA | AF134: 0 | AG134: INDUSTRIAS MANUFACTURERAS | AH134: 0 | AI134: 1 | AJ134: 0
B135: 5001 | C135: MEDELLÍN | D135: 0 | E135: 0 | F135: Jurídica | G135: 5 | H135: ANTIOQUIA | J135: 0 | K135: MEDIANA | M135: INFORMACIÓN Y COMUNICACIONES | N135: 0 | O135: 0 | P135: 0 | U135: 0 | V135: 5001 | W135: MEDELLÍN | X135: 0 | Y135: 0 | Z135: Jurídica | AA135: 5 | AB135: ANTIOQUIA | AD135: 0 | AE135: MEDIANA | AF135: 0 | AG135: INDUSTRIAS MANUFACTURERAS | AH135: 0 | AI135: 0 | AJ135: 0
B136: 5660 | C136: SAN LUIS | D136: 0 | E136: 0 | F136: Jurídica | G136: 5 | H136: ANTIOQUIA | J136: 0 | K136: MEDIANA | M136: CONSTRUCCIÓN | N136: 0 | O136: 0 | P136: 0 | U136: 0 | V136: 5360 | W136: ITAGUI | X136: 4 | Y136: 13 | Z136: Jurídica | AA136: 5 | AB136: ANTIOQUIA | AC136: Aprobado con subsidio | AD136: 17 | AE136: MEDIANA | AF136: 0 | AG136: INDUSTRIAS MANUFACTURERAS | AH136: 1 | AI136: 3 | AJ136: 0
B137: 5266 | C137: ENVIGADO | D137: 1 | E137: 1 | F137: Jurídica | G137: 5 | H137: ANTIOQUIA | I137: Aprobado con subsidio | J137: 2 | K137: MICRO | M137: INFORMACIÓN Y COMUNICACIONES | N137: 0 | O137: 1 | P137: 0 | U137: 0 | V137: 5380 | W137: LA ESTRELLA | X137: 0 | Y137: 0 | Z137: Jurídica | AA137: 5 | AB137: ANTIOQUIA | AD137: 0 | AE137: PEQUEÑA | AF137: 0 | AG137: INDUSTRIAS MANUFACTURERAS | AH137: 0 | AI137: 0 | AJ137: 0
B138: 5001 | C138: MEDELLÍN | D138: 0 | E138: 0 | F138: Jurídica | G138: 5 | H138: ANTIOQUIA | J138: 0 | K138: GRANDE | M138: COMERCIO AL POR MAYOR Y AL POR MENOR; REPARACIÓN DE VEHÍCULOS AUTOMOTORES Y MOTOCICLETAS | N138: 0 | O138: 0 | P138: 0 | U138: 0 | V138: 5631 | W138: SABANETA | X138: 2 | Y138: 1 | Z138: Jurídica | AA138: 5 | AB138: ANTIOQUIA | AC138: Aprobado con subsidio | AD138: 3 | AE138: MICRO | AF138: 0 | AG138: CONSTRUCCIÓN | AH138: 0 | AI138: 2 | AJ138: 0
B139: 11001 | C139: BOGOTÁ, D.C. | D139: 0 | E139: 0 | F139: Jurídica | G139: 11 | H139: BOGOTÁ, D.C. | J139: 0 | K139: MEDIANA | M139: COMERCIO AL POR MAYOR Y AL POR MENOR; REPARACIÓN DE VEHÍCULOS AUTOMOTORES Y MOTOCICLETAS | N139: 0 | O139: 0 | P139: 0 | U139: 0 | V139: 5001 | W139: MEDELLÍN | X139: 1 | Y139: 13 | Z139: Jurídica | AA139: 5 | AB139: ANTIOQUIA | AC139: Aprobado con subsidio | AD139: 14 | AE139: MEDIANA | AF139: 0 | AG139: AGRICULTURA, GANADERÍA, CAZA, SILVICULTURA Y PESCA | AH139: 0 | AI139: 1 | AJ139: 0
B140: 5001 | C140: MEDELLÍN | D140: 0 | E140: 0 | F140: Jurídica | G140: 5 | H140: ANTIOQUIA | J140: 0 | K140: MICRO | M140: ACTIVIDADES DE SERVICIOS ADMINISTRATIVOS Y DE APOYO | N140: 0 | O140: 0 | P140: 0 | U140: 0 | V140: 5001 | W140: MEDELLÍN | X140: 0 | Y140: 0 | Z140: Jurídica | AA140: 5 | AB140: ANTIOQUIA | AD140: 0 | AE140: PEQUEÑA | AF140: 0 | AG140: INDUSTRIAS MANUFACTURERAS | AH140: 0 | AI140: 0 | AJ140: 0
B141: 5001 | C141: MEDELLÍN | D141: 0 | E141: 0 | F141: Jurídica | G141: 5 | H141: ANTIOQUIA | J141: 0 | K141: MEDIANA | M141: ALOJAMIENTO Y SERVICIOS DE COMIDA | N141: 0 | O141: 0 | P141: 0 | U141: 0 | V141: 5045 | W141: APARTADÓ | X141: 0 | Y141: 0 | Z141: Jurídica | AA141: 5 | AB141: ANTIOQUIA | AD141: 0 | AE141: MEDIANA | AF141: 0 | AG141: ACTIVIDADES DE ATENCIÓN DE LA SALUD HUMANA Y DE ASISTENCIA SOCIAL | AH141: 0 | AI141: 0 | AJ141: 0
B142: 5266 | C142: ENVIGADO | D142: 0 | E142: 0 | F142: Jurídica | G142: 5 | H142: ANTIOQUIA | J142: 0 | K142: MICRO | M142: ACTIVIDADES PROFESIONALES, CIENTÍFICAS Y TÉCNICAS | N142: 0 | O142: 0 | P142: 0 | U142: 0 | V142: 5376 | W142: LA CEJA | X142: 6 | Y142: 10 | Z142: Jurídica | AA142: 5 | AB142: ANTIOQUIA | AC142: Aprobado con subsidio | AD142: 16 | AE142: PEQUEÑA | AF142: 0 | AG142: COMERCIO AL POR MAYOR Y AL POR MENOR; REPARACIÓN DE VEHÍCULOS AUTOMOTORES Y MOTOCICLETAS | AH142: 3 | AI142: 3 | AJ142: 0
B143: 11001 | C143: BOGOTÁ, D.C. | D143: 0 | E143: 0 | F143: Jurídica | G143: 11 | H143: BOGOTÁ, D.C. | J143: 0 | K143: MICRO | M143: ACTIVIDADES DE SERVICIOS ADMINISTRATIVOS Y DE APOYO | N143: 0 | O143: 0 | P143: 0 | U143: 0 | V143: 5001 | W143: MEDELLÍN | X143: 0 | Y143: 0 | Z143: Jurídica | AA143: 5 | AB143: ANTIOQUIA | AD143: 0 | AE143: MICRO | AF143: 0 | AG143: COMERCIO AL POR MAYOR Y AL POR MENOR; REPARACIÓN DE VEHÍCULOS AUTOMOTORES Y MOTOCICLETAS | AH143: 0 | AI143: 0 | AJ143: 0
B144: 11001 | C144: BOGOTÁ, D.C. | D144: 2 | E144: 0 | F144: Jurídica | G144: 11 | H144: BOGOTÁ, D.C. | I144: Aprobado con subsidio | J144: 2 | K144: MICRO | M144: INDUSTRIAS MANUFACTURERAS | N144: 1 | O144: 1 | P144: 0 | U144: 0 | V144: 5360 | W144: ITAGUI | X144: 0 | Y144: 0 | Z144: Jurídica | AA144: 5 | AB144: ANTIOQUIA | AD144: 0 | AE144: PEQUEÑA | AF144: 0 | AG144: COMERCIO AL POR MAYOR Y AL POR MENOR; REPARACIÓN DE VEHÍCULOS AUTOMOTORES Y MOTOCICLETAS | AH144: 0 | AI144: 0 | AJ144: 0
B145: 68001 | C145: BUCARAMANGA | D145: 72 | E145: 344 | F145: Jurídica | G145: 68 | H145: SANTANDER | I145: Aprobado con subsidio | J145: 416 | K145: MUY GRANDE | M145: ACTIVIDADES DE SERVICIOS ADMINISTRATIVOS Y DE APOYO | N145: 38 | O145: 34 | P145: 0 | U145: 0 | V145: 5360 | W145: ITAGUI | X145: 0 | Y145: 0 | Z145: Jurídica | AA145: 5 | AB145: ANTIOQUIA | AD145: 0 | AE145: MEDIANA | AF145: 0 | AG145: INDUSTRIAS MANUFACTURERAS | AH145: 0 | AI145: 0 | AJ145: 0
B146: 11001 | C146: BOGOTÁ, D.C. | D146: 0 | E146: 0 | F146: Jurídica | G146: 11 | H146: BOGOTÁ, D.C. | J146: 0 | K146: MICRO | M146: INDUSTRIAS MANUFACTURERAS | N146: 0 | O146: 0 | P146: 0 | U146: 0 | V146: 5656 | W146: SAN JERÓNIMO | X146: 0 | Y146: 0 | Z146: Jurídica | AA146: 5 | AB146: ANTIOQUIA | AD146: 0 | AE146: PEQUEÑA | AF146: 0 | AG146: ALOJAMIENTO Y SERVICIOS DE COMIDA | AH146: 0 | AI146: 0 | AJ146: 0
B147: 25269 | C147: FACATATIVÁ | D147: 3 | E147: 8 | F147: Jurídica | G147: 25 | H147: CUNDINAMARCA | I147: Aprobado con subsidio | J147: 11 | K147: PEQUEÑA | M147: COMERCIO AL POR MAYOR Y AL POR MENOR; REPARACIÓN DE VEHÍCULOS AUTOMOTORES Y MOTOCICLETAS | N147: 1 | O147: 1 | P147: 1 | U147: 0 | V147: 5380 | W147: LA ESTRELLA | X147: 0 | Y147: 0 | Z147: Jurídica | AA147: 5 | AB147: ANTIOQUIA | AD147: 0 | AE147: GRANDE | AF147: 0 | AG147: INDUSTRIAS MANUFACTURERAS | AH147: 0 | AI147: 0 | AJ147: 0
B148: 5001 | C148: MEDELLÍN | D148: 0 | E148: 0 | F148: Jurídica | G148: 5 | H148: ANTIOQUIA | J148: 0 | K148: MICRO | M148: INFORMACIÓN Y COMUNICACIONES | N148: 0 | O148: 0 | P148: 0 | U148: 0 | V148: 5001 | W148: MEDELLÍN | X148: 13 | Y148: 195 | Z148: Jurídica | AA148: 5 | AB148: ANTIOQUIA | AC148: Aprobado con subsidio | AD148: 208 | AE148: MUY GRANDE | AF148: 0 | AG148: INDUSTRIAS MANUFACTURERAS | AH148: 6 | AI148: 7 | AJ148: 0
B149: 5001 | C149: MEDELLÍN | D149: 1 | E149: 3 | F149: Jurídica | G149: 5 | H149: ANTIOQUIA | I149: Aprobado con subsidio | J149: 4 | K149: MICRO | M149: CONSTRUCCIÓN | N149: 0 | O149: 1 | P149: 0 | U149: 0 | V149: 5001 | W149: MEDELLÍN | X149: 0 | Y149: 0 | Z149: Natural | AA149: 5 | AB149: ANTIOQUIA | AD149: 0 | AE149: MICRO | AF149: 0 | AG149: INDUSTRIAS MANUFACTURERAS | AH149: 0 | AI149: 0 | AJ149: 0
B150: 5001 | C150: MEDELLÍN | D150: 4 | E150: 5 | F150: Jurídica | G150: 5 | H150: ANTIOQUIA | I150: Aprobado con subsidio | J150: 9 | K150: PEQUEÑA | M150: CONSTRUCCIÓN | N150: 0 | O150: 4 | P150: 0 | U150: 0 | V150: 5001 | W150: MEDELLÍN | X150: 1 | Y150: 0 | Z150: Jurídica | AA150: 5 | AB150: ANTIOQUIA | AC150: Aprobado con subsidio | AD150: 1 | AE150: MICRO | AF150: 0 | AG150: ACTIVIDADES PROFESIONALES, CIENTÍFICAS Y TÉCNICAS | AH150: 1 | AI150: 0 | AJ150: 0
B151: 23001 | C151: MONTERÍA | D151: 0 | E151: 0 | F151: Natural | G151: 23 | H151: CÓRDOBA | J151: 0 | K151: PEQUEÑA | M151: CONSTRUCCIÓN | N151: 0 | O151: 0 | P151: 0 | U151: 0 | V151: 5001 | W151: MEDELLÍN | X151: 0 | Y151: 0 | Z151: Jurídica | AA151: 5 | AB151: ANTIOQUIA | AD151: 0 | AE151: PEQUEÑA | AF151: 0 | AG151: INDUSTRIAS MANUFACTURERAS | AH151: 0 | AI151: 0 | AJ151: 0
B152: 5615 | C152: RIONEGRO | D152: 1 | E152: 6 | F152: Jurídica | G152: 5 | H152: ANTIOQUIA | I152: Aprobado con subsidio | J152: 7 | K152: PEQUEÑA | M152: TRANSPORTE Y ALMACENAMIENTO | N152: 0 | O152: 1 | P152: 0 | U152: 0 | V152: 5001 | W152: MEDELLÍN | X152: 0 | Y152: 0 | Z152: Jurídica | AA152: 5 | AB152: ANTIOQUIA | AD152: 0 | AE152: PEQUEÑA | AF152: 0 | AG152: AGRICULTURA, GANADERÍA, CAZA, SILVICULTURA Y PESCA | AH152: 0 | AI152: 0 | AJ152: 0
B153: 11001 | C153: BOGOTÁ, D.C. | D153: 16 | E153: 71 | F153: Jurídica | G153: 11 | H153: BOGOTÁ, D.C. | I153: Aprobado con subsidio | J153: 87 | K153: MEDIANA | M153: ACTIVIDADES DE SERVICIOS ADMINISTRATIVOS Y DE APOYO | N153: 5 | O153: 10 | P153: 1 | U153: 0 | V153: 5376 | W153: LA CEJA | X153: 16 | Y153: 38 | Z153: Jurídica | AA153: 5 | AB153: ANTIOQUIA | AC153: Aprobado con subsidio | AD153: 54 | AE153: GRANDE | AF153: 0 | AG153: AGRICULTURA, GANADERÍA, CAZA, SILVICULTURA Y PESCA | AH153: 6 | AI153: 10 | AJ153: 0
B154: 5212 | C154: COPACABANA | D154: 1 | E154: 28 | F154: Jurídica | G154: 5 | H154: ANTIOQUIA | I154: Aprobado con subsidio | J154: 29 | K154: MEDIANA | M154: COMERCIO AL POR MAYOR Y AL POR MENOR; REPARACIÓN DE VEHÍCULOS AUTOMOTORES Y MOTOCICLETAS | N154: 1 | O154: 0 | P154: 0 | U154: 0 | V154: 5001 | W154: MEDELLÍN | X154: 2 | Y154: 14 | Z154: Jurídica | AA154: 5 | AB154: ANTIOQUIA | AC154: Aprobado con subsidio | AD154: 16 | AE154: PEQUEÑA | AF154: 0 | AG154: TRANSPORTE Y ALMACENAMIENTO | AH154: 2 | AI154: 0 | AJ154: 0
B155: 8001 | C155: BARRANQUILLA | D155: 0 | E155: 0 | F155: Jurídica | G155: 8 | H155: ATLÁNTICO | J155: 0 | K155: PEQUEÑA | M155: INDUSTRIAS MANUFACTURERAS | N155: 0 | O155: 0 | P155: 0 | U155: 0 | V155: 5380 | W155: LA ESTRELLA | X155: 0 | Y155: 0 | Z155: Jurídica | AA155: 5 | AB155: ANTIOQUIA | AD155: 0 | AE155: GRANDE | AF155: 0 | AG155: COMERCIO AL POR MAYOR Y AL POR MENOR; REPARACIÓN DE VEHÍCULOS AUTOMOTORES Y MOTOCICLETAS | AH155: 0 | AI155: 0 | AJ155: 0
B156: 11001 | C156: BOGOTÁ, D.C. | D156: 4 | E156: 12 | F156: Jurídica | G156: 11 | H156: BOGOTÁ, D.C. | I156: Aprobado con subsidio | J156: 16 | K156: PEQUEÑA | M156: COMERCIO AL POR MAYOR Y AL POR MENOR; REPARACIÓN DE VEHÍCULOS AUTOMOTORES Y MOTOCICLETAS | N156: 4 | O156: 0 | P156: 0 | U156: 0 | V156: 5001 | W156: MEDELLÍN | X156: 2 | Y156: 8 | Z156: Jurídica | AA156: 5 | AB156: ANTIOQUIA | AC156: Aprobado con subsidio | AD156: 10 | AE156: PEQUEÑA | AF156: 0 | AG156: CONSTRUCCIÓN | AH156: 2 | AI156: 0 | AJ156: 0
B157: 11001 | C157: BOGOTÁ, D.C. | D157: 1 | E157: 26 | F157: Jurídica | G157: 11 | H157: BOGOTÁ, D.C. | I157: Aprobado con subsidio | J157: 27 | K157: MEDIANA | M157: COMERCIO AL POR MAYOR Y AL POR MENOR; REPARACIÓN DE VEHÍCULOS AUTOMOTORES Y MOTOCICLETAS | N157: 1 | O157: 0 | P157: 0 | U157: 0 | V157: 5631 | W157: SABANETA | X157: 1 | Y157: 1 | Z157: Natural | AA157: 5 | AB157: ANTIOQUIA | AC157: Aprobado con subsidio | AD157: 2 | AE157: MICRO | AF157: 0 | AG157: ALOJAMIENTO Y SERVICIOS DE COMIDA | AH157: 1 | AI157: 0 | AJ157: 0
B158: 8573 | C158: PUERTO COLOMBIA | D158: 3 | E158: 0 | F158: Jurídica | G158: 8 | H158: ATLÁNTICO | I158: Aprobado con subsidio | J158: 3 | K158: MICRO | M158: CONSTRUCCIÓN | N158: 2 | O158: 1 | P158: 0 | U158: 0 | V158: 5001 | W158: MEDELLÍN | X158: 3 | Y158: 14 | Z158: Jurídica | AA158: 5 | AB158: ANTIOQUIA | AC158: Aprobado con subsidio | AD158: 17 | AE158: PEQUEÑA | AF158: 0 | AG158: ACTIVIDADES FINANCIERAS Y DE SEGUROS | AH158: 3 | AI158: 0 | AJ158: 0
B159: 5001 | C159: MEDELLÍN | D159: 29 | E159: 333 | F159: Jurídica | G159: 5 | H159: ANTIOQUIA | I159: Aprobado con subsidio | J159: 362 | K159: MUY GRANDE | M159: ALOJAMIENTO Y SERVICIOS DE COMIDA | N159: 24 | O159: 5 | P159: 0 | U159: 0 | V159: 5001 | W159: MEDELLÍN | X159: 0 | Y159: 0 | Z159: Natural | AA159: 5 | AB159: ANTIOQUIA | AD159: 0 | AE159: MICRO | AF159: 0 | AG159: COMERCIO AL POR MAYOR Y AL POR MENOR; REPARACIÓN DE VEHÍCULOS AUTOMOTORES Y MOTOCICLETAS | AH159: 0 | AI159: 0 | AJ159: 0
B160: 5360 | C160: ITAGUI | D160: 0 | E160: 0 | F160: Natural | G160: 5 | H160: ANTIOQUIA | J160: 0 | K160: MICRO | M160: COMERCIO AL POR MAYOR Y AL POR MENOR; REPARACIÓN DE VEHÍCULOS AUTOMOTORES Y MOTOCICLETAS | N160: 0 | O160: 0 | P160: 0 | U160: 0 | V160: 5266 | W160: ENVIGADO | X160: 0 | Y160: 0 | Z160: Jurídica | AA160: 5 | AB160: ANTIOQUIA | AD160: 0 | AE160: PEQUEÑA | AF160: 0 | AG160: INDUSTRIAS MANUFACTURERAS | AH160: 0 | AI160: 0 | AJ160: 0
B161: 11001 | C161: BOGOTÁ, D.C. | D161: 0 | E161: 0 | F161: Jurídica | G161: 11 | H161: BOGOTÁ, D.C. | J161: 0 | K161: MICRO | M161: ACTIVIDADES PROFESIONALES, CIENTÍFICAS Y TÉCNICAS | N161: 0 | O161: 0 | P161: 0 | U161: 0 | V161: 5266 | W161: ENVIGADO | X161: 0 | Y161: 0 | Z161: Jurídica | AA161: 5 | AB161: ANTIOQUIA | AD161: 0 | AE161: PEQUEÑA | AF161: 0 | AG161: COMERCIO AL POR MAYOR Y AL POR MENOR; REPARACIÓN DE VEHÍCULOS AUTOMOTORES Y MOTOCICLETAS | AH161: 0 | AI161: 0 | AJ161: 0
B162: 5001 | C162: MEDELLÍN | D162: 6 | E162: 10 | F162: Jurídica | G162: 5 | H162: ANTIOQUIA | I162: Aprobado con subsidio | J162: 16 | K162: PEQUEÑA | M162: CONSTRUCCIÓN | N162: 0 | O162: 6 | P162: 0 | U162: 0 | V162: 5615 | W162: RIONEGRO | X162: 0 | Y162: 0 | Z162: Jurídica | AA162: 5 | AB162: ANTIOQUIA | AD162: 0 | AE162: PEQUEÑA | AF162: 0 | AG162: INDUSTRIAS MANUFACTURERAS | AH162: 0 | AI162: 0 | AJ162: 0
B163: 15176 | C163: CHIQUINQUIRÁ | D163: 2 | E163: 1 | F163: Jurídica | G163: 15 | H163: BOYACÁ | I163: Aprobado con subsidio | J163: 3 | K163: PEQUEÑA | M163: CONSTRUCCIÓN | N163: 1 | O163: 1 | P163: 0 | U163: 0 | V163: 5001 | W163: MEDELLÍN | X163: 0 | Y163: 0 | Z163: Jurídica | AA163: 5 | AB163: ANTIOQUIA | AD163: 0 | AE163: MICRO | AF163: 0 | AG163: INDUSTRIAS MANUFACTURERAS | AH163: 0 | AI163: 0 | AJ163: 0
B164: 5001 | C164: MEDELLÍN | D164: 0 | E164: 0 | F164: Jurídica | G164: 5 | H164: ANTIOQUIA | J164: 0 | K164: PEQUEÑA | M164: INDUSTRIAS MANUFACTURERAS | N164: 0 | O164: 0 | P164: 0 | U164: 0 | V164: 5001 | W164: MEDELLÍN | X164: 0 | Y164: 0 | Z164: Jurídica | AA164: 5 | AB164: ANTIOQUIA | AD164: 0 | AE164: PEQUEÑA | AF164: 0 | AG164: EDUCACIÓN | AH164: 0 | AI164: 0 | AJ164: 0
B165: 11001 | C165: BOGOTÁ, D.C. | D165: 0 | E165: 0 | F165: Jurídica | G165: 11 | H165: BOGOTÁ, D.C. | J165: 0 | K165: PEQUEÑA | M165: INFORMACIÓN Y COMUNICACIONES | N165: 0 | O165: 0 | P165: 0 | U165: 0 | V165: 5001 | W165: MEDELLÍN | X165: 2 | Y165: 0 | Z165: Jurídica | AA165: 5 | AB165: ANTIOQUIA | AC165: Aprobado con subsidio | AD165: 2 | AE165: MICRO | AF165: 0 | AG165: ACTIVIDADES PROFESIONALES, CIENTÍFICAS Y TÉCNICAS | AH165: 1 | AI165: 1 | AJ165: 0
B166: 5308 | C166: GIRARDOTA | D166: 0 | E166: 0 | F166: Jurídica | G166: 5 | H166: ANTIOQUIA | J166: 0 | K166: PEQUEÑA | M166: INDUSTRIAS MANUFACTURERAS | N166: 0 | O166: 0 | P166: 0 | U166: 0 | V166: 5001 | W166: MEDELLÍN | X166: 0 | Y166: 0 | Z166: Jurídica | AA166: 5 | AB166: ANTIOQUIA | AD166: 0 | AE166: MICRO | AF166: 0 | AG166: ACTIVIDADES PROFESIONALES, CIENTÍFICAS Y TÉCNICAS | AH166: 0 | AI166: 0 | AJ166: 0
B167: 5001 | C167: MEDELLÍN | D167: 2 | E167: 6 | F167: Jurídica | G167: 5 | H167: ANTIOQUIA | I167: Aprobado con subsidio | J167: 8 | K167: PEQUEÑA | M167: ACTIVIDADES FINANCIERAS Y DE SEGUROS | N167: 2 | O167: 0 | P167: 0 | U167: 0 | V167: 5001 | W167: MEDELLÍN | X167: 0 | Y167: 0 | Z167: Jurídica | AA167: 5 | AB167: ANTIOQUIA | AD167: 0 | AE167: MEDIANA | AF167: 0 | AG167: ALOJAMIENTO Y SERVICIOS DE COMIDA | AH167: 0 | AI167: 0 | AJ167: 0
B168: 5266 | C168: ENVIGADO | D168: 0 | E168: 0 | F168: Jurídica | G168: 5 | H168: ANTIOQUIA | J168: 0 | K168: MICRO | M168: ACTIVIDADES PROFESIONALES, CIENTÍFICAS Y TÉCNICAS | N168: 0 | O168: 0 | P168: 0 | U168: 0 | V168: 5001 | W168: MEDELLÍN | X168: 1 | Y168: 4 | Z168: Jurídica | AA168: 5 | AB168: ANTIOQUIA | AC168: Aprobado con subsidio | AD168: 5 | AE168: MICRO | AF168: 0 | AG168: COMERCIO AL POR MAYOR Y AL POR MENOR; REPARACIÓN DE VEHÍCULOS AUTOMOTORES Y MOTOCICLETAS | AH168: 0 | AI168: 1 | AJ168: 0
B169: 5001 | C169: MEDELLÍN | D169: 1 | E169: 8 | F169: Jurídica | G169: 5 | H169: ANTIOQUIA | I169: Aprobado con subsidio | J169: 9 | K169: MEDIANA | M169: ACTIVIDADES PROFESIONALES, CIENTÍFICAS Y TÉCNICAS | N169: 0 | O169: 1 | P169: 0 | U169: 0 | V169: 5266 | W169: ENVIGADO | X169: 0 | Y169: 0 | Z169: Jurídica | AA169: 5 | AB169: ANTIOQUIA | AD169: 0 | AE169: PEQUEÑA | AF169: 0 | AG169: COMERCIO AL POR MAYOR Y AL POR MENOR; REPARACIÓN DE VEHÍCULOS AUTOMOTORES Y MOTOCICLETAS | AH169: 0 | AI169: 0 | AJ169: 0
B170: 50001 | C170: VILLAVICENCIO | D170: 0 | E170: 0 | F170: Jurídica | G170: 50 | H170: META | J170: 0 | K170: PEQUEÑA | M170: ACTIVIDADES ARTÍSTICAS, DE ENTRETENIMIENTO Y RECREACIÓN | N170: 0 | O170: 0 | P170: 0 | U170: 0 | V170: 5001 | W170: MEDELLÍN | X170: 4 | Y170: 25 | Z170: Jurídica | AA170: 5 | AB170: ANTIOQUIA | AC170: Aprobado con subsidio | AD170: 29 | AE170: MEDIANA | AF170: 0 | AG170: COMERCIO AL POR MAYOR Y AL POR MENOR; REPARACIÓN DE VEHÍCULOS AUTOMOTORES Y MOTOCICLETAS | AH170: 2 | AI170: 2 | AJ170: 0
B171: 73001 | C171: IBAGUÉ | D171: 0 | E171: 0 | F171: Jurídica | G171: 73 | H171: TOLIMA | J171: 0 | K171: MEDIANA | M171: ACTIVIDADES DE SERVICIOS ADMINISTRATIVOS Y DE APOYO | N171: 0 | O171: 0 | P171: 0 | U171: 0 | V171: 5001 | W171: MEDELLÍN | X171: 0 | Y171: 0 | Z171: Jurídica | AA171: 5 | AB171: ANTIOQUIA | AD171: 0 | AE171: MICRO | AF171: 0 | AG171: INDUSTRIAS MANUFACTURERAS | AH171: 0 | AI171: 0 | AJ171: 0
B172: 76001 | C172: CALI | D172: 1 | E172: 4 | F172: Jurídica | G172: 76 | H172: VALLE DEL CAUCA | I172: Aprobado con subsidio | J172: 5 | K172: PEQUEÑA | M172: ACTIVIDADES DE ATENCIÓN DE LA SALUD HUMANA Y DE ASISTENCIA SOCIAL | N172: 1 | O172: 0 | P172: 0 | U172: 0 | V172: 5001 | W172: MEDELLÍN | X172: 2 | Y172: 1 | Z172: Jurídica | AA172: 5 | AB172: ANTIOQUIA | AC172: Aprobado con subsidio | AD172: 3 | AE172: PEQUEÑA | AF172: 0 | AG172: ACTIVIDADES DE SERVICIOS ADMINISTRATIVOS Y DE APOYO | AH172: 1 | AI172: 1 | AJ172: 0
B173: 73001 | C173: IBAGUÉ | D173: 1 | E173: 2 | F173: Natural | G173: 73 | H173: TOLIMA | I173: Aprobado con subsidio | J173: 3 | K173: MICRO | M173: COMERCIO AL POR MAYOR Y AL POR MENOR; REPARACIÓN DE VEHÍCULOS AUTOMOTORES Y MOTOCICLETAS | N173: 1 | O173: 0 | P173: 0 | U173: 0 | V173: 5001 | W173: MEDELLÍN | X173: 3 | Y173: 12 | Z173: Jurídica | AA173: 5 | AB173: ANTIOQUIA | AC173: Aprobado con subsidio | AD173: 15 | AE173: PEQUEÑA | AF173: 0 | AG173: ACTIVIDADES PROFESIONALES, CIENTÍFICAS Y TÉCNICAS | AH173: 2 | AI173: 1 | AJ173: 0
B174: 8001 | C174: BARRANQUILLA | D174: 2 | E174: 9 | F174: Jurídica | G174: 8 | H174: ATLÁNTICO | I174: Aprobado con subsidio | J174: 11 | K174: PEQUEÑA | M174: INDUSTRIAS MANUFACTURERAS | N174: 2 | O174: 0 | P174: 0 | U174: 0 | V174: 5001 | W174: MEDELLÍN | X174: 15 | Y174: 25 | Z174: Jurídica | AA174: 5 | AB174: ANTIOQUIA | AC174: Aprobado con subsidio | AD174: 40 | AE174: PEQUEÑA | AF174: 0 | AG174: INFORMACIÓN Y COMUNICACIONES | AH174: 3 | AI174: 11 | AJ174: 1
B175: 11001 | C175: BOGOTÁ, D.C. | D175: 6 | E175: 73 | F175: Jurídica | G175: 11 | H175: BOGOTÁ, D.C. | I175: Aprobado con subsidio | J175: 79 | K175: GRANDE | M175: CONSTRUCCIÓN | N175: 3 | O175: 3 | P175: 0 | U175: 0 | V175: 5001 | W175: MEDELLÍN | X175: 0 | Y175: 0 | Z175: Natural | AA175: 5 | AB175: ANTIOQUIA | AD175: 0 | AE175: PEQUEÑA | AF175: 0 | AG175: COMERCIO AL POR MAYOR Y AL POR MENOR; REPARACIÓN DE VEHÍCULOS AUTOMOTORES Y MOTOCICLETAS | AH175: 0 | AI175: 0 | AJ175: 0
B176: 5001 | C176: MEDELLÍN | D176: 0 | E176: 0 | F176: Jurídica | G176: 5 | H176: ANTIOQUIA | J176: 0 | K176: MUY GRANDE | M176: ACTIVIDADES DE SERVICIOS ADMINISTRATIVOS Y DE APOYO | N176: 0 | O176: 0 | P176: 0 | U176: 0 | V176: 5001 | W176: MEDELLÍN | X176: 2 | Y176: 0 | Z176: Jurídica | AA176: 5 | AB176: ANTIOQUIA | AC176: Aprobado con subsidio | AD176: 2 | AE176: MICRO | AF176: 0 | AG176: ACTIVIDADES DE SERVICIOS ADMINISTRATIVOS Y DE APOYO | AH176: 2 | AI176: 0 | AJ176: 0
B177: 23001 | C177: MONTERÍA | D177: 1 | E177: 2 | F177: Jurídica | G177: 23 | H177: CÓRDOBA | I177: Aprobado con subsidio | J177: 3 | K177: MICRO | M177: CONSTRUCCIÓN | N177: 1 | O177: 0 | P177: 0 | U177: 0 | V177: 5001 | W177: MEDELLÍN | X177: 0 | Y177: 0 | Z177: Jurídica | AA177: 5 | AB177: ANTIOQUIA | AD177: 0 | AE177: MEDIANA | AF177: 0 | AG177: CONSTRUCCIÓN | AH177: 0 | AI177: 0 | AJ177: 0
B178: 5001 | C178: MEDELLÍN | D178: 0 | E178: 0 | F178: Jurídica | G178: 5 | H178: ANTIOQUIA | J178: 0 | K178: MUY GRANDE | M178: ACTIVIDADES DE ATENCIÓN DE LA SALUD HUMANA Y DE ASISTENCIA SOCIAL | N178: 0 | O178: 0 | P178: 0 | U178: 0 | V178: 5001 | W178: MEDELLÍN | X178: 153 | Y178: 1422 | Z178: Jurídica | AA178: 5 | AB178: ANTIOQUIA | AC178: Aprobado con subsidio | AD178: 1575 | AE178: MUY GRANDE | AF178: 0 | AG178: CONSTRUCCIÓN | AH178: 6 | AI178: 142 | AJ178: 5
B179: 15001 | C179: TUNJA | D179: 0 | E179: 0 | F179: Jurídica | G179: 15 | H179: BOYACÁ | J179: 0 | K179: PEQUEÑA | M179: DISTRIBUCIÓN DE AGUA; EVACUACIÓN Y TRATAMIENTO DE AGUAS RESIDUALES, GESTIÓN DE DESECHOS Y ACTIVIDADES DE SANEAMIENTO AMBIENTAL | N179: 0 | O179: 0 | P179: 0 | U179: 0 | V179: 5001 | W179: MEDELLÍN | X179: 3 | Y179: 11 | Z179: Jurídica | AA179: 5 | AB179: ANTIOQUIA | AC179: Aprobado con subsidio | AD179: 14 | AE179: PEQUEÑA | AF179: 0 | AG179: ACTIVIDADES PROFESIONALES, CIENTÍFICAS Y TÉCNICAS | AH179: 2 | AI179: 1 | AJ179: 0
B180: 8001 | C180: BARRANQUILLA | D180: 0 | E180: 0 | F180: Jurídica | G180: 8 | H180: ATLÁNTICO | J180: 0 | K180: PEQUEÑA | M180: COMERCIO AL POR MAYOR Y AL POR MENOR; REPARACIÓN DE VEHÍCULOS AUTOMOTORES Y MOTOCICLETAS | N180: 0 | O180: 0 | P180: 0 | U180: 0 | V180: 5045 | W180: APARTADÓ | X180: 1 | Y180: 3 | Z180: Natural | AA180: 5 | AB180: ANTIOQUIA | AC180: Aprobado con subsidio | AD180: 4 | AE180: MICRO | AF180: 0 | AG180: COMERCIO AL POR MAYOR Y AL POR MENOR; REPARACIÓN DE VEHÍCULOS AUTOMOTORES Y MOTOCICLETAS | AH180: 1 | AI180: 0 | AJ180: 0
B181: 25214 | C181: COTA | D181: 4 | E181: 37 | F181: Jurídica | G181: 25 | H181: CUNDINAMARCA | I181: Aprobado con subsidio | J181: 41 | K181: MEDIANA | M181: COMERCIO AL POR MAYOR Y AL POR MENOR; REPARACIÓN DE VEHÍCULOS AUTOMOTORES Y MOTOCICLETAS | N181: 0 | O181: 4 | P181: 0 | U181: 0 | V181: 5308 | W181: GIRARDOTA | X181: 0 | Y181: 0 | Z181: Natural | AA181: 5 | AB181: ANTIOQUIA | AD181: 0 | AE181: MICRO | AF181: 0 | AG181: INDUSTRIAS MANUFACTURERAS | AH181: 0 | AI181: 0 | AJ181: 0
B182: 13001 | C182: CARTAGENA | D182: 12 | E182: 64 | F182: Jurídica | G182: 13 | H182: BOLÍVAR | I182: Aprobado con subsidio | J182: 76 | K182: GRANDE | M182: ACTIVIDADES DE SERVICIOS ADMINISTRATIVOS Y DE APOYO | N182: 2 | O182: 10 | P182: 0 | U182: 0 | V182: 5266 | W182: ENVIGADO | X182: 2 | Y182: 0 | Z182: Jurídica | AA182: 5 | AB182: ANTIOQUIA | AC182: Aprobado con subsidio | AD182: 2 | AE182: MICRO | AF182: 0 | AG182: ACTIVIDADES PROFESIONALES, CIENTÍFICAS Y TÉCNICAS | AH182: 1 | AI182: 1 | AJ182: 0
B183: 11001 | C183: BOGOTÁ, D.C. | D183: 1 | E183: 10 | F183: Jurídica | G183: 11 | H183: BOGOTÁ, D.C. | I183: Aprobado con subsidio | J183: 11 | K183: MEDIANA | M183: CONSTRUCCIÓN | N183: 0 | O183: 1 | P183: 0 | U183: 0 | V183: 5266 | W183: ENVIGADO | X183: 0 | Y183: 0 | Z183: Jurídica | AA183: 5 | AB183: ANTIOQUIA | AD183: 0 | AE183: PEQUEÑA | AF183: 0 | AG183: ACTIVIDADES DE ATENCIÓN DE LA SALUD HUMANA Y DE ASISTENCIA SOCIAL | AH183: 0 | AI183: 0 | AJ183: 0
B184: 25322 | C184: GUASCA | D184: 0 | E184: 0 | F184: Jurídica | G184: 25 | H184: CUNDINAMARCA | J184: 0 | K184: PEQUEÑA | M184: AGRICULTURA, GANADERÍA, CAZA, SILVICULTURA Y PESCA | N184: 0 | O184: 0 | P184: 0 | U184: 0 | V184: 5001 | W184: MEDELLÍN | X184: 70 | Y184: 548 | Z184: Jurídica | AA184: 5 | AB184: ANTIOQUIA | AC184: Aprobado con subsidio | AD184: 618 | AE184: MUY GRANDE | AF184: 0 | AG184: ACTIVIDADES DE SERVICIOS ADMINISTRATIVOS Y DE APOYO | AH184: 2 | AI184: 68 | AJ184: 0
B185: 73001 | C185: IBAGUÉ | D185: 0 | E185: 0 | F185: Jurídica | G185: 73 | H185: TOLIMA | J185: 0 | K185: MICRO | M185: INDUSTRIAS MANUFACTURERAS | N185: 0 | O185: 0 | P185: 0 | U185: 0 | V185: 5376 | W185: LA CEJA | X185: 6 | Y185: 77 | Z185: Jurídica | AA185: 5 | AB185: ANTIOQUIA | AC185: Aprobado con subsidio | AD185: 83 | AE185: MEDIANA | AF185: 0 | AG185: COMERCIO AL POR MAYOR Y AL POR MENOR; REPARACIÓN DE VEHÍCULOS AUTOMOTORES Y MOTOCICLETAS | AH185: 3 | AI185: 3 | AJ185: 0
B186: 5001 | C186: MEDELLÍN | D186: 0 | E186: 0 | F186: Natural | G186: 5 | H186: ANTIOQUIA | J186: 0 | K186: MICRO | M186: ACTIVIDADES DE SERVICIOS ADMINISTRATIVOS Y DE APOYO | N186: 0 | O186: 0 | P186: 0 | U186: 0 | V186: 5129 | W186: CALDAS | X186: 0 | Y186: 0 | Z186: Jurídica | AA186: 5 | AB186: ANTIOQUIA | AD186: 0 | AE186: PEQUEÑA | AF186: 0 | AG186: INDUSTRIAS MANUFACTURERAS | AH186: 0 | AI186: 0 | AJ186: 0
B187: 5368 | C187: JERICÓ | D187: 0 | E187: 0 | F187: Natural | G187: 5 | H187: ANTIOQUIA | J187: 0 | K187: MICRO | M187: ALOJAMIENTO Y SERVICIOS DE COMIDA | N187: 0 | O187: 0 | P187: 0 | U187: 0 | V187: 5001 | W187: MEDELLÍN | X187: 0 | Y187: 0 | Z187: Jurídica | AA187: 5 | AB187: ANTIOQUIA | AD187: 0 | AE187: MICRO | AF187: 0 | AG187: COMERCIO AL POR MAYOR Y AL POR MENOR; REPARACIÓN DE VEHÍCULOS AUTOMOTORES Y MOTOCICLETAS | AH187: 0 | AI187: 0 | AJ187: 0
B188: 11001 | C188: BOGOTÁ, D.C. | D188: 4 | E188: 14 | F188: Jurídica | G188: 11 | H188: BOGOTÁ, D.C. | I188: Aprobado con subsidio | J188: 18 | K188: PEQUEÑA | M188: ALOJAMIENTO Y SERVICIOS DE COMIDA | N188: 1 | O188: 2 | P188: 1 | U188: 0 | V188: 5001 | W188: MEDELLÍN | X188: 0 | Y188: 0 | Z188: Jurídica | AA188: 5 | AB188: ANTIOQUIA | AD188: 0 | AE188: MICRO | AF188: 0 | AG188: COMERCIO AL POR MAYOR Y AL POR MENOR; REPARACIÓN DE VEHÍCULOS AUTOMOTORES Y MOTOCICLETAS | AH188: 0 | AI188: 0 | AJ188: 0
B189: 5001 | C189: MEDELLÍN | D189: 1 | E189: 13 | F189: Natural | G189: 5 | H189: ANTIOQUIA | I189: Aprobado con subsidio | J189: 14 | K189: PEQUEÑA | M189: COMERCIO AL POR MAYOR Y AL POR MENOR; REPARACIÓN DE VEHÍCULOS AUTOMOTORES Y MOTOCICLETAS | N189: 1 | O189: 0 | P189: 0 | U189: 0 | V189: 5237 | W189: DON MATÍAS | X189: 0 | Y189: 0 | Z189: Jurídica | AA189: 5 | AB189: ANTIOQUIA | AD189: 0 | AE189: PEQUEÑA | AF189: 0 | AG189: INDUSTRIAS MANUFACTURERAS | AH189: 0 | AI189: 0 | AJ189: 0
B190: 5400 | C190: LA UNIÓN | D190: 0 | E190: 0 | F190: Jurídica | G190: 5 | H190: ANTIOQUIA | J190: 0 | K190: PEQUEÑA | M190: INDUSTRIAS MANUFACTURERAS | N190: 0 | O190: 0 | P190: 0 | U190: 0 | V190: 5266 | W190: ENVIGADO | X190: 3 | Y190: 207 | Z190: Jurídica | AA190: 5 | AB190: ANTIOQUIA | AC190: Aprobado con subsidio | AD190: 210 | AE190: MUY GRANDE | AF190: 0 | AG190: COMERCIO AL POR MAYOR Y AL POR MENOR; REPARACIÓN DE VEHÍCULOS AUTOMOTORES Y MOTOCICLETAS | AH190: 3 | AI190: 0 | AJ190: 0
B191: 17001 | C191: MANIZALES | D191: 0 | E191: 0 | F191: Jurídica | G191: 17 | H191: CALDAS | J191: 0 | K191: MICRO | M191: CONSTRUCCIÓN | N191: 0 | O191: 0 | P191: 0 | U191: 0 | V191: 5088 | W191: BELLO | X191: 0 | Y191: 0 | Z191: Jurídica | AA191: 5 | AB191: ANTIOQUIA | AD191: 0 | AE191: MICRO | AF191: 0 | AG191: CONSTRUCCIÓN | AH191: 0 | AI191: 0 | AJ191: 0
B192: 54001 | C192: CÚCUTA | D192: 0 | E192: 0 | F192: Jurídica | G192: 54 | H192: NORTE DE SANTANDER | J192: 0 | K192: PEQUEÑA | M192: COMERCIO AL POR MAYOR Y AL POR MENOR; REPARACIÓN DE VEHÍCULOS AUTOMOTORES Y MOTOCICLETAS | N192: 0 | O192: 0 | P192: 0 | U192: 0 | V192: 5615 | W192: RIONEGRO | X192: 1 | Y192: 1 | Z192: Jurídica | AA192: 5 | AB192: ANTIOQUIA | AC192: Aprobado con subsidio | AD192: 2 | AE192: MICRO | AF192: 0 | AG192: COMERCIO AL POR MAYOR Y AL POR MENOR; REPARACIÓN DE VEHÍCULOS AUTOMOTORES Y MOTOCICLETAS | AH192: 1 | AI192: 0 | AJ192: 0
B193: 11001 | C193: BOGOTÁ, D.C. | D193: 0 | E193: 0 | F193: Jurídica | G193: 11 | H193: BOGOTÁ, D.C. | J193: 0 | K193: MICRO | M193: INFORMACIÓN Y COMUNICACIONES | N193: 0 | O193: 0 | P193: 0 | U193: 0 | V193: 5360 | W193: ITAGUI | X193: 7 | Y193: 20 | Z193: Jurídica | AA193: 5 | AB193: ANTIOQUIA | AC193: Aprobado con subsidio | AD193: 27 | AE193: MEDIANA | AF193: 0 | AG193: INDUSTRIAS MANUFACTURERAS | AH193: 2 | AI193: 5 | AJ193: 0
B194: 13001 | C194: CARTAGENA | D194: 0 | E194: 0 | F194: Natural | G194: 13 | H194: BOLÍVAR | J194: 0 | K194: PEQUEÑA | M194: EDUCACIÓN | N194: 0 | O194: 0 | P194: 0 | U194: 0 | V194: 5001 | W194: MEDELLÍN | X194: 0 | Y194: 0 | Z194: Jurídica | AA194: 5 | AB194: ANTIOQUIA | AD194: 0 | AE194: MICRO | AF194: 0 | AG194: INDUSTRIAS MANUFACTURERAS | AH194: 0 | AI194: 0 | AJ194: 0
B195: 11001 | C195: BOGOTÁ, D.C. | D195: 0 | E195: 0 | F195: Jurídica | G195: 11 | H195: BOGOTÁ, D.C. | I195: =IF(D195>0,"Aprobado con subsidio","") ->  | J195: 0 | K195: PEQUEÑA | M195: ALOJAMIENTO Y SERVICIOS DE COMIDA | N195: 0 | O195: 0 | P195: 0 | U195: 0 | V195: 5001 | W195: MEDELLÍN | X195: 3 | Y195: 27 | Z195: Jurídica | AA195: 5 | AB195: ANTIOQUIA | AC195: Aprobado con subsidio | AD195: 30 | AE195: MEDIANA | AF195: 0 | AG195: INDUSTRIAS MANUFACTURERAS | AH195: 2 | AI195: 1 | AJ195: 0
B196: 76001 | C196: CALI | D196: 0 | E196: 0 | F196: Jurídica | G196: 76 | H196: VALLE DEL CAUCA | J196: 0 | K196: MEDIANA | M196: ACTIVIDADES DE SERVICIOS ADMINISTRATIVOS Y DE APOYO | N196: 0 | O196: 0 | P196: 0 | U196: 0 | V196: 5001 | W196: MEDELLÍN | X196: 1 | Y196: 0 | Z196: Natural | AA196: 5 | AB196: ANTIOQUIA | AC196: Aprobado con subsidio | AD196: 1 | AE196: MICRO | AF196: 0 | AG196: COMERCIO AL POR MAYOR Y AL POR MENOR; REPARACIÓN DE VEHÍCULOS AUTOMOTORES Y MOTOCICLETAS | AH196: 1 | AI196: 0 | AJ196: 0
B197: 5001 | C197: MEDELLÍN | D197: 2 | E197: 3 | F197: Jurídica | G197: 5 | H197: ANTIOQUIA | I197: Aprobado con subsidio | J197: 5 | K197: MICRO | M197: ACTIVIDADES PROFESIONALES, CIENTÍFICAS Y TÉCNICAS | N197: 1 | O197: 1 | P197: 0 | U197: 0 | V197: 5001 | W197: MEDELLÍN | X197: 0 | Y197: 0 | Z197: Jurídica | AA197: 5 | AB197: ANTIOQUIA | AD197: 0 | AE197: PEQUEÑA | AF197: 0 | AG197: ALOJAMIENTO Y SERVICIOS DE COMIDA | AH197: 0 | AI197: 0 | AJ197: 0
B198: 11001 | C198: BOGOTÁ, D.C. | D198: 1 | E198: 7 | F198: Jurídica | G198: 11 | H198: BOGOTÁ, D.C. | I198: Aprobado con subsidio | J198: 8 | K198: PEQUEÑA | M198: COMERCIO AL POR MAYOR Y AL POR MENOR; REPARACIÓN DE VEHÍCULOS AUTOMOTORES Y MOTOCICLETAS | N198: 0 | O198: 1 | P198: 0 | U198: 0 | V198: 5001 | W198: MEDELLÍN | X198: 1 | Y198: 7 | Z198: Jurídica | AA198: 5 | AB198: ANTIOQUIA | AC198: Aprobado con subsidio | AD198: 8 | AE198: MICRO | AF198: 0 | AG198: INFORMACIÓN Y COMUNICACIONES | AH198: 0 | AI198: 1 | AJ198: 0
B199: 11001 | C199: BOGOTÁ, D.C. | D199: 1 | E199: 0 | F199: Jurídica | G199: 11 | H199: BOGOTÁ, D.C. | I199: Aprobado con subsidio | J199: 1 | K199: MICRO | M199: ACTIVIDADES PROFESIONALES, CIENTÍFICAS Y TÉCNICAS | N199: 1 | O199: 0 | P199: 0 | U199: 0 | V199: 5615 | W199: RIONEGRO | X199: 3 | Y199: 16 | Z199: Jurídica | AA199: 5 | AB199: ANTIOQUIA | AC199: Aprobado con subsidio | AD199: 19 | AE199: PEQUEÑA | AF199: 0 | AG199: INFORMACIÓN Y COMUNICACIONES | AH199: 2 | AI199: 1 | AJ199: 0
B200: 54001 | C200: CÚCUTA | D200: 0 | E200: 0 | F200: Jurídica | G200: 54 | H200: NORTE DE SANTANDER | J200: 0 | K200: PEQUEÑA | M200: TRANSPORTE Y ALMACENAMIENTO | N200: 0 | O200: 0 | P200: 0 | U200: 0 | V200: 5001 | W200: MEDELLÍN | X200: 0 | Y200: 0 | Z200: Natural | AA200: 5 | AB200: ANTIOQUIA | AD200: 0 | AE200: MICRO | AF200: 0 | AG200: COMERCIO AL POR MAYOR Y AL POR MENOR; REPARACIÓN DE VEHÍCULOS AUTOMOTORES Y MOTOCICLETAS | AH200: 0 | AI200: 0 | AJ200: 0
... 2050 more rows

Sheet $Base (hidden)
A1: Ciclo de postulación - Nomina | B1: ID-secuencia | C1: Tipo de Persona | D1: Código Departamento - Divipola | E1: Departamento del empleador | F1: Código Ciudad Divipola | G1: Ciudad del empleador | H1: Código CIIU por rama | I1: Sector según ramas de actividad CIIU 4 A.C | J1: Sector según división CIIU 4 A.C. | K1: Estado empleador | L1: Causal de rechazo a nivel aportante | M1: Número de empleados con concepto de conformidad 40 % | N1: Número de empleados con concepto de conformidad 50 % | O1: Número de empleados beneficiados con concepto de no conformidad | P1: Recursos Asociados | Q1: Cantidad de empleados | R1: Tamaño empleador | V1: Ciclo de postulación - Nomina | W1: ID-secuencia | X1: Tipo de Persona | Y1: Código Departamento - Divipola | Z1: Departamento del empleador | AA1: Código Ciudad Divipola | AB1: Ciudad del empleador | AC1: Código CIIU por rama | AD1: Sector según ramas de actividad CIIU 4 A.C | AE1: Sector según división CIIU 4 A.C. | AF1: Estado empleador | AG1: Causal de rechazo a nivel aportante | AH1: Número de empleados con concepto de conformidad 40 % | AI1: Número de empleados con concepto de conformidad 50 % | AJ1: Número de empleados beneficiados con concepto de no conformidad | AK1: Recursos Asociados | AL1: Cantidad de empleados | AM1: Tamaño empleador | AQ1: Orden | AR1: Sector económico | AT1: RecursosDpto | AU1: RecursosMpio | AY1: RecursosDpto | AZ1: RecursosMpio
C2: Jurídica | D2: 11 | E2: BOGOTÁ, D.C. | F2: 11001 | G2: BOGOTÁ, D.C. | I2: INDUSTRIAS MANUFACTURERAS | P2: 0 | V2: =+_xlfn._xlws.FILTER($A$2:$R$400000,$E$2:$E$400000=Visor!M7,"") -> 0 | W2: 0 | X2: Jurídica | Y2: 5 | Z2: ANTIOQUIA | AA2: 5088 | AB2: BELLO | AC2: 0 | AD2: ACTIVIDADES PROFESIONALES, CIENTÍFICAS Y TÉCNICAS | AE2: 0 | AF2: 0 | AG2: 0 | AH2: 0 | AI2: 0 | AJ2: 0 | AK2: 0 | AL2: 0 | AM2: 0 | AQ2: =+_xlfn.RANK.EQ(AT2,$AT$2:$AT$23,1) -> 19 | AR2: =+_xlfn.UNIQUE(Montos!$U$2:$U$396864) -> COMERCIO AL POR MAYOR Y AL POR MENOR; REPARACIÓN DE VEHÍCULOS AUTOMOTORES Y MOTOCICLETAS | AS2: =+VLOOKUP(AR2,$BB$2:$BC$23,2,FALSE) -> Comercio y reparacion de vehiculos | AT2: =+SUMIF(Montos!$U$2:$U$396864,'$Base'!AR2,Montos!$Y$2:$Y$396864)/1000000 -> 213.276009 | AU2: =+SUMIFS(Montos!$Y$2:$Y$396864,Montos!$U$2:$U$396864,'$Base'!AR2,Montos!$R$2:$R$396864,Visor!$M$8)/1000000 -> 163.761451 | AW2: 1 | AX2: =+IF(AY2<>0,IFERROR(VLOOKUP(AW2,$AQ$2:$AU$23,3,0),""),"") ->  | AY2: =+IFERROR(VLOOKUP(AW2,$AQ$2:$AU$23,4,0),"") -> 0 | AZ2: =+IFERROR(VLOOKUP(AW2,$AQ$2:$AU$23,5,0),"") -> 0 | BB2: ACTIVIDADES ARTÍSTICAS, DE ENTRETENIMIENTO Y RECREACIÓN | BC2: Act artísticas y de entretenimiento | BG2: NACIONAL | BH2: =Visor!$M$8 -> MEDELLÍN | BI2: =Visor!$M$7 -> ANTIOQUIA
C3: Jurídica | D3: 5 | E3: ANTIOQUIA | F3: 5088 | G3: BELLO | I3: ACTIVIDADES PROFESIONALES, CIENTÍFICAS Y TÉCNICAS | P3: 0 | V3: 0 | W3: 0 | X3: Jurídica | Y3: 5 | Z3: ANTIOQUIA | AA3: 5001 | AB3: MEDELLÍN | AC3: 0 | AD3: ACTIVIDADES INMOBILIARIAS | AE3: 0 | AF3: 0 | AG3: 0 | AH3: 0 | AI3: 0 | AJ3: 0 | AK3: 0 | AL3: 0 | AM3: 0 | AQ3: =+_xlfn.RANK.EQ(AT3,$AT$2:$AT$23,1) -> 21 | AR3: INDUSTRIAS MANUFACTURERAS | AS3: Industrias manufactureras | AT3: =+SUMIF(Montos!$U$2:$U$396864,'$Base'!AR3,Montos!$Y$2:$Y$396864)/1000000 -> 396.343595 | AU3: =+SUMIFS(Montos!$Y$2:$Y$396864,Montos!$U$2:$U$396864,'$Base'!AR3,Montos!$R$2:$R$396864,Visor!$M$8)/1000000 -> 188.291599 | AW3: 2 | AX3: =+IF(AY3<>0,IFERROR(VLOOKUP(AW3,$AQ$2:$AU$23,3,0),""),"") ->  | BB3: ACTIVIDADES DE ORGANIZACIONES Y ENTIDADES EXTRATERRITORIALES | BC3: Act de organizaciones y entidades extraterritoriales | BH3: =Visor!$H$129/Visor!$H$128 -> 0.4611679711 | BI3: =Visor!$F$129/Visor!$F$128 -> 0.4553224553
C4: Jurídica | D4: 86 | E4: PUTUMAYO | F4: 86568 | G4: PUERTO ASÍS | I4: ACTIVIDADES PROFESIONALES, CIENTÍFICAS Y TÉCNICAS | P4: 227131 | V4: 0 | W4: 0 | X4: Jurídica | Y4: 5 | Z4: ANTIOQUIA | AA4: 5001 | AB4: MEDELLÍN | AC4: 0 | AD4: ACTIVIDADES PROFESIONALES, CIENTÍFICAS Y TÉCNICAS | AE4: 0 | AF4: 0 | AG4: 0 | AH4: 0 | AI4: 0 | AJ4: 0 | AK4: 0 | AL4: 0 | AM4: 0 | AQ4: 16 | AR4: ACTIVIDADES PROFESIONALES, CIENTÍFICAS Y TÉCNICAS | AS4: Act. profecionales cientificas y tecnicas | AT4: =+SUMIF(Montos!$U$2:$U$396864,'$Base'!AR4,Montos!$Y$2:$Y$396864)/1000000 -> 107.205832 | AU4: =+SUMIFS(Montos!$Y$2:$Y$396864,Montos!$U$2:$U$396864,'$Base'!AR4,Montos!$R$2:$R$396864,Visor!$M$8)/1000000 -> 92.669448 | AW4: 3 | BB4: ACTIVIDADES DE ATENCIÓN DE LA SALUD HUMANA Y DE ASISTENCIA SOCIAL | BC4: Act. de atención de la salud humana | BH4: =Visor!$H$130/Visor!$H$128 -> 0.5388320289 | BI4: =Visor!$F$130/Visor!$F$128 -> 0.5446775447
C5: Jurídica | D5: 5 | E5: ANTIOQUIA | F5: 5001 | G5: MEDELLÍN | I5: ACTIVIDADES INMOBILIARIAS | P5: 0 | V5: 0 | W5: 0 | X5: Jurídica | Y5: 5 | Z5: ANTIOQUIA | AA5: 5360 | AB5: ITAGUI | AC5: 0 | AD5: INDUSTRIAS MANUFACTURERAS | AE5: 0 | AF5: 0 | AG5: 0 | AH5: 0 | AI5: 0 | AJ5: 0 | AK5: 0 | AL5: 0 | AM5: 0 | AQ5: 18 | AR5: EDUCACIÓN | AS5: Educación | AT5: =+SUMIF(Montos!$U$2:$U$396864,'$Base'!AR5,Montos!$Y$2:$Y$396864)/1000000 -> 132.871635 | AU5: =+SUMIFS(Montos!$Y$2:$Y$396864,Montos!$U$2:$U$396864,'$Base'!AR5,Montos!$R$2:$R$396864,Visor!$M$8)/1000000 -> 82.675684 | AW5: 4 | BB5: ACTIVIDADES PROFESIONALES, CIENTÍFICAS Y TÉCNICAS | BC5: Act. profecionales cientificas y tecnicas | BH5: =SUM(BH3:BH4) -> 1 | BI5: =SUM(BI3:BI4) -> 1
C6: Jurídica | D6: 5 | E6: ANTIOQUIA | F6: 5001 | G6: MEDELLÍN | I6: ACTIVIDADES PROFESIONALES, CIENTÍFICAS Y TÉCNICAS | P6: 0 | V6: 0 | W6: 0 | X6: Jurídica | Y6: 5 | Z6: ANTIOQUIA | AA6: 5631 | AB6: SABANETA | AC6: 0 | AD6: COMERCIO AL POR MAYOR Y AL POR MENOR; REPARACIÓN DE VEHÍCULOS AUTOMOTORES Y MOTOCICLETAS | AE6: 0 | AF6: 0 | AG6: 0 | AH6: 0 | AI6: 0 | AJ6: 0 | AK6: 0 | AL6: 0 | AM6: 0 | AQ6: 22 | AR6: ACTIVIDADES DE SERVICIOS ADMINISTRATIVOS Y DE APOYO | AS6: Actividades de servicios administrativos | AT6: =+SUMIF(Montos!$U$2:$U$396864,'$Base'!AR6,Montos!$Y$2:$Y$396864)/1000000 -> 1070.014141 | AU6: =+SUMIFS(Montos!$Y$2:$Y$396864,Montos!$U$2:$U$396864,'$Base'!AR6,Montos!$R$2:$R$396864,Visor!$M$8)/1000000 -> 876.952791 | AW6: 5 | BB6: ACTIVIDADES DE LOS HOGARES INDIVIDUALES EN CALIDAD DE EMPLEADORES; ACTIVIDADES NO DIFERENCIADAS DE LOS HOGARES INDIVIDUALES COMO PRODUCTORES DE BIENES Y SERVICIOS PARA USO PROPIO | BC6: Actividades de los hogares individuales
C7: Jurídica | D7: 5 | E7: ANTIOQUIA | F7: 5360 | G7: ITAGUI | I7: INDUSTRIAS MANUFACTURERAS | P7: 0 | V7: 0 | W7: 0 | X7: Jurídica | Y7: 5 | Z7: ANTIOQUIA | AA7: 5002 | AB7: ABEJORRAL | AC7: 0 | AD7: COMERCIO AL POR MAYOR Y AL POR MENOR; REPARACIÓN DE VEHÍCULOS AUTOMOTORES Y MOTOCICLETAS | AE7: 0 | AF7: 0 | AG7: 0 | AH7: 0 | AI7: 0 | AJ7: 0 | AK7: 0 | AL7: 0 | AM7: 0 | AQ7: 15 | AR7: ACTIVIDADES DE ATENCIÓN DE LA SALUD HUMANA Y DE ASISTENCIA SOCIAL | AS7: Act. de atención de la salud humana | AT7: =+SUMIF(Montos!$U$2:$U$396864,'$Base'!AR7,Montos!$Y$2:$Y$396864)/1000000 -> 101.300426 | AU7: =+SUMIFS(Montos!$Y$2:$Y$396864,Montos!$U$2:$U$396864,'$Base'!AR7,Montos!$R$2:$R$396864,Visor!$M$8)/1000000 -> 99.256247 | AW7: 6 | AX7: Actividades inmobiliarias | AY7: 2.952703 | AZ7: 2.498441 | BB7: ACTIVIDADES DE SERVICIOS ADMINISTRATIVOS Y DE APOYO | BC7: Actividades de servicios administrativos
C8: Jurídica | D8: 11 | E8: BOGOTÁ, D.C. | F8: 11001 | G8: BOGOTÁ, D.C. | I8: ACTIVIDADES PROFESIONALES, CIENTÍFICAS Y TÉCNICAS | P8: 0 | V8: 0 | W8: 0 | X8: Jurídica | Y8: 5 | Z8: ANTIOQUIA | AA8: 5001 | AB8: MEDELLÍN | AC8: 0 | AD8: INDUSTRIAS MANUFACTURERAS | AE8: 0 | AF8: 0 | AG8: 0 | AH8: 0 | AI8: 0 | AJ8: 0 | AK8: 0 | AL8: 0 | AM8: 0 | AQ8: 17 | AR8: INFORMACIÓN Y COMUNICACIONES | AS8: Información y comunicaciones | AT8: =+SUMIF(Montos!$U$2:$U$396864,'$Base'!AR8,Montos!$Y$2:$Y$396864)/1000000 -> 119.925168 | AU8: =+SUMIFS(Montos!$Y$2:$Y$396864,Montos!$U$2:$U$396864,'$Base'!AR8,Montos!$R$2:$R$396864,Visor!$M$8)/1000000 -> 107.432963 | AW8: 7 | AX8: Actividades financieras y de seguros | AY8: 8.630978 | AZ8: 8.176716 | BB8: ACTIVIDADES FINANCIERAS Y DE SEGUROS | BC8: Actividades financieras y de seguros
C9: Jurídica | D9: 11 | E9: BOGOTÁ, D.C. | F9: 11001 | G9: BOGOTÁ, D.C. | I9: ACTIVIDADES PROFESIONALES, CIENTÍFICAS Y TÉCNICAS | P9: 0 | V9: 0 | W9: 0 | X9: Jurídica | Y9: 5 | Z9: ANTIOQUIA | AA9: 5001 | AB9: MEDELLÍN | AC9: 0 | AD9: COMERCIO AL POR MAYOR Y AL POR MENOR; REPARACIÓN DE VEHÍCULOS AUTOMOTORES Y MOTOCICLETAS | AE9: 0 | AF9: 0 | AG9: 0 | AH9: 0 | AI9: 0 | AJ9: 0 | AK9: 227131 | AL9: 0 | AM9: 0 | AQ9: 13 | AR9: ALOJAMIENTO Y SERVICIOS DE COMIDA | AS9: Alojamiento y servicios de comida | AT9: =+SUMIF(Montos!$U$2:$U$396864,'$Base'!AR9,Montos!$Y$2:$Y$396864)/1000000 -> 65.640859 | AU9: =+SUMIFS(Montos!$Y$2:$Y$396864,Montos!$U$2:$U$396864,'$Base'!AR9,Montos!$R$2:$R$396864,Visor!$M$8)/1000000 -> 45.4262 | AW9: 8 | AX9: Explotación de minas y canteras | AY9: 15.89917 | AZ9: 15.89917 | BB9: ACTIVIDADES INMOBILIARIAS | BC9: Actividades inmobiliarias
C10: Jurídica | D10: 8 | E10: ATLÁNTICO | F10: 8001 | G10: BARRANQUILLA | I10: CONSTRUCCIÓN | P10: 0 | V10: 0 | W10: 0 | X10: Jurídica | Y10: 5 | Z10: ANTIOQUIA | AA10: 5001 | AB10: MEDELLÍN | AC10: 0 | AD10: ACTIVIDADES PROFESIONALES, CIENTÍFICAS Y TÉCNICAS | AE10: 0 | AF10: 0 | AG10: 0 | AH10: 0 | AI10: 0 | AJ10: 0 | AK10: 0 | AL10: 0 | AM10: 0 | AQ10: 20 | AR10: CONSTRUCCIÓN | AS10: Construcción | AT10: =+SUMIF(Montos!$U$2:$U$396864,'$Base'!AR10,Montos!$Y$2:$Y$396864)/1000000 -> 237.806157 | AU10: =+SUMIFS(Montos!$Y$2:$Y$396864,Montos!$U$2:$U$396864,'$Base'!AR10,Montos!$R$2:$R$396864,Visor!$M$8)/1000000 -> 204.872162 | AW10: 9 | AX10: Act artísticas y de entretenimiento | AY10: 20.668921 | AZ10: 19.987528 | BB10: ADMINISTRACIÓN PÚBLICA Y DEFENSA; PLANES DE SEGURIDAD SOCIAL DE AFILIACIÓN OBLIGATORIA | BC10: Admin. pública y defensa; planes seg. social
C11: Jurídica | D11: 5 | E11: ANTIOQUIA | F11: 5631 | G11: SABANETA | I11: COMERCIO AL POR MAYOR Y AL POR MENOR; REPARACIÓN DE VEHÍCULOS AUTOMOTORES Y MOTOCICLETAS | P11: 0 | V11: 0 | W11: 0 | X11: Jurídica | Y11: 5 | Z11: ANTIOQUIA | AA11: 5001 | AB11: MEDELLÍN | AC11: 0 | AD11: COMERCIO AL POR MAYOR Y AL POR MENOR; REPARACIÓN DE VEHÍCULOS AUTOMOTORES Y MOTOCICLETAS | AE11: 0 | AF11: 0 | AG11: 0 | AH11: 0 | AI11: 0 | AJ11: 0 | AK11: 0 | AL11: 0 | AM11: 0 | AQ11: 14 | AR11: TRANSPORTE Y ALMACENAMIENTO | AS11: Transporte y almacenamiento | AT11: =+SUMIF(Montos!$U$2:$U$396864,'$Base'!AR11,Montos!$Y$2:$Y$396864)/1000000 -> 76.543147 | AU11: =+SUMIFS(Montos!$Y$2:$Y$396864,Montos!$U$2:$U$396864,'$Base'!AR11,Montos!$R$2:$R$396864,Visor!$M$8)/1000000 -> 52.467261 | AW11: 10 | AX11: Distribución de agua; gestión de desechos | AY11: 21.804576 | AZ11: 20.44179 | BB11: AGRICULTURA, GANADERÍA, CAZA, SILVICULTURA Y PESCA | BC11: Agricultura, ganadería, caza
C12: Jurídica | D12: 5 | E12: ANTIOQUIA | F12: 5002 | G12: ABEJORRAL | I12: COMERCIO AL POR MAYOR Y AL POR MENOR; REPARACIÓN DE VEHÍCULOS AUTOMOTORES Y MOTOCICLETAS | P12: 0 | V12: 0 | W12: 0 | X12: Jurídica | Y12: 5 | Z12: ANTIOQUIA | AA12: 5313 | AB12: GRANADA | AC12: 0 | AD12: COMERCIO AL POR MAYOR Y AL POR MENOR; REPARACIÓN DE VEHÍCULOS AUTOMOTORES Y MOTOCICLETAS | AE12: 0 | AF12: 0 | AG12: 0 | AH12: 0 | AI12: 0 | AJ12: 0 | AK12: 227131 | AL12: 0 | AM12: 0 | AQ12: 7 | AR12: ACTIVIDADES FINANCIERAS Y DE SEGUROS | AS12: Actividades financieras y de seguros | AT12: =+SUMIF(Montos!$U$2:$U$396864,'$Base'!AR12,Montos!$Y$2:$Y$396864)/1000000 -> 8.630978 | AU12: =+SUMIFS(Montos!$Y$2:$Y$396864,Montos!$U$2:$U$396864,'$Base'!AR12,Montos!$R$2:$R$396864,Visor!$M$8)/1000000 -> 8.176716 | AW12: 11 | AX12: Otras actividades de servicios | AY12: 26.347196 | AZ12: 24.757279 | BB12: ALOJAMIENTO Y SERVICIOS DE COMIDA | BC12: Alojamiento y servicios de comida
C13: Jurídica | D13: 5 | E13: ANTIOQUIA | F13: 5001 | G13: MEDELLÍN | I13: INDUSTRIAS MANUFACTURERAS | P13: 0 | V13: 0 | W13: 0 | X13: Jurídica | Y13: 5 | Z13: ANTIOQUIA | AA13: 5001 | AB13: MEDELLÍN | AC13: 0 | AD13: INDUSTRIAS MANUFACTURERAS | AE13: 0 | AF13: 0 | AG13: 0 | AH13: 0 | AI13: 0 | AJ13: 0 | AK13: 0 | AL13: 0 | AM13: 0 | AQ13: 6 | AR13: ACTIVIDADES INMOBILIARIAS | AS13: Actividades inmobiliarias | AT13: =+SUMIF(Montos!$U$2:$U$396864,'$Base'!AR13,Montos!$Y$2:$Y$396864)/1000000 -> 2.952703 | AU13: =+SUMIFS(Montos!$Y$2:$Y$396864,Montos!$U$2:$U$396864,'$Base'!AR13,Montos!$R$2:$R$396864,Visor!$M$8)/1000000 -> 2.498441 | AW13: 12 | AX13: Agricultura, ganadería, caza | AY13: 64.732335 | AZ13: 25.211541 | BB13: COMERCIO AL POR MAYOR Y AL POR MENOR; REPARACIÓN DE VEHÍCULOS AUTOMOTORES Y MOTOCICLETAS | BC13: Comercio y reparacion de vehiculos
C14: Jurídica | D14: 95 | E14: GUAVIARE | F14: 95001 | G14: SAN JOSÉ DEL GUAVIARE | I14: AGRICULTURA, GANADERÍA, CAZA, SILVICULTURA Y PESCA | P14: 0 | V14: 0 | W14: 0 | X14: Jurídica | Y14: 5 | Z14: ANTIOQUIA | AA14: 5212 | AB14: COPACABANA | AC14: 0 | AD14: INDUSTRIAS MANUFACTURERAS | AE14: 0 | AF14: 0 | AG14: 0 | AH14: 0 | AI14: 0 | AJ14: 0 | AK14: 681393 | AL14: 0 | AM14: 0 | AQ14: 10 | AR14: DISTRIBUCIÓN DE AGUA; EVACUACIÓN Y TRATAMIENTO DE AGUAS RESIDUALES, GESTIÓN DE DESECHOS Y ACTIVIDADES DE SANEAMIENTO AMBIENTAL | AS14: Distribución de agua; gestión de desechos | AT14: =+SUMIF(Montos!$U$2:$U$396864,'$Base'!AR14,Montos!$Y$2:$Y$396864)/1000000 -> 21.804576 | AU14: =+SUMIFS(Montos!$Y$2:$Y$396864,Montos!$U$2:$U$396864,'$Base'!AR14,Montos!$R$2:$R$396864,Visor!$M$8)/1000000 -> 20.44179 | AW14: 13 | AX14: Alojamiento y servicios de comida | AY14: 65.640859 | AZ14: 45.4262 | BB14: CONSTRUCCIÓN | BC14: Construcción
C15: Jurídica | D15: 5 | E15: ANTIOQUIA | F15: 5001 | G15: MEDELLÍN | I15: COMERCIO AL POR MAYOR Y AL POR MENOR; REPARACIÓN DE VEHÍCULOS AUTOMOTORES Y MOTOCICLETAS | P15: 227131 | V15: 0 | W15: 0 | X15: Jurídica | Y15: 5 | Z15: ANTIOQUIA | AA15: 5631 | AB15: SABANETA | AC15: 0 | AD15: CONSTRUCCIÓN | AE15: 0 | AF15: 0 | AG15: 0 | AH15: 0 | AI15: 0 | AJ15: 0 | AK15: 0 | AL15: 0 | AM15: 0 | AQ15: 12 | AR15: AGRICULTURA, GANADERÍA, CAZA, SILVICULTURA Y PESCA | AS15: Agricultura, ganadería, caza | AT15: =+SUMIF(Montos!$U$2:$U$396864,'$Base'!AR15,Montos!$Y$2:$Y$396864)/1000000 -> 64.732335 | AU15: =+SUMIFS(Montos!$Y$2:$Y$396864,Montos!$U$2:$U$396864,'$Base'!AR15,Montos!$R$2:$R$396864,Visor!$M$8)/1000000 -> 25.211541 | AW15: 14 | AX15: Transporte y almacenamiento | AY15: 76.543147 | AZ15: 52.467261 | BB15: DISTRIBUCIÓN DE AGUA; EVACUACIÓN Y TRATAMIENTO DE AGUAS RESIDUALES, GESTIÓN DE DESECHOS Y ACTIVIDADES DE SANEAMIENTO AMBIENTAL | BC15: Distribución de agua; gestión de desechos
C16: Jurídica | D16: 52 | E16: NARIÑO | F16: 52001 | G16: PASTO | I16: CONSTRUCCIÓN | P16: 0 | V16: 0 | W16: 0 | X16: Jurídica | Y16: 5 | Z16: ANTIOQUIA | AA16: 5001 | AB16: MEDELLÍN | AC16: 0 | AD16: ACTIVIDADES DE ATENCIÓN DE LA SALUD HUMANA Y DE ASISTENCIA SOCIAL | AE16: 0 | AF16: 0 | AG16: 0 | AH16: 0 | AI16: 0 | AJ16: 0 | AK16: 0 | AL16: 0 | AM16: 0 | AQ16: 11 | AR16: OTRAS ACTIVIDADES DE SERVICIOS | AS16: Otras actividades de servicios | AT16: =+SUMIF(Montos!$U$2:$U$396864,'$Base'!AR16,Montos!$Y$2:$Y$396864)/1000000 -> 26.347196 | AU16: =+SUMIFS(Montos!$Y$2:$Y$396864,Montos!$U$2:$U$396864,'$Base'!AR16,Montos!$R$2:$R$396864,Visor!$M$8)/1000000 -> 24.757279 | AW16: 15 | AX16: Act. de atención de la salud humana | AY16: 101.300426 | AZ16: 99.256247 | BB16: EDUCACIÓN | BC16: Educación
C17: Jurídica | D17: 76 | E17: VALLE DEL CAUCA | F17: 76001 | G17: CALI | I17: COMERCIO AL POR MAYOR Y AL POR MENOR; REPARACIÓN DE VEHÍCULOS AUTOMOTORES Y MOTOCICLETAS | P17: 227131 | V17: 0 | W17: 0 | X17: Jurídica | Y17: 5 | Z17: ANTIOQUIA | AA17: 5001 | AB17: MEDELLÍN | AC17: 0 | AD17: ACTIVIDADES PROFESIONALES, CIENTÍFICAS Y TÉCNICAS | AE17: 0 | AF17: 0 | AG17: 0 | AH17: 0 | AI17: 0 | AJ17: 0 | AK17: 681393 | AL17: 0 | AM17: 0 | AQ17: 9 | AR17: ACTIVIDADES ARTÍSTICAS, DE ENTRETENIMIENTO Y RECREACIÓN | AS17: Act artísticas y de entretenimiento | AT17: =+SUMIF(Montos!$U$2:$U$396864,'$Base'!AR17,Montos!$Y$2:$Y$396864)/1000000 -> 20.668921 | AU17: =+SUMIFS(Montos!$Y$2:$Y$396864,Montos!$U$2:$U$396864,'$Base'!AR17,Montos!$R$2:$R$396864,Visor!$M$8)/1000000 -> 19.987528 | AW17: 16 | AX17: Act. profecionales cientificas y tecnicas | AY17: 107.205832 | AZ17: 92.669448 | BB17: EXPLOTACIÓN DE MINAS Y CANTERAS | BC17: Explotación de minas y canteras
C18: Jurídica | D18: 13 | E18: BOLÍVAR | F18: 13001 | G18: CARTAGENA | I18: ACTIVIDADES PROFESIONALES, CIENTÍFICAS Y TÉCNICAS | P18: 0 | V18: 0 | W18: 0 | X18: Jurídica | Y18: 5 | Z18: ANTIOQUIA | AA18: 5001 | AB18: MEDELLÍN | AC18: 0 | AD18: COMERCIO AL POR MAYOR Y AL POR MENOR; REPARACIÓN DE VEHÍCULOS AUTOMOTORES Y MOTOCICLETAS | AE18: 0 | AF18: 0 | AG18: 0 | AH18: 0 | AI18: 0 | AJ18: 0 | AK18: 227131 | AL18: 0 | AM18: 0 | AQ18: 8 | AR18: EXPLOTACIÓN DE MINAS Y CANTERAS | AS18: Explotación de minas y canteras | AT18: =+SUMIF(Montos!$U$2:$U$396864,'$Base'!AR18,Montos!$Y$2:$Y$396864)/1000000 -> 15.89917 | AU18: =+SUMIFS(Montos!$Y$2:$Y$396864,Montos!$U$2:$U$396864,'$Base'!AR18,Montos!$R$2:$R$396864,Visor!$M$8)/1000000 -> 15.89917 | AW18: 17 | AX18: Información y comunicaciones | AY18: 119.925168 | AZ18: 107.432963 | BB18: INDUSTRIAS MANUFACTURERAS | BC18: Industrias manufactureras
C19: Jurídica | D19: 5 | E19: ANTIOQUIA | F19: 5001 | G19: MEDELLÍN | I19: ACTIVIDADES PROFESIONALES, CIENTÍFICAS Y TÉCNICAS | P19: 0 | V19: 0 | W19: 0 | X19: Jurídica | Y19: 5 | Z19: ANTIOQUIA | AA19: 5001 | AB19: MEDELLÍN | AC19: 0 | AD19: ACTIVIDADES PROFESIONALES, CIENTÍFICAS Y TÉCNICAS | AE19: 0 | AF19: 0 | AG19: 0 | AH19: 0 | AI19: 0 | AJ19: 0 | AK19: 0 | AL19: 0 | AM19: 0 | AQ19: 1 | AR19: 0 | AT19: =+SUMIF(Montos!$U$2:$U$396864,'$Base'!AR19,Montos!$Y$2:$Y$396864)/1000000 -> 0 | AU19: =+SUMIFS(Montos!$Y$2:$Y$396864,Montos!$U$2:$U$396864,'$Base'!AR19,Montos!$R$2:$R$396864,Visor!$M$8)/1000000 -> 0 | AW19: 18 | AX19: Educación | AY19: 132.871635 | AZ19: 82.675684 | BB19: INFORMACIÓN Y COMUNICACIONES | BC19: Información y comunicaciones
C20: Jurídica | D20: 5 | E20: ANTIOQUIA | F20: 5001 | G20: MEDELLÍN | I20: COMERCIO AL POR MAYOR Y AL POR MENOR; REPARACIÓN DE VEHÍCULOS AUTOMOTORES Y MOTOCICLETAS | P20: 0 | V20: 0 | W20: 0 | X20: Jurídica | Y20: 5 | Z20: ANTIOQUIA | AA20: 5001 | AB20: MEDELLÍN | AC20: 0 | AD20: EDUCACIÓN | AE20: 0 | AF20: 0 | AG20: 0 | AH20: 0 | AI20: 0 | AJ20: 0 | AK20: 34523912 | AL20: 0 | AM20: 0 | AQ20: 1 | AT20: =+SUMIF(Montos!$U$2:$U$396864,'$Base'!AR20,Montos!$Y$2:$Y$396864)/1000000 -> 0 | AU20: =+SUMIFS(Montos!$Y$2:$Y$396864,Montos!$U$2:$U$396864,'$Base'!AR20,Montos!$R$2:$R$396864,Visor!$M$8)/1000000 -> 0 | AW20: 19 | AX20: Comercio y reparacion de vehiculos | AY20: 213.276009 | AZ20: 163.761451 | BB20: OTRAS | BC20: Otras
C21: Jurídica | D21: 5 | E21: ANTIOQUIA | F21: 5313 | G21: GRANADA | I21: COMERCIO AL POR MAYOR Y AL POR MENOR; REPARACIÓN DE VEHÍCULOS AUTOMOTORES Y MOTOCICLETAS | P21: 227131 | V21: 0 | W21: 0 | X21: Jurídica | Y21: 5 | Z21: ANTIOQUIA | AA21: 5266 | AB21: ENVIGADO | AC21: 0 | AD21: COMERCIO AL POR MAYOR Y AL POR MENOR; REPARACIÓN DE VEHÍCULOS AUTOMOTORES Y MOTOCICLETAS | AE21: 0 | AF21: 0 | AG21: 0 | AH21: 0 | AI21: 0 | AJ21: 0 | AK21: 227131 | AL21: 0 | AM21: 0 | AQ21: 1 | AT21: =+SUMIF(Montos!$U$2:$U$396864,'$Base'!AR21,Montos!$Y$2:$Y$396864)/1000000 -> 0 | AU21: =+SUMIFS(Montos!$Y$2:$Y$396864,Montos!$U$2:$U$396864,'$Base'!AR21,Montos!$R$2:$R$396864,Visor!$M$8)/1000000 -> 0 | AW21: 20 | AX21: Construcción | AY21: 237.806157 | AZ21: 204.872162 | BB21: OTRAS ACTIVIDADES DE SERVICIOS | BC21: Otras actividades de servicios
C22: Jurídica | D22: 5 | E22: ANTIOQUIA | F22: 5001 | G22: MEDELLÍN | I22: INDUSTRIAS MANUFACTURERAS | P22: 0 | V22: 0 | W22: 0 | X22: Jurídica | Y22: 5 | Z22: ANTIOQUIA | AA22: 5615 | AB22: RIONEGRO | AC22: 0 | AD22: ACTIVIDADES DE SERVICIOS ADMINISTRATIVOS Y DE APOYO | AE22: 0 | AF22: 0 | AG22: 0 | AH22: 0 | AI22: 0 | AJ22: 0 | AK22: 454262 | AL22: 0 | AM22: 0 | AQ22: 1 | AT22: =+SUMIF(Montos!$U$2:$U$396864,'$Base'!AR22,Montos!$Y$2:$Y$396864)/1000000 -> 0 | AU22: =+SUMIFS(Montos!$Y$2:$Y$396864,Montos!$U$2:$U$396864,'$Base'!AR22,Montos!$R$2:$R$396864,Visor!$M$8)/1000000 -> 0 | AW22: 21 | AX22: Industrias manufactureras | AY22: 396.343595 | AZ22: 188.291599 | BB22: SUMINISTRO DE ELECTRICIDAD, GAS, VAPOR Y AIRE ACONDICIONADO | BC22: Suministro de electricidad, gas y vapor
C23: Jurídica | D23: 5 | E23: ANTIOQUIA | F23: 5212 | G23: COPACABANA | I23: INDUSTRIAS MANUFACTURERAS | P23: 681393 | V23: 0 | W23: 0 | X23: Jurídica | Y23: 5 | Z23: ANTIOQUIA | AA23: 5631 | AB23: SABANETA | AC23: 0 | AD23: ACTIVIDADES DE ATENCIÓN DE LA SALUD HUMANA Y DE ASISTENCIA SOCIAL | AE23: 0 | AF23: 0 | AG23: 0 | AH23: 0 | AI23: 0 | AJ23: 0 | AK23: 454262 | AL23: 0 | AM23: 0 | AQ23: 1 | AT23: =+SUMIF(Montos!$U$2:$U$396864,'$Base'!AR23,Montos!$Y$2:$Y$396864)/1000000 -> 0 | AU23: =+SUMIFS(Montos!$Y$2:$Y$396864,Montos!$U$2:$U$396864,'$Base'!AR23,Montos!$R$2:$R$396864,Visor!$M$8)/1000000 -> 0 | AW23: 22 | AX23: Actividades de servicios administrativos | AY23: 1070.014141 | AZ23: =+IFERROR(VLOOKUP(AW23,$AQ$2:$AU$23,5,0),"") -> 876.952791 | BB23: TRANSPORTE Y ALMACENAMIENTO | BC23: Transporte y almacenamiento
C24: Jurídica | D24: 68 | E24: SANTANDER | F24: 68001 | G24: BUCARAMANGA | I24: ACTIVIDADES DE SERVICIOS ADMINISTRATIVOS Y DE APOYO | P24: 71092003 | V24: 0 | W24: 0 | X24: Jurídica | Y24: 5 | Z24: ANTIOQUIA | AA24: 5001 | AB24: MEDELLÍN | AC24: 0 | AD24: CONSTRUCCIÓN | AE24: 0 | AF24: 0 | AG24: 0 | AH24: 0 | AI24: 0 | AJ24: 0 | AK24: 0 | AL24: 0 | AM24: 0
C25: Jurídica | D25: 68 | E25: SANTANDER | F25: 68001 | G25: BUCARAMANGA | I25: ACTIVIDADES DE SERVICIOS ADMINISTRATIVOS Y DE APOYO | P25: 0 | V25: 0 | W25: 0 | X25: Natural | Y25: 5 | Z25: ANTIOQUIA | AA25: 5001 | AB25: MEDELLÍN | AC25: 0 | AD25: EDUCACIÓN | AE25: 0 | AF25: 0 | AG25: 0 | AH25: 0 | AI25: 0 | AJ25: 0 | AK25: 0 | AL25: 0 | AM25: 0
C26: Jurídica | D26: 5 | E26: ANTIOQUIA | F26: 5631 | G26: SABANETA | I26: CONSTRUCCIÓN | P26: 0 | V26: 0 | W26: 0 | X26: Jurídica | Y26: 5 | Z26: ANTIOQUIA | AA26: 5380 | AB26: LA ESTRELLA | AC26: 0 | AD26: INDUSTRIAS MANUFACTURERAS | AE26: 0 | AF26: 0 | AG26: 0 | AH26: 0 | AI26: 0 | AJ26: 0 | AK26: 227131 | AL26: 0 | AM26: 0
C27: Jurídica | D27: 23 | E27: CÓRDOBA | F27: 23001 | G27: MONTERÍA | I27: ACTIVIDADES DE SERVICIOS ADMINISTRATIVOS Y DE APOYO | P27: 8630978 | V27: 0 | W27: 0 | X27: Natural | Y27: 5 | Z27: ANTIOQUIA | AA27: 5001 | AB27: MEDELLÍN | AC27: 0 | AD27: COMERCIO AL POR MAYOR Y AL POR MENOR; REPARACIÓN DE VEHÍCULOS AUTOMOTORES Y MOTOCICLETAS | AE27: 0 | AF27: 0 | AG27: 0 | AH27: 0 | AI27: 0 | AJ27: 0 | AK27: 0 | AL27: 0 | AM27: 0
C28: Jurídica | D28: 73 | E28: TOLIMA | F28: 73001 | G28: IBAGUÉ | I28: EDUCACIÓN | P28: 0 | V28: 0 | W28: 0 | X28: Jurídica | Y28: 5 | Z28: ANTIOQUIA | AA28: 5360 | AB28: ITAGUI | AC28: 0 | AD28: ACTIVIDADES DE SERVICIOS ADMINISTRATIVOS Y DE APOYO | AE28: 0 | AF28: 0 | AG28: 0 | AH28: 0 | AI28: 0 | AJ28: 0 | AK28: 227131 | AL28: 0 | AM28: 0
C29: Jurídica | D29: 5 | E29: ANTIOQUIA | F29: 5001 | G29: MEDELLÍN | I29: ACTIVIDADES DE ATENCIÓN DE LA SALUD HUMANA Y DE ASISTENCIA SOCIAL | P29: 0 | V29: 0 | W29: 0 | X29: Jurídica | Y29: 5 | Z29: ANTIOQUIA | AA29: 5212 | AB29: COPACABANA | AC29: 0 | AD29: INDUSTRIAS MANUFACTURERAS | AE29: 0 | AF29: 0 | AG29: 0 | AH29: 0 | AI29: 0 | AJ29: 0 | AK29: 0 | AL29: 0 | AM29: 0
C30: Jurídica | D30: 73 | E30: TOLIMA | F30: 73001 | G30: IBAGUÉ | I30: COMERCIO AL POR MAYOR Y AL POR MENOR; REPARACIÓN DE VEHÍCULOS AUTOMOTORES Y MOTOCICLETAS | P30: 0 | V30: 0 | W30: 0 | X30: Jurídica | Y30: 5 | Z30: ANTIOQUIA | AA30: 5001 | AB30: MEDELLÍN | AC30: 0 | AD30: ACTIVIDADES PROFESIONALES, CIENTÍFICAS Y TÉCNICAS | AE30: 0 | AF30: 0 | AG30: 0 | AH30: 0 | AI30: 0 | AJ30: 0 | AK30: 2271310 | AL30: 0 | AM30: 0
C31: Jurídica | D31: 25 | E31: CUNDINAMARCA | F31: 25126 | G31: CAJICÁ | I31: TRANSPORTE Y ALMACENAMIENTO | P31: 0 | V31: 0 | W31: 0 | X31: Jurídica | Y31: 5 | Z31: ANTIOQUIA | AA31: 5001 | AB31: MEDELLÍN | AC31: 0 | AD31: INDUSTRIAS MANUFACTURERAS | AE31: 0 | AF31: 0 | AG31: 0 | AH31: 0 | AI31: 0 | AJ31: 0 | AK31: 227131 | AL31: 0 | AM31: 0
C32: Jurídica | D32: 8 | E32: ATLÁNTICO | F32: 8001 | G32: BARRANQUILLA | I32: ACTIVIDADES INMOBILIARIAS | P32: 0 | V32: 0 | W32: 0 | X32: Jurídica | Y32: 5 | Z32: ANTIOQUIA | AA32: 5360 | AB32: ITAGUI | AC32: 0 | AD32: ACTIVIDADES DE SERVICIOS ADMINISTRATIVOS Y DE APOYO | AE32: 0 | AF32: 0 | AG32: 0 | AH32: 0 | AI32: 0 | AJ32: 0 | AK32: 454262 | AL32: 0 | AM32: 0
C33: Jurídica | D33: 66 | E33: RISARALDA | F33: 66001 | G33: PEREIRA | I33: ALOJAMIENTO Y SERVICIOS DE COMIDA | P33: 0 | V33: 0 | W33: 0 | X33: Jurídica | Y33: 5 | Z33: ANTIOQUIA | AA33: 5001 | AB33: MEDELLÍN | AC33: 0 | AD33: INDUSTRIAS MANUFACTURERAS | AE33: 0 | AF33: 0 | AG33: 0 | AH33: 0 | AI33: 0 | AJ33: 0 | AK33: 0 | AL33: 0 | AM33: 0
C34: Jurídica | D34: 5 | E34: ANTIOQUIA | F34: 5001 | G34: MEDELLÍN | I34: ACTIVIDADES PROFESIONALES, CIENTÍFICAS Y TÉCNICAS | P34: 681393 | V34: 0 | W34: 0 | X34: Jurídica | Y34: 5 | Z34: ANTIOQUIA | AA34: 5360 | AB34: ITAGUI | AC34: 0 | AD34: INDUSTRIAS MANUFACTURERAS | AE34: 0 | AF34: 0 | AG34: 0 | AH34: 0 | AI34: 0 | AJ34: 0 | AK34: 908524 | AL34: 0 | AM34: 0
C35: Jurídica | D35: 25 | E35: CUNDINAMARCA | F35: 25175 | G35: CHÍA | I35: COMERCIO AL POR MAYOR Y AL POR MENOR; REPARACIÓN DE VEHÍCULOS AUTOMOTORES Y MOTOCICLETAS | P35: 1817048 | V35: 0 | W35: 0 | X35: Jurídica | Y35: 5 | Z35: ANTIOQUIA | AA35: 5001 | AB35: MEDELLÍN | AC35: 0 | AD35: COMERCIO AL POR MAYOR Y AL POR MENOR; REPARACIÓN DE VEHÍCULOS AUTOMOTORES Y MOTOCICLETAS | AE35: 0 | AF35: 0 | AG35: 0 | AH35: 0 | AI35: 0 | AJ35: 0 | AK35: 227131 | AL35: 0 | AM35: 0
C36: Jurídica | D36: 5 | E36: ANTIOQUIA | F36: 5001 | G36: MEDELLÍN | I36: COMERCIO AL POR MAYOR Y AL POR MENOR; REPARACIÓN DE VEHÍCULOS AUTOMOTORES Y MOTOCICLETAS | P36: 227131 | V36: 0 | W36: 0 | X36: Jurídica | Y36: 5 | Z36: ANTIOQUIA | AA36: 5001 | AB36: MEDELLÍN | AC36: 0 | AD36: ACTIVIDADES DE ATENCIÓN DE LA SALUD HUMANA Y DE ASISTENCIA SOCIAL | AE36: 0 | AF36: 0 | AG36: 0 | AH36: 0 | AI36: 0 | AJ36: 0 | AK36: 227131 | AL36: 0 | AM36: 0
C37: Jurídica | D37: 5 | E37: ANTIOQUIA | F37: 5001 | G37: MEDELLÍN | I37: ACTIVIDADES PROFESIONALES, CIENTÍFICAS Y TÉCNICAS | P37: 0 | V37: 0 | W37: 0 | X37: Natural | Y37: 5 | Z37: ANTIOQUIA | AA37: 5001 | AB37: MEDELLÍN | AC37: 0 | AD37: INDUSTRIAS MANUFACTURERAS | AE37: 0 | AF37: 0 | AG37: 0 | AH37: 0 | AI37: 0 | AJ37: 0 | AK37: 0 | AL37: 0 | AM37: 0
C38: Jurídica | D38: 11 | E38: BOGOTÁ, D.C. | F38: 11001 | G38: BOGOTÁ, D.C. | I38: INDUSTRIAS MANUFACTURERAS | P38: 908524 | V38: 0 | W38: 0 | X38: Jurídica | Y38: 5 | Z38: ANTIOQUIA | AA38: 5001 | AB38: MEDELLÍN | AC38: 0 | AD38: INDUSTRIAS MANUFACTURERAS | AE38: 0 | AF38: 0 | AG38: 0 | AH38: 0 | AI38: 0 | AJ38: 0 | AK38: 0 | AL38: 0 | AM38: 0
C39: Jurídica | D39: 15 | E39: BOYACÁ | F39: 15238 | G39: DUITAMA | I39: COMERCIO AL POR MAYOR Y AL POR MENOR; REPARACIÓN DE VEHÍCULOS AUTOMOTORES Y MOTOCICLETAS | P39: 227131 | V39: 0 | W39: 0 | X39: Jurídica | Y39: 5 | Z39: ANTIOQUIA | AA39: 5045 | AB39: APARTADÓ | AC39: 0 | AD39: COMERCIO AL POR MAYOR Y AL POR MENOR; REPARACIÓN DE VEHÍCULOS AUTOMOTORES Y MOTOCICLETAS | AE39: 0 | AF39: 0 | AG39: 0 | AH39: 0 | AI39: 0 | AJ39: 0 | AK39: 0 | AL39: 0 | AM39: 0
C40: Jurídica | D40: 5 | E40: ANTIOQUIA | F40: 5001 | G40: MEDELLÍN | I40: EDUCACIÓN | P40: 34523912 | V40: 0 | W40: 0 | X40: Jurídica | Y40: 5 | Z40: ANTIOQUIA | AA40: 5266 | AB40: ENVIGADO | AC40: 0 | AD40: ACTIVIDADES PROFESIONALES, CIENTÍFICAS Y TÉCNICAS | AE40: 0 | AF40: 0 | AG40: 0 | AH40: 0 | AI40: 0 | AJ40: 0 | AK40: 0 | AL40: 0 | AM40: 0
C41: Jurídica | D41: 11 | E41: BOGOTÁ, D.C. | F41: 11001 | G41: BOGOTÁ, D.C. | I41: ACTIVIDADES DE SERVICIOS ADMINISTRATIVOS Y DE APOYO | P41: 0 | V41: 0 | W41: 0 | X41: Jurídica | Y41: 5 | Z41: ANTIOQUIA | AA41: 5001 | AB41: MEDELLÍN | AC41: 0 | AD41: INDUSTRIAS MANUFACTURERAS | AE41: 0 | AF41: 0 | AG41: 0 | AH41: 0 | AI41: 0 | AJ41: 0 | AK41: 227131 | AL41: 0 | AM41: 0
C42: Jurídica | D42: 76 | E42: VALLE DEL CAUCA | F42: 76001 | G42: CALI | I42: COMERCIO AL POR MAYOR Y AL POR MENOR; REPARACIÓN DE VEHÍCULOS AUTOMOTORES Y MOTOCICLETAS | P42: 0 | V42: 0 | W42: 0 | X42: Jurídica | Y42: 5 | Z42: ANTIOQUIA | AA42: 5615 | AB42: RIONEGRO | AC42: 0 | AD42: ACTIVIDADES DE ATENCIÓN DE LA SALUD HUMANA Y DE ASISTENCIA SOCIAL | AE42: 0 | AF42: 0 | AG42: 0 | AH42: 0 | AI42: 0 | AJ42: 0 | AK42: 0 | AL42: 0 | AM42: 0
C43: Jurídica | D43: 8 | E43: ATLÁNTICO | F43: 8001 | G43: BARRANQUILLA | I43: INDUSTRIAS MANUFACTURERAS | P43: 227131 | V43: 0 | W43: 0 | X43: Jurídica | Y43: 5 | Z43: ANTIOQUIA | AA43: 5001 | AB43: MEDELLÍN | AC43: 0 | AD43: INFORMACIÓN Y COMUNICACIONES | AE43: 0 | AF43: 0 | AG43: 0 | AH43: 0 | AI43: 0 | AJ43: 0 | AK43: 227131 | AL43: 0 | AM43: 0
C44: Jurídica | D44: 11 | E44: BOGOTÁ, D.C. | F44: 11001 | G44: BOGOTÁ, D.C. | I44: ACTIVIDADES DE ATENCIÓN DE LA SALUD HUMANA Y DE ASISTENCIA SOCIAL | P44: 0 | V44: 0 | W44: 0 | X44: Jurídica | Y44: 5 | Z44: ANTIOQUIA | AA44: 5001 | AB44: MEDELLÍN | AC44: 0 | AD44: COMERCIO AL POR MAYOR Y AL POR MENOR; REPARACIÓN DE VEHÍCULOS AUTOMOTORES Y MOTOCICLETAS | AE44: 0 | AF44: 0 | AG44: 0 | AH44: 0 | AI44: 0 | AJ44: 0 | AK44: 227131 | AL44: 0 | AM44: 0
C45: Jurídica | D45: 5 | E45: ANTIOQUIA | F45: 5266 | G45: ENVIGADO | I45: COMERCIO AL POR MAYOR Y AL POR MENOR; REPARACIÓN DE VEHÍCULOS AUTOMOTORES Y MOTOCICLETAS | P45: 227131 | V45: 0 | W45: 0 | X45: Jurídica | Y45: 5 | Z45: ANTIOQUIA | AA45: 5001 | AB45: MEDELLÍN | AC45: 0 | AD45: ACTIVIDADES DE SERVICIOS ADMINISTRATIVOS Y DE APOYO | AE45: 0 | AF45: 0 | AG45: 0 | AH45: 0 | AI45: 0 | AJ45: 0 | AK45: 1135655 | AL45: 0 | AM45: 0
C46: Jurídica | D46: 5 | E46: ANTIOQUIA | F46: 5615 | G46: RIONEGRO | I46: ACTIVIDADES DE SERVICIOS ADMINISTRATIVOS Y DE APOYO | P46: 454262 | V46: 0 | W46: 0 | X46: Jurídica | Y46: 5 | Z46: ANTIOQUIA | AA46: 5266 | AB46: ENVIGADO | AC46: 0 | AD46: INDUSTRIAS MANUFACTURERAS | AE46: 0 | AF46: 0 | AG46: 0 | AH46: 0 | AI46: 0 | AJ46: 0 | AK46: 0 | AL46: 0 | AM46: 0
C47: Jurídica | D47: 5 | E47: ANTIOQUIA | F47: 5631 | G47: SABANETA | I47: ACTIVIDADES DE ATENCIÓN DE LA SALUD HUMANA Y DE ASISTENCIA SOCIAL | P47: 454262 | V47: 0 | W47: 0 | X47: Jurídica | Y47: 5 | Z47: ANTIOQUIA | AA47: 5360 | AB47: ITAGUI | AC47: 0 | AD47: COMERCIO AL POR MAYOR Y AL POR MENOR; REPARACIÓN DE VEHÍCULOS AUTOMOTORES Y MOTOCICLETAS | AE47: 0 | AF47: 0 | AG47: 0 | AH47: 0 | AI47: 0 | AJ47: 0 | AK47: 0 | AL47: 0 | AM47: 0
C48: Jurídica | D48: 50 | E48: META | F48: 50001 | G48: VILLAVICENCIO | I48: TRANSPORTE Y ALMACENAMIENTO | P48: 0 | V48: 0 | W48: 0 | X48: Jurídica | Y48: 5 | Z48: ANTIOQUIA | AA48: 5001 | AB48: MEDELLÍN | AC48: 0 | AD48: ACTIVIDADES DE SERVICIOS ADMINISTRATIVOS Y DE APOYO | AE48: 0 | AF48: 0 | AG48: 0 | AH48: 0 | AI48: 0 | AJ48: 0 | AK48: 0 | AL48: 0 | AM48: 0
C49: Jurídica | D49: 5 | E49: ANTIOQUIA | F49: 5001 | G49: MEDELLÍN | I49: CONSTRUCCIÓN | P49: 0 | V49: 0 | W49: 0 | X49: Jurídica | Y49: 5 | Z49: ANTIOQUIA | AA49: 5001 | AB49: MEDELLÍN | AC49: 0 | AD49: ACTIVIDADES DE SERVICIOS ADMINISTRATIVOS Y DE APOYO | AE49: 0 | AF49: 0 | AG49: 0 | AH49: 0 | AI49: 0 | AJ49: 0 | AK49: 47016117 | AL49: 0 | AM49: 0
C50: Natural | D50: 5 | E50: ANTIOQUIA | F50: 5001 | G50: MEDELLÍN | I50: EDUCACIÓN | P50: 0 | V50: 0 | W50: 0 | X50: Jurídica | Y50: 5 | Z50: ANTIOQUIA | AA50: 5001 | AB50: MEDELLÍN | AC50: 0 | AD50: COMERCIO AL POR MAYOR Y AL POR MENOR; REPARACIÓN DE VEHÍCULOS AUTOMOTORES Y MOTOCICLETAS | AE50: 0 | AF50: 0 | AG50: 0 | AH50: 0 | AI50: 0 | AJ50: 0 | AK50: 227131 | AL50: 0 | AM50: 0
C51: Jurídica | D51: 5 | E51: ANTIOQUIA | F51: 5380 | G51: LA ESTRELLA | I51: INDUSTRIAS MANUFACTURERAS | P51: 227131 | V51: 0 | W51: 0 | X51: Jurídica | Y51: 5 | Z51: ANTIOQUIA | AA51: 5360 | AB51: ITAGUI | AC51: 0 | AD51: INDUSTRIAS MANUFACTURERAS | AE51: 0 | AF51: 0 | AG51: 0 | AH51: 0 | AI51: 0 | AJ51: 0 | AK51: 8858109 | AL51: 0 | AM51: 0
C52: Natural | D52: 5 | E52: ANTIOQUIA | F52: 5001 | G52: MEDELLÍN | I52: COMERCIO AL POR MAYOR Y AL POR MENOR; REPARACIÓN DE VEHÍCULOS AUTOMOTORES Y MOTOCICLETAS | P52: 0 | V52: 0 | W52: 0 | X52: Jurídica | Y52: 5 | Z52: ANTIOQUIA | AA52: 5615 | AB52: RIONEGRO | AC52: 0 | AD52: CONSTRUCCIÓN | AE52: 0 | AF52: 0 | AG52: 0 | AH52: 0 | AI52: 0 | AJ52: 0 | AK52: 0 | AL52: 0 | AM52: 0
C53: Jurídica | D53: 54 | E53: NORTE DE SANTANDER | F53: 54001 | G53: CÚCUTA | I53: ACTIVIDADES PROFESIONALES, CIENTÍFICAS Y TÉCNICAS | P53: 681393 | V53: 0 | W53: 0 | X53: Jurídica | Y53: 5 | Z53: ANTIOQUIA | AA53: 5266 | AB53: ENVIGADO | AC53: 0 | AD53: ACTIVIDADES DE SERVICIOS ADMINISTRATIVOS Y DE APOYO | AE53: 0 | AF53: 0 | AG53: 0 | AH53: 0 | AI53: 0 | AJ53: 0 | AK53: 0 | AL53: 0 | AM53: 0
C54: Jurídica | D54: 76 | E54: VALLE DEL CAUCA | F54: 76001 | G54: CALI | I54: COMERCIO AL POR MAYOR Y AL POR MENOR; REPARACIÓN DE VEHÍCULOS AUTOMOTORES Y MOTOCICLETAS | P54: 227131 | V54: 0 | W54: 0 | X54: Jurídica | Y54: 5 | Z54: ANTIOQUIA | AA54: 5001 | AB54: MEDELLÍN | AC54: 0 | AD54: ACTIVIDADES DE ATENCIÓN DE LA SALUD HUMANA Y DE ASISTENCIA SOCIAL | AE54: 0 | AF54: 0 | AG54: 0 | AH54: 0 | AI54: 0 | AJ54: 0 | AK54: 2271310 | AL54: 0 | AM54: 0
C55: Jurídica | D55: 5 | E55: ANTIOQUIA | F55: 5360 | G55: ITAGUI | I55: ACTIVIDADES DE SERVICIOS ADMINISTRATIVOS Y DE APOYO | P55: 227131 | V55: 0 | W55: 0 | X55: Jurídica | Y55: 5 | Z55: ANTIOQUIA | AA55: 5001 | AB55: MEDELLÍN | AC55: 0 | AD55: ALOJAMIENTO Y SERVICIOS DE COMIDA | AE55: 0 | AF55: 0 | AG55: 0 | AH55: 0 | AI55: 0 | AJ55: 0 | AK55: 454262 | AL55: 0 | AM55: 0
C56: Jurídica | D56: 11 | E56: BOGOTÁ, D.C. | F56: 11001 | G56: BOGOTÁ, D.C. | I56: COMERCIO AL POR MAYOR Y AL POR MENOR; REPARACIÓN DE VEHÍCULOS AUTOMOTORES Y MOTOCICLETAS | P56: 0 | V56: 0 | W56: 0 | X56: Jurídica | Y56: 5 | Z56: ANTIOQUIA | AA56: 5001 | AB56: MEDELLÍN | AC56: 0 | AD56: INFORMACIÓN Y COMUNICACIONES | AE56: 0 | AF56: 0 | AG56: 0 | AH56: 0 | AI56: 0 | AJ56: 0 | AK56: 0 | AL56: 0 | AM56: 0
C57: Natural | D57: 76 | E57: VALLE DEL CAUCA | F57: 76001 | G57: CALI | I57: COMERCIO AL POR MAYOR Y AL POR MENOR; REPARACIÓN DE VEHÍCULOS AUTOMOTORES Y MOTOCICLETAS | P57: 227131 | V57: 0 | W57: 0 | X57: Jurídica | Y57: 5 | Z57: ANTIOQUIA | AA57: 5660 | AB57: SAN LUIS | AC57: 0 | AD57: CONSTRUCCIÓN | AE57: 0 | AF57: 0 | AG57: 0 | AH57: 0 | AI57: 0 | AJ57: 0 | AK57: 0 | AL57: 0 | AM57: 0
C58: Jurídica | D58: 54 | E58: NORTE DE SANTANDER | F58: 54001 | G58: CÚCUTA | I58: CONSTRUCCIÓN | P58: 227131 | V58: 0 | W58: 0 | X58: Jurídica | Y58: 5 | Z58: ANTIOQUIA | AA58: 5266 | AB58: ENVIGADO | AC58: 0 | AD58: INFORMACIÓN Y COMUNICACIONES | AE58: 0 | AF58: 0 | AG58: 0 | AH58: 0 | AI58: 0 | AJ58: 0 | AK58: 227131 | AL58: 0 | AM58: 0
C59: Jurídica | D59: 73 | E59: TOLIMA | F59: 73001 | G59: IBAGUÉ | I59: COMERCIO AL POR MAYOR Y AL POR MENOR; REPARACIÓN DE VEHÍCULOS AUTOMOTORES Y MOTOCICLETAS | P59: 0 | V59: 0 | W59: 0 | X59: Jurídica | Y59: 5 | Z59: ANTIOQUIA | AA59: 5001 | AB59: MEDELLÍN | AC59: 0 | AD59: COMERCIO AL POR MAYOR Y AL POR MENOR; REPARACIÓN DE VEHÍCULOS AUTOMOTORES Y MOTOCICLETAS | AE59: 0 | AF59: 0 | AG59: 0 | AH59: 0 | AI59: 0 | AJ59: 0 | AK59: 0 | AL59: 0 | AM59: 0
C60: Jurídica | D60: 11 | E60: BOGOTÁ, D.C. | F60: 11001 | G60: BOGOTÁ, D.C. | I60: ACTIVIDADES DE SERVICIOS ADMINISTRATIVOS Y DE APOYO | P60: 4315489 | V60: 0 | W60: 0 | X60: Jurídica | Y60: 5 | Z60: ANTIOQUIA | AA60: 5001 | AB60: MEDELLÍN | AC60: 0 | AD60: ACTIVIDADES DE SERVICIOS ADMINISTRATIVOS Y DE APOYO | AE60: 0 | AF60: 0 | AG60: 0 | AH60: 0 | AI60: 0 | AJ60: 0 | AK60: 0 | AL60: 0 | AM60: 0
C61: Jurídica | D61: 5 | E61: ANTIOQUIA | F61: 5212 | G61: COPACABANA | I61: INDUSTRIAS MANUFACTURERAS | P61: 0 | V61: 0 | W61: 0 | X61: Jurídica | Y61: 5 | Z61: ANTIOQUIA | AA61: 5001 | AB61: MEDELLÍN | AC61: 0 | AD61: ALOJAMIENTO Y SERVICIOS DE COMIDA | AE61: 0 | AF61: 0 | AG61: 0 | AH61: 0 | AI61: 0 | AJ61: 0 | AK61: 0 | AL61: 0 | AM61: 0
C62: Jurídica | D62: 11 | E62: BOGOTÁ, D.C. | F62: 11001 | G62: BOGOTÁ, D.C. | I62: COMERCIO AL POR MAYOR Y AL POR MENOR; REPARACIÓN DE VEHÍCULOS AUTOMOTORES Y MOTOCICLETAS | P62: 227131 | V62: 0 | W62: 0 | X62: Jurídica | Y62: 5 | Z62: ANTIOQUIA | AA62: 5266 | AB62: ENVIGADO | AC62: 0 | AD62: ACTIVIDADES PROFESIONALES, CIENTÍFICAS Y TÉCNICAS | AE62: 0 | AF62: 0 | AG62: 0 | AH62: 0 | AI62: 0 | AJ62: 0 | AK62: 0 | AL62: 0 | AM62: 0
C63: Natural | D63: 68 | E63: SANTANDER | F63: 68167 | G63: CHARALÁ | I63: ACTIVIDADES FINANCIERAS Y DE SEGUROS | P63: 0 | V63: 0 | W63: 0 | X63: Jurídica | Y63: 5 | Z63: ANTIOQUIA | AA63: 5001 | AB63: MEDELLÍN | AC63: 0 | AD63: INFORMACIÓN Y COMUNICACIONES | AE63: 0 | AF63: 0 | AG63: 0 | AH63: 0 | AI63: 0 | AJ63: 0 | AK63: 0 | AL63: 0 | AM63: 0
C64: Jurídica | D64: 11 | E64: BOGOTÁ, D.C. | F64: 11001 | G64: BOGOTÁ, D.C. | I64: INDUSTRIAS MANUFACTURERAS | P64: 0 | V64: 0 | W64: 0 | X64: Jurídica | Y64: 5 | Z64: ANTIOQUIA | AA64: 5001 | AB64: MEDELLÍN | AC64: 0 | AD64: CONSTRUCCIÓN | AE64: 0 | AF64: 0 | AG64: 0 | AH64: 0 | AI64: 0 | AJ64: 0 | AK64: 227131 | AL64: 0 | AM64: 0
C65: Jurídica | D65: 11 | E65: BOGOTÁ, D.C. | F65: 11001 | G65: BOGOTÁ, D.C. | I65: ACTIVIDADES PROFESIONALES, CIENTÍFICAS Y TÉCNICAS | P65: 0 | V65: 0 | W65: 0 | X65: Jurídica | Y65: 5 | Z65: ANTIOQUIA | AA65: 5001 | AB65: MEDELLÍN | AC65: 0 | AD65: CONSTRUCCIÓN | AE65: 0 | AF65: 0 | AG65: 0 | AH65: 0 | AI65: 0 | AJ65: 0 | AK65: 908524 | AL65: 0 | AM65: 0
C66: Jurídica | D66: 5 | E66: ANTIOQUIA | F66: 5001 | G66: MEDELLÍN | I66: ACTIVIDADES PROFESIONALES, CIENTÍFICAS Y TÉCNICAS | P66: 2271310 | V66: 0 | W66: 0 | X66: Jurídica | Y66: 5 | Z66: ANTIOQUIA | AA66: 5615 | AB66: RIONEGRO | AC66: 0 | AD66: TRANSPORTE Y ALMACENAMIENTO | AE66: 0 | AF66: 0 | AG66: 0 | AH66: 0 | AI66: 0 | AJ66: 0 | AK66: 227131 | AL66: 0 | AM66: 0
C67: Jurídica | D67: 11 | E67: BOGOTÁ, D.C. | F67: 11001 | G67: BOGOTÁ, D.C. | I67: CONSTRUCCIÓN | P67: 454262 | V67: 0 | W67: 0 | X67: Jurídica | Y67: 5 | Z67: ANTIOQUIA | AA67: 5212 | AB67: COPACABANA | AC67: 0 | AD67: COMERCIO AL POR MAYOR Y AL POR MENOR; REPARACIÓN DE VEHÍCULOS AUTOMOTORES Y MOTOCICLETAS | AE67: 0 | AF67: 0 | AG67: 0 | AH67: 0 | AI67: 0 | AJ67: 0 | AK67: 227131 | AL67: 0 | AM67: 0
C68: Natural | D68: 66 | E68: RISARALDA | F68: 66001 | G68: PEREIRA | I68: AGRICULTURA, GANADERÍA, CAZA, SILVICULTURA Y PESCA | P68: 0 | V68: 0 | W68: 0 | X68: Jurídica | Y68: 5 | Z68: ANTIOQUIA | AA68: 5001 | AB68: MEDELLÍN | AC68: 0 | AD68: ALOJAMIENTO Y SERVICIOS DE COMIDA | AE68: 0 | AF68: 0 | AG68: 0 | AH68: 0 | AI68: 0 | AJ68: 0 | AK68: 6586799 | AL68: 0 | AM68: 0
C69: Jurídica | D69: 68 | E69: SANTANDER | F69: 68276 | G69: FLORIDABLANCA | I69: AGRICULTURA, GANADERÍA, CAZA, SILVICULTURA Y PESCA | P69: 1817048 | V69: 0 | W69: 0 | X69: Natural | Y69: 5 | Z69: ANTIOQUIA | AA69: 5360 | AB69: ITAGUI | AC69: 0 | AD69: COMERCIO AL POR MAYOR Y AL POR MENOR; REPARACIÓN DE VEHÍCULOS AUTOMOTORES Y MOTOCICLETAS | AE69: 0 | AF69: 0 | AG69: 0 | AH69: 0 | AI69: 0 | AJ69: 0 | AK69: 0 | AL69: 0 | AM69: 0
C70: Jurídica | D70: 73 | E70: TOLIMA | F70: 73001 | G70: IBAGUÉ | I70: EDUCACIÓN | P70: 227131 | V70: 0 | W70: 0 | X70: Jurídica | Y70: 5 | Z70: ANTIOQUIA | AA70: 5001 | AB70: MEDELLÍN | AC70: 0 | AD70: CONSTRUCCIÓN | AE70: 0 | AF70: 0 | AG70: 0 | AH70: 0 | AI70: 0 | AJ70: 0 | AK70: 1362786 | AL70: 0 | AM70: 0
C71: Jurídica | D71: 5 | E71: ANTIOQUIA | F71: 5001 | G71: MEDELLÍN | I71: INDUSTRIAS MANUFACTURERAS | P71: 227131 | V71: 0 | W71: 0 | X71: Jurídica | Y71: 5 | Z71: ANTIOQUIA | AA71: 5001 | AB71: MEDELLÍN | AC71: 0 | AD71: INDUSTRIAS MANUFACTURERAS | AE71: 0 | AF71: 0 | AG71: 0 | AH71: 0 | AI71: 0 | AJ71: 0 | AK71: 0 | AL71: 0 | AM71: 0
C72: Jurídica | D72: 8 | E72: ATLÁNTICO | F72: 8001 | G72: BARRANQUILLA | I72: ACTIVIDADES DE SERVICIOS ADMINISTRATIVOS Y DE APOYO | P72: 0 | V72: 0 | W72: 0 | X72: Jurídica | Y72: 5 | Z72: ANTIOQUIA | AA72: 5308 | AB72: GIRARDOTA | AC72: 0 | AD72: INDUSTRIAS MANUFACTURERAS | AE72: 0 | AF72: 0 | AG72: 0 | AH72: 0 | AI72: 0 | AJ72: 0 | AK72: 0 | AL72: 0 | AM72: 0
C73: Jurídica | D73: 5 | E73: ANTIOQUIA | F73: 5360 | G73: ITAGUI | I73: ACTIVIDADES DE SERVICIOS ADMINISTRATIVOS Y DE APOYO | P73: 454262 | V73: 0 | W73: 0 | X73: Jurídica | Y73: 5 | Z73: ANTIOQUIA | AA73: 5001 | AB73: MEDELLÍN | AC73: 0 | AD73: ACTIVIDADES FINANCIERAS Y DE SEGUROS | AE73: 0 | AF73: 0 | AG73: 0 | AH73: 0 | AI73: 0 | AJ73: 0 | AK73: 454262 | AL73: 0 | AM73: 0
C74: Natural | D74: 54 | E74: NORTE DE SANTANDER | F74: 54001 | G74: CÚCUTA | I74: EDUCACIÓN | P74: 0 | V74: 0 | W74: 0 | X74: Jurídica | Y74: 5 | Z74: ANTIOQUIA | AA74: 5266 | AB74: ENVIGADO | AC74: 0 | AD74: ACTIVIDADES PROFESIONALES, CIENTÍFICAS Y TÉCNICAS | AE74: 0 | AF74: 0 | AG74: 0 | AH74: 0 | AI74: 0 | AJ74: 0 | AK74: 0 | AL74: 0 | AM74: 0
C75: Jurídica | D75: 11 | E75: BOGOTÁ, D.C. | F75: 11001 | G75: BOGOTÁ, D.C. | I75: INDUSTRIAS MANUFACTURERAS | P75: 0 | V75: 0 | W75: 0 | X75: Jurídica | Y75: 5 | Z75: ANTIOQUIA | AA75: 5001 | AB75: MEDELLÍN | AC75: 0 | AD75: ACTIVIDADES PROFESIONALES, CIENTÍFICAS Y TÉCNICAS | AE75: 0 | AF75: 0 | AG75: 0 | AH75: 0 | AI75: 0 | AJ75: 0 | AK75: 227131 | AL75: 0 | AM75: 0
C76: Jurídica | D76: 5 | E76: ANTIOQUIA | F76: 5001 | G76: MEDELLÍN | I76: INDUSTRIAS MANUFACTURERAS | P76: 0 | V76: 0 | W76: 0 | X76: Jurídica | Y76: 5 | Z76: ANTIOQUIA | AA76: 5001 | AB76: MEDELLÍN | AC76: 0 | AD76: ACTIVIDADES DE SERVICIOS ADMINISTRATIVOS Y DE APOYO | AE76: 0 | AF76: 0 | AG76: 0 | AH76: 0 | AI76: 0 | AJ76: 0 | AK76: 0 | AL76: 0 | AM76: 0
C77: Jurídica | D77: 8 | E77: ATLÁNTICO | F77: 8001 | G77: BARRANQUILLA | I77: COMERCIO AL POR MAYOR Y AL POR MENOR; REPARACIÓN DE VEHÍCULOS AUTOMOTORES Y MOTOCICLETAS | P77: 681393 | V77: 0 | W77: 0 | X77: Jurídica | Y77: 5 | Z77: ANTIOQUIA | AA77: 5001 | AB77: MEDELLÍN | AC77: 0 | AD77: ACTIVIDADES DE ATENCIÓN DE LA SALUD HUMANA Y DE ASISTENCIA SOCIAL | AE77: 0 | AF77: 0 | AG77: 0 | AH77: 0 | AI77: 0 | AJ77: 0 | AK77: 0 | AL77: 0 | AM77: 0
C78: Jurídica | D78: 11 | E78: BOGOTÁ, D.C. | F78: 11001 | G78: BOGOTÁ, D.C. | I78: CONSTRUCCIÓN | P78: 0 | V78: 0 | W78: 0 | X78: Natural | Y78: 5 | Z78: ANTIOQUIA | AA78: 5001 | AB78: MEDELLÍN | AC78: 0 | AD78: ACTIVIDADES DE SERVICIOS ADMINISTRATIVOS Y DE APOYO | AE78: 0 | AF78: 0 | AG78: 0 | AH78: 0 | AI78: 0 | AJ78: 0 | AK78: 0 | AL78: 0 | AM78: 0
C79: Jurídica | D79: 5 | E79: ANTIOQUIA | F79: 5360 | G79: ITAGUI | I79: INDUSTRIAS MANUFACTURERAS | P79: 908524 | V79: 0 | W79: 0 | X79: Natural | Y79: 5 | Z79: ANTIOQUIA | AA79: 5368 | AB79: JERICÓ | AC79: 0 | AD79: ALOJAMIENTO Y SERVICIOS DE COMIDA | AE79: 0 | AF79: 0 | AG79: 0 | AH79: 0 | AI79: 0 | AJ79: 0 | AK79: 0 | AL79: 0 | AM79: 0
C80: Jurídica | D80: 52 | E80: NARIÑO | F80: 52001 | G80: PASTO | I80: COMERCIO AL POR MAYOR Y AL POR MENOR; REPARACIÓN DE VEHÍCULOS AUTOMOTORES Y MOTOCICLETAS | P80: 0 | V80: 0 | W80: 0 | X80: Natural | Y80: 5 | Z80: ANTIOQUIA | AA80: 5001 | AB80: MEDELLÍN | AC80: 0 | AD80: COMERCIO AL POR MAYOR Y AL POR MENOR; REPARACIÓN DE VEHÍCULOS AUTOMOTORES Y MOTOCICLETAS | AE80: 0 | AF80: 0 | AG80: 0 | AH80: 0 | AI80: 0 | AJ80: 0 | AK80: 227131 | AL80: 0 | AM80: 0
C81: Jurídica | D81: 25 | E81: CUNDINAMARCA | F81: 25126 | G81: CAJICÁ | I81: INDUSTRIAS MANUFACTURERAS | P81: 0 | V81: 0 | W81: 0 | X81: Jurídica | Y81: 5 | Z81: ANTIOQUIA | AA81: 5400 | AB81: LA UNIÓN | AC81: 0 | AD81: INDUSTRIAS MANUFACTURERAS | AE81: 0 | AF81: 0 | AG81: 0 | AH81: 0 | AI81: 0 | AJ81: 0 | AK81: 0 | AL81: 0 | AM81: 0
C82: Jurídica | D82: 5 | E82: ANTIOQUIA | F82: 5001 | G82: MEDELLÍN | I82: COMERCIO AL POR MAYOR Y AL POR MENOR; REPARACIÓN DE VEHÍCULOS AUTOMOTORES Y MOTOCICLETAS | P82: 227131 | V82: 0 | W82: 0 | X82: Jurídica | Y82: 5 | Z82: ANTIOQUIA | AA82: 5001 | AB82: MEDELLÍN | AC82: 0 | AD82: ACTIVIDADES PROFESIONALES, CIENTÍFICAS Y TÉCNICAS | AE82: 0 | AF82: 0 | AG82: 0 | AH82: 0 | AI82: 0 | AJ82: 0 | AK82: 454262 | AL82: 0 | AM82: 0
C83: Jurídica | D83: 5 | E83: ANTIOQUIA | F83: 5001 | G83: MEDELLÍN | I83: ACTIVIDADES DE ATENCIÓN DE LA SALUD HUMANA Y DE ASISTENCIA SOCIAL | P83: 227131 | V83: 0 | W83: 0 | X83: Jurídica | Y83: 5 | Z83: ANTIOQUIA | AA83: 5001 | AB83: MEDELLÍN | AC83: 0 | AD83: ACTIVIDADES DE SERVICIOS ADMINISTRATIVOS Y DE APOYO | AE83: 0 | AF83: 0 | AG83: 0 | AH83: 0 | AI83: 0 | AJ83: 0 | AK83: 0 | AL83: 0 | AM83: 0
C84: Natural | D84: 5 | E84: ANTIOQUIA | F84: 5001 | G84: MEDELLÍN | I84: INDUSTRIAS MANUFACTURERAS | P84: 0 | V84: 0 | W84: 0 | X84: Jurídica | Y84: 5 | Z84: ANTIOQUIA | AA84: 5237 | AB84: DON MATÍAS | AC84: 0 | AD84: INDUSTRIAS MANUFACTURERAS | AE84: 0 | AF84: 0 | AG84: 0 | AH84: 0 | AI84: 0 | AJ84: 0 | AK84: 0 | AL84: 0 | AM84: 0
C85: Jurídica | D85: 11 | E85: BOGOTÁ, D.C. | F85: 11001 | G85: BOGOTÁ, D.C. | I85: INFORMACIÓN Y COMUNICACIONES | P85: 227131 | V85: 0 | W85: 0 | X85: Jurídica | Y85: 5 | Z85: ANTIOQUIA | AA85: 5001 | AB85: MEDELLÍN | AC85: 0 | AD85: CONSTRUCCIÓN | AE85: 0 | AF85: 0 | AG85: 0 | AH85: 0 | AI85: 0 | AJ85: 0 | AK85: 1135655 | AL85: 0 | AM85: 0
C86: Jurídica | D86: 25 | E86: CUNDINAMARCA | F86: 25799 | G86: TENJO | I86: ACTIVIDADES DE ATENCIÓN DE LA SALUD HUMANA Y DE ASISTENCIA SOCIAL | P86: 0 | V86: 0 | W86: 0 | X86: Jurídica | Y86: 5 | Z86: ANTIOQUIA | AA86: 5001 | AB86: MEDELLÍN | AC86: 0 | AD86: INDUSTRIAS MANUFACTURERAS | AE86: 0 | AF86: 0 | AG86: 0 | AH86: 0 | AI86: 0 | AJ86: 0 | AK86: 908524 | AL86: 0 | AM86: 0
C87: Jurídica | D87: 5 | E87: ANTIOQUIA | F87: 5001 | G87: MEDELLÍN | I87: INDUSTRIAS MANUFACTURERAS | P87: 0 | V87: 0 | W87: 0 | X87: Jurídica | Y87: 5 | Z87: ANTIOQUIA | AA87: 5001 | AB87: MEDELLÍN | AC87: 0 | AD87: INDUSTRIAS MANUFACTURERAS | AE87: 0 | AF87: 0 | AG87: 0 | AH87: 0 | AI87: 0 | AJ87: 0 | AK87: 1135655 | AL87: 0 | AM87: 0
C88: Jurídica | D88: 5 | E88: ANTIOQUIA | F88: 5045 | G88: APARTADÓ | I88: COMERCIO AL POR MAYOR Y AL POR MENOR; REPARACIÓN DE VEHÍCULOS AUTOMOTORES Y MOTOCICLETAS | P88: 0 | V88: 0 | W88: 0 | X88: Jurídica | Y88: 5 | Z88: ANTIOQUIA | AA88: 5001 | AB88: MEDELLÍN | AC88: 0 | AD88: ACTIVIDADES INMOBILIARIAS | AE88: 0 | AF88: 0 | AG88: 0 | AH88: 0 | AI88: 0 | AJ88: 0 | AK88: 227131 | AL88: 0 | AM88: 0
C89: Jurídica | D89: 5 | E89: ANTIOQUIA | F89: 5266 | G89: ENVIGADO | I89: ACTIVIDADES PROFESIONALES, CIENTÍFICAS Y TÉCNICAS | P89: 0 | V89: 0 | W89: 0 | X89: Natural | Y89: 5 | Z89: ANTIOQUIA | AA89: 5001 | AB89: MEDELLÍN | AC89: 0 | AD89: COMERCIO AL POR MAYOR Y AL POR MENOR; REPARACIÓN DE VEHÍCULOS AUTOMOTORES Y MOTOCICLETAS | AE89: 0 | AF89: 0 | AG89: 0 | AH89: 0 | AI89: 0 | AJ89: 0 | AK89: 227131 | AL89: 0 | AM89: 0
C90: Jurídica | D90: 19 | E90: CAUCA | F90: 19001 | G90: POPAYÁN | I90: INDUSTRIAS MANUFACTURERAS | P90: 1135655 | V90: 0 | W90: 0 | X90: Natural | Y90: 5 | Z90: ANTIOQUIA | AA90: 5088 | AB90: BELLO | AC90: 0 | AD90: ALOJAMIENTO Y SERVICIOS DE COMIDA | AE90: 0 | AF90: 0 | AG90: 0 | AH90: 0 | AI90: 0 | AJ90: 0 | AK90: 0 | AL90: 0 | AM90: 0
C91: Jurídica | D91: 68 | E91: SANTANDER | F91: 68307 | G91: GIRÓN | I91: ACTIVIDADES PROFESIONALES, CIENTÍFICAS Y TÉCNICAS | P91: 681393 | V91: 0 | W91: 0 | X91: Jurídica | Y91: 5 | Z91: ANTIOQUIA | AA91: 5264 | AB91: ENTRERRIOS | AC91: 0 | AD91: AGRICULTURA, GANADERÍA, CAZA, SILVICULTURA Y PESCA | AE91: 0 | AF91: 0 | AG91: 0 | AH91: 0 | AI91: 0 | AJ91: 0 | AK91: 0 | AL91: 0 | AM91: 0
C92: Jurídica | D92: 25 | E92: CUNDINAMARCA | F92: 25430 | G92: MADRID | I92: TRANSPORTE Y ALMACENAMIENTO | P92: 227131 | V92: 0 | W92: 0 | X92: Jurídica | Y92: 5 | Z92: ANTIOQUIA | AA92: 5001 | AB92: MEDELLÍN | AC92: 0 | AD92: TRANSPORTE Y ALMACENAMIENTO | AE92: 0 | AF92: 0 | AG92: 0 | AH92: 0 | AI92: 0 | AJ92: 0 | AK92: 0 | AL92: 0 | AM92: 0
C93: Jurídica | D93: 5 | E93: ANTIOQUIA | F93: 5001 | G93: MEDELLÍN | I93: INDUSTRIAS MANUFACTURERAS | P93: 227131 | V93: 0 | W93: 0 | X93: Jurídica | Y93: 5 | Z93: ANTIOQUIA | AA93: 5001 | AB93: MEDELLÍN | AC93: 0 | AD93: INDUSTRIAS MANUFACTURERAS | AE93: 0 | AF93: 0 | AG93: 0 | AH93: 0 | AI93: 0 | AJ93: 0 | AK93: 0 | AL93: 0 | AM93: 0
C94: Jurídica | D94: 68 | E94: SANTANDER | F94: 68001 | G94: BUCARAMANGA | I94: COMERCIO AL POR MAYOR Y AL POR MENOR; REPARACIÓN DE VEHÍCULOS AUTOMOTORES Y MOTOCICLETAS | P94: 227131 | V94: 0 | W94: 0 | X94: Jurídica | Y94: 5 | Z94: ANTIOQUIA | AA94: 5001 | AB94: MEDELLÍN | AC94: 0 | AD94: INDUSTRIAS MANUFACTURERAS | AE94: 0 | AF94: 0 | AG94: 0 | AH94: 0 | AI94: 0 | AJ94: 0 | AK94: 227131 | AL94: 0 | AM94: 0
C95: Jurídica | D95: 5 | E95: ANTIOQUIA | F95: 5615 | G95: RIONEGRO | I95: ACTIVIDADES DE ATENCIÓN DE LA SALUD HUMANA Y DE ASISTENCIA SOCIAL | P95: 0 | V95: 0 | W95: 0 | X95: Natural | Y95: 5 | Z95: ANTIOQUIA | AA95: 5001 | AB95: MEDELLÍN | AC95: 0 | AD95: ALOJAMIENTO Y SERVICIOS DE COMIDA | AE95: 0 | AF95: 0 | AG95: 0 | AH95: 0 | AI95: 0 | AJ95: 0 | AK95: 454262 | AL95: 0 | AM95: 0
C96: Jurídica | D96: 5 | E96: ANTIOQUIA | F96: 5001 | G96: MEDELLÍN | I96: INFORMACIÓN Y COMUNICACIONES | P96: 227131 | V96: 0 | W96: 0 | X96: Jurídica | Y96: 5 | Z96: ANTIOQUIA | AA96: 5001 | AB96: MEDELLÍN | AC96: 0 | AD96: ACTIVIDADES DE SERVICIOS ADMINISTRATIVOS Y DE APOYO | AE96: 0 | AF96: 0 | AG96: 0 | AH96: 0 | AI96: 0 | AJ96: 0 | AK96: 0 | AL96: 0 | AM96: 0
C97: Jurídica | D97: 11 | E97: BOGOTÁ, D.C. | F97: 11001 | G97: BOGOTÁ, D.C. | I97: OTRAS ACTIVIDADES DE SERVICIOS | P97: 0 | V97: 0 | W97: 0 | X97: Jurídica | Y97: 5 | Z97: ANTIOQUIA | AA97: 5318 | AB97: GUARNE | AC97: 0 | AD97: INDUSTRIAS MANUFACTURERAS | AE97: 0 | AF97: 0 | AG97: 0 | AH97: 0 | AI97: 0 | AJ97: 0 | AK97: 454262 | AL97: 0 | AM97: 0
C98: Jurídica | D98: 19 | E98: CAUCA | F98: 19001 | G98: POPAYÁN | I98: COMERCIO AL POR MAYOR Y AL POR MENOR; REPARACIÓN DE VEHÍCULOS AUTOMOTORES Y MOTOCICLETAS | P98: 454262 | V98: 0 | W98: 0 | X98: Jurídica | Y98: 5 | Z98: ANTIOQUIA | AA98: 5212 | AB98: COPACABANA | AC98: 0 | AD98: INDUSTRIAS MANUFACTURERAS | AE98: 0 | AF98: 0 | AG98: 0 | AH98: 0 | AI98: 0 | AJ98: 0 | AK98: 454262 | AL98: 0 | AM98: 0
C99: Jurídica | D99: 25 | E99: CUNDINAMARCA | F99: 25214 | G99: COTA | I99: ACTIVIDADES DE SERVICIOS ADMINISTRATIVOS Y DE APOYO | P99: 2044179 | V99: 0 | W99: 0 | X99: Jurídica | Y99: 5 | Z99: ANTIOQUIA | AA99: 5615 | AB99: RIONEGRO | AC99: 0 | AD99: ACTIVIDADES PROFESIONALES, CIENTÍFICAS Y TÉCNICAS | AE99: 0 | AF99: 0 | AG99: 0 | AH99: 0 | AI99: 0 | AJ99: 0 | AK99: 681393 | AL99: 0 | AM99: 0
C100: Jurídica | D100: 11 | E100: BOGOTÁ, D.C. | F100: 11001 | G100: BOGOTÁ, D.C. | I100: COMERCIO AL POR MAYOR Y AL POR MENOR; REPARACIÓN DE VEHÍCULOS AUTOMOTORES Y MOTOCICLETAS | P100: 3179834 | V100: 0 | W100: 0 | X100: Jurídica | Y100: 5 | Z100: ANTIOQUIA | AA100: 5001 | AB100: MEDELLÍN | AC100: 0 | AD100: ACTIVIDADES PROFESIONALES, CIENTÍFICAS Y TÉCNICAS | AE100: 0 | AF100: 0 | AG100: 0 | AH100: 0 | AI100: 0 | AJ100: 0 | AK100: 0 | AL100: 0 | AM100: 0
C101: Jurídica | D101: 70 | E101: SUCRE | F101: 70001 | G101: SINCELEJO | I101: CONSTRUCCIÓN | P101: 0 | V101: 0 | W101: 0 | X101: Jurídica | Y101: 5 | Z101: ANTIOQUIA | AA101: 5001 | AB101: MEDELLÍN | AC101: 0 | AD101: CONSTRUCCIÓN | AE101: 0 | AF101: 0 | AG101: 0 | AH101: 0 | AI101: 0 | AJ101: 0 | AK101: 454262 | AL101: 0 | AM101: 0
C102: Jurídica | D102: 5 | E102: ANTIOQUIA | F102: 5001 | G102: MEDELLÍN | I102: COMERCIO AL POR MAYOR Y AL POR MENOR; REPARACIÓN DE VEHÍCULOS AUTOMOTORES Y MOTOCICLETAS | P102: 227131 | V102: 0 | W102: 0 | X102: Jurídica | Y102: 5 | Z102: ANTIOQUIA | AA102: 5001 | AB102: MEDELLÍN | AC102: 0 | AD102: INDUSTRIAS MANUFACTURERAS | AE102: 0 | AF102: 0 | AG102: 0 | AH102: 0 | AI102: 0 | AJ102: 0 | AK102: 3634096 | AL102: 0 | AM102: 0
C103: Jurídica | D103: 8 | E103: ATLÁNTICO | F103: 8001 | G103: BARRANQUILLA | I103: OTRAS ACTIVIDADES DE SERVICIOS | P103: 0 | V103: 0 | W103: 0 | X103: Jurídica | Y103: 5 | Z103: ANTIOQUIA | AA103: 5045 | AB103: APARTADÓ | AC103: 0 | AD103: AGRICULTURA, GANADERÍA, CAZA, SILVICULTURA Y PESCA | AE103: 0 | AF103: 0 | AG103: 0 | AH103: 0 | AI103: 0 | AJ103: 0 | AK103: 0 | AL103: 0 | AM103: 0
C104: Jurídica | D104: 11 | E104: BOGOTÁ, D.C. | F104: 11001 | G104: BOGOTÁ, D.C. | I104: EDUCACIÓN | P104: 0 | V104: 0 | W104: 0 | X104: Jurídica | Y104: 5 | Z104: ANTIOQUIA | AA104: 5001 | AB104: MEDELLÍN | AC104: 0 | AD104: ACTIVIDADES FINANCIERAS Y DE SEGUROS | AE104: 0 | AF104: 0 | AG104: 0 | AH104: 0 | AI104: 0 | AJ104: 0 | AK104: 0 | AL104: 0 | AM104: 0
C105: Jurídica | D105: 5 | E105: ANTIOQUIA | F105: 5001 | G105: MEDELLÍN | I105: ACTIVIDADES DE SERVICIOS ADMINISTRATIVOS Y DE APOYO | P105: 1135655 | V105: 0 | W105: 0 | X105: Jurídica | Y105: 5 | Z105: ANTIOQUIA | AA105: 5380 | AB105: LA ESTRELLA | AC105: 0 | AD105: INFORMACIÓN Y COMUNICACIONES | AE105: 0 | AF105: 0 | AG105: 0 | AH105: 0 | AI105: 0 | AJ105: 0 | AK105: 454262 | AL105: 0 | AM105: 0
C106: Jurídica | D106: 8 | E106: ATLÁNTICO | F106: 8001 | G106: BARRANQUILLA | I106: AGRICULTURA, GANADERÍA, CAZA, SILVICULTURA Y PESCA | P106: 0 | V106: 0 | W106: 0 | X106: Jurídica | Y106: 5 | Z106: ANTIOQUIA | AA106: 5059 | AB106: ARMENIA | AC106: 0 | AD106: ACTIVIDADES DE ATENCIÓN DE LA SALUD HUMANA Y DE ASISTENCIA SOCIAL | AE106: 0 | AF106: 0 | AG106: 0 | AH106: 0 | AI106: 0 | AJ106: 0 | AK106: 0 | AL106: 0 | AM106: 0
C107: Jurídica | D107: 5 | E107: ANTIOQUIA | F107: 5266 | G107: ENVIGADO | I107: INDUSTRIAS MANUFACTURERAS | P107: 0 | V107: 0 | W107: 0 | X107: Jurídica | Y107: 5 | Z107: ANTIOQUIA | AA107: 5001 | AB107: MEDELLÍN | AC107: 0 | AD107: ACTIVIDADES PROFESIONALES, CIENTÍFICAS Y TÉCNICAS | AE107: 0 | AF107: 0 | AG107: 0 | AH107: 0 | AI107: 0 | AJ107: 0 | AK107: 227131 | AL107: 0 | AM107: 0
C108: Jurídica | D108: 11 | E108: BOGOTÁ, D.C. | F108: 11001 | G108: BOGOTÁ, D.C. | I108: COMERCIO AL POR MAYOR Y AL POR MENOR; REPARACIÓN DE VEHÍCULOS AUTOMOTORES Y MOTOCICLETAS | P108: 0 | V108: 0 | W108: 0 | X108: Jurídica | Y108: 5 | Z108: ANTIOQUIA | AA108: 5001 | AB108: MEDELLÍN | AC108: 0 | AD108: ACTIVIDADES DE SERVICIOS ADMINISTRATIVOS Y DE APOYO | AE108: 0 | AF108: 0 | AG108: 0 | AH108: 0 | AI108: 0 | AJ108: 0 | AK108: 681393 | AL108: 0 | AM108: 0
C109: Jurídica | D109: 68 | E109: SANTANDER | F109: 68001 | G109: BUCARAMANGA | I109: AGRICULTURA, GANADERÍA, CAZA, SILVICULTURA Y PESCA | P109: 1362786 | V109: 0 | W109: 0 | X109: Jurídica | Y109: 5 | Z109: ANTIOQUIA | AA109: 5001 | AB109: MEDELLÍN | AC109: 0 | AD109: ALOJAMIENTO Y SERVICIOS DE COMIDA | AE109: 0 | AF109: 0 | AG109: 0 | AH109: 0 | AI109: 0 | AJ109: 0 | AK109: 454262 | AL109: 0 | AM109: 0
C110: Jurídica | D110: 66 | E110: RISARALDA | F110: 66001 | G110: PEREIRA | I110: ACTIVIDADES DE SERVICIOS ADMINISTRATIVOS Y DE APOYO | P110: 0 | V110: 0 | W110: 0 | X110: Jurídica | Y110: 5 | Z110: ANTIOQUIA | AA110: 5001 | AB110: MEDELLÍN | AC110: 0 | AD110: INDUSTRIAS MANUFACTURERAS | AE110: 0 | AF110: 0 | AG110: 0 | AH110: 0 | AI110: 0 | AJ110: 0 | AK110: 227131 | AL110: 0 | AM110: 0
C111: Jurídica | D111: 68 | E111: SANTANDER | F111: 68001 | G111: BUCARAMANGA | I111: TRANSPORTE Y ALMACENAMIENTO | P111: 681393 | V111: 0 | W111: 0 | X111: Jurídica | Y111: 5 | Z111: ANTIOQUIA | AA111: 5001 | AB111: MEDELLÍN | AC111: 0 | AD111: COMERCIO AL POR MAYOR Y AL POR MENOR; REPARACIÓN DE VEHÍCULOS AUTOMOTORES Y MOTOCICLETAS | AE111: 0 | AF111: 0 | AG111: 0 | AH111: 0 | AI111: 0 | AJ111: 0 | AK111: 0 | AL111: 0 | AM111: 0
C112: Jurídica | D112: 11 | E112: BOGOTÁ, D.C. | F112: 11001 | G112: BOGOTÁ, D.C. | I112: INFORMACIÓN Y COMUNICACIONES | P112: 227131 | V112: 0 | W112: 0 | X112: Natural | Y112: 5 | Z112: ANTIOQUIA | AA112: 5045 | AB112: APARTADÓ | AC112: 0 | AD112: AGRICULTURA, GANADERÍA, CAZA, SILVICULTURA Y PESCA | AE112: 0 | AF112: 0 | AG112: 0 | AH112: 0 | AI112: 0 | AJ112: 0 | AK112: 0 | AL112: 0 | AM112: 0
C113: Jurídica | D113: 13 | E113: BOLÍVAR | F113: 13001 | G113: CARTAGENA | I113: ALOJAMIENTO Y SERVICIOS DE COMIDA | P113: 4769751 | V113: 0 | W113: 0 | X113: Jurídica | Y113: 5 | Z113: ANTIOQUIA | AA113: 5318 | AB113: GUARNE | AC113: 0 | AD113: INDUSTRIAS MANUFACTURERAS | AE113: 0 | AF113: 0 | AG113: 0 | AH113: 0 | AI113: 0 | AJ113: 0 | AK113: 227131 | AL113: 0 | AM113: 0
C114: Natural | D114: 76 | E114: VALLE DEL CAUCA | F114: 76892 | G114: YUMBO | I114: INDUSTRIAS MANUFACTURERAS | P114: 0 | V114: 0 | W114: 0 | X114: Jurídica | Y114: 5 | Z114: ANTIOQUIA | AA114: 5212 | AB114: COPACABANA | AC114: 0 | AD114: CONSTRUCCIÓN | AE114: 0 | AF114: 0 | AG114: 0 | AH114: 0 | AI114: 0 | AJ114: 0 | AK114: 1362786 | AL114: 0 | AM114: 0
C115: Jurídica | D115: 5 | E115: ANTIOQUIA | F115: 5360 | G115: ITAGUI | I115: COMERCIO AL POR MAYOR Y AL POR MENOR; REPARACIÓN DE VEHÍCULOS AUTOMOTORES Y MOTOCICLETAS | P115: 0 | V115: 0 | W115: 0 | X115: Natural | Y115: 5 | Z115: ANTIOQUIA | AA115: 5148 | AB115: EL CARMEN DE VIBORAL | AC115: 0 | AD115: INDUSTRIAS MANUFACTURERAS | AE115: 0 | AF115: 0 | AG115: 0 | AH115: 0 | AI115: 0 | AJ115: 0 | AK115: 0 | AL115: 0 | AM115: 0
C116: Jurídica | D116: 5 | E116: ANTIOQUIA | F116: 5001 | G116: MEDELLÍN | I116: ACTIVIDADES DE SERVICIOS ADMINISTRATIVOS Y DE APOYO | P116: 0 | V116: 0 | W116: 0 | X116: Jurídica | Y116: 5 | Z116: ANTIOQUIA | AA116: 5631 | AB116: SABANETA | AC116: 0 | AD116: INDUSTRIAS MANUFACTURERAS | AE116: 0 | AF116: 0 | AG116: 0 | AH116: 0 | AI116: 0 | AJ116: 0 | AK116: 0 | AL116: 0 | AM116: 0
C117: Natural | D117: 68 | E117: SANTANDER | F117: 68001 | G117: BUCARAMANGA | I117: ACTIVIDADES PROFESIONALES, CIENTÍFICAS Y TÉCNICAS | P117: 0 | V117: 0 | W117: 0 | X117: Jurídica | Y117: 5 | Z117: ANTIOQUIA | AA117: 5001 | AB117: MEDELLÍN | AC117: 0 | AD117: CONSTRUCCIÓN | AE117: 0 | AF117: 0 | AG117: 0 | AH117: 0 | AI117: 0 | AJ117: 0 | AK117: 908524 | AL117: 0 | AM117: 0
C118: Jurídica | D118: 5 | E118: ANTIOQUIA | F118: 5001 | G118: MEDELLÍN | I118: ACTIVIDADES DE SERVICIOS ADMINISTRATIVOS Y DE APOYO | P118: 47016117 | V118: 0 | W118: 0 | X118: Natural | Y118: 5 | Z118: ANTIOQUIA | AA118: 5631 | AB118: SABANETA | AC118: 0 | AD118: COMERCIO AL POR MAYOR Y AL POR MENOR; REPARACIÓN DE VEHÍCULOS AUTOMOTORES Y MOTOCICLETAS | AE118: 0 | AF118: 0 | AG118: 0 | AH118: 0 | AI118: 0 | AJ118: 0 | AK118: 227131 | AL118: 0 | AM118: 0
C119: Jurídica | D119: 11 | E119: BOGOTÁ, D.C. | F119: 11001 | G119: BOGOTÁ, D.C. | I119: ACTIVIDADES PROFESIONALES, CIENTÍFICAS Y TÉCNICAS | P119: 227131 | V119: 0 | W119: 0 | X119: Jurídica | Y119: 5 | Z119: ANTIOQUIA | AA119: 5001 | AB119: MEDELLÍN | AC119: 0 | AD119: COMERCIO AL POR MAYOR Y AL POR MENOR; REPARACIÓN DE VEHÍCULOS AUTOMOTORES Y MOTOCICLETAS | AE119: 0 | AF119: 0 | AG119: 0 | AH119: 0 | AI119: 0 | AJ119: 0 | AK119: 0 | AL119: 0 | AM119: 0
C120: Jurídica | D120: 11 | E120: BOGOTÁ, D.C. | F120: 11001 | G120: BOGOTÁ, D.C. | I120: COMERCIO AL POR MAYOR Y AL POR MENOR; REPARACIÓN DE VEHÍCULOS AUTOMOTORES Y MOTOCICLETAS | P120: 454262 | V120: 0 | W120: 0 | X120: Jurídica | Y120: 5 | Z120: ANTIOQUIA | AA120: 5001 | AB120: MEDELLÍN | AC120: 0 | AD120: INDUSTRIAS MANUFACTURERAS | AE120: 0 | AF120: 0 | AG120: 0 | AH120: 0 | AI120: 0 | AJ120: 0 | AK120: 4088358 | AL120: 0 | AM120: 0
C121: Jurídica | D121: 5 | E121: ANTIOQUIA | F121: 5001 | G121: MEDELLÍN | I121: COMERCIO AL POR MAYOR Y AL POR MENOR; REPARACIÓN DE VEHÍCULOS AUTOMOTORES Y MOTOCICLETAS | P121: 227131 | V121: 0 | W121: 0 | X121: Jurídica | Y121: 5 | Z121: ANTIOQUIA | AA121: 5001 | AB121: MEDELLÍN | AC121: 0 | AD121: INDUSTRIAS MANUFACTURERAS | AE121: 0 | AF121: 0 | AG121: 0 | AH121: 0 | AI121: 0 | AJ121: 0 | AK121: 227131 | AL121: 0 | AM121: 0
C122: Jurídica | D122: 11 | E122: BOGOTÁ, D.C. | F122: 11001 | G122: BOGOTÁ, D.C. | I122: COMERCIO AL POR MAYOR Y AL POR MENOR; REPARACIÓN DE VEHÍCULOS AUTOMOTORES Y MOTOCICLETAS | P122: 681393 | V122: 0 | W122: 0 | X122: Jurídica | Y122: 5 | Z122: ANTIOQUIA | AA122: 5001 | AB122: MEDELLÍN | AC122: 0 | AD122: CONSTRUCCIÓN | AE122: 0 | AF122: 0 | AG122: 0 | AH122: 0 | AI122: 0 | AJ122: 0 | AK122: 227131 | AL122: 0 | AM122: 0
C123: Jurídica | D123: 27 | E123: CHOCÓ | F123: 27361 | G123: ISTMINA | I123: COMERCIO AL POR MAYOR Y AL POR MENOR; REPARACIÓN DE VEHÍCULOS AUTOMOTORES Y MOTOCICLETAS | P123: 454262 | V123: 0 | W123: 0 | X123: Jurídica | Y123: 5 | Z123: ANTIOQUIA | AA123: 5001 | AB123: MEDELLÍN | AC123: 0 | AD123: ALOJAMIENTO Y SERVICIOS DE COMIDA | AE123: 0 | AF123: 0 | AG123: 0 | AH123: 0 | AI123: 0 | AJ123: 0 | AK123: 454262 | AL123: 0 | AM123: 0
C124: Jurídica | D124: 11 | E124: BOGOTÁ, D.C. | F124: 11001 | G124: BOGOTÁ, D.C. | I124: TRANSPORTE Y ALMACENAMIENTO | P124: 2271310 | V124: 0 | W124: 0 | X124: Jurídica | Y124: 5 | Z124: ANTIOQUIA | AA124: 5001 | AB124: MEDELLÍN | AC124: 0 | AD124: CONSTRUCCIÓN | AE124: 0 | AF124: 0 | AG124: 0 | AH124: 0 | AI124: 0 | AJ124: 0 | AK124: 0 | AL124: 0 | AM124: 0
C125: Jurídica | D125: 5 | E125: ANTIOQUIA | F125: 5360 | G125: ITAGUI | I125: INDUSTRIAS MANUFACTURERAS | P125: 8858109 | V125: 0 | W125: 0 | X125: Jurídica | Y125: 5 | Z125: ANTIOQUIA | AA125: 5001 | AB125: MEDELLÍN | AC125: 0 | AD125: INFORMACIÓN Y COMUNICACIONES | AE125: 0 | AF125: 0 | AG125: 0 | AH125: 0 | AI125: 0 | AJ125: 0 | AK125: 0 | AL125: 0 | AM125: 0
C126: Jurídica | D126: 11 | E126: BOGOTÁ, D.C. | F126: 11001 | G126: BOGOTÁ, D.C. | I126: COMERCIO AL POR MAYOR Y AL POR MENOR; REPARACIÓN DE VEHÍCULOS AUTOMOTORES Y MOTOCICLETAS | P126: 0 | V126: 0 | W126: 0 | X126: Jurídica | Y126: 5 | Z126: ANTIOQUIA | AA126: 5045 | AB126: APARTADÓ | AC126: 0 | AD126: DISTRIBUCIÓN DE AGUA; EVACUACIÓN Y TRATAMIENTO DE AGUAS RESIDUALES, GESTIÓN DE DESECHOS Y ACTIVIDADES DE SANEAMIENTO AMBIENTAL | AE126: 0 | AF126: 0 | AG126: 0 | AH126: 0 | AI126: 0 | AJ126: 0 | AK126: 454262 | AL126: 0 | AM126: 0
C127: Jurídica | D127: 5 | E127: ANTIOQUIA | F127: 5615 | G127: RIONEGRO | I127: CONSTRUCCIÓN | P127: 0 | V127: 0 | W127: 0 | X127: Jurídica | Y127: 5 | Z127: ANTIOQUIA | AA127: 5360 | AB127: ITAGUI | AC127: 0 | AD127: COMERCIO AL POR MAYOR Y AL POR MENOR; REPARACIÓN DE VEHÍCULOS AUTOMOTORES Y MOTOCICLETAS | AE127: 0 | AF127: 0 | AG127: 0 | AH127: 0 | AI127: 0 | AJ127: 0 | AK127: 0 | AL127: 0 | AM127: 0
C128: Jurídica | D128: 11 | E128: BOGOTÁ, D.C. | F128: 11001 | G128: BOGOTÁ, D.C. | I128: INDUSTRIAS MANUFACTURERAS | P128: 681393 | V128: 0 | W128: 0 | X128: Jurídica | Y128: 5 | Z128: ANTIOQUIA | AA128: 5615 | AB128: RIONEGRO | AC128: 0 | AD128: COMERCIO AL POR MAYOR Y AL POR MENOR; REPARACIÓN DE VEHÍCULOS AUTOMOTORES Y MOTOCICLETAS | AE128: 0 | AF128: 0 | AG128: 0 | AH128: 0 | AI128: 0 | AJ128: 0 | AK128: 0 | AL128: 0 | AM128: 0
C129: Jurídica | D129: 11 | E129: BOGOTÁ, D.C. | F129: 11001 | G129: BOGOTÁ, D.C. | I129: ACTIVIDADES PROFESIONALES, CIENTÍFICAS Y TÉCNICAS | P129: 0 | V129: 0 | W129: 0 | X129: Jurídica | Y129: 5 | Z129: ANTIOQUIA | AA129: 5001 | AB129: MEDELLÍN | AC129: 0 | AD129: INDUSTRIAS MANUFACTURERAS | AE129: 0 | AF129: 0 | AG129: 0 | AH129: 0 | AI129: 0 | AJ129: 0 | AK129: 454262 | AL129: 0 | AM129: 0
C130: Jurídica | D130: 76 | E130: VALLE DEL CAUCA | F130: 76001 | G130: CALI | I130: INFORMACIÓN Y COMUNICACIONES | P130: 227131 | V130: 0 | W130: 0 | X130: Natural | Y130: 5 | Z130: ANTIOQUIA | AA130: 5001 | AB130: MEDELLÍN | AC130: 0 | AD130: ACTIVIDADES DE SERVICIOS ADMINISTRATIVOS Y DE APOYO | AE130: 0 | AF130: 0 | AG130: 0 | AH130: 0 | AI130: 0 | AJ130: 0 | AK130: 0 | AL130: 0 | AM130: 0
C131: Jurídica | D131: 11 | E131: BOGOTÁ, D.C. | F131: 11001 | G131: BOGOTÁ, D.C. | I131: CONSTRUCCIÓN | P131: 227131 | V131: 0 | W131: 0 | X131: Jurídica | Y131: 5 | Z131: ANTIOQUIA | AA131: 5001 | AB131: MEDELLÍN | AC131: 0 | AD131: COMERCIO AL POR MAYOR Y AL POR MENOR; REPARACIÓN DE VEHÍCULOS AUTOMOTORES Y MOTOCICLETAS | AE131: 0 | AF131: 0 | AG131: 0 | AH131: 0 | AI131: 0 | AJ131: 0 | AK131: 1589917 | AL131: 0 | AM131: 0
C132: Jurídica | D132: 5 | E132: ANTIOQUIA | F132: 5266 | G132: ENVIGADO | I132: ACTIVIDADES DE SERVICIOS ADMINISTRATIVOS Y DE APOYO | P132: 0 | V132: 0 | W132: 0 | X132: Jurídica | Y132: 5 | Z132: ANTIOQUIA | AA132: 5631 | AB132: SABANETA | AC132: 0 | AD132: COMERCIO AL POR MAYOR Y AL POR MENOR; REPARACIÓN DE VEHÍCULOS AUTOMOTORES Y MOTOCICLETAS | AE132: 0 | AF132: 0 | AG132: 0 | AH132: 0 | AI132: 0 | AJ132: 0 | AK132: 0 | AL132: 0 | AM132: 0
C133: Jurídica | D133: 5 | E133: ANTIOQUIA | F133: 5001 | G133: MEDELLÍN | I133: ACTIVIDADES DE ATENCIÓN DE LA SALUD HUMANA Y DE ASISTENCIA SOCIAL | P133: 2271310 | V133: 0 | W133: 0 | X133: Jurídica | Y133: 5 | Z133: ANTIOQUIA | AA133: 5001 | AB133: MEDELLÍN | AC133: 0 | AD133: INDUSTRIAS MANUFACTURERAS | AE133: 0 | AF133: 0 | AG133: 0 | AH133: 0 | AI133: 0 | AJ133: 0 | AK133: 0 | AL133: 0 | AM133: 0
C134: Jurídica | D134: 5 | E134: ANTIOQUIA | F134: 5001 | G134: MEDELLÍN | I134: ALOJAMIENTO Y SERVICIOS DE COMIDA | P134: 454262 | V134: 0 | W134: 0 | X134: Jurídica | Y134: 5 | Z134: ANTIOQUIA | AA134: 5380 | AB134: LA ESTRELLA | AC134: 0 | AD134: AGRICULTURA, GANADERÍA, CAZA, SILVICULTURA Y PESCA | AE134: 0 | AF134: 0 | AG134: 0 | AH134: 0 | AI134: 0 | AJ134: 0 | AK134: 0 | AL134: 0 | AM134: 0
C135: Jurídica | D135: 5 | E135: ANTIOQUIA | F135: 5001 | G135: MEDELLÍN | I135: INFORMACIÓN Y COMUNICACIONES | P135: 0 | V135: 0 | W135: 0 | X135: Jurídica | Y135: 5 | Z135: ANTIOQUIA | AA135: 5001 | AB135: MEDELLÍN | AC135: 0 | AD135: INDUSTRIAS MANUFACTURERAS | AE135: 0 | AF135: 0 | AG135: 0 | AH135: 0 | AI135: 0 | AJ135: 0 | AK135: 227131 | AL135: 0 | AM135: 0
C136: Jurídica | D136: 5 | E136: ANTIOQUIA | F136: 5660 | G136: SAN LUIS | I136: CONSTRUCCIÓN | P136: 0 | V136: 0 | W136: 0 | X136: Jurídica | Y136: 5 | Z136: ANTIOQUIA | AA136: 5001 | AB136: MEDELLÍN | AC136: 0 | AD136: INDUSTRIAS MANUFACTURERAS | AE136: 0 | AF136: 0 | AG136: 0 | AH136: 0 | AI136: 0 | AJ136: 0 | AK136: 0 | AL136: 0 | AM136: 0
C137: Jurídica | D137: 5 | E137: ANTIOQUIA | F137: 5266 | G137: ENVIGADO | I137: INFORMACIÓN Y COMUNICACIONES | P137: 227131 | V137: 0 | W137: 0 | X137: Jurídica | Y137: 5 | Z137: ANTIOQUIA | AA137: 5360 | AB137: ITAGUI | AC137: 0 | AD137: INDUSTRIAS MANUFACTURERAS | AE137: 0 | AF137: 0 | AG137: 0 | AH137: 0 | AI137: 0 | AJ137: 0 | AK137: 908524 | AL137: 0 | AM137: 0
C138: Jurídica | D138: 5 | E138: ANTIOQUIA | F138: 5001 | G138: MEDELLÍN | I138: COMERCIO AL POR MAYOR Y AL POR MENOR; REPARACIÓN DE VEHÍCULOS AUTOMOTORES Y MOTOCICLETAS | P138: 0 | V138: 0 | W138: 0 | X138: Jurídica | Y138: 5 | Z138: ANTIOQUIA | AA138: 5380 | AB138: LA ESTRELLA | AC138: 0 | AD138: INDUSTRIAS MANUFACTURERAS | AE138: 0 | AF138: 0 | AG138: 0 | AH138: 0 | AI138: 0 | AJ138: 0 | AK138: 0 | AL138: 0 | AM138: 0
C139: Jurídica | D139: 11 | E139: BOGOTÁ, D.C. | F139: 11001 | G139: BOGOTÁ, D.C. | I139: COMERCIO AL POR MAYOR Y AL POR MENOR; REPARACIÓN DE VEHÍCULOS AUTOMOTORES Y MOTOCICLETAS | P139: 0 | V139: 0 | W139: 0 | X139: Jurídica | Y139: 5 | Z139: ANTIOQUIA | AA139: 5631 | AB139: SABANETA | AC139: 0 | AD139: CONSTRUCCIÓN | AE139: 0 | AF139: 0 | AG139: 0 | AH139: 0 | AI139: 0 | AJ139: 0 | AK139: 454262 | AL139: 0 | AM139: 0
C140: Jurídica | D140: 5 | E140: ANTIOQUIA | F140: 5001 | G140: MEDELLÍN | I140: ACTIVIDADES DE SERVICIOS ADMINISTRATIVOS Y DE APOYO | P140: 0 | V140: 0 | W140: 0 | X140: Jurídica | Y140: 5 | Z140: ANTIOQUIA | AA140: 5001 | AB140: MEDELLÍN | AC140: 0 | AD140: AGRICULTURA, GANADERÍA, CAZA, SILVICULTURA Y PESCA | AE140: 0 | AF140: 0 | AG140: 0 | AH140: 0 | AI140: 0 | AJ140: 0 | AK140: 227131 | AL140: 0 | AM140: 0
C141: Jurídica | D141: 5 | E141: ANTIOQUIA | F141: 5001 | G141: MEDELLÍN | I141: ALOJAMIENTO Y SERVICIOS DE COMIDA | P141: 0 | V141: 0 | W141: 0 | X141: Jurídica | Y141: 5 | Z141: ANTIOQUIA | AA141: 5001 | AB141: MEDELLÍN | AC141: 0 | AD141: INDUSTRIAS MANUFACTURERAS | AE141: 0 | AF141: 0 | AG141: 0 | AH141: 0 | AI141: 0 | AJ141: 0 | AK141: 0 | AL141: 0 | AM141: 0
C142: Jurídica | D142: 5 | E142: ANTIOQUIA | F142: 5266 | G142: ENVIGADO | I142: ACTIVIDADES PROFESIONALES, CIENTÍFICAS Y TÉCNICAS | P142: 0 | V142: 0 | W142: 0 | X142: Jurídica | Y142: 5 | Z142: ANTIOQUIA | AA142: 5045 | AB142: APARTADÓ | AC142: 0 | AD142: ACTIVIDADES DE ATENCIÓN DE LA SALUD HUMANA Y DE ASISTENCIA SOCIAL | AE142: 0 | AF142: 0 | AG142: 0 | AH142: 0 | AI142: 0 | AJ142: 0 | AK142: 0 | AL142: 0 | AM142: 0
C143: Jurídica | D143: 11 | E143: BOGOTÁ, D.C. | F143: 11001 | G143: BOGOTÁ, D.C. | I143: ACTIVIDADES DE SERVICIOS ADMINISTRATIVOS Y DE APOYO | P143: 0 | V143: 0 | W143: 0 | X143: Jurídica | Y143: 5 | Z143: ANTIOQUIA | AA143: 5376 | AB143: LA CEJA | AC143: 0 | AD143: COMERCIO AL POR MAYOR Y AL POR MENOR; REPARACIÓN DE VEHÍCULOS AUTOMOTORES Y MOTOCICLETAS | AE143: 0 | AF143: 0 | AG143: 0 | AH143: 0 | AI143: 0 | AJ143: 0 | AK143: 1362786 | AL143: 0 | AM143: 0
C144: Jurídica | D144: 11 | E144: BOGOTÁ, D.C. | F144: 11001 | G144: BOGOTÁ, D.C. | I144: INDUSTRIAS MANUFACTURERAS | P144: 454262 | V144: 0 | W144: 0 | X144: Jurídica | Y144: 5 | Z144: ANTIOQUIA | AA144: 5001 | AB144: MEDELLÍN | AC144: 0 | AD144: COMERCIO AL POR MAYOR Y AL POR MENOR; REPARACIÓN DE VEHÍCULOS AUTOMOTORES Y MOTOCICLETAS | AE144: 0 | AF144: 0 | AG144: 0 | AH144: 0 | AI144: 0 | AJ144: 0 | AK144: 0 | AL144: 0 | AM144: 0
C145: Jurídica | D145: 68 | E145: SANTANDER | F145: 68001 | G145: BUCARAMANGA | I145: ACTIVIDADES DE SERVICIOS ADMINISTRATIVOS Y DE APOYO | P145: 16353432 | V145: 0 | W145: 0 | X145: Jurídica | Y145: 5 | Z145: ANTIOQUIA | AA145: 5360 | AB145: ITAGUI | AC145: 0 | AD145: COMERCIO AL POR MAYOR Y AL POR MENOR; REPARACIÓN DE VEHÍCULOS AUTOMOTORES Y MOTOCICLETAS | AE145: 0 | AF145: 0 | AG145: 0 | AH145: 0 | AI145: 0 | AJ145: 0 | AK145: 0 | AL145: 0 | AM145: 0
C146: Jurídica | D146: 11 | E146: BOGOTÁ, D.C. | F146: 11001 | G146: BOGOTÁ, D.C. | I146: INDUSTRIAS MANUFACTURERAS | P146: 0 | V146: 0 | W146: 0 | X146: Jurídica | Y146: 5 | Z146: ANTIOQUIA | AA146: 5360 | AB146: ITAGUI | AC146: 0 | AD146: INDUSTRIAS MANUFACTURERAS | AE146: 0 | AF146: 0 | AG146: 0 | AH146: 0 | AI146: 0 | AJ146: 0 | AK146: 0 | AL146: 0 | AM146: 0
C147: Jurídica | D147: 25 | E147: CUNDINAMARCA | F147: 25269 | G147: FACATATIVÁ | I147: COMERCIO AL POR MAYOR Y AL POR MENOR; REPARACIÓN DE VEHÍCULOS AUTOMOTORES Y MOTOCICLETAS | P147: 681393 | V147: 0 | W147: 0 | X147: Jurídica | Y147: 5 | Z147: ANTIOQUIA | AA147: 5656 | AB147: SAN JERÓNIMO | AC147: 0 | AD147: ALOJAMIENTO Y SERVICIOS DE COMIDA | AE147: 0 | AF147: 0 | AG147: 0 | AH147: 0 | AI147: 0 | AJ147: 0 | AK147: 0 | AL147: 0 | AM147: 0
C148: Jurídica | D148: 5 | E148: ANTIOQUIA | F148: 5001 | G148: MEDELLÍN | I148: INFORMACIÓN Y COMUNICACIONES | P148: 0 | V148: 0 | W148: 0 | X148: Jurídica | Y148: 5 | Z148: ANTIOQUIA | AA148: 5380 | AB148: LA ESTRELLA | AC148: 0 | AD148: INDUSTRIAS MANUFACTURERAS | AE148: 0 | AF148: 0 | AG148: 0 | AH148: 0 | AI148: 0 | AJ148: 0 | AK148: 0 | AL148: 0 | AM148: 0
C149: Jurídica | D149: 5 | E149: ANTIOQUIA | F149: 5001 | G149: MEDELLÍN | I149: CONSTRUCCIÓN | P149: 227131 | V149: 0 | W149: 0 | X149: Jurídica | Y149: 5 | Z149: ANTIOQUIA | AA149: 5001 | AB149: MEDELLÍN | AC149: 0 | AD149: INDUSTRIAS MANUFACTURERAS | AE149: 0 | AF149: 0 | AG149: 0 | AH149: 0 | AI149: 0 | AJ149: 0 | AK149: 2952703 | AL149: 0 | AM149: 0
C150: Jurídica | D150: 5 | E150: ANTIOQUIA | F150: 5001 | G150: MEDELLÍN | I150: CONSTRUCCIÓN | P150: 908524 | V150: 0 | W150: 0 | X150: Natural | Y150: 5 | Z150: ANTIOQUIA | AA150: 5001 | AB150: MEDELLÍN | AC150: 0 | AD150: INDUSTRIAS MANUFACTURERAS | AE150: 0 | AF150: 0 | AG150: 0 | AH150: 0 | AI150: 0 | AJ150: 0 | AK150: 0 | AL150: 0 | AM150: 0
C151: Natural | D151: 23 | E151: CÓRDOBA | F151: 23001 | G151: MONTERÍA | I151: CONSTRUCCIÓN | P151: 0 | V151: 0 | W151: 0 | X151: Jurídica | Y151: 5 | Z151: ANTIOQUIA | AA151: 5001 | AB151: MEDELLÍN | AC151: 0 | AD151: ACTIVIDADES PROFESIONALES, CIENTÍFICAS Y TÉCNICAS | AE151: 0 | AF151: 0 | AG151: 0 | AH151: 0 | AI151: 0 | AJ151: 0 | AK151: 227131 | AL151: 0 | AM151: 0
C152: Jurídica | D152: 5 | E152: ANTIOQUIA | F152: 5615 | G152: RIONEGRO | I152: TRANSPORTE Y ALMACENAMIENTO | P152: 227131 | V152: 0 | W152: 0 | X152: Jurídica | Y152: 5 | Z152: ANTIOQUIA | AA152: 5001 | AB152: MEDELLÍN | AC152: 0 | AD152: INDUSTRIAS MANUFACTURERAS | AE152: 0 | AF152: 0 | AG152: 0 | AH152: 0 | AI152: 0 | AJ152: 0 | AK152: 0 | AL152: 0 | AM152: 0
C153: Jurídica | D153: 11 | E153: BOGOTÁ, D.C. | F153: 11001 | G153: BOGOTÁ, D.C. | I153: ACTIVIDADES DE SERVICIOS ADMINISTRATIVOS Y DE APOYO | P153: 3634096 | V153: 0 | W153: 0 | X153: Jurídica | Y153: 5 | Z153: ANTIOQUIA | AA153: 5001 | AB153: MEDELLÍN | AC153: 0 | AD153: AGRICULTURA, GANADERÍA, CAZA, SILVICULTURA Y PESCA | AE153: 0 | AF153: 0 | AG153: 0 | AH153: 0 | AI153: 0 | AJ153: 0 | AK153: 0 | AL153: 0 | AM153: 0
C154: Jurídica | D154: 5 | E154: ANTIOQUIA | F154: 5212 | G154: COPACABANA | I154: COMERCIO AL POR MAYOR Y AL POR MENOR; REPARACIÓN DE VEHÍCULOS AUTOMOTORES Y MOTOCICLETAS | P154: 227131 | V154: 0 | W154: 0 | X154: Jurídica | Y154: 5 | Z154: ANTIOQUIA | AA154: 5376 | AB154: LA CEJA | AC154: 0 | AD154: AGRICULTURA, GANADERÍA, CAZA, SILVICULTURA Y PESCA | AE154: 0 | AF154: 0 | AG154: 0 | AH154: 0 | AI154: 0 | AJ154: 0 | AK154: 3634096 | AL154: 0 | AM154: 0
C155: Jurídica | D155: 8 | E155: ATLÁNTICO | F155: 8001 | G155: BARRANQUILLA | I155: INDUSTRIAS MANUFACTURERAS | P155: 0 | V155: 0 | W155: 0 | X155: Jurídica | Y155: 5 | Z155: ANTIOQUIA | AA155: 5001 | AB155: MEDELLÍN | AC155: 0 | AD155: TRANSPORTE Y ALMACENAMIENTO | AE155: 0 | AF155: 0 | AG155: 0 | AH155: 0 | AI155: 0 | AJ155: 0 | AK155: 454262 | AL155: 0 | AM155: 0
C156: Jurídica | D156: 11 | E156: BOGOTÁ, D.C. | F156: 11001 | G156: BOGOTÁ, D.C. | I156: COMERCIO AL POR MAYOR Y AL POR MENOR; REPARACIÓN DE VEHÍCULOS AUTOMOTORES Y MOTOCICLETAS | P156: 908524 | V156: 0 | W156: 0 | X156: Jurídica | Y156: 5 | Z156: ANTIOQUIA | AA156: 5380 | AB156: LA ESTRELLA | AC156: 0 | AD156: COMERCIO AL POR MAYOR Y AL POR MENOR; REPARACIÓN DE VEHÍCULOS AUTOMOTORES Y MOTOCICLETAS | AE156: 0 | AF156: 0 | AG156: 0 | AH156: 0 | AI156: 0 | AJ156: 0 | AK156: 0 | AL156: 0 | AM156: 0
C157: Jurídica | D157: 11 | E157: BOGOTÁ, D.C. | F157: 11001 | G157: BOGOTÁ, D.C. | I157: COMERCIO AL POR MAYOR Y AL POR MENOR; REPARACIÓN DE VEHÍCULOS AUTOMOTORES Y MOTOCICLETAS | P157: 227131 | V157: 0 | W157: 0 | X157: Jurídica | Y157: 5 | Z157: ANTIOQUIA | AA157: 5001 | AB157: MEDELLÍN | AC157: 0 | AD157: CONSTRUCCIÓN | AE157: 0 | AF157: 0 | AG157: 0 | AH157: 0 | AI157: 0 | AJ157: 0 | AK157: 454262 | AL157: 0 | AM157: 0
C158: Jurídica | D158: 8 | E158: ATLÁNTICO | F158: 8573 | G158: PUERTO COLOMBIA | I158: CONSTRUCCIÓN | P158: 681393 | V158: 0 | W158: 0 | X158: Natural | Y158: 5 | Z158: ANTIOQUIA | AA158: 5631 | AB158: SABANETA | AC158: 0 | AD158: ALOJAMIENTO Y SERVICIOS DE COMIDA | AE158: 0 | AF158: 0 | AG158: 0 | AH158: 0 | AI158: 0 | AJ158: 0 | AK158: 227131 | AL158: 0 | AM158: 0
C159: Jurídica | D159: 5 | E159: ANTIOQUIA | F159: 5001 | G159: MEDELLÍN | I159: ALOJAMIENTO Y SERVICIOS DE COMIDA | P159: 6586799 | V159: 0 | W159: 0 | X159: Jurídica | Y159: 5 | Z159: ANTIOQUIA | AA159: 5001 | AB159: MEDELLÍN | AC159: 0 | AD159: ACTIVIDADES FINANCIERAS Y DE SEGUROS | AE159: 0 | AF159: 0 | AG159: 0 | AH159: 0 | AI159: 0 | AJ159: 0 | AK159: 681393 | AL159: 0 | AM159: 0
C160: Natural | D160: 5 | E160: ANTIOQUIA | F160: 5360 | G160: ITAGUI | I160: COMERCIO AL POR MAYOR Y AL POR MENOR; REPARACIÓN DE VEHÍCULOS AUTOMOTORES Y MOTOCICLETAS | P160: 0 | V160: 0 | W160: 0 | X160: Natural | Y160: 5 | Z160: ANTIOQUIA | AA160: 5001 | AB160: MEDELLÍN | AC160: 0 | AD160: COMERCIO AL POR MAYOR Y AL POR MENOR; REPARACIÓN DE VEHÍCULOS AUTOMOTORES Y MOTOCICLETAS | AE160: 0 | AF160: 0 | AG160: 0 | AH160: 0 | AI160: 0 | AJ160: 0 | AK160: 0 | AL160: 0 | AM160: 0
C161: Jurídica | D161: 11 | E161: BOGOTÁ, D.C. | F161: 11001 | G161: BOGOTÁ, D.C. | I161: ACTIVIDADES PROFESIONALES, CIENTÍFICAS Y TÉCNICAS | P161: 0 | V161: 0 | W161: 0 | X161: Jurídica | Y161: 5 | Z161: ANTIOQUIA | AA161: 5266 | AB161: ENVIGADO | AC161: 0 | AD161: INDUSTRIAS MANUFACTURERAS | AE161: 0 | AF161: 0 | AG161: 0 | AH161: 0 | AI161: 0 | AJ161: 0 | AK161: 0 | AL161: 0 | AM161: 0
C162: Jurídica | D162: 5 | E162: ANTIOQUIA | F162: 5001 | G162: MEDELLÍN | I162: CONSTRUCCIÓN | P162: 1362786 | V162: 0 | W162: 0 | X162: Jurídica | Y162: 5 | Z162: ANTIOQUIA | AA162: 5266 | AB162: ENVIGADO | AC162: 0 | AD162: COMERCIO AL POR MAYOR Y AL POR MENOR; REPARACIÓN DE VEHÍCULOS AUTOMOTORES Y MOTOCICLETAS | AE162: 0 | AF162: 0 | AG162: 0 | AH162: 0 | AI162: 0 | AJ162: 0 | AK162: 0 | AL162: 0 | AM162: 0
C163: Jurídica | D163: 15 | E163: BOYACÁ | F163: 15176 | G163: CHIQUINQUIRÁ | I163: CONSTRUCCIÓN | P163: 454262 | V163: 0 | W163: 0 | X163: Jurídica | Y163: 5 | Z163: ANTIOQUIA | AA163: 5615 | AB163: RIONEGRO | AC163: 0 | AD163: INDUSTRIAS MANUFACTURERAS | AE163: 0 | AF163: 0 | AG163: 0 | AH163: 0 | AI163: 0 | AJ163: 0 | AK163: 0 | AL163: 0 | AM163: 0
C164: Jurídica | D164: 5 | E164: ANTIOQUIA | F164: 5001 | G164: MEDELLÍN | I164: INDUSTRIAS MANUFACTURERAS | P164: 0 | V164: 0 | W164: 0 | X164: Jurídica | Y164: 5 | Z164: ANTIOQUIA | AA164: 5001 | AB164: MEDELLÍN | AC164: 0 | AD164: INDUSTRIAS MANUFACTURERAS | AE164: 0 | AF164: 0 | AG164: 0 | AH164: 0 | AI164: 0 | AJ164: 0 | AK164: 0 | AL164: 0 | AM164: 0
C165: Jurídica | D165: 11 | E165: BOGOTÁ, D.C. | F165: 11001 | G165: BOGOTÁ, D.C. | I165: INFORMACIÓN Y COMUNICACIONES | P165: 0 | V165: 0 | W165: 0 | X165: Jurídica | Y165: 5 | Z165: ANTIOQUIA | AA165: 5001 | AB165: MEDELLÍN | AC165: 0 | AD165: EDUCACIÓN | AE165: 0 | AF165: 0 | AG165: 0 | AH165: 0 | AI165: 0 | AJ165: 0 | AK165: 0 | AL165: 0 | AM165: 0
C166: Jurídica | D166: 5 | E166: ANTIOQUIA | F166: 5308 | G166: GIRARDOTA | I166: INDUSTRIAS MANUFACTURERAS | P166: 0 | V166: 0 | W166: 0 | X166: Jurídica | Y166: 5 | Z166: ANTIOQUIA | AA166: 5001 | AB166: MEDELLÍN | AC166: 0 | AD166: ACTIVIDADES PROFESIONALES, CIENTÍFICAS Y TÉCNICAS | AE166: 0 | AF166: 0 | AG166: 0 | AH166: 0 | AI166: 0 | AJ166: 0 | AK166: 454262 | AL166: 0 | AM166: 0
C167: Jurídica | D167: 5 | E167: ANTIOQUIA | F167: 5001 | G167: MEDELLÍN | I167: ACTIVIDADES FINANCIERAS Y DE SEGUROS | P167: 454262 | V167: 0 | W167: 0 | X167: Jurídica | Y167: 5 | Z167: ANTIOQUIA | AA167: 5001 | AB167: MEDELLÍN | AC167: 0 | AD167: ACTIVIDADES PROFESIONALES, CIENTÍFICAS Y TÉCNICAS | AE167: 0 | AF167: 0 | AG167: 0 | AH167: 0 | AI167: 0 | AJ167: 0 | AK167: 0 | AL167: 0 | AM167: 0
C168: Jurídica | D168: 5 | E168: ANTIOQUIA | F168: 5266 | G168: ENVIGADO | I168: ACTIVIDADES PROFESIONALES, CIENTÍFICAS Y TÉCNICAS | P168: 0 | V168: 0 | W168: 0 | X168: Jurídica | Y168: 5 | Z168: ANTIOQUIA | AA168: 5001 | AB168: MEDELLÍN | AC168: 0 | AD168: ALOJAMIENTO Y SERVICIOS DE COMIDA | AE168: 0 | AF168: 0 | AG168: 0 | AH168: 0 | AI168: 0 | AJ168: 0 | AK168: 0 | AL168: 0 | AM168: 0
C169: Jurídica | D169: 5 | E169: ANTIOQUIA | F169: 5001 | G169: MEDELLÍN | I169: ACTIVIDADES PROFESIONALES, CIENTÍFICAS Y TÉCNICAS | P169: 227131 | V169: 0 | W169: 0 | X169: Jurídica | Y169: 5 | Z169: ANTIOQUIA | AA169: 5001 | AB169: MEDELLÍN | AC169: 0 | AD169: COMERCIO AL POR MAYOR Y AL POR MENOR; REPARACIÓN DE VEHÍCULOS AUTOMOTORES Y MOTOCICLETAS | AE169: 0 | AF169: 0 | AG169: 0 | AH169: 0 | AI169: 0 | AJ169: 0 | AK169: 227131 | AL169: 0 | AM169: 0
C170: Jurídica | D170: 50 | E170: META | F170: 50001 | G170: VILLAVICENCIO | I170: ACTIVIDADES ARTÍSTICAS, DE ENTRETENIMIENTO Y RECREACIÓN | P170: 0 | V170: 0 | W170: 0 | X170: Jurídica | Y170: 5 | Z170: ANTIOQUIA | AA170: 5266 | AB170: ENVIGADO | AC170: 0 | AD170: COMERCIO AL POR MAYOR Y AL POR MENOR; REPARACIÓN DE VEHÍCULOS AUTOMOTORES Y MOTOCICLETAS | AE170: 0 | AF170: 0 | AG170: 0 | AH170: 0 | AI170: 0 | AJ170: 0 | AK170: 0 | AL170: 0 | AM170: 0
C171: Jurídica | D171: 73 | E171: TOLIMA | F171: 73001 | G171: IBAGUÉ | I171: ACTIVIDADES DE SERVICIOS ADMINISTRATIVOS Y DE APOYO | P171: 0 | V171: 0 | W171: 0 | X171: Jurídica | Y171: 5 | Z171: ANTIOQUIA | AA171: 5001 | AB171: MEDELLÍN | AC171: 0 | AD171: COMERCIO AL POR MAYOR Y AL POR MENOR; REPARACIÓN DE VEHÍCULOS AUTOMOTORES Y MOTOCICLETAS | AE171: 0 | AF171: 0 | AG171: 0 | AH171: 0 | AI171: 0 | AJ171: 0 | AK171: 908524 | AL171: 0 | AM171: 0
C172: Jurídica | D172: 76 | E172: VALLE DEL CAUCA | F172: 76001 | G172: CALI | I172: ACTIVIDADES DE ATENCIÓN DE LA SALUD HUMANA Y DE ASISTENCIA SOCIAL | P172: 227131 | V172: 0 | W172: 0 | X172: Jurídica | Y172: 5 | Z172: ANTIOQUIA | AA172: 5001 | AB172: MEDELLÍN | AC172: 0 | AD172: INDUSTRIAS MANUFACTURERAS | AE172: 0 | AF172: 0 | AG172: 0 | AH172: 0 | AI172: 0 | AJ172: 0 | AK172: 0 | AL172: 0 | AM172: 0
C173: Natural | D173: 73 | E173: TOLIMA | F173: 73001 | G173: IBAGUÉ | I173: COMERCIO AL POR MAYOR Y AL POR MENOR; REPARACIÓN DE VEHÍCULOS AUTOMOTORES Y MOTOCICLETAS | P173: 227131 | V173: 0 | W173: 0 | X173: Jurídica | Y173: 5 | Z173: ANTIOQUIA | AA173: 5001 | AB173: MEDELLÍN | AC173: 0 | AD173: ACTIVIDADES DE SERVICIOS ADMINISTRATIVOS Y DE APOYO | AE173: 0 | AF173: 0 | AG173: 0 | AH173: 0 | AI173: 0 | AJ173: 0 | AK173: 454262 | AL173: 0 | AM173: 0
C174: Jurídica | D174: 8 | E174: ATLÁNTICO | F174: 8001 | G174: BARRANQUILLA | I174: INDUSTRIAS MANUFACTURERAS | P174: 454262 | V174: 0 | W174: 0 | X174: Jurídica | Y174: 5 | Z174: ANTIOQUIA | AA174: 5001 | AB174: MEDELLÍN | AC174: 0 | AD174: ACTIVIDADES PROFESIONALES, CIENTÍFICAS Y TÉCNICAS | AE174: 0 | AF174: 0 | AG174: 0 | AH174: 0 | AI174: 0 | AJ174: 0 | AK174: 681393 | AL174: 0 | AM174: 0
C175: Jurídica | D175: 11 | E175: BOGOTÁ, D.C. | F175: 11001 | G175: BOGOTÁ, D.C. | I175: CONSTRUCCIÓN | P175: 1362786 | V175: 0 | W175: 0 | X175: Jurídica | Y175: 5 | Z175: ANTIOQUIA | AA175: 5001 | AB175: MEDELLÍN | AC175: 0 | AD175: INFORMACIÓN Y COMUNICACIONES | AE175: 0 | AF175: 0 | AG175: 0 | AH175: 0 | AI175: 0 | AJ175: 0 | AK175: 3406965 | AL175: 0 | AM175: 0
C176: Jurídica | D176: 5 | E176: ANTIOQUIA | F176: 5001 | G176: MEDELLÍN | I176: ACTIVIDADES DE SERVICIOS ADMINISTRATIVOS Y DE APOYO | P176: 0 | V176: 0 | W176: 0 | X176: Natural | Y176: 5 | Z176: ANTIOQUIA | AA176: 5001 | AB176: MEDELLÍN | AC176: 0 | AD176: COMERCIO AL POR MAYOR Y AL POR MENOR; REPARACIÓN DE VEHÍCULOS AUTOMOTORES Y MOTOCICLETAS | AE176: 0 | AF176: 0 | AG176: 0 | AH176: 0 | AI176: 0 | AJ176: 0 | AK176: 0 | AL176: 0 | AM176: 0
C177: Jurídica | D177: 23 | E177: CÓRDOBA | F177: 23001 | G177: MONTERÍA | I177: CONSTRUCCIÓN | P177: 227131 | V177: 0 | W177: 0 | X177: Jurídica | Y177: 5 | Z177: ANTIOQUIA | AA177: 5001 | AB177: MEDELLÍN | AC177: 0 | AD177: ACTIVIDADES DE SERVICIOS ADMINISTRATIVOS Y DE APOYO | AE177: 0 | AF177: 0 | AG177: 0 | AH177: 0 | AI177: 0 | AJ177: 0 | AK177: 454262 | AL177: 0 | AM177: 0
C178: Jurídica | D178: 5 | E178: ANTIOQUIA | F178: 5001 | G178: MEDELLÍN | I178: ACTIVIDADES DE ATENCIÓN DE LA SALUD HUMANA Y DE ASISTENCIA SOCIAL | P178: 0 | V178: 0 | W178: 0 | X178: Jurídica | Y178: 5 | Z178: ANTIOQUIA | AA178: 5001 | AB178: MEDELLÍN | AC178: 0 | AD178: CONSTRUCCIÓN | AE178: 0 | AF178: 0 | AG178: 0 | AH178: 0 | AI178: 0 | AJ178: 0 | AK178: 0 | AL178: 0 | AM178: 0
C179: Jurídica | D179: 15 | E179: BOYACÁ | F179: 15001 | G179: TUNJA | I179: DISTRIBUCIÓN DE AGUA; EVACUACIÓN Y TRATAMIENTO DE AGUAS RESIDUALES, GESTIÓN DE DESECHOS Y ACTIVIDADES DE SANEAMIENTO AMBIENTAL | P179: 0 | V179: 0 | W179: 0 | X179: Jurídica | Y179: 5 | Z179: ANTIOQUIA | AA179: 5001 | AB179: MEDELLÍN | AC179: 0 | AD179: CONSTRUCCIÓN | AE179: 0 | AF179: 0 | AG179: 0 | AH179: 0 | AI179: 0 | AJ179: 0 | AK179: 34751043 | AL179: 0 | AM179: 0
C180: Jurídica | D180: 8 | E180: ATLÁNTICO | F180: 8001 | G180: BARRANQUILLA | I180: COMERCIO AL POR MAYOR Y AL POR MENOR; REPARACIÓN DE VEHÍCULOS AUTOMOTORES Y MOTOCICLETAS | P180: 0 | V180: 0 | W180: 0 | X180: Natural | Y180: 5 | Z180: ANTIOQUIA | AA180: 5079 | AB180: BARBOSA | AC180: 0 | AD180: COMERCIO AL POR MAYOR Y AL POR MENOR; REPARACIÓN DE VEHÍCULOS AUTOMOTORES Y MOTOCICLETAS | AE180: 0 | AF180: 0 | AG180: 0 | AH180: 0 | AI180: 0 | AJ180: 0 | AK180: 0 | AL180: 0 | AM180: 0
C181: Jurídica | D181: 25 | E181: CUNDINAMARCA | F181: 25214 | G181: COTA | I181: COMERCIO AL POR MAYOR Y AL POR MENOR; REPARACIÓN DE VEHÍCULOS AUTOMOTORES Y MOTOCICLETAS | P181: 908524 | V181: 0 | W181: 0 | X181: Jurídica | Y181: 5 | Z181: ANTIOQUIA | AA181: 5001 | AB181: MEDELLÍN | AC181: 0 | AD181: ACTIVIDADES PROFESIONALES, CIENTÍFICAS Y TÉCNICAS | AE181: 0 | AF181: 0 | AG181: 0 | AH181: 0 | AI181: 0 | AJ181: 0 | AK181: 681393 | AL181: 0 | AM181: 0
C182: Jurídica | D182: 13 | E182: BOLÍVAR | F182: 13001 | G182: CARTAGENA | I182: ACTIVIDADES DE SERVICIOS ADMINISTRATIVOS Y DE APOYO | P182: 2725572 | V182: 0 | W182: 0 | X182: Natural | Y182: 5 | Z182: ANTIOQUIA | AA182: 5045 | AB182: APARTADÓ | AC182: 0 | AD182: COMERCIO AL POR MAYOR Y AL POR MENOR; REPARACIÓN DE VEHÍCULOS AUTOMOTORES Y MOTOCICLETAS | AE182: 0 | AF182: 0 | AG182: 0 | AH182: 0 | AI182: 0 | AJ182: 0 | AK182: 227131 | AL182: 0 | AM182: 0
C183: Jurídica | D183: 11 | E183: BOGOTÁ, D.C. | F183: 11001 | G183: BOGOTÁ, D.C. | I183: CONSTRUCCIÓN | P183: 227131 | V183: 0 | W183: 0 | X183: Natural | Y183: 5 | Z183: ANTIOQUIA | AA183: 5308 | AB183: GIRARDOTA | AC183: 0 | AD183: INDUSTRIAS MANUFACTURERAS | AE183: 0 | AF183: 0 | AG183: 0 | AH183: 0 | AI183: 0 | AJ183: 0 | AK183: 0 | AL183: 0 | AM183: 0
C184: Jurídica | D184: 25 | E184: CUNDINAMARCA | F184: 25322 | G184: GUASCA | I184: AGRICULTURA, GANADERÍA, CAZA, SILVICULTURA Y PESCA | P184: 0 | V184: 0 | W184: 0 | X184: Jurídica | Y184: 5 | Z184: ANTIOQUIA | AA184: 5266 | AB184: ENVIGADO | AC184: 0 | AD184: ACTIVIDADES PROFESIONALES, CIENTÍFICAS Y TÉCNICAS | AE184: 0 | AF184: 0 | AG184: 0 | AH184: 0 | AI184: 0 | AJ184: 0 | AK184: 454262 | AL184: 0 | AM184: 0
C185: Jurídica | D185: 73 | E185: TOLIMA | F185: 73001 | G185: IBAGUÉ | I185: INDUSTRIAS MANUFACTURERAS | P185: 0 | V185: 0 | W185: 0 | X185: Jurídica | Y185: 5 | Z185: ANTIOQUIA | AA185: 5266 | AB185: ENVIGADO | AC185: 0 | AD185: ACTIVIDADES DE ATENCIÓN DE LA SALUD HUMANA Y DE ASISTENCIA SOCIAL | AE185: 0 | AF185: 0 | AG185: 0 | AH185: 0 | AI185: 0 | AJ185: 0 | AK185: 0 | AL185: 0 | AM185: 0
C186: Natural | D186: 5 | E186: ANTIOQUIA | F186: 5001 | G186: MEDELLÍN | I186: ACTIVIDADES DE SERVICIOS ADMINISTRATIVOS Y DE APOYO | P186: 0 | V186: 0 | W186: 0 | X186: Jurídica | Y186: 5 | Z186: ANTIOQUIA | AA186: 5001 | AB186: MEDELLÍN | AC186: 0 | AD186: ACTIVIDADES DE SERVICIOS ADMINISTRATIVOS Y DE APOYO | AE186: 0 | AF186: 0 | AG186: 0 | AH186: 0 | AI186: 0 | AJ186: 0 | AK186: 15899170 | AL186: 0 | AM186: 0
C187: Natural | D187: 5 | E187: ANTIOQUIA | F187: 5368 | G187: JERICÓ | I187: ALOJAMIENTO Y SERVICIOS DE COMIDA | P187: 0 | V187: 0 | W187: 0 | X187: Jurídica | Y187: 5 | Z187: ANTIOQUIA | AA187: 5376 | AB187: LA CEJA | AC187: 0 | AD187: COMERCIO AL POR MAYOR Y AL POR MENOR; REPARACIÓN DE VEHÍCULOS AUTOMOTORES Y MOTOCICLETAS | AE187: 0 | AF187: 0 | AG187: 0 | AH187: 0 | AI187: 0 | AJ187: 0 | AK187: 1362786 | AL187: 0 | AM187: 0
C188: Jurídica | D188: 11 | E188: BOGOTÁ, D.C. | F188: 11001 | G188: BOGOTÁ, D.C. | I188: ALOJAMIENTO Y SERVICIOS DE COMIDA | P188: 908524 | V188: 0 | W188: 0 | X188: Jurídica | Y188: 5 | Z188: ANTIOQUIA | AA188: 5129 | AB188: CALDAS | AC188: 0 | AD188: INDUSTRIAS MANUFACTURERAS | AE188: 0 | AF188: 0 | AG188: 0 | AH188: 0 | AI188: 0 | AJ188: 0 | AK188: 0 | AL188: 0 | AM188: 0
C189: Natural | D189: 5 | E189: ANTIOQUIA | F189: 5001 | G189: MEDELLÍN | I189: COMERCIO AL POR MAYOR Y AL POR MENOR; REPARACIÓN DE VEHÍCULOS AUTOMOTORES Y MOTOCICLETAS | P189: 227131 | V189: 0 | W189: 0 | X189: Jurídica | Y189: 5 | Z189: ANTIOQUIA | AA189: 5001 | AB189: MEDELLÍN | AC189: 0 | AD189: COMERCIO AL POR MAYOR Y AL POR MENOR; REPARACIÓN DE VEHÍCULOS AUTOMOTORES Y MOTOCICLETAS | AE189: 0 | AF189: 0 | AG189: 0 | AH189: 0 | AI189: 0 | AJ189: 0 | AK189: 0 | AL189: 0 | AM189: 0
C190: Jurídica | D190: 5 | E190: ANTIOQUIA | F190: 5400 | G190: LA UNIÓN | I190: INDUSTRIAS MANUFACTURERAS | P190: 0 | V190: 0 | W190: 0 | X190: Jurídica | Y190: 5 | Z190: ANTIOQUIA | AA190: 5001 | AB190: MEDELLÍN | AC190: 0 | AD190: COMERCIO AL POR MAYOR Y AL POR MENOR; REPARACIÓN DE VEHÍCULOS AUTOMOTORES Y MOTOCICLETAS | AE190: 0 | AF190: 0 | AG190: 0 | AH190: 0 | AI190: 0 | AJ190: 0 | AK190: 0 | AL190: 0 | AM190: 0
C191: Jurídica | D191: 17 | E191: CALDAS | F191: 17001 | G191: MANIZALES | I191: CONSTRUCCIÓN | P191: 0 | V191: 0 | W191: 0 | X191: Jurídica | Y191: 5 | Z191: ANTIOQUIA | AA191: 5237 | AB191: DON MATÍAS | AC191: 0 | AD191: INDUSTRIAS MANUFACTURERAS | AE191: 0 | AF191: 0 | AG191: 0 | AH191: 0 | AI191: 0 | AJ191: 0 | AK191: 0 | AL191: 0 | AM191: 0
C192: Jurídica | D192: 54 | E192: NORTE DE SANTANDER | F192: 54001 | G192: CÚCUTA | I192: COMERCIO AL POR MAYOR Y AL POR MENOR; REPARACIÓN DE VEHÍCULOS AUTOMOTORES Y MOTOCICLETAS | P192: 0 | V192: 0 | W192: 0 | X192: Jurídica | Y192: 5 | Z192: ANTIOQUIA | AA192: 5266 | AB192: ENVIGADO | AC192: 0 | AD192: COMERCIO AL POR MAYOR Y AL POR MENOR; REPARACIÓN DE VEHÍCULOS AUTOMOTORES Y MOTOCICLETAS | AE192: 0 | AF192: 0 | AG192: 0 | AH192: 0 | AI192: 0 | AJ192: 0 | AK192: 681393 | AL192: 0 | AM192: 0
C193: Jurídica | D193: 11 | E193: BOGOTÁ, D.C. | F193: 11001 | G193: BOGOTÁ, D.C. | I193: INFORMACIÓN Y COMUNICACIONES | P193: 0 | V193: 0 | W193: 0 | X193: Jurídica | Y193: 5 | Z193: ANTIOQUIA | AA193: 5088 | AB193: BELLO | AC193: 0 | AD193: CONSTRUCCIÓN | AE193: 0 | AF193: 0 | AG193: 0 | AH193: 0 | AI193: 0 | AJ193: 0 | AK193: 0 | AL193: 0 | AM193: 0
C194: Natural | D194: 13 | E194: BOLÍVAR | F194: 13001 | G194: CARTAGENA | I194: EDUCACIÓN | P194: 0 | V194: 0 | W194: 0 | X194: Jurídica | Y194: 5 | Z194: ANTIOQUIA | AA194: 5615 | AB194: RIONEGRO | AC194: 0 | AD194: COMERCIO AL POR MAYOR Y AL POR MENOR; REPARACIÓN DE VEHÍCULOS AUTOMOTORES Y MOTOCICLETAS | AE194: 0 | AF194: 0 | AG194: 0 | AH194: 0 | AI194: 0 | AJ194: 0 | AK194: 227131 | AL194: 0 | AM194: 0
C195: Jurídica | D195: 11 | E195: BOGOTÁ, D.C. | F195: 11001 | G195: BOGOTÁ, D.C. | I195: ALOJAMIENTO Y SERVICIOS DE COMIDA | P195: 0 | V195: 0 | W195: 0 | X195: Jurídica | Y195: 5 | Z195: ANTIOQUIA | AA195: 5360 | AB195: ITAGUI | AC195: 0 | AD195: INDUSTRIAS MANUFACTURERAS | AE195: 0 | AF195: 0 | AG195: 0 | AH195: 0 | AI195: 0 | AJ195: 0 | AK195: 1589917 | AL195: 0 | AM195: 0
C196: Jurídica | D196: 76 | E196: VALLE DEL CAUCA | F196: 76001 | G196: CALI | I196: ACTIVIDADES DE SERVICIOS ADMINISTRATIVOS Y DE APOYO | P196: 0 | V196: 0 | W196: 0 | X196: Jurídica | Y196: 5 | Z196: ANTIOQUIA | AA196: 5001 | AB196: MEDELLÍN | AC196: 0 | AD196: INDUSTRIAS MANUFACTURERAS | AE196: 0 | AF196: 0 | AG196: 0 | AH196: 0 | AI196: 0 | AJ196: 0 | AK196: 0 | AL196: 0 | AM196: 0
C197: Jurídica | D197: 5 | E197: ANTIOQUIA | F197: 5001 | G197: MEDELLÍN | I197: ACTIVIDADES PROFESIONALES, CIENTÍFICAS Y TÉCNICAS | P197: 454262 | V197: 0 | W197: 0 | X197: Jurídica | Y197: 5 | Z197: ANTIOQUIA | AA197: 5059 | AB197: ARMENIA | AC197: 0 | AD197: CONSTRUCCIÓN | AE197: 0 | AF197: 0 | AG197: 0 | AH197: 0 | AI197: 0 | AJ197: 0 | AK197: 454262 | AL197: 0 | AM197: 0
C198: Jurídica | D198: 11 | E198: BOGOTÁ, D.C. | F198: 11001 | G198: BOGOTÁ, D.C. | I198: COMERCIO AL POR MAYOR Y AL POR MENOR; REPARACIÓN DE VEHÍCULOS AUTOMOTORES Y MOTOCICLETAS | P198: 227131 | V198: 0 | W198: 0 | X198: Jurídica | Y198: 5 | Z198: ANTIOQUIA | AA198: 5001 | AB198: MEDELLÍN | AC198: 0 | AD198: INDUSTRIAS MANUFACTURERAS | AE198: 0 | AF198: 0 | AG198: 0 | AH198: 0 | AI198: 0 | AJ198: 0 | AK198: 681393 | AL198: 0 | AM198: 0
C199: Jurídica | D199: 11 | E199: BOGOTÁ, D.C. | F199: 11001 | G199: BOGOTÁ, D.C. | I199: ACTIVIDADES PROFESIONALES, CIENTÍFICAS Y TÉCNICAS | P199: 227131 | V199: 0 | W199: 0 | X199: Natural | Y199: 5 | Z199: ANTIOQUIA | AA199: 5001 | AB199: MEDELLÍN | AC199: 0 | AD199: COMERCIO AL POR MAYOR Y AL POR MENOR; REPARACIÓN DE VEHÍCULOS AUTOMOTORES Y MOTOCICLETAS | AE199: 0 | AF199: 0 | AG199: 0 | AH199: 0 | AI199: 0 | AJ199: 0 | AK199: 227131 | AL199: 0 | AM199: 0
C200: Jurídica | D200: 54 | E200: NORTE DE SANTANDER | F200: 54001 | G200: CÚCUTA | I200: TRANSPORTE Y ALMACENAMIENTO | P200: 0 | V200: 0 | W200: 0 | X200: Jurídica | Y200: 5 | Z200: ANTIOQUIA | AA200: 5001 | AB200: MEDELLÍN | AC200: 0 | AD200: ALOJAMIENTO Y SERVICIOS DE COMIDA | AE200: 0 | AF200: 0 | AG200: 0 | AH200: 0 | AI200: 0 | AJ200: 0 | AK200: 0 | AL200: 0 | AM200: 0
... 2050 more rows

Sheet Mapas (hidden)
B1: ANTIOQUIA | C1: Antioquia | I1: Departamento | J1: Celdas | K1: =+IFERROR(VLOOKUP(Visor!$M$7,Mapas!I2:J34,2,0),"Vacío") -> ANTIOQUIA
B2: ATLÁNTICO | C2: Atlantico | I2: ANTIOQUIA | J2: ANTIOQUIA
B3: CUNDINAMARCA | C3: Cundinamarca | I3: ATLÁNTICO | J3: ATLÁNTICO
B4: VALLE DEL CAUCA | C4: Valle_del_cauca | I4: CUNDINAMARCA | J4: CUNDINAMARCA
B5: AMAZONAS | C5: Amazonas | I5: VALLE DEL CAUCA | J5: VALLE_DEL_CAUCA
B6: ARAUCA | C6: Arauca | I6: AMAZONAS | J6: AMAZONAS
B7: ARCHIPIÉLAGO DE SAN ANDRÉS, PROVIDENCIA Y SANTA CATALINA | C7: Archipielago De San Andres, Providencia Y Santa Catalina | I7: ARAUCA | J7: ARAUCA
B8: BOGOTÁ, D.C. | C8: Bogota, D.C. | I8: ARCHIPIÉLAGO DE SAN ANDRÉS, PROVIDENCIA Y SANTA CATALINA | J8: ARCHIPIÉLAGO_DE_SAN_ANDRÉS__PROVIDENCIA_Y_SANTA_CATALINA
B9: BOLÍVAR | C9: Bolivar | I9: BOGOTÁ, D.C. | J9: BOGOTÁ__D.C.
B10: BOYACÁ | C10: Boyaca | I10: BOLÍVAR | J10: BOLÍVAR
B11: CALDAS | C11: Caldas | I11: BOYACÁ | J11: BOYACÁ
B12: CAQUETÁ | C12: Caqueta | I12: CALDAS | J12: CALDAS
B13: CASANARE | C13: Casanare | I13: CAQUETÁ | J13: CAQUETÁ
B14: CAUCA | C14: Cauca | I14: CASANARE | J14: CASANARE
B15: CESAR | C15: Cesar | I15: CAUCA | J15: CAUCA
B16: CHOCÓ | C16: Choco | I16: CESAR | J16: CESAR
B17: CÓRDOBA | C17: Cordoba | I17: CHOCÓ | J17: CHOCÓ
B18: GUAINÍA | C18: Guainia | I18: CÓRDOBA | J18: CÓRDOBA
B19: GUAVIARE | C19: Guaviare | I19: GUAINÍA | J19: GUAINÍA
B20: HUILA | C20: Huila | I20: GUAVIARE | J20: GUAVIARE
B21: LA GUAJIRA | C21: La_guajira | I21: HUILA | J21: HUILA
B22: MAGDALENA | C22: Magdalena | I22: LA GUAJIRA | J22: LA_GUAJIRA
B23: META | C23: Meta | I23: MAGDALENA | J23: MAGDALENA
B24: NARIÑO | C24: Nariño | I24: META | J24: META
B25: NORTE DE SANTANDER | C25: Norte_Santander | I25: NARIÑO | J25: NARIÑO
B26: PUTUMAYO | C26: Putumayo | I26: NORTE DE SANTANDER | J26: NORTE_DE_SANTANDER
B27: QUINDÍO | C27: Quindio | I27: PUTUMAYO | J27: PUTUMAYO
B28: RISARALDA | C28: Risaralda | I28: QUINDÍO | J28: QUINDÍO
B29: SANTANDER | C29: Santander | I29: RISARALDA | J29: RISARALDA
B30: SUCRE | C30: Sucre | I30: SANTANDER | J30: SANTANDER
B31: TOLIMA | C31: Tolima | I31: SUCRE | J31: SUCRE
B32: VAUPÉS | C32: Vaupes | I32: TOLIMA | J32: TOLIMA
B33: VICHADA | C33: Vichada | I33: VAUPÉS | J33: VAUPÉS
B34: Vacío | C34: Vacío | I34: VICHADA | J34: VICHADA

Sheet Montos (hidden)
A1: Ciclo | B1: DIVIPOLA1 | C1: MpioNOM | D1: Depto | E1: DeptoNOM | F1: NOM_AECONOMICA1 | G1: SECTOR_ECONOMICO1 | H1: TIPO_PERSONA1 | I1: SIZE1 | J1: Suma de RECURSOS1 | P1: Ciclo | Q1: DIVIPOLA1 | R1: MpioNOM | S1: Depto | T1: DeptoNOM | U1: NOM_AECONOMICA1 | V1: SECTOR_ECONOMICO1 | W1: TIPO_PERSONA1 | X1: SIZE1 | Y1: Suma de RECURSOS1 | AC1: DeptoNOM | AD1: META | AG1: DeptoNOM | AH1: META
A2: 1 | B2: 86568 | C2: PUERTO ASÍS | D2: 86 | E2: PUTUMAYO | F2: ACTIVIDADES PROFESIONALES, CIENTÍFICAS Y TÉCNICAS | G2: ACTIVIDADES PROFESIONALES, CIENTÍFICAS Y TÉCNICAS | H2: Jurídica | I2: PEQUEÑA | J2: 227131 | P2: =+_xlfn._xlws.FILTER($A$2:$J$396860,E2:$E$396860=Visor!$M$7,"") -> 1 | Q2: 5001 | R2: MEDELLÍN | S2: 5 | T2: ANTIOQUIA | U2: COMERCIO AL POR MAYOR Y AL POR MENOR; REPARACIÓN DE VEHÍCULOS AUTOMOTORES Y MOTOCICLETAS | V2: COMERCIO AL POR MAYOR Y AL POR MENOR; REPARACIÓN DE VEHÍCULOS AUTOMOTORES Y MOTOCICLETAS | W2: Jurídica | X2: PEQUEÑA | Y2: 227131 | AG2: MpioNOM | AH2: VILLAVICENCIO
A3: 1 | B3: 5001 | C3: MEDELLÍN | D3: 5 | E3: ANTIOQUIA | F3: COMERCIO AL POR MAYOR Y AL POR MENOR; REPARACIÓN DE VEHÍCULOS AUTOMOTORES Y MOTOCICLETAS | G3: COMERCIO AL POR MAYOR Y AL POR MENOR; REPARACIÓN DE VEHÍCULOS AUTOMOTORES Y MOTOCICLETAS | H3: Jurídica | I3: PEQUEÑA | J3: 227131 | P3: 1 | Q3: 5313 | R3: GRANADA | S3: 5 | T3: ANTIOQUIA | U3: COMERCIO AL POR MAYOR Y AL POR MENOR; REPARACIÓN DE VEHÍCULOS AUTOMOTORES Y MOTOCICLETAS | V3: COMERCIO AL POR MAYOR Y AL POR MENOR; REPARACIÓN DE VEHÍCULOS AUTOMOTORES Y MOTOCICLETAS | W3: Jurídica | X3: MICRO | Y3: 227131 | AC3: Etiquetas de fila | AD3: Suma de Suma de RECURSOS1 | AE3: Suma de Suma de RECURSOS1_2
A4: 1 | B4: 76001 | C4: CALI | D4: 76 | E4: VALLE DEL CAUCA | F4: COMERCIO AL POR MAYOR Y AL POR MENOR; REPARACIÓN DE VEHÍCULOS AUTOMOTORES Y MOTOCICLETAS | G4: COMERCIO AL POR MAYOR Y AL POR MENOR; REPARACIÓN DE VEHÍCULOS AUTOMOTORES Y MOTOCICLETAS | H4: Jurídica | I4: MEDIANA | J4: 227131 | P4: 1 | Q4: 5212 | R4: COPACABANA | S4: 5 | T4: ANTIOQUIA | U4: INDUSTRIAS MANUFACTURERAS | V4: INDUSTRIAS MANUFACTURERAS | W4: Jurídica | X4: PEQUEÑA | Y4: 681393 | AC4: ACTIVIDADES ARTÍSTICAS, DE ENTRETENIMIENTO Y RECREACIÓN | AD4: 1034907000 | AE4: 0.0183614159 | AG4: Etiquetas de fila | AH4: Suma de Suma de RECURSOS1 | AI4: Suma de Suma de RECURSOS1_2
A5: 1 | B5: 5313 | C5: GRANADA | D5: 5 | E5: ANTIOQUIA | F5: COMERCIO AL POR MAYOR Y AL POR MENOR; REPARACIÓN DE VEHÍCULOS AUTOMOTORES Y MOTOCICLETAS | G5: COMERCIO AL POR MAYOR Y AL POR MENOR; REPARACIÓN DE VEHÍCULOS AUTOMOTORES Y MOTOCICLETAS | H5: Jurídica | I5: MICRO | J5: 227131 | P5: 1 | Q5: 5001 | R5: MEDELLÍN | S5: 5 | T5: ANTIOQUIA | U5: ACTIVIDADES PROFESIONALES, CIENTÍFICAS Y TÉCNICAS | V5: ACTIVIDADES PROFESIONALES, CIENTÍFICAS Y TÉCNICAS | W5: Jurídica | X5: PEQUEÑA | Y5: 681393 | AC5: ACTIVIDADES DE ATENCIÓN DE LA SALUD HUMANA Y DE ASISTENCIA SOCIAL | AD5: 5530371000 | AE5: 0.0981203548 | AG5: ACTIVIDADES ARTÍSTICAS, DE ENTRETENIMIENTO Y RECREACIÓN | AH5: 993923000 | AI5: 0.02131175662
A6: 1 | B6: 5212 | C6: COPACABANA | D6: 5 | E6: ANTIOQUIA | F6: INDUSTRIAS MANUFACTURERAS | G6: INDUSTRIAS MANUFACTURERAS | H6: Jurídica | I6: PEQUEÑA | J6: 681393 | P6: 1 | Q6: 5001 | R6: MEDELLÍN | S6: 5 | T6: ANTIOQUIA | U6: COMERCIO AL POR MAYOR Y AL POR MENOR; REPARACIÓN DE VEHÍCULOS AUTOMOTORES Y MOTOCICLETAS | V6: COMERCIO AL POR MAYOR Y AL POR MENOR; REPARACIÓN DE VEHÍCULOS AUTOMOTORES Y MOTOCICLETAS | W6: Jurídica | X6: MEDIANA | Y6: 227131 | AC6: ACTIVIDADES DE SERVICIOS ADMINISTRATIVOS Y DE APOYO | AD6: 9990424000 | AE6: 0.1772510285 | AG6: ACTIVIDADES DE ATENCIÓN DE LA SALUD HUMANA Y DE ASISTENCIA SOCIAL | AH6: 5262221000 | AI6: 0.1128328585
A7: 1 | B7: 68001 | C7: BUCARAMANGA | D7: 68 | E7: SANTANDER | F7: ACTIVIDADES DE SERVICIOS ADMINISTRATIVOS Y DE APOYO | G7: ACTIVIDADES DE SERVICIOS ADMINISTRATIVOS Y DE APOYO | H7: Jurídica | I7: MUY GRANDE | J7: 71092003 | P7: 1 | Q7: 5001 | R7: MEDELLÍN | S7: 5 | T7: ANTIOQUIA | U7: EDUCACIÓN | V7: EDUCACIÓN | W7: Jurídica | X7: MUY GRANDE | Y7: 34523912 | AC7: ACTIVIDADES FINANCIERAS Y DE SEGUROS | AD7: 601724000 | AE7: 0.01067584297 | AG7: ACTIVIDADES DE SERVICIOS ADMINISTRATIVOS Y DE APOYO | AH7: 9448062000 | AI7: 0.2025859124
A8: 1 | B8: 23001 | C8: MONTERÍA | D8: 23 | E8: CÓRDOBA | F8: ACTIVIDADES DE SERVICIOS ADMINISTRATIVOS Y DE APOYO | G8: ACTIVIDADES DE SERVICIOS ADMINISTRATIVOS Y DE APOYO | H8: Jurídica | I8: GRANDE | J8: 8630978 | P8: 1 | Q8: 5266 | R8: ENVIGADO | S8: 5 | T8: ANTIOQUIA | U8: COMERCIO AL POR MAYOR Y AL POR MENOR; REPARACIÓN DE VEHÍCULOS AUTOMOTORES Y MOTOCICLETAS | V8: COMERCIO AL POR MAYOR Y AL POR MENOR; REPARACIÓN DE VEHÍCULOS AUTOMOTORES Y MOTOCICLETAS | W8: Jurídica | X8: MICRO | Y8: 227131 | AC8: ACTIVIDADES INMOBILIARIAS | AD8: 282527000 | AE8: 0.005012620217 | AG8: ACTIVIDADES FINANCIERAS Y DE SEGUROS | AH8: 586462000 | AI8: 0.0125749534
A9: 1 | B9: 5001 | C9: MEDELLÍN | D9: 5 | E9: ANTIOQUIA | F9: ACTIVIDADES PROFESIONALES, CIENTÍFICAS Y TÉCNICAS | G9: ACTIVIDADES PROFESIONALES, CIENTÍFICAS Y TÉCNICAS | H9: Jurídica | I9: PEQUEÑA | J9: 681393 | P9: 1 | Q9: 5615 | R9: RIONEGRO | S9: 5 | T9: ANTIOQUIA | U9: ACTIVIDADES DE SERVICIOS ADMINISTRATIVOS Y DE APOYO | V9: ACTIVIDADES DE SERVICIOS ADMINISTRATIVOS Y DE APOYO | W9: Jurídica | X9: PEQUEÑA | Y9: 454262 | AC9: ACTIVIDADES PROFESIONALES, CIENTÍFICAS Y TÉCNICAS | AD9: 1550199000 | AE9: 0.02750377432 | AG9: ACTIVIDADES INMOBILIARIAS | AH9: 213971000 | AI9: 0.004587979024
A10: 1 | B10: 25175 | C10: CHÍA | D10: 25 | E10: CUNDINAMARCA | F10: COMERCIO AL POR MAYOR Y AL POR MENOR; REPARACIÓN DE VEHÍCULOS AUTOMOTORES Y MOTOCICLETAS | G10: COMERCIO AL POR MAYOR Y AL POR MENOR; REPARACIÓN DE VEHÍCULOS AUTOMOTORES Y MOTOCICLETAS | H10: Jurídica | I10: MEDIANA | J10: 1817048 | P10: 1 | Q10: 5631 | R10: SABANETA | S10: 5 | T10: ANTIOQUIA | U10: ACTIVIDADES DE ATENCIÓN DE LA SALUD HUMANA Y DE ASISTENCIA SOCIAL | V10: ACTIVIDADES DE ATENCIÓN DE LA SALUD HUMANA Y DE ASISTENCIA SOCIAL | W10: Jurídica | X10: PEQUEÑA | Y10: 454262 | AC10: ADMINISTRACIÓN PÚBLICA Y DEFENSA; PLANES DE SEGURIDAD SOCIAL DE AFILIACIÓN OBLIGATORIA | AD10: 434604000 | AE10: 0.007710784444 | AG10: ACTIVIDADES PROFESIONALES, CIENTÍFICAS Y TÉCNICAS | AH10: 1393778000 | AI10: 0.02988547152
A11: 1 | B11: 5001 | C11: MEDELLÍN | D11: 5 | E11: ANTIOQUIA | F11: COMERCIO AL POR MAYOR Y AL POR MENOR; REPARACIÓN DE VEHÍCULOS AUTOMOTORES Y MOTOCICLETAS | G11: COMERCIO AL POR MAYOR Y AL POR MENOR; REPARACIÓN DE VEHÍCULOS AUTOMOTORES Y MOTOCICLETAS | H11: Jurídica | I11: MEDIANA | J11: 227131 | P11: 1 | Q11: 5380 | R11: LA ESTRELLA | S11: 5 | T11: ANTIOQUIA | U11: INDUSTRIAS MANUFACTURERAS | V11: INDUSTRIAS MANUFACTURERAS | W11: Jurídica | X11: PEQUEÑA | Y11: 227131 | AC11: AGRICULTURA, GANADERÍA, CAZA, SILVICULTURA Y PESCA | AD11: 2267926000 | AE11: 0.04023775327 | AG11: ADMINISTRACIÓN PÚBLICA Y DEFENSA; PLANES DE SEGURIDAD SOCIAL DE AFILIACIÓN OBLIGATORIA | AH11: 101437000 | AI11: 0.002175018242
A12: 1 | B12: 11001 | C12: BOGOTÁ, D.C. | D12: 11 | E12: BOGOTÁ, D.C. | F12: INDUSTRIAS MANUFACTURERAS | G12: INDUSTRIAS MANUFACTURERAS | H12: Jurídica | I12: MICRO | J12: 908524 | P12: 1 | Q12: 5360 | R12: ITAGUI | S12: 5 | T12: ANTIOQUIA | U12: ACTIVIDADES DE SERVICIOS ADMINISTRATIVOS Y DE APOYO | V12: ACTIVIDADES DE SERVICIOS ADMINISTRATIVOS Y DE APOYO | W12: Jurídica | X12: PEQUEÑA | Y12: 227131 | AC12: ALOJAMIENTO Y SERVICIOS DE COMIDA | AD12: 2510646000 | AE12: 0.044544114 | AG12: AGRICULTURA, GANADERÍA, CAZA, SILVICULTURA Y PESCA | AH12: 1241925000 | AI12: 0.02662943039
A13: 1 | B13: 15238 | C13: DUITAMA | D13: 15 | E13: BOYACÁ | F13: COMERCIO AL POR MAYOR Y AL POR MENOR; REPARACIÓN DE VEHÍCULOS AUTOMOTORES Y MOTOCICLETAS | G13: COMERCIO AL POR MAYOR Y AL POR MENOR; REPARACIÓN DE VEHÍCULOS AUTOMOTORES Y MOTOCICLETAS | H13: Jurídica | I13: MICRO | J13: 227131 | P13: 1 | Q13: 5001 | R13: MEDELLÍN | S13: 5 | T13: ANTIOQUIA | U13: ACTIVIDADES PROFESIONALES, CIENTÍFICAS Y TÉCNICAS | V13: ACTIVIDADES PROFESIONALES, CIENTÍFICAS Y TÉCNICAS | W13: Jurídica | X13: PEQUEÑA | Y13: 2271310 | AC13: COMERCIO AL POR MAYOR Y AL POR MENOR; REPARACIÓN DE VEHÍCULOS AUTOMOTORES Y MOTOCICLETAS | AD13: 9763086000 | AE13: 0.1732175766 | AG13: ALOJAMIENTO Y SERVICIOS DE COMIDA | AH13: 1902988000 | AI13: 0.04080398291
A14: 1 | B14: 5001 | C14: MEDELLÍN | D14: 5 | E14: ANTIOQUIA | F14: EDUCACIÓN | G14: EDUCACIÓN | H14: Jurídica | I14: MUY GRANDE | J14: 34523912 | P14: 1 | Q14: 5001 | R14: MEDELLÍN | S14: 5 | T14: ANTIOQUIA | U14: INDUSTRIAS MANUFACTURERAS | V14: INDUSTRIAS MANUFACTURERAS | W14: Jurídica | X14: MICRO | Y14: 227131 | AC14: CONSTRUCCIÓN | AD14: 4627826000 | AE14: 0.08210731777 | AG14: COMERCIO AL POR MAYOR Y AL POR MENOR; REPARACIÓN DE VEHÍCULOS AUTOMOTORES Y MOTOCICLETAS | AH14: 7857303000 | AI14: 0.1684767625
A15: 1 | B15: 8001 | C15: BARRANQUILLA | D15: 8 | E15: ATLÁNTICO | F15: INDUSTRIAS MANUFACTURERAS | G15: INDUSTRIAS MANUFACTURERAS | H15: Jurídica | I15: PEQUEÑA | J15: 227131 | P15: 1 | Q15: 5360 | R15: ITAGUI | S15: 5 | T15: ANTIOQUIA | U15: ACTIVIDADES DE SERVICIOS ADMINISTRATIVOS Y DE APOYO | V15: ACTIVIDADES DE SERVICIOS ADMINISTRATIVOS Y DE APOYO | W15: Jurídica | X15: PEQUEÑA | Y15: 454262 | AC15: DISTRIBUCIÓN DE AGUA; EVACUACIÓN Y TRATAMIENTO DE AGUAS RESIDUALES, GESTIÓN DE DESECHOS Y ACTIVIDADES DE SANEAMIENTO AMBIENTAL | AD15: 851688000 | AE15: 0.01511072742 | AG15: CONSTRUCCIÓN | AH15: 3651332000 | AI15: 0.07829207988
A16: 1 | B16: 5266 | C16: ENVIGADO | D16: 5 | E16: ANTIOQUIA | F16: COMERCIO AL POR MAYOR Y AL POR MENOR; REPARACIÓN DE VEHÍCULOS AUTOMOTORES Y MOTOCICLETAS | G16: COMERCIO AL POR MAYOR Y AL POR MENOR; REPARACIÓN DE VEHÍCULOS AUTOMOTORES Y MOTOCICLETAS | H16: Jurídica | I16: MICRO | J16: 227131 | P16: 1 | Q16: 5360 | R16: ITAGUI | S16: 5 | T16: ANTIOQUIA | U16: INDUSTRIAS MANUFACTURERAS | V16: INDUSTRIAS MANUFACTURERAS | W16: Jurídica | X16: MEDIANA | Y16: 908524 | AC16: EDUCACIÓN | AD16: 3265265000 | AE16: 0.05793263423 | AG16: DISTRIBUCIÓN DE AGUA; EVACUACIÓN Y TRATAMIENTO DE AGUAS RESIDUALES, GESTIÓN DE DESECHOS Y ACTIVIDADES DE SANEAMIENTO AMBIENTAL | AH16: 827123000 | AI16: 0.01773522101
A17: 1 | B17: 5615 | C17: RIONEGRO | D17: 5 | E17: ANTIOQUIA | F17: ACTIVIDADES DE SERVICIOS ADMINISTRATIVOS Y DE APOYO | G17: ACTIVIDADES DE SERVICIOS ADMINISTRATIVOS Y DE APOYO | H17: Jurídica | I17: PEQUEÑA | J17: 454262 | P17: 1 | Q17: 5001 | R17: MEDELLÍN | S17: 5 | T17: ANTIOQUIA | U17: COMERCIO AL POR MAYOR Y AL POR MENOR; REPARACIÓN DE VEHÍCULOS AUTOMOTORES Y MOTOCICLETAS | V17: COMERCIO AL POR MAYOR Y AL POR MENOR; REPARACIÓN DE VEHÍCULOS AUTOMOTORES Y MOTOCICLETAS | W17: Jurídica | X17: MICRO | Y17: 227131 | AC17: EXPLOTACIÓN DE MINAS Y CANTERAS | AD17: 231515000 | AE17: 0.004107560585 | AG17: EDUCACIÓN | AH17: 2771547000 | AI17: 0.05942767711
A18: 1 | B18: 5631 | C18: SABANETA | D18: 5 | E18: ANTIOQUIA | F18: ACTIVIDADES DE ATENCIÓN DE LA SALUD HUMANA Y DE ASISTENCIA SOCIAL | G18: ACTIVIDADES DE ATENCIÓN DE LA SALUD HUMANA Y DE ASISTENCIA SOCIAL | H18: Jurídica | I18: PEQUEÑA | J18: 454262 | P18: 1 | Q18: 5001 | R18: MEDELLÍN | S18: 5 | T18: ANTIOQUIA | U18: ACTIVIDADES DE ATENCIÓN DE LA SALUD HUMANA Y DE ASISTENCIA SOCIAL | V18: ACTIVIDADES DE ATENCIÓN DE LA SALUD HUMANA Y DE ASISTENCIA SOCIAL | W18: Jurídica | X18: MEDIANA | Y18: 227131 | AC18: INDUSTRIAS MANUFACTURERAS | AD18: 3604890000 | AE18: 0.06395829246 | AG18: EXPLOTACIÓN DE MINAS Y CANTERAS | AH18: 192466000 | AI18: 0.004126867523
A19: 1 | B19: 5380 | C19: LA ESTRELLA | D19: 5 | E19: ANTIOQUIA | F19: INDUSTRIAS MANUFACTURERAS | G19: INDUSTRIAS MANUFACTURERAS | H19: Jurídica | I19: PEQUEÑA | J19: 227131 | P19: 1 | Q19: 5001 | R19: MEDELLÍN | S19: 5 | T19: ANTIOQUIA | U19: INDUSTRIAS MANUFACTURERAS | V19: INDUSTRIAS MANUFACTURERAS | W19: Jurídica | X19: MICRO | Y19: 227131 | AC19: INFORMACIÓN Y COMUNICACIONES | AD19: 214168000 | AE19: 0.003799788504 | AG19: INDUSTRIAS MANUFACTURERAS | AH19: 2714779000 | AI19: 0.05821045425
A20: 1 | B20: 54001 | C20: CÚCUTA | D20: 54 | E20: NORTE DE SANTANDER | F20: ACTIVIDADES PROFESIONALES, CIENTÍFICAS Y TÉCNICAS | G20: ACTIVIDADES PROFESIONALES, CIENTÍFICAS Y TÉCNICAS | H20: Jurídica | I20: MICRO | J20: 681393 | P20: 1 | Q20: 5001 | R20: MEDELLÍN | S20: 5 | T20: ANTIOQUIA | U20: INFORMACIÓN Y COMUNICACIONES | V20: INFORMACIÓN Y COMUNICACIONES | W20: Jurídica | X20: MICRO | Y20: 227131 | AC20: OTRAS ACTIVIDADES DE SERVICIOS | AD20: 2884552000 | AE20: 0.0511779889 | AG20: INFORMACIÓN Y COMUNICACIONES | AH20: 181764000 | AI20: 0.003897394597
A21: 1 | B21: 76001 | C21: CALI | D21: 76 | E21: VALLE DEL CAUCA | F21: COMERCIO AL POR MAYOR Y AL POR MENOR; REPARACIÓN DE VEHÍCULOS AUTOMOTORES Y MOTOCICLETAS | G21: COMERCIO AL POR MAYOR Y AL POR MENOR; REPARACIÓN DE VEHÍCULOS AUTOMOTORES Y MOTOCICLETAS | H21: Jurídica | I21: PEQUEÑA | J21: 227131 | P21: 1 | Q21: 5001 | R21: MEDELLÍN | S21: 5 | T21: ANTIOQUIA | U21: COMERCIO AL POR MAYOR Y AL POR MENOR; REPARACIÓN DE VEHÍCULOS AUTOMOTORES Y MOTOCICLETAS | V21: COMERCIO AL POR MAYOR Y AL POR MENOR; REPARACIÓN DE VEHÍCULOS AUTOMOTORES Y MOTOCICLETAS | W21: Jurídica | X21: PEQUEÑA | Y21: 227131 | AC21: SUMINISTRO DE ELECTRICIDAD, GAS, VAPOR Y AIRE ACONDICIONADO | AD21: 228692000 | AE21: 0.004057474658 | AG21: OTRAS ACTIVIDADES DE SERVICIOS | AH21: 2286499000 | AI21: 0.04902724878
A22: 1 | B22: 5360 | C22: ITAGUI | D22: 5 | E22: ANTIOQUIA | F22: ACTIVIDADES DE SERVICIOS ADMINISTRATIVOS Y DE APOYO | G22: ACTIVIDADES DE SERVICIOS ADMINISTRATIVOS Y DE APOYO | H22: Jurídica | I22: PEQUEÑA | J22: 227131 | P22: 1 | Q22: 5001 | R22: MEDELLÍN | S22: 5 | T22: ANTIOQUIA | U22: ACTIVIDADES DE SERVICIOS ADMINISTRATIVOS Y DE APOYO | V22: ACTIVIDADES DE SERVICIOS ADMINISTRATIVOS Y DE APOYO | W22: Jurídica | X22: MUY GRANDE | Y22: 1135655 | AC22: TRANSPORTE Y ALMACENAMIENTO | AD22: 6488127000 | AE22: 0.1151129505 | AG22: SUMINISTRO DE ELECTRICIDAD, GAS, VAPOR Y AIRE ACONDICIONADO | AH22: 76194000 | AI22: 0.001633756321
A23: 1 | B23: 76001 | C23: CALI | D23: 76 | E23: VALLE DEL CAUCA | F23: COMERCIO AL POR MAYOR Y AL POR MENOR; REPARACIÓN DE VEHÍCULOS AUTOMOTORES Y MOTOCICLETAS | G23: COMERCIO AL POR MAYOR Y AL POR MENOR; REPARACIÓN DE VEHÍCULOS AUTOMOTORES Y MOTOCICLETAS | H23: Jurídica | I23: MICRO | J23: 227131 | P23: 1 | Q23: 5001 | R23: MEDELLÍN | S23: 5 | T23: ANTIOQUIA | U23: ACTIVIDADES DE SERVICIOS ADMINISTRATIVOS Y DE APOYO | V23: ACTIVIDADES DE SERVICIOS ADMINISTRATIVOS Y DE APOYO | W23: Jurídica | X23: MUY GRANDE | Y23: 47016117 | AC23: Total general | AD23: 56363137000 | AE23: 1 | AG23: TRANSPORTE Y ALMACENAMIENTO | AH23: 4933536000 | AI23: 0.105785175
A24: 1 | B24: 54001 | C24: CÚCUTA | D24: 54 | E24: NORTE DE SANTANDER | F24: CONSTRUCCIÓN | G24: CONSTRUCCIÓN | H24: Jurídica | I24: PEQUEÑA | J24: 227131 | P24: 1 | Q24: 5001 | R24: MEDELLÍN | S24: 5 | T24: ANTIOQUIA | U24: COMERCIO AL POR MAYOR Y AL POR MENOR; REPARACIÓN DE VEHÍCULOS AUTOMOTORES Y MOTOCICLETAS | V24: COMERCIO AL POR MAYOR Y AL POR MENOR; REPARACIÓN DE VEHÍCULOS AUTOMOTORES Y MOTOCICLETAS | W24: Jurídica | X24: MICRO | Y24: 227131 | AG24: Total general | AH24: 46637310000 | AI24: 1
A25: 1 | B25: 11001 | C25: BOGOTÁ, D.C. | D25: 11 | E25: BOGOTÁ, D.C. | F25: ACTIVIDADES DE SERVICIOS ADMINISTRATIVOS Y DE APOYO | G25: ACTIVIDADES DE SERVICIOS ADMINISTRATIVOS Y DE APOYO | H25: Jurídica | I25: MEDIANA | J25: 4315489 | P25: 1 | Q25: 5360 | R25: ITAGUI | S25: 5 | T25: ANTIOQUIA | U25: INDUSTRIAS MANUFACTURERAS | V25: INDUSTRIAS MANUFACTURERAS | W25: Jurídica | X25: MUY GRANDE | Y25: 8858109
A26: 1 | B26: 11001 | C26: BOGOTÁ, D.C. | D26: 11 | E26: BOGOTÁ, D.C. | F26: COMERCIO AL POR MAYOR Y AL POR MENOR; REPARACIÓN DE VEHÍCULOS AUTOMOTORES Y MOTOCICLETAS | G26: COMERCIO AL POR MAYOR Y AL POR MENOR; REPARACIÓN DE VEHÍCULOS AUTOMOTORES Y MOTOCICLETAS | H26: Jurídica | I26: PEQUEÑA | J26: 227131 | P26: 1 | Q26: 5001 | R26: MEDELLÍN | S26: 5 | T26: ANTIOQUIA | U26: ACTIVIDADES DE ATENCIÓN DE LA SALUD HUMANA Y DE ASISTENCIA SOCIAL | V26: ACTIVIDADES DE ATENCIÓN DE LA SALUD HUMANA Y DE ASISTENCIA SOCIAL | W26: Jurídica | X26: MUY GRANDE | Y26: 2271310
A27: 1 | B27: 5001 | C27: MEDELLÍN | D27: 5 | E27: ANTIOQUIA | F27: ACTIVIDADES PROFESIONALES, CIENTÍFICAS Y TÉCNICAS | G27: ACTIVIDADES PROFESIONALES, CIENTÍFICAS Y TÉCNICAS | H27: Jurídica | I27: PEQUEÑA | J27: 2271310 | P27: 1 | Q27: 5001 | R27: MEDELLÍN | S27: 5 | T27: ANTIOQUIA | U27: ALOJAMIENTO Y SERVICIOS DE COMIDA | V27: ALOJAMIENTO Y SERVICIOS DE COMIDA | W27: Jurídica | X27: PEQUEÑA | Y27: 454262
A28: 1 | B28: 11001 | C28: BOGOTÁ, D.C. | D28: 11 | E28: BOGOTÁ, D.C. | F28: CONSTRUCCIÓN | G28: CONSTRUCCIÓN | H28: Jurídica | I28: MEDIANA | J28: 454262 | P28: 1 | Q28: 5266 | R28: ENVIGADO | S28: 5 | T28: ANTIOQUIA | U28: INFORMACIÓN Y COMUNICACIONES | V28: INFORMACIÓN Y COMUNICACIONES | W28: Jurídica | X28: MICRO | Y28: 227131
A29: 1 | B29: 68276 | C29: FLORIDABLANCA | D29: 68 | E29: SANTANDER | F29: AGRICULTURA, GANADERÍA, CAZA, SILVICULTURA Y PESCA | G29: AGRICULTURA, GANADERÍA, CAZA, SILVICULTURA Y PESCA | H29: Jurídica | I29: MEDIANA | J29: 1817048 | P29: 1 | Q29: 5001 | R29: MEDELLÍN | S29: 5 | T29: ANTIOQUIA | U29: CONSTRUCCIÓN | V29: CONSTRUCCIÓN | W29: Jurídica | X29: MICRO | Y29: 227131
A30: 1 | B30: 73001 | C30: IBAGUÉ | D30: 73 | E30: TOLIMA | F30: EDUCACIÓN | G30: EDUCACIÓN | H30: Jurídica | I30: PEQUEÑA | J30: 227131 | P30: 1 | Q30: 5001 | R30: MEDELLÍN | S30: 5 | T30: ANTIOQUIA | U30: CONSTRUCCIÓN | V30: CONSTRUCCIÓN | W30: Jurídica | X30: PEQUEÑA | Y30: 908524
A31: 1 | B31: 5001 | C31: MEDELLÍN | D31: 5 | E31: ANTIOQUIA | F31: INDUSTRIAS MANUFACTURERAS | G31: INDUSTRIAS MANUFACTURERAS | H31: Jurídica | I31: MICRO | J31: 227131 | P31: 1 | Q31: 5615 | R31: RIONEGRO | S31: 5 | T31: ANTIOQUIA | U31: TRANSPORTE Y ALMACENAMIENTO | V31: TRANSPORTE Y ALMACENAMIENTO | W31: Jurídica | X31: PEQUEÑA | Y31: 227131
A32: 1 | B32: 5360 | C32: ITAGUI | D32: 5 | E32: ANTIOQUIA | F32: ACTIVIDADES DE SERVICIOS ADMINISTRATIVOS Y DE APOYO | G32: ACTIVIDADES DE SERVICIOS ADMINISTRATIVOS Y DE APOYO | H32: Jurídica | I32: PEQUEÑA | J32: 454262 | P32: 1 | Q32: 5212 | R32: COPACABANA | S32: 5 | T32: ANTIOQUIA | U32: COMERCIO AL POR MAYOR Y AL POR MENOR; REPARACIÓN DE VEHÍCULOS AUTOMOTORES Y MOTOCICLETAS | V32: COMERCIO AL POR MAYOR Y AL POR MENOR; REPARACIÓN DE VEHÍCULOS AUTOMOTORES Y MOTOCICLETAS | W32: Natural | X32: MEDIANA | Y32: 227131
A33: 1 | B33: 8001 | C33: BARRANQUILLA | D33: 8 | E33: ATLÁNTICO | F33: COMERCIO AL POR MAYOR Y AL POR MENOR; REPARACIÓN DE VEHÍCULOS AUTOMOTORES Y MOTOCICLETAS | G33: COMERCIO AL POR MAYOR Y AL POR MENOR; REPARACIÓN DE VEHÍCULOS AUTOMOTORES Y MOTOCICLETAS | H33: Jurídica | I33: PEQUEÑA | J33: 681393 | P33: 1 | Q33: 5001 | R33: MEDELLÍN | S33: 5 | T33: ANTIOQUIA | U33: ALOJAMIENTO Y SERVICIOS DE COMIDA | V33: ALOJAMIENTO Y SERVICIOS DE COMIDA | W33: Jurídica | X33: MUY GRANDE | Y33: 6586799
A34: 1 | B34: 5360 | C34: ITAGUI | D34: 5 | E34: ANTIOQUIA | F34: INDUSTRIAS MANUFACTURERAS | G34: INDUSTRIAS MANUFACTURERAS | H34: Jurídica | I34: MEDIANA | J34: 908524 | P34: 1 | Q34: 5001 | R34: MEDELLÍN | S34: 5 | T34: ANTIOQUIA | U34: CONSTRUCCIÓN | V34: CONSTRUCCIÓN | W34: Jurídica | X34: PEQUEÑA | Y34: 1362786
A35: 1 | B35: 5001 | C35: MEDELLÍN | D35: 5 | E35: ANTIOQUIA | F35: COMERCIO AL POR MAYOR Y AL POR MENOR; REPARACIÓN DE VEHÍCULOS AUTOMOTORES Y MOTOCICLETAS | G35: COMERCIO AL POR MAYOR Y AL POR MENOR; REPARACIÓN DE VEHÍCULOS AUTOMOTORES Y MOTOCICLETAS | H35: Jurídica | I35: MICRO | J35: 227131 | P35: 1 | Q35: 5001 | R35: MEDELLÍN | S35: 5 | T35: ANTIOQUIA | U35: ACTIVIDADES FINANCIERAS Y DE SEGUROS | V35: ACTIVIDADES FINANCIERAS Y DE SEGUROS | W35: Jurídica | X35: PEQUEÑA | Y35: 454262
A36: 1 | B36: 5001 | C36: MEDELLÍN | D36: 5 | E36: ANTIOQUIA | F36: ACTIVIDADES DE ATENCIÓN DE LA SALUD HUMANA Y DE ASISTENCIA SOCIAL | G36: ACTIVIDADES DE ATENCIÓN DE LA SALUD HUMANA Y DE ASISTENCIA SOCIAL | H36: Jurídica | I36: MEDIANA | J36: 227131 | P36: 1 | Q36: 5001 | R36: MEDELLÍN | S36: 5 | T36: ANTIOQUIA | U36: ACTIVIDADES PROFESIONALES, CIENTÍFICAS Y TÉCNICAS | V36: ACTIVIDADES PROFESIONALES, CIENTÍFICAS Y TÉCNICAS | W36: Jurídica | X36: MEDIANA | Y36: 227131
A37: 1 | B37: 11001 | C37: BOGOTÁ, D.C. | D37: 11 | E37: BOGOTÁ, D.C. | F37: INFORMACIÓN Y COMUNICACIONES | G37: INFORMACIÓN Y COMUNICACIONES | H37: Jurídica | I37: MICRO | J37: 227131 | P37: 1 | Q37: 5001 | R37: MEDELLÍN | S37: 5 | T37: ANTIOQUIA | U37: COMERCIO AL POR MAYOR Y AL POR MENOR; REPARACIÓN DE VEHÍCULOS AUTOMOTORES Y MOTOCICLETAS | V37: COMERCIO AL POR MAYOR Y AL POR MENOR; REPARACIÓN DE VEHÍCULOS AUTOMOTORES Y MOTOCICLETAS | W37: Jurídica | X37: PEQUEÑA | Y37: 227131
A38: 1 | B38: 19001 | C38: POPAYÁN | D38: 19 | E38: CAUCA | F38: INDUSTRIAS MANUFACTURERAS | G38: INDUSTRIAS MANUFACTURERAS | H38: Jurídica | I38: MEDIANA | J38: 1135655 | P38: 1 | Q38: 5001 | R38: MEDELLÍN | S38: 5 | T38: ANTIOQUIA | U38: ACTIVIDADES PROFESIONALES, CIENTÍFICAS Y TÉCNICAS | V38: ACTIVIDADES PROFESIONALES, CIENTÍFICAS Y TÉCNICAS | W38: Jurídica | X38: MICRO | Y38: 454262
A39: 1 | B39: 68307 | C39: GIRÓN | D39: 68 | E39: SANTANDER | F39: ACTIVIDADES PROFESIONALES, CIENTÍFICAS Y TÉCNICAS | G39: ACTIVIDADES PROFESIONALES, CIENTÍFICAS Y TÉCNICAS | H39: Jurídica | I39: PEQUEÑA | J39: 681393 | P39: 1 | Q39: 5001 | R39: MEDELLÍN | S39: 5 | T39: ANTIOQUIA | U39: CONSTRUCCIÓN | V39: CONSTRUCCIÓN | W39: Jurídica | X39: PEQUEÑA | Y39: 1135655
A40: 1 | B40: 25430 | C40: MADRID | D40: 25 | E40: CUNDINAMARCA | F40: TRANSPORTE Y ALMACENAMIENTO | G40: TRANSPORTE Y ALMACENAMIENTO | H40: Jurídica | I40: MICRO | J40: 227131 | P40: 1 | Q40: 5001 | R40: MEDELLÍN | S40: 5 | T40: ANTIOQUIA | U40: INDUSTRIAS MANUFACTURERAS | V40: INDUSTRIAS MANUFACTURERAS | W40: Jurídica | X40: MEDIANA | Y40: 908524
A41: 1 | B41: 5001 | C41: MEDELLÍN | D41: 5 | E41: ANTIOQUIA | F41: INDUSTRIAS MANUFACTURERAS | G41: INDUSTRIAS MANUFACTURERAS | H41: Jurídica | I41: MICRO | J41: 227131 | P41: 1 | Q41: 5001 | R41: MEDELLÍN | S41: 5 | T41: ANTIOQUIA | U41: INDUSTRIAS MANUFACTURERAS | V41: INDUSTRIAS MANUFACTURERAS | W41: Jurídica | X41: MEDIANA | Y41: 1135655
A42: 1 | B42: 68001 | C42: BUCARAMANGA | D42: 68 | E42: SANTANDER | F42: COMERCIO AL POR MAYOR Y AL POR MENOR; REPARACIÓN DE VEHÍCULOS AUTOMOTORES Y MOTOCICLETAS | G42: COMERCIO AL POR MAYOR Y AL POR MENOR; REPARACIÓN DE VEHÍCULOS AUTOMOTORES Y MOTOCICLETAS | H42: Jurídica | I42: PEQUEÑA | J42: 227131 | P42: 1 | Q42: 5001 | R42: MEDELLÍN | S42: 5 | T42: ANTIOQUIA | U42: ACTIVIDADES INMOBILIARIAS | V42: ACTIVIDADES INMOBILIARIAS | W42: Jurídica | X42: MICRO | Y42: 227131
A43: 1 | B43: 5001 | C43: MEDELLÍN | D43: 5 | E43: ANTIOQUIA | F43: INFORMACIÓN Y COMUNICACIONES | G43: INFORMACIÓN Y COMUNICACIONES | H43: Jurídica | I43: MICRO | J43: 227131 | P43: 1 | Q43: 5001 | R43: MEDELLÍN | S43: 5 | T43: ANTIOQUIA | U43: COMERCIO AL POR MAYOR Y AL POR MENOR; REPARACIÓN DE VEHÍCULOS AUTOMOTORES Y MOTOCICLETAS | V43: COMERCIO AL POR MAYOR Y AL POR MENOR; REPARACIÓN DE VEHÍCULOS AUTOMOTORES Y MOTOCICLETAS | W43: Jurídica | X43: MICRO | Y43: 227131
A44: 1 | B44: 19001 | C44: POPAYÁN | D44: 19 | E44: CAUCA | F44: COMERCIO AL POR MAYOR Y AL POR MENOR; REPARACIÓN DE VEHÍCULOS AUTOMOTORES Y MOTOCICLETAS | G44: COMERCIO AL POR MAYOR Y AL POR MENOR; REPARACIÓN DE VEHÍCULOS AUTOMOTORES Y MOTOCICLETAS | H44: Jurídica | I44: PEQUEÑA | J44: 454262 | P44: 1 | Q44: 5001 | R44: MEDELLÍN | S44: 5 | T44: ANTIOQUIA | U44: INDUSTRIAS MANUFACTURERAS | V44: INDUSTRIAS MANUFACTURERAS | W44: Jurídica | X44: MICRO | Y44: 227131
A45: 1 | B45: 25214 | C45: COTA | D45: 25 | E45: CUNDINAMARCA | F45: ACTIVIDADES DE SERVICIOS ADMINISTRATIVOS Y DE APOYO | G45: ACTIVIDADES DE SERVICIOS ADMINISTRATIVOS Y DE APOYO | H45: Jurídica | I45: PEQUEÑA | J45: 2044179 | P45: 1 | Q45: 5001 | R45: MEDELLÍN | S45: 5 | T45: ANTIOQUIA | U45: ALOJAMIENTO Y SERVICIOS DE COMIDA | V45: ALOJAMIENTO Y SERVICIOS DE COMIDA | W45: Jurídica | X45: MICRO | Y45: 454262
A46: 1 | B46: 11001 | C46: BOGOTÁ, D.C. | D46: 11 | E46: BOGOTÁ, D.C. | F46: COMERCIO AL POR MAYOR Y AL POR MENOR; REPARACIÓN DE VEHÍCULOS AUTOMOTORES Y MOTOCICLETAS | G46: COMERCIO AL POR MAYOR Y AL POR MENOR; REPARACIÓN DE VEHÍCULOS AUTOMOTORES Y MOTOCICLETAS | H46: Jurídica | I46: MEDIANA | J46: 3179834 | P46: 1 | Q46: 5318 | R46: GUARNE | S46: 5 | T46: ANTIOQUIA | U46: INDUSTRIAS MANUFACTURERAS | V46: INDUSTRIAS MANUFACTURERAS | W46: Jurídica | X46: PEQUEÑA | Y46: 454262
A47: 1 | B47: 5001 | C47: MEDELLÍN | D47: 5 | E47: ANTIOQUIA | F47: COMERCIO AL POR MAYOR Y AL POR MENOR; REPARACIÓN DE VEHÍCULOS AUTOMOTORES Y MOTOCICLETAS | G47: COMERCIO AL POR MAYOR Y AL POR MENOR; REPARACIÓN DE VEHÍCULOS AUTOMOTORES Y MOTOCICLETAS | H47: Jurídica | I47: PEQUEÑA | J47: 227131 | P47: 1 | Q47: 5212 | R47: COPACABANA | S47: 5 | T47: ANTIOQUIA | U47: INDUSTRIAS MANUFACTURERAS | V47: INDUSTRIAS MANUFACTURERAS | W47: Natural | X47: PEQUEÑA | Y47: 454262
A48: 1 | B48: 5001 | C48: MEDELLÍN | D48: 5 | E48: ANTIOQUIA | F48: ACTIVIDADES DE SERVICIOS ADMINISTRATIVOS Y DE APOYO | G48: ACTIVIDADES DE SERVICIOS ADMINISTRATIVOS Y DE APOYO | H48: Jurídica | I48: MUY GRANDE | J48: 1135655 | P48: 1 | Q48: 5615 | R48: RIONEGRO | S48: 5 | T48: ANTIOQUIA | U48: ACTIVIDADES PROFESIONALES, CIENTÍFICAS Y TÉCNICAS | V48: ACTIVIDADES PROFESIONALES, CIENTÍFICAS Y TÉCNICAS | W48: Jurídica | X48: PEQUEÑA | Y48: 681393
A49: 1 | B49: 68001 | C49: BUCARAMANGA | D49: 68 | E49: SANTANDER | F49: AGRICULTURA, GANADERÍA, CAZA, SILVICULTURA Y PESCA | G49: AGRICULTURA, GANADERÍA, CAZA, SILVICULTURA Y PESCA | H49: Jurídica | I49: PEQUEÑA | J49: 1362786 | P49: 1 | Q49: 5001 | R49: MEDELLÍN | S49: 5 | T49: ANTIOQUIA | U49: CONSTRUCCIÓN | V49: CONSTRUCCIÓN | W49: Jurídica | X49: PEQUEÑA | Y49: 454262
A50: 1 | B50: 68001 | C50: BUCARAMANGA | D50: 68 | E50: SANTANDER | F50: TRANSPORTE Y ALMACENAMIENTO | G50: TRANSPORTE Y ALMACENAMIENTO | H50: Natural | I50: PEQUEÑA | J50: 681393 | P50: 1 | Q50: 5001 | R50: MEDELLÍN | S50: 5 | T50: ANTIOQUIA | U50: INDUSTRIAS MANUFACTURERAS | V50: INDUSTRIAS MANUFACTURERAS | W50: Jurídica | X50: MEDIANA | Y50: 3634096
A51: 1 | B51: 11001 | C51: BOGOTÁ, D.C. | D51: 11 | E51: BOGOTÁ, D.C. | F51: INFORMACIÓN Y COMUNICACIONES | G51: INFORMACIÓN Y COMUNICACIONES | H51: Jurídica | I51: GRANDE | J51: 227131 | P51: 1 | Q51: 5380 | R51: LA ESTRELLA | S51: 5 | T51: ANTIOQUIA | U51: INFORMACIÓN Y COMUNICACIONES | V51: INFORMACIÓN Y COMUNICACIONES | W51: Jurídica | X51: PEQUEÑA | Y51: 454262
A52: 1 | B52: 13001 | C52: CARTAGENA | D52: 13 | E52: BOLÍVAR | F52: ALOJAMIENTO Y SERVICIOS DE COMIDA | G52: ALOJAMIENTO Y SERVICIOS DE COMIDA | H52: Natural | I52: GRANDE | J52: 4769751 | P52: 1 | Q52: 5001 | R52: MEDELLÍN | S52: 5 | T52: ANTIOQUIA | U52: ACTIVIDADES PROFESIONALES, CIENTÍFICAS Y TÉCNICAS | V52: ACTIVIDADES PROFESIONALES, CIENTÍFICAS Y TÉCNICAS | W52: Jurídica | X52: MICRO | Y52: 227131
A53: 1 | B53: 5001 | C53: MEDELLÍN | D53: 5 | E53: ANTIOQUIA | F53: ACTIVIDADES DE SERVICIOS ADMINISTRATIVOS Y DE APOYO | G53: ACTIVIDADES DE SERVICIOS ADMINISTRATIVOS Y DE APOYO | H53: Jurídica | I53: MUY GRANDE | J53: 47016117 | P53: 1 | Q53: 5001 | R53: MEDELLÍN | S53: 5 | T53: ANTIOQUIA | U53: ACTIVIDADES DE SERVICIOS ADMINISTRATIVOS Y DE APOYO | V53: ACTIVIDADES DE SERVICIOS ADMINISTRATIVOS Y DE APOYO | W53: Jurídica | X53: MICRO | Y53: 681393
A54: 1 | B54: 11001 | C54: BOGOTÁ, D.C. | D54: 11 | E54: BOGOTÁ, D.C. | F54: ACTIVIDADES PROFESIONALES, CIENTÍFICAS Y TÉCNICAS | G54: ACTIVIDADES PROFESIONALES, CIENTÍFICAS Y TÉCNICAS | H54: Jurídica | I54: PEQUEÑA | J54: 227131 | P54: 1 | Q54: 5001 | R54: MEDELLÍN | S54: 5 | T54: ANTIOQUIA | U54: ALOJAMIENTO Y SERVICIOS DE COMIDA | V54: ALOJAMIENTO Y SERVICIOS DE COMIDA | W54: Jurídica | X54: MICRO | Y54: 454262
A55: 1 | B55: 11001 | C55: BOGOTÁ, D.C. | D55: 11 | E55: BOGOTÁ, D.C. | F55: COMERCIO AL POR MAYOR Y AL POR MENOR; REPARACIÓN DE VEHÍCULOS AUTOMOTORES Y MOTOCICLETAS | G55: COMERCIO AL POR MAYOR Y AL POR MENOR; REPARACIÓN DE VEHÍCULOS AUTOMOTORES Y MOTOCICLETAS | H55: Jurídica | I55: PEQUEÑA | J55: 454262 | P55: 1 | Q55: 5001 | R55: MEDELLÍN | S55: 5 | T55: ANTIOQUIA | U55: INDUSTRIAS MANUFACTURERAS | V55: INDUSTRIAS MANUFACTURERAS | W55: Jurídica | X55: PEQUEÑA | Y55: 227131
A56: 1 | B56: 5001 | C56: MEDELLÍN | D56: 5 | E56: ANTIOQUIA | F56: COMERCIO AL POR MAYOR Y AL POR MENOR; REPARACIÓN DE VEHÍCULOS AUTOMOTORES Y MOTOCICLETAS | G56: COMERCIO AL POR MAYOR Y AL POR MENOR; REPARACIÓN DE VEHÍCULOS AUTOMOTORES Y MOTOCICLETAS | H56: Jurídica | I56: MICRO | J56: 227131 | P56: 1 | Q56: 5318 | R56: GUARNE | S56: 5 | T56: ANTIOQUIA | U56: INDUSTRIAS MANUFACTURERAS | V56: INDUSTRIAS MANUFACTURERAS | W56: Jurídica | X56: MICRO | Y56: 227131
A57: 1 | B57: 11001 | C57: BOGOTÁ, D.C. | D57: 11 | E57: BOGOTÁ, D.C. | F57: COMERCIO AL POR MAYOR Y AL POR MENOR; REPARACIÓN DE VEHÍCULOS AUTOMOTORES Y MOTOCICLETAS | G57: COMERCIO AL POR MAYOR Y AL POR MENOR; REPARACIÓN DE VEHÍCULOS AUTOMOTORES Y MOTOCICLETAS | H57: Natural | I57: MICRO | J57: 681393 | P57: 1 | Q57: 5212 | R57: COPACABANA | S57: 5 | T57: ANTIOQUIA | U57: CONSTRUCCIÓN | V57: CONSTRUCCIÓN | W57: Jurídica | X57: MEDIANA | Y57: 1362786
A58: 1 | B58: 27361 | C58: ISTMINA | D58: 27 | E58: CHOCÓ | F58: COMERCIO AL POR MAYOR Y AL POR MENOR; REPARACIÓN DE VEHÍCULOS AUTOMOTORES Y MOTOCICLETAS | G58: COMERCIO AL POR MAYOR Y AL POR MENOR; REPARACIÓN DE VEHÍCULOS AUTOMOTORES Y MOTOCICLETAS | H58: Jurídica | I58: MICRO | J58: 454262 | P58: 1 | Q58: 5001 | R58: MEDELLÍN | S58: 5 | T58: ANTIOQUIA | U58: CONSTRUCCIÓN | V58: CONSTRUCCIÓN | W58: Jurídica | X58: MICRO | Y58: 908524
A59: 1 | B59: 11001 | C59: BOGOTÁ, D.C. | D59: 11 | E59: BOGOTÁ, D.C. | F59: TRANSPORTE Y ALMACENAMIENTO | G59: TRANSPORTE Y ALMACENAMIENTO | H59: Jurídica | I59: MUY GRANDE | J59: 2271310 | P59: 1 | Q59: 5631 | R59: SABANETA | S59: 5 | T59: ANTIOQUIA | U59: COMERCIO AL POR MAYOR Y AL POR MENOR; REPARACIÓN DE VEHÍCULOS AUTOMOTORES Y MOTOCICLETAS | V59: COMERCIO AL POR MAYOR Y AL POR MENOR; REPARACIÓN DE VEHÍCULOS AUTOMOTORES Y MOTOCICLETAS | W59: Jurídica | X59: MEDIANA | Y59: 227131
A60: 1 | B60: 5360 | C60: ITAGUI | D60: 5 | E60: ANTIOQUIA | F60: INDUSTRIAS MANUFACTURERAS | G60: INDUSTRIAS MANUFACTURERAS | H60: Jurídica | I60: MUY GRANDE | J60: 8858109 | P60: 1 | Q60: 5001 | R60: MEDELLÍN | S60: 5 | T60: ANTIOQUIA | U60: INDUSTRIAS MANUFACTURERAS | V60: INDUSTRIAS MANUFACTURERAS | W60: Jurídica | X60: MUY GRANDE | Y60: 4088358
A61: 1 | B61: 11001 | C61: BOGOTÁ, D.C. | D61: 11 | E61: BOGOTÁ, D.C. | F61: INDUSTRIAS MANUFACTURERAS | G61: INDUSTRIAS MANUFACTURERAS | H61: Jurídica | I61: MEDIANA | J61: 681393 | P61: 1 | Q61: 5001 | R61: MEDELLÍN | S61: 5 | T61: ANTIOQUIA | U61: INDUSTRIAS MANUFACTURERAS | V61: INDUSTRIAS MANUFACTURERAS | W61: Jurídica | X61: MICRO | Y61: 227131
A62: 1 | B62: 76001 | C62: CALI | D62: 76 | E62: VALLE DEL CAUCA | F62: INFORMACIÓN Y COMUNICACIONES | G62: INFORMACIÓN Y COMUNICACIONES | H62: Jurídica | I62: MICRO | J62: 227131 | P62: 1 | Q62: 5001 | R62: MEDELLÍN | S62: 5 | T62: ANTIOQUIA | U62: CONSTRUCCIÓN | V62: CONSTRUCCIÓN | W62: Jurídica | X62: MEDIANA | Y62: 227131
A63: 1 | B63: 11001 | C63: BOGOTÁ, D.C. | D63: 11 | E63: BOGOTÁ, D.C. | F63: CONSTRUCCIÓN | G63: CONSTRUCCIÓN | H63: Natural | I63: PEQUEÑA | J63: 227131 | P63: 1 | Q63: 5001 | R63: MEDELLÍN | S63: 5 | T63: ANTIOQUIA | U63: ALOJAMIENTO Y SERVICIOS DE COMIDA | V63: ALOJAMIENTO Y SERVICIOS DE COMIDA | W63: Jurídica | X63: MEDIANA | Y63: 454262
A64: 1 | B64: 5001 | C64: MEDELLÍN | D64: 5 | E64: ANTIOQUIA | F64: ACTIVIDADES DE ATENCIÓN DE LA SALUD HUMANA Y DE ASISTENCIA SOCIAL | G64: ACTIVIDADES DE ATENCIÓN DE LA SALUD HUMANA Y DE ASISTENCIA SOCIAL | H64: Jurídica | I64: MUY GRANDE | J64: 2271310 | P64: 1 | Q64: 5045 | R64: APARTADÓ | S64: 5 | T64: ANTIOQUIA | U64: DISTRIBUCIÓN DE AGUA; EVACUACIÓN Y TRATAMIENTO DE AGUAS RESIDUALES, GESTIÓN DE DESECHOS Y ACTIVIDADES DE SANEAMIENTO AMBIENTAL | V64: DISTRIBUCIÓN DE AGUA; EVACUACIÓN Y TRATAMIENTO DE AGUAS RESIDUALES, GESTIÓN DE DESECHOS Y ACTIVIDADES DE SANEAMIENTO AMBIENTAL | W64: Jurídica | X64: PEQUEÑA | Y64: 454262
A65: 1 | B65: 5001 | C65: MEDELLÍN | D65: 5 | E65: ANTIOQUIA | F65: ALOJAMIENTO Y SERVICIOS DE COMIDA | G65: ALOJAMIENTO Y SERVICIOS DE COMIDA | H65: Jurídica | I65: PEQUEÑA | J65: 454262 | P65: 1 | Q65: 5001 | R65: MEDELLÍN | S65: 5 | T65: ANTIOQUIA | U65: INDUSTRIAS MANUFACTURERAS | V65: INDUSTRIAS MANUFACTURERAS | W65: Jurídica | X65: MICRO | Y65: 454262
A66: 1 | B66: 5266 | C66: ENVIGADO | D66: 5 | E66: ANTIOQUIA | F66: INFORMACIÓN Y COMUNICACIONES | G66: INFORMACIÓN Y COMUNICACIONES | H66: Jurídica | I66: MICRO | J66: 227131 | P66: 1 | Q66: 5001 | R66: MEDELLÍN | S66: 5 | T66: ANTIOQUIA | U66: COMERCIO AL POR MAYOR Y AL POR MENOR; REPARACIÓN DE VEHÍCULOS AUTOMOTORES Y MOTOCICLETAS | V66: COMERCIO AL POR MAYOR Y AL POR MENOR; REPARACIÓN DE VEHÍCULOS AUTOMOTORES Y MOTOCICLETAS | W66: Jurídica | X66: MEDIANA | Y66: 1589917
A67: 1 | B67: 11001 | C67: BOGOTÁ, D.C. | D67: 11 | E67: BOGOTÁ, D.C. | F67: INDUSTRIAS MANUFACTURERAS | G67: INDUSTRIAS MANUFACTURERAS | H67: Jurídica | I67: MICRO | J67: 454262 | P67: 1 | Q67: 5001 | R67: MEDELLÍN | S67: 5 | T67: ANTIOQUIA | U67: INDUSTRIAS MANUFACTURERAS | V67: INDUSTRIAS MANUFACTURERAS | W67: Jurídica | X67: PEQUEÑA | Y67: 227131
A68: 1 | B68: 68001 | C68: BUCARAMANGA | D68: 68 | E68: SANTANDER | F68: ACTIVIDADES DE SERVICIOS ADMINISTRATIVOS Y DE APOYO | G68: ACTIVIDADES DE SERVICIOS ADMINISTRATIVOS Y DE APOYO | H68: Natural | I68: MUY GRANDE | J68: 16353432 | P68: 1 | Q68: 5360 | R68: ITAGUI | S68: 5 | T68: ANTIOQUIA | U68: INDUSTRIAS MANUFACTURERAS | V68: INDUSTRIAS MANUFACTURERAS | W68: Jurídica | X68: MEDIANA | Y68: 908524
A69: 1 | B69: 25269 | C69: FACATATIVÁ | D69: 25 | E69: CUNDINAMARCA | F69: COMERCIO AL POR MAYOR Y AL POR MENOR; REPARACIÓN DE VEHÍCULOS AUTOMOTORES Y MOTOCICLETAS | G69: COMERCIO AL POR MAYOR Y AL POR MENOR; REPARACIÓN DE VEHÍCULOS AUTOMOTORES Y MOTOCICLETAS | H69: Jurídica | I69: PEQUEÑA | J69: 681393 | P69: 1 | Q69: 5631 | R69: SABANETA | S69: 5 | T69: ANTIOQUIA | U69: CONSTRUCCIÓN | V69: CONSTRUCCIÓN | W69: Jurídica | X69: MICRO | Y69: 454262
A70: 1 | B70: 5001 | C70: MEDELLÍN | D70: 5 | E70: ANTIOQUIA | F70: CONSTRUCCIÓN | G70: CONSTRUCCIÓN | H70: Jurídica | I70: MICRO | J70: 227131 | P70: 1 | Q70: 5001 | R70: MEDELLÍN | S70: 5 | T70: ANTIOQUIA | U70: AGRICULTURA, GANADERÍA, CAZA, SILVICULTURA Y PESCA | V70: AGRICULTURA, GANADERÍA, CAZA, SILVICULTURA Y PESCA | W70: Jurídica | X70: MEDIANA | Y70: 227131
A71: 1 | B71: 5001 | C71: MEDELLÍN | D71: 5 | E71: ANTIOQUIA | F71: CONSTRUCCIÓN | G71: CONSTRUCCIÓN | H71: Jurídica | I71: PEQUEÑA | J71: 908524 | P71: 1 | Q71: 5376 | R71: LA CEJA | S71: 5 | T71: ANTIOQUIA | U71: COMERCIO AL POR MAYOR Y AL POR MENOR; REPARACIÓN DE VEHÍCULOS AUTOMOTORES Y MOTOCICLETAS | V71: COMERCIO AL POR MAYOR Y AL POR MENOR; REPARACIÓN DE VEHÍCULOS AUTOMOTORES Y MOTOCICLETAS | W71: Jurídica | X71: PEQUEÑA | Y71: 1362786
A72: 1 | B72: 5615 | C72: RIONEGRO | D72: 5 | E72: ANTIOQUIA | F72: TRANSPORTE Y ALMACENAMIENTO | G72: TRANSPORTE Y ALMACENAMIENTO | H72: Jurídica | I72: PEQUEÑA | J72: 227131 | P72: 1 | Q72: 5001 | R72: MEDELLÍN | S72: 5 | T72: ANTIOQUIA | U72: INDUSTRIAS MANUFACTURERAS | V72: INDUSTRIAS MANUFACTURERAS | W72: Jurídica | X72: MUY GRANDE | Y72: 2952703
A73: 1 | B73: 11001 | C73: BOGOTÁ, D.C. | D73: 11 | E73: BOGOTÁ, D.C. | F73: ACTIVIDADES DE SERVICIOS ADMINISTRATIVOS Y DE APOYO | G73: ACTIVIDADES DE SERVICIOS ADMINISTRATIVOS Y DE APOYO | H73: Jurídica | I73: MEDIANA | J73: 3634096 | P73: 1 | Q73: 5001 | R73: MEDELLÍN | S73: 5 | T73: ANTIOQUIA | U73: ACTIVIDADES PROFESIONALES, CIENTÍFICAS Y TÉCNICAS | V73: ACTIVIDADES PROFESIONALES, CIENTÍFICAS Y TÉCNICAS | W73: Jurídica | X73: MICRO | Y73: 227131
A74: 1 | B74: 5212 | C74: COPACABANA | D74: 5 | E74: ANTIOQUIA | F74: COMERCIO AL POR MAYOR Y AL POR MENOR; REPARACIÓN DE VEHÍCULOS AUTOMOTORES Y MOTOCICLETAS | G74: COMERCIO AL POR MAYOR Y AL POR MENOR; REPARACIÓN DE VEHÍCULOS AUTOMOTORES Y MOTOCICLETAS | H74: Natural | I74: MEDIANA | J74: 227131 | P74: 1 | Q74: 5376 | R74: LA CEJA | S74: 5 | T74: ANTIOQUIA | U74: AGRICULTURA, GANADERÍA, CAZA, SILVICULTURA Y PESCA | V74: AGRICULTURA, GANADERÍA, CAZA, SILVICULTURA Y PESCA | W74: Natural | X74: GRANDE | Y74: 3634096
A75: 1 | B75: 11001 | C75: BOGOTÁ, D.C. | D75: 11 | E75: BOGOTÁ, D.C. | F75: COMERCIO AL POR MAYOR Y AL POR MENOR; REPARACIÓN DE VEHÍCULOS AUTOMOTORES Y MOTOCICLETAS | G75: COMERCIO AL POR MAYOR Y AL POR MENOR; REPARACIÓN DE VEHÍCULOS AUTOMOTORES Y MOTOCICLETAS | H75: Jurídica | I75: PEQUEÑA | J75: 908524 | P75: 1 | Q75: 5001 | R75: MEDELLÍN | S75: 5 | T75: ANTIOQUIA | U75: TRANSPORTE Y ALMACENAMIENTO | V75: TRANSPORTE Y ALMACENAMIENTO | W75: Natural | X75: PEQUEÑA | Y75: 454262
A76: 1 | B76: 11001 | C76: BOGOTÁ, D.C. | D76: 11 | E76: BOGOTÁ, D.C. | F76: COMERCIO AL POR MAYOR Y AL POR MENOR; REPARACIÓN DE VEHÍCULOS AUTOMOTORES Y MOTOCICLETAS | G76: COMERCIO AL POR MAYOR Y AL POR MENOR; REPARACIÓN DE VEHÍCULOS AUTOMOTORES Y MOTOCICLETAS | H76: Jurídica | I76: MEDIANA | J76: 227131 | P76: 1 | Q76: 5001 | R76: MEDELLÍN | S76: 5 | T76: ANTIOQUIA | U76: CONSTRUCCIÓN | V76: CONSTRUCCIÓN | W76: Jurídica | X76: PEQUEÑA | Y76: 454262
A77: 1 | B77: 8573 | C77: PUERTO COLOMBIA | D77: 8 | E77: ATLÁNTICO | F77: CONSTRUCCIÓN | G77: CONSTRUCCIÓN | H77: Jurídica | I77: MICRO | J77: 681393 | P77: 1 | Q77: 5631 | R77: SABANETA | S77: 5 | T77: ANTIOQUIA | U77: ALOJAMIENTO Y SERVICIOS DE COMIDA | V77: ALOJAMIENTO Y SERVICIOS DE COMIDA | W77: Jurídica | X77: MICRO | Y77: 227131
A78: 1 | B78: 5001 | C78: MEDELLÍN | D78: 5 | E78: ANTIOQUIA | F78: ALOJAMIENTO Y SERVICIOS DE COMIDA | G78: ALOJAMIENTO Y SERVICIOS DE COMIDA | H78: Jurídica | I78: MUY GRANDE | J78: 6586799 | P78: 1 | Q78: 5001 | R78: MEDELLÍN | S78: 5 | T78: ANTIOQUIA | U78: ACTIVIDADES FINANCIERAS Y DE SEGUROS | V78: ACTIVIDADES FINANCIERAS Y DE SEGUROS | W78: Jurídica | X78: PEQUEÑA | Y78: 681393
A79: 1 | B79: 5001 | C79: MEDELLÍN | D79: 5 | E79: ANTIOQUIA | F79: CONSTRUCCIÓN | G79: CONSTRUCCIÓN | H79: Jurídica | I79: PEQUEÑA | J79: 1362786 | P79: 1 | Q79: 5001 | R79: MEDELLÍN | S79: 5 | T79: ANTIOQUIA | U79: ACTIVIDADES PROFESIONALES, CIENTÍFICAS Y TÉCNICAS | V79: ACTIVIDADES PROFESIONALES, CIENTÍFICAS Y TÉCNICAS | W79: Jurídica | X79: MICRO | Y79: 454262
A80: 1 | B80: 15176 | C80: CHIQUINQUIRÁ | D80: 15 | E80: BOYACÁ | F80: CONSTRUCCIÓN | G80: CONSTRUCCIÓN | H80: Jurídica | I80: PEQUEÑA | J80: 454262 | P80: 1 | Q80: 5001 | R80: MEDELLÍN | S80: 5 | T80: ANTIOQUIA | U80: COMERCIO AL POR MAYOR Y AL POR MENOR; REPARACIÓN DE VEHÍCULOS AUTOMOTORES Y MOTOCICLETAS | V80: COMERCIO AL POR MAYOR Y AL POR MENOR; REPARACIÓN DE VEHÍCULOS AUTOMOTORES Y MOTOCICLETAS | W80: Jurídica | X80: MICRO | Y80: 227131
A81: 1 | B81: 5001 | C81: MEDELLÍN | D81: 5 | E81: ANTIOQUIA | F81: ACTIVIDADES FINANCIERAS Y DE SEGUROS | G81: ACTIVIDADES FINANCIERAS Y DE SEGUROS | H81: Jurídica | I81: PEQUEÑA | J81: 454262 | P81: 1 | Q81: 5001 | R81: MEDELLÍN | S81: 5 | T81: ANTIOQUIA | U81: COMERCIO AL POR MAYOR Y AL POR MENOR; REPARACIÓN DE VEHÍCULOS AUTOMOTORES Y MOTOCICLETAS | V81: COMERCIO AL POR MAYOR Y AL POR MENOR; REPARACIÓN DE VEHÍCULOS AUTOMOTORES Y MOTOCICLETAS | W81: Natural | X81: MEDIANA | Y81: 908524
A82: 1 | B82: 5001 | C82: MEDELLÍN | D82: 5 | E82: ANTIOQUIA | F82: ACTIVIDADES PROFESIONALES, CIENTÍFICAS Y TÉCNICAS | G82: ACTIVIDADES PROFESIONALES, CIENTÍFICAS Y TÉCNICAS | H82: Jurídica | I82: MEDIANA | J82: 227131 | P82: 1 | Q82: 5001 | R82: MEDELLÍN | S82: 5 | T82: ANTIOQUIA | U82: ACTIVIDADES DE SERVICIOS ADMINISTRATIVOS Y DE APOYO | V82: ACTIVIDADES DE SERVICIOS ADMINISTRATIVOS Y DE APOYO | W82: Jurídica | X82: PEQUEÑA | Y82: 454262
A83: 1 | B83: 76001 | C83: CALI | D83: 76 | E83: VALLE DEL CAUCA | F83: ACTIVIDADES DE ATENCIÓN DE LA SALUD HUMANA Y DE ASISTENCIA SOCIAL | G83: ACTIVIDADES DE ATENCIÓN DE LA SALUD HUMANA Y DE ASISTENCIA SOCIAL | H83: Jurídica | I83: PEQUEÑA | J83: 227131 | P83: 1 | Q83: 5001 | R83: MEDELLÍN | S83: 5 | T83: ANTIOQUIA | U83: ACTIVIDADES PROFESIONALES, CIENTÍFICAS Y TÉCNICAS | V83: ACTIVIDADES PROFESIONALES, CIENTÍFICAS Y TÉCNICAS | W83: Jurídica | X83: PEQUEÑA | Y83: 681393
A84: 1 | B84: 73001 | C84: IBAGUÉ | D84: 73 | E84: TOLIMA | F84: COMERCIO AL POR MAYOR Y AL POR MENOR; REPARACIÓN DE VEHÍCULOS AUTOMOTORES Y MOTOCICLETAS | G84: COMERCIO AL POR MAYOR Y AL POR MENOR; REPARACIÓN DE VEHÍCULOS AUTOMOTORES Y MOTOCICLETAS | H84: Natural | I84: MICRO | J84: 227131 | P84: 1 | Q84: 5001 | R84: MEDELLÍN | S84: 5 | T84: ANTIOQUIA | U84: INFORMACIÓN Y COMUNICACIONES | V84: INFORMACIÓN Y COMUNICACIONES | W84: Jurídica | X84: PEQUEÑA | Y84: 3406965
A85: 1 | B85: 8001 | C85: BARRANQUILLA | D85: 8 | E85: ATLÁNTICO | F85: INDUSTRIAS MANUFACTURERAS | G85: INDUSTRIAS MANUFACTURERAS | H85: Jurídica | I85: PEQUEÑA | J85: 454262 | P85: 1 | Q85: 5001 | R85: MEDELLÍN | S85: 5 | T85: ANTIOQUIA | U85: ACTIVIDADES DE SERVICIOS ADMINISTRATIVOS Y DE APOYO | V85: ACTIVIDADES DE SERVICIOS ADMINISTRATIVOS Y DE APOYO | W85: Natural | X85: MICRO | Y85: 454262
A86: 1 | B86: 11001 | C86: BOGOTÁ, D.C. | D86: 11 | E86: BOGOTÁ, D.C. | F86: CONSTRUCCIÓN | G86: CONSTRUCCIÓN | H86: Jurídica | I86: GRANDE | J86: 1362786 | P86: 1 | Q86: 5001 | R86: MEDELLÍN | S86: 5 | T86: ANTIOQUIA | U86: CONSTRUCCIÓN | V86: CONSTRUCCIÓN | W86: Jurídica | X86: MUY GRANDE | Y86: 34751043
A87: 1 | B87: 23001 | C87: MONTERÍA | D87: 23 | E87: CÓRDOBA | F87: CONSTRUCCIÓN | G87: CONSTRUCCIÓN | H87: Jurídica | I87: MICRO | J87: 227131 | P87: 1 | Q87: 5001 | R87: MEDELLÍN | S87: 5 | T87: ANTIOQUIA | U87: ACTIVIDADES PROFESIONALES, CIENTÍFICAS Y TÉCNICAS | V87: ACTIVIDADES PROFESIONALES, CIENTÍFICAS Y TÉCNICAS | W87: Natural | X87: PEQUEÑA | Y87: 681393
A88: 1 | B88: 25214 | C88: COTA | D88: 25 | E88: CUNDINAMARCA | F88: COMERCIO AL POR MAYOR Y AL POR MENOR; REPARACIÓN DE VEHÍCULOS AUTOMOTORES Y MOTOCICLETAS | G88: COMERCIO AL POR MAYOR Y AL POR MENOR; REPARACIÓN DE VEHÍCULOS AUTOMOTORES Y MOTOCICLETAS | H88: Jurídica | I88: MEDIANA | J88: 908524 | P88: 1 | Q88: 5045 | R88: APARTADÓ | S88: 5 | T88: ANTIOQUIA | U88: COMERCIO AL POR MAYOR Y AL POR MENOR; REPARACIÓN DE VEHÍCULOS AUTOMOTORES Y MOTOCICLETAS | V88: COMERCIO AL POR MAYOR Y AL POR MENOR; REPARACIÓN DE VEHÍCULOS AUTOMOTORES Y MOTOCICLETAS | W88: Jurídica | X88: MICRO | Y88: 227131
A89: 1 | B89: 13001 | C89: CARTAGENA | D89: 13 | E89: BOLÍVAR | F89: ACTIVIDADES DE SERVICIOS ADMINISTRATIVOS Y DE APOYO | G89: ACTIVIDADES DE SERVICIOS ADMINISTRATIVOS Y DE APOYO | H89: Jurídica | I89: GRANDE | J89: 2725572 | P89: 1 | Q89: 5266 | R89: ENVIGADO | S89: 5 | T89: ANTIOQUIA | U89: ACTIVIDADES PROFESIONALES, CIENTÍFICAS Y TÉCNICAS | V89: ACTIVIDADES PROFESIONALES, CIENTÍFICAS Y TÉCNICAS | W89: Jurídica | X89: MICRO | Y89: 454262
A90: 1 | B90: 11001 | C90: BOGOTÁ, D.C. | D90: 11 | E90: BOGOTÁ, D.C. | F90: CONSTRUCCIÓN | G90: CONSTRUCCIÓN | H90: Jurídica | I90: MEDIANA | J90: 227131 | P90: 1 | Q90: 5001 | R90: MEDELLÍN | S90: 5 | T90: ANTIOQUIA | U90: ACTIVIDADES DE SERVICIOS ADMINISTRATIVOS Y DE APOYO | V90: ACTIVIDADES DE SERVICIOS ADMINISTRATIVOS Y DE APOYO | W90: Jurídica | X90: MUY GRANDE | Y90: 15899170
A91: 1 | B91: 11001 | C91: BOGOTÁ, D.C. | D91: 11 | E91: BOGOTÁ, D.C. | F91: ALOJAMIENTO Y SERVICIOS DE COMIDA | G91: ALOJAMIENTO Y SERVICIOS DE COMIDA | H91: Jurídica | I91: PEQUEÑA | J91: 908524 | P91: 1 | Q91: 5376 | R91: LA CEJA | S91: 5 | T91: ANTIOQUIA | U91: COMERCIO AL POR MAYOR Y AL POR MENOR; REPARACIÓN DE VEHÍCULOS AUTOMOTORES Y MOTOCICLETAS | V91: COMERCIO AL POR MAYOR Y AL POR MENOR; REPARACIÓN DE VEHÍCULOS AUTOMOTORES Y MOTOCICLETAS | W91: Jurídica | X91: MEDIANA | Y91: 1362786
A92: 1 | B92: 5001 | C92: MEDELLÍN | D92: 5 | E92: ANTIOQUIA | F92: COMERCIO AL POR MAYOR Y AL POR MENOR; REPARACIÓN DE VEHÍCULOS AUTOMOTORES Y MOTOCICLETAS | G92: COMERCIO AL POR MAYOR Y AL POR MENOR; REPARACIÓN DE VEHÍCULOS AUTOMOTORES Y MOTOCICLETAS | H92: Jurídica | I92: PEQUEÑA | J92: 227131 | P92: 1 | Q92: 5266 | R92: ENVIGADO | S92: 5 | T92: ANTIOQUIA | U92: COMERCIO AL POR MAYOR Y AL POR MENOR; REPARACIÓN DE VEHÍCULOS AUTOMOTORES Y MOTOCICLETAS | V92: COMERCIO AL POR MAYOR Y AL POR MENOR; REPARACIÓN DE VEHÍCULOS AUTOMOTORES Y MOTOCICLETAS | W92: Natural | X92: MUY GRANDE | Y92: 681393
A93: 1 | B93: 5001 | C93: MEDELLÍN | D93: 5 | E93: ANTIOQUIA | F93: ACTIVIDADES PROFESIONALES, CIENTÍFICAS Y TÉCNICAS | G93: ACTIVIDADES PROFESIONALES, CIENTÍFICAS Y TÉCNICAS | H93: Jurídica | I93: MICRO | J93: 454262 | P93: 1 | Q93: 5615 | R93: RIONEGRO | S93: 5 | T93: ANTIOQUIA | U93: COMERCIO AL POR MAYOR Y AL POR MENOR; REPARACIÓN DE VEHÍCULOS AUTOMOTORES Y MOTOCICLETAS | V93: COMERCIO AL POR MAYOR Y AL POR MENOR; REPARACIÓN DE VEHÍCULOS AUTOMOTORES Y MOTOCICLETAS | W93: Jurídica | X93: MICRO | Y93: 227131
A94: 1 | B94: 11001 | C94: BOGOTÁ, D.C. | D94: 11 | E94: BOGOTÁ, D.C. | F94: COMERCIO AL POR MAYOR Y AL POR MENOR; REPARACIÓN DE VEHÍCULOS AUTOMOTORES Y MOTOCICLETAS | G94: COMERCIO AL POR MAYOR Y AL POR MENOR; REPARACIÓN DE VEHÍCULOS AUTOMOTORES Y MOTOCICLETAS | H94: Jurídica | I94: PEQUEÑA | J94: 227131 | P94: 1 | Q94: 5360 | R94: ITAGUI | S94: 5 | T94: ANTIOQUIA | U94: INDUSTRIAS MANUFACTURERAS | V94: INDUSTRIAS MANUFACTURERAS | W94: Jurídica | X94: MEDIANA | Y94: 1589917
A95: 1 | B95: 11001 | C95: BOGOTÁ, D.C. | D95: 11 | E95: BOGOTÁ, D.C. | F95: ACTIVIDADES PROFESIONALES, CIENTÍFICAS Y TÉCNICAS | G95: ACTIVIDADES PROFESIONALES, CIENTÍFICAS Y TÉCNICAS | H95: Jurídica | I95: MICRO | J95: 227131 | P95: 1 | Q95: 5001 | R95: MEDELLÍN | S95: 5 | T95: ANTIOQUIA | U95: INDUSTRIAS MANUFACTURERAS | V95: INDUSTRIAS MANUFACTURERAS | W95: Natural | X95: MEDIANA | Y95: 681393
A96: 1 | B96: 8001 | C96: BARRANQUILLA | D96: 8 | E96: ATLÁNTICO | F96: ACTIVIDADES DE SERVICIOS ADMINISTRATIVOS Y DE APOYO | G96: ACTIVIDADES DE SERVICIOS ADMINISTRATIVOS Y DE APOYO | H96: Jurídica | I96: PEQUEÑA | J96: 227131 | P96: 1 | Q96: 5001 | R96: MEDELLÍN | S96: 5 | T96: ANTIOQUIA | U96: COMERCIO AL POR MAYOR Y AL POR MENOR; REPARACIÓN DE VEHÍCULOS AUTOMOTORES Y MOTOCICLETAS | V96: COMERCIO AL POR MAYOR Y AL POR MENOR; REPARACIÓN DE VEHÍCULOS AUTOMOTORES Y MOTOCICLETAS | W96: Natural | X96: MICRO | Y96: 227131
A97: 1 | B97: 5001 | C97: MEDELLÍN | D97: 5 | E97: ANTIOQUIA | F97: CONSTRUCCIÓN | G97: CONSTRUCCIÓN | H97: Jurídica | I97: PEQUEÑA | J97: 1135655 | P97: 1 | Q97: 5001 | R97: MEDELLÍN | S97: 5 | T97: ANTIOQUIA | U97: INFORMACIÓN Y COMUNICACIONES | V97: INFORMACIÓN Y COMUNICACIONES | W97: Jurídica | X97: MICRO | Y97: 227131
A98: 1 | B98: 41797 | C98: TESALIA | D98: 41 | E98: HUILA | F98: CONSTRUCCIÓN | G98: CONSTRUCCIÓN | H98: Jurídica | I98: PEQUEÑA | J98: 227131 | P98: 1 | Q98: 5615 | R98: RIONEGRO | S98: 5 | T98: ANTIOQUIA | U98: INFORMACIÓN Y COMUNICACIONES | V98: INFORMACIÓN Y COMUNICACIONES | W98: Jurídica | X98: PEQUEÑA | Y98: 681393
A99: 1 | B99: 5001 | C99: MEDELLÍN | D99: 5 | E99: ANTIOQUIA | F99: INDUSTRIAS MANUFACTURERAS | G99: INDUSTRIAS MANUFACTURERAS | H99: Jurídica | I99: MEDIANA | J99: 908524 | P99: 1 | Q99: 5001 | R99: MEDELLÍN | S99: 5 | T99: ANTIOQUIA | U99: INFORMACIÓN Y COMUNICACIONES | V99: INFORMACIÓN Y COMUNICACIONES | W99: Jurídica | X99: PEQUEÑA | Y99: 1135655
A100: 1 | B100: 76001 | C100: CALI | D100: 76 | E100: VALLE DEL CAUCA | F100: INFORMACIÓN Y COMUNICACIONES | G100: INFORMACIÓN Y COMUNICACIONES | H100: Jurídica | I100: PEQUEÑA | J100: 681393 | P100: 1 | Q100: 5154 | R100: CAUCASIA | S100: 5 | T100: ANTIOQUIA | U100: COMERCIO AL POR MAYOR Y AL POR MENOR; REPARACIÓN DE VEHÍCULOS AUTOMOTORES Y MOTOCICLETAS | V100: COMERCIO AL POR MAYOR Y AL POR MENOR; REPARACIÓN DE VEHÍCULOS AUTOMOTORES Y MOTOCICLETAS | W100: Natural | X100: MICRO | Y100: 681393
A101: 1 | B101: 76001 | C101: CALI | D101: 76 | E101: VALLE DEL CAUCA | F101: COMERCIO AL POR MAYOR Y AL POR MENOR; REPARACIÓN DE VEHÍCULOS AUTOMOTORES Y MOTOCICLETAS | G101: COMERCIO AL POR MAYOR Y AL POR MENOR; REPARACIÓN DE VEHÍCULOS AUTOMOTORES Y MOTOCICLETAS | H101: Jurídica | I101: PEQUEÑA | J101: 1135655 | P101: 1 | Q101: 5001 | R101: MEDELLÍN | S101: 5 | T101: ANTIOQUIA | U101: ACTIVIDADES INMOBILIARIAS | V101: ACTIVIDADES INMOBILIARIAS | W101: Jurídica | X101: MICRO | Y101: 227131
A102: 1 | B102: 5001 | C102: MEDELLÍN | D102: 5 | E102: ANTIOQUIA | F102: INDUSTRIAS MANUFACTURERAS | G102: INDUSTRIAS MANUFACTURERAS | H102: Jurídica | I102: MEDIANA | J102: 1135655 | P102: 1 | Q102: 5001 | R102: MEDELLÍN | S102: 5 | T102: ANTIOQUIA | U102: ACTIVIDADES PROFESIONALES, CIENTÍFICAS Y TÉCNICAS | V102: ACTIVIDADES PROFESIONALES, CIENTÍFICAS Y TÉCNICAS | W102: Natural | X102: MICRO | Y102: 1817048
A103: 1 | B103: 11001 | C103: BOGOTÁ, D.C. | D103: 11 | E103: BOGOTÁ, D.C. | F103: EDUCACIÓN | G103: EDUCACIÓN | H103: Jurídica | I103: MEDIANA | J103: 454262 | P103: 1 | Q103: 5001 | R103: MEDELLÍN | S103: 5 | T103: ANTIOQUIA | U103: COMERCIO AL POR MAYOR Y AL POR MENOR; REPARACIÓN DE VEHÍCULOS AUTOMOTORES Y MOTOCICLETAS | V103: COMERCIO AL POR MAYOR Y AL POR MENOR; REPARACIÓN DE VEHÍCULOS AUTOMOTORES Y MOTOCICLETAS | W103: Jurídica | X103: MICRO | Y103: 454262
A104: 1 | B104: 5001 | C104: MEDELLÍN | D104: 5 | E104: ANTIOQUIA | F104: ACTIVIDADES INMOBILIARIAS | G104: ACTIVIDADES INMOBILIARIAS | H104: Jurídica | I104: MICRO | J104: 227131 | P104: 1 | Q104: 5380 | R104: LA ESTRELLA | S104: 5 | T104: ANTIOQUIA | U104: INDUSTRIAS MANUFACTURERAS | V104: INDUSTRIAS MANUFACTURERAS | W104: Jurídica | X104: PEQUEÑA | Y104: 227131
A105: 1 | B105: 5001 | C105: MEDELLÍN | D105: 5 | E105: ANTIOQUIA | F105: COMERCIO AL POR MAYOR Y AL POR MENOR; REPARACIÓN DE VEHÍCULOS AUTOMOTORES Y MOTOCICLETAS | G105: COMERCIO AL POR MAYOR Y AL POR MENOR; REPARACIÓN DE VEHÍCULOS AUTOMOTORES Y MOTOCICLETAS | H105: Jurídica | I105: MICRO | J105: 227131 | P105: 1 | Q105: 5001 | R105: MEDELLÍN | S105: 5 | T105: ANTIOQUIA | U105: OTRAS ACTIVIDADES DE SERVICIOS | V105: OTRAS ACTIVIDADES DE SERVICIOS | W105: Jurídica | X105: MEDIANA | Y105: 681393
A106: 1 | B106: 73001 | C106: IBAGUÉ | D106: 73 | E106: TOLIMA | F106: ALOJAMIENTO Y SERVICIOS DE COMIDA | G106: ALOJAMIENTO Y SERVICIOS DE COMIDA | H106: Jurídica | I106: PEQUEÑA | J106: 2271310 | P106: 1 | Q106: 5001 | R106: MEDELLÍN | S106: 5 | T106: ANTIOQUIA | U106: COMERCIO AL POR MAYOR Y AL POR MENOR; REPARACIÓN DE VEHÍCULOS AUTOMOTORES Y MOTOCICLETAS | V106: COMERCIO AL POR MAYOR Y AL POR MENOR; REPARACIÓN DE VEHÍCULOS AUTOMOTORES Y MOTOCICLETAS | W106: Jurídica | X106: MUY GRANDE | Y106: 9766633
A107: 1 | B107: 11001 | C107: BOGOTÁ, D.C. | D107: 11 | E107: BOGOTÁ, D.C. | F107: ALOJAMIENTO Y SERVICIOS DE COMIDA | G107: ALOJAMIENTO Y SERVICIOS DE COMIDA | H107: Jurídica | I107: GRANDE | J107: 227131 | P107: 1 | Q107: 5001 | R107: MEDELLÍN | S107: 5 | T107: ANTIOQUIA | U107: ACTIVIDADES DE SERVICIOS ADMINISTRATIVOS Y DE APOYO | V107: ACTIVIDADES DE SERVICIOS ADMINISTRATIVOS Y DE APOYO | W107: Jurídica | X107: GRANDE | Y107: 4769751
A108: 1 | B108: 25807 | C108: TIBIRITA | D108: 25 | E108: CUNDINAMARCA | F108: ALOJAMIENTO Y SERVICIOS DE COMIDA | G108: ALOJAMIENTO Y SERVICIOS DE COMIDA | H108: Jurídica | I108: MICRO | J108: 227131 | P108: 1 | Q108: 5001 | R108: MEDELLÍN | S108: 5 | T108: ANTIOQUIA | U108: AGRICULTURA, GANADERÍA, CAZA, SILVICULTURA Y PESCA | V108: AGRICULTURA, GANADERÍA, CAZA, SILVICULTURA Y PESCA | W108: Jurídica | X108: MUY GRANDE | Y108: 16126301
A109: 1 | B109: 5001 | C109: MEDELLÍN | D109: 5 | E109: ANTIOQUIA | F109: INDUSTRIAS MANUFACTURERAS | G109: INDUSTRIAS MANUFACTURERAS | H109: Jurídica | I109: MICRO | J109: 227131 | P109: 1 | Q109: 5308 | R109: GIRARDOTA | S109: 5 | T109: ANTIOQUIA | U109: COMERCIO AL POR MAYOR Y AL POR MENOR; REPARACIÓN DE VEHÍCULOS AUTOMOTORES Y MOTOCICLETAS | V109: COMERCIO AL POR MAYOR Y AL POR MENOR; REPARACIÓN DE VEHÍCULOS AUTOMOTORES Y MOTOCICLETAS | W109: Jurídica | X109: GRANDE | Y109: 1135655
A110: 1 | B110: 73001 | C110: IBAGUÉ | D110: 73 | E110: TOLIMA | F110: COMERCIO AL POR MAYOR Y AL POR MENOR; REPARACIÓN DE VEHÍCULOS AUTOMOTORES Y MOTOCICLETAS | G110: COMERCIO AL POR MAYOR Y AL POR MENOR; REPARACIÓN DE VEHÍCULOS AUTOMOTORES Y MOTOCICLETAS | H110: Jurídica | I110: MICRO | J110: 227131 | P110: 1 | Q110: 5001 | R110: MEDELLÍN | S110: 5 | T110: ANTIOQUIA | U110: CONSTRUCCIÓN | V110: CONSTRUCCIÓN | W110: Jurídica | X110: PEQUEÑA | Y110: 2498441
A111: 1 | B111: 5001 | C111: MEDELLÍN | D111: 5 | E111: ANTIOQUIA | F111: ALOJAMIENTO Y SERVICIOS DE COMIDA | G111: ALOJAMIENTO Y SERVICIOS DE COMIDA | H111: Jurídica | I111: MICRO | J111: 454262 | P111: 1 | Q111: 5212 | R111: COPACABANA | S111: 5 | T111: ANTIOQUIA | U111: INDUSTRIAS MANUFACTURERAS | V111: INDUSTRIAS MANUFACTURERAS | W111: Jurídica | X111: MUY GRANDE | Y111: 39293663
A112: 1 | B112: 11001 | C112: BOGOTÁ, D.C. | D112: 11 | E112: BOGOTÁ, D.C. | F112: INDUSTRIAS MANUFACTURERAS | G112: INDUSTRIAS MANUFACTURERAS | H112: Jurídica | I112: MICRO | J112: 227131 | P112: 1 | Q112: 5001 | R112: MEDELLÍN | S112: 5 | T112: ANTIOQUIA | U112: COMERCIO AL POR MAYOR Y AL POR MENOR; REPARACIÓN DE VEHÍCULOS AUTOMOTORES Y MOTOCICLETAS | V112: COMERCIO AL POR MAYOR Y AL POR MENOR; REPARACIÓN DE VEHÍCULOS AUTOMOTORES Y MOTOCICLETAS | W112: Natural | X112: MICRO | Y112: 908524
A113: 1 | B113: 5318 | C113: GUARNE | D113: 5 | E113: ANTIOQUIA | F113: INDUSTRIAS MANUFACTURERAS | G113: INDUSTRIAS MANUFACTURERAS | H113: Jurídica | I113: PEQUEÑA | J113: 454262 | P113: 1 | Q113: 5001 | R113: MEDELLÍN | S113: 5 | T113: ANTIOQUIA | U113: ACTIVIDADES DE SERVICIOS ADMINISTRATIVOS Y DE APOYO | V113: ACTIVIDADES DE SERVICIOS ADMINISTRATIVOS Y DE APOYO | W113: Jurídica | X113: MUY GRANDE | Y113: 15444908
A114: 1 | B114: 5212 | C114: COPACABANA | D114: 5 | E114: ANTIOQUIA | F114: INDUSTRIAS MANUFACTURERAS | G114: INDUSTRIAS MANUFACTURERAS | H114: Natural | I114: PEQUEÑA | J114: 454262 | P114: 1 | Q114: 5607 | R114: RETIRO | S114: 5 | T114: ANTIOQUIA | U114: DISTRIBUCIÓN DE AGUA; EVACUACIÓN Y TRATAMIENTO DE AGUAS RESIDUALES, GESTIÓN DE DESECHOS Y ACTIVIDADES DE SANEAMIENTO AMBIENTAL | V114: DISTRIBUCIÓN DE AGUA; EVACUACIÓN Y TRATAMIENTO DE AGUAS RESIDUALES, GESTIÓN DE DESECHOS Y ACTIVIDADES DE SANEAMIENTO AMBIENTAL | W114: Jurídica | X114: PEQUEÑA | Y114: 908524
A115: 1 | B115: 11001 | C115: BOGOTÁ, D.C. | D115: 11 | E115: BOGOTÁ, D.C. | F115: CONSTRUCCIÓN | G115: CONSTRUCCIÓN | H115: Jurídica | I115: PEQUEÑA | J115: 454262 | P115: 1 | Q115: 5088 | R115: BELLO | S115: 5 | T115: ANTIOQUIA | U115: CONSTRUCCIÓN | V115: CONSTRUCCIÓN | W115: Natural | X115: MICRO | Y115: 454262
A116: 1 | B116: 5615 | C116: RIONEGRO | D116: 5 | E116: ANTIOQUIA | F116: ACTIVIDADES PROFESIONALES, CIENTÍFICAS Y TÉCNICAS | G116: ACTIVIDADES PROFESIONALES, CIENTÍFICAS Y TÉCNICAS | H116: Jurídica | I116: PEQUEÑA | J116: 681393 | P116: 1 | Q116: 5380 | R116: LA ESTRELLA | S116: 5 | T116: ANTIOQUIA | U116: INDUSTRIAS MANUFACTURERAS | V116: INDUSTRIAS MANUFACTURERAS | W116: Jurídica | X116: MICRO | Y116: 227131
A117: 1 | B117: 11001 | C117: BOGOTÁ, D.C. | D117: 11 | E117: BOGOTÁ, D.C. | F117: ACTIVIDADES DE SERVICIOS ADMINISTRATIVOS Y DE APOYO | G117: ACTIVIDADES DE SERVICIOS ADMINISTRATIVOS Y DE APOYO | H117: Natural | I117: MUY GRANDE | J117: 5451144 | P117: 1 | Q117: 5001 | R117: MEDELLÍN | S117: 5 | T117: ANTIOQUIA | U117: CONSTRUCCIÓN | V117: CONSTRUCCIÓN | W117: Jurídica | X117: MICRO | Y117: 908524
A118: 1 | B118: 5001 | C118: MEDELLÍN | D118: 5 | E118: ANTIOQUIA | F118: CONSTRUCCIÓN | G118: CONSTRUCCIÓN | H118: Jurídica | I118: PEQUEÑA | J118: 454262 | P118: 1 | Q118: 5129 | R118: CALDAS | S118: 5 | T118: ANTIOQUIA | U118: INFORMACIÓN Y COMUNICACIONES | V118: INFORMACIÓN Y COMUNICACIONES | W118: Jurídica | X118: MICRO | Y118: 227131
A119: 1 | B119: 5001 | C119: MEDELLÍN | D119: 5 | E119: ANTIOQUIA | F119: INDUSTRIAS MANUFACTURERAS | G119: INDUSTRIAS MANUFACTURERAS | H119: Jurídica | I119: MEDIANA | J119: 3634096 | P119: 1 | Q119: 5001 | R119: MEDELLÍN | S119: 5 | T119: ANTIOQUIA | U119: ACTIVIDADES DE SERVICIOS ADMINISTRATIVOS Y DE APOYO | V119: ACTIVIDADES DE SERVICIOS ADMINISTRATIVOS Y DE APOYO | W119: Jurídica | X119: MUY GRANDE | Y119: 20668921
A120: 1 | B120: 25473 | C120: MOSQUERA | D120: 25 | E120: CUNDINAMARCA | F120: INDUSTRIAS MANUFACTURERAS | G120: INDUSTRIAS MANUFACTURERAS | H120: Jurídica | I120: MEDIANA | J120: 454262 | P120: 1 | Q120: 5001 | R120: MEDELLÍN | S120: 5 | T120: ANTIOQUIA | U120: CONSTRUCCIÓN | V120: CONSTRUCCIÓN | W120: Jurídica | X120: PEQUEÑA | Y120: 1817048
A121: 1 | B121: 50568 | C121: PUERTO GAITÁN | D121: 50 | E121: META | F121: INDUSTRIAS MANUFACTURERAS | G121: INDUSTRIAS MANUFACTURERAS | H121: Jurídica | I121: MICRO | J121: 227131 | P121: 1 | Q121: 5001 | R121: MEDELLÍN | S121: 5 | T121: ANTIOQUIA | U121: ACTIVIDADES PROFESIONALES, CIENTÍFICAS Y TÉCNICAS | V121: ACTIVIDADES PROFESIONALES, CIENTÍFICAS Y TÉCNICAS | W121: Jurídica | X121: MICRO | Y121: 227131
A122: 1 | B122: 25214 | C122: COTA | D122: 25 | E122: CUNDINAMARCA | F122: COMERCIO AL POR MAYOR Y AL POR MENOR; REPARACIÓN DE VEHÍCULOS AUTOMOTORES Y MOTOCICLETAS | G122: COMERCIO AL POR MAYOR Y AL POR MENOR; REPARACIÓN DE VEHÍCULOS AUTOMOTORES Y MOTOCICLETAS | H122: Jurídica | I122: PEQUEÑA | J122: 227131 | P122: 1 | Q122: 5001 | R122: MEDELLÍN | S122: 5 | T122: ANTIOQUIA | U122: INDUSTRIAS MANUFACTURERAS | V122: INDUSTRIAS MANUFACTURERAS | W122: Jurídica | X122: PEQUEÑA | Y122: 227131
A123: 1 | B123: 11001 | C123: BOGOTÁ, D.C. | D123: 11 | E123: BOGOTÁ, D.C. | F123: INDUSTRIAS MANUFACTURERAS | G123: INDUSTRIAS MANUFACTURERAS | H123: Jurídica | I123: PEQUEÑA | J123: 454262 | P123: 1 | Q123: 5308 | R123: GIRARDOTA | S123: 5 | T123: ANTIOQUIA | U123: COMERCIO AL POR MAYOR Y AL POR MENOR; REPARACIÓN DE VEHÍCULOS AUTOMOTORES Y MOTOCICLETAS | V123: COMERCIO AL POR MAYOR Y AL POR MENOR; REPARACIÓN DE VEHÍCULOS AUTOMOTORES Y MOTOCICLETAS | W123: Jurídica | X123: PEQUEÑA | Y123: 227131
A124: 1 | B124: 8001 | C124: BARRANQUILLA | D124: 8 | E124: ATLÁNTICO | F124: CONSTRUCCIÓN | G124: CONSTRUCCIÓN | H124: Jurídica | I124: MICRO | J124: 227131 | P124: 1 | Q124: 5266 | R124: ENVIGADO | S124: 5 | T124: ANTIOQUIA | U124: INDUSTRIAS MANUFACTURERAS | V124: INDUSTRIAS MANUFACTURERAS | W124: Jurídica | X124: GRANDE | Y124: 681393
A125: 1 | B125: 54001 | C125: CÚCUTA | D125: 54 | E125: NORTE DE SANTANDER | F125: INFORMACIÓN Y COMUNICACIONES | G125: INFORMACIÓN Y COMUNICACIONES | H125: Jurídica | I125: MEDIANA | J125: 1362786 | P125: 1 | Q125: 5001 | R125: MEDELLÍN | S125: 5 | T125: ANTIOQUIA | U125: COMERCIO AL POR MAYOR Y AL POR MENOR; REPARACIÓN DE VEHÍCULOS AUTOMOTORES Y MOTOCICLETAS | V125: COMERCIO AL POR MAYOR Y AL POR MENOR; REPARACIÓN DE VEHÍCULOS AUTOMOTORES Y MOTOCICLETAS | W125: Natural | X125: GRANDE | Y125: 908524
A126: 1 | B126: 66001 | C126: PEREIRA | D126: 66 | E126: RISARALDA | F126: ACTIVIDADES DE ATENCIÓN DE LA SALUD HUMANA Y DE ASISTENCIA SOCIAL | G126: ACTIVIDADES DE ATENCIÓN DE LA SALUD HUMANA Y DE ASISTENCIA SOCIAL | H126: Jurídica | I126: MEDIANA | J126: 681393 | P126: 1 | Q126: 5360 | R126: ITAGUI | S126: 5 | T126: ANTIOQUIA | U126: CONSTRUCCIÓN | V126: CONSTRUCCIÓN | W126: Jurídica | X126: MEDIANA | Y126: 1362786
A127: 1 | B127: 11001 | C127: BOGOTÁ, D.C. | D127: 11 | E127: BOGOTÁ, D.C. | F127: INFORMACIÓN Y COMUNICACIONES | G127: INFORMACIÓN Y COMUNICACIONES | H127: Jurídica | I127: MEDIANA | J127: 3179834 | P127: 1 | Q127: 5001 | R127: MEDELLÍN | S127: 5 | T127: ANTIOQUIA | U127: INFORMACIÓN Y COMUNICACIONES | V127: INFORMACIÓN Y COMUNICACIONES | W127: Natural | X127: MUY GRANDE | Y127: 8176716
A128: 1 | B128: 11001 | C128: BOGOTÁ, D.C. | D128: 11 | E128: BOGOTÁ, D.C. | F128: ACTIVIDADES PROFESIONALES, CIENTÍFICAS Y TÉCNICAS | G128: ACTIVIDADES PROFESIONALES, CIENTÍFICAS Y TÉCNICAS | H128: Jurídica | I128: PEQUEÑA | J128: 227131 | P128: 1 | Q128: 5001 | R128: MEDELLÍN | S128: 5 | T128: ANTIOQUIA | U128: INFORMACIÓN Y COMUNICACIONES | V128: INFORMACIÓN Y COMUNICACIONES | W128: Jurídica | X128: PEQUEÑA | Y128: 681393
A129: 1 | B129: 5380 | C129: LA ESTRELLA | D129: 5 | E129: ANTIOQUIA | F129: INFORMACIÓN Y COMUNICACIONES | G129: INFORMACIÓN Y COMUNICACIONES | H129: Jurídica | I129: PEQUEÑA | J129: 454262 | P129: 1 | Q129: 5001 | R129: MEDELLÍN | S129: 5 | T129: ANTIOQUIA | U129: AGRICULTURA, GANADERÍA, CAZA, SILVICULTURA Y PESCA | V129: AGRICULTURA, GANADERÍA, CAZA, SILVICULTURA Y PESCA | W129: Jurídica | X129: GRANDE | Y129: 227131
A130: 1 | B130: 76001 | C130: CALI | D130: 76 | E130: VALLE DEL CAUCA | F130: ACTIVIDADES PROFESIONALES, CIENTÍFICAS Y TÉCNICAS | G130: ACTIVIDADES PROFESIONALES, CIENTÍFICAS Y TÉCNICAS | H130: Jurídica | I130: MICRO | J130: 227131 | P130: 1 | Q130: 5360 | R130: ITAGUI | S130: 5 | T130: ANTIOQUIA | U130: INDUSTRIAS MANUFACTURERAS | V130: INDUSTRIAS MANUFACTURERAS | W130: Jurídica | X130: MEDIANA | Y130: 681393
A131: 1 | B131: 5001 | C131: MEDELLÍN | D131: 5 | E131: ANTIOQUIA | F131: ACTIVIDADES PROFESIONALES, CIENTÍFICAS Y TÉCNICAS | G131: ACTIVIDADES PROFESIONALES, CIENTÍFICAS Y TÉCNICAS | H131: Jurídica | I131: MICRO | J131: 227131 | P131: 1 | Q131: 5376 | R131: LA CEJA | S131: 5 | T131: ANTIOQUIA | U131: AGRICULTURA, GANADERÍA, CAZA, SILVICULTURA Y PESCA | V131: AGRICULTURA, GANADERÍA, CAZA, SILVICULTURA Y PESCA | W131: Jurídica | X131: PEQUEÑA | Y131: 227131
A132: 1 | B132: 5001 | C132: MEDELLÍN | D132: 5 | E132: ANTIOQUIA | F132: ACTIVIDADES DE SERVICIOS ADMINISTRATIVOS Y DE APOYO | G132: ACTIVIDADES DE SERVICIOS ADMINISTRATIVOS Y DE APOYO | H132: Jurídica | I132: MICRO | J132: 681393 | P132: 1 | Q132: 5088 | R132: BELLO | S132: 5 | T132: ANTIOQUIA | U132: COMERCIO AL POR MAYOR Y AL POR MENOR; REPARACIÓN DE VEHÍCULOS AUTOMOTORES Y MOTOCICLETAS | V132: COMERCIO AL POR MAYOR Y AL POR MENOR; REPARACIÓN DE VEHÍCULOS AUTOMOTORES Y MOTOCICLETAS | W132: Jurídica | X132: MICRO | Y132: 227131
A133: 1 | B133: 5001 | C133: MEDELLÍN | D133: 5 | E133: ANTIOQUIA | F133: ALOJAMIENTO Y SERVICIOS DE COMIDA | G133: ALOJAMIENTO Y SERVICIOS DE COMIDA | H133: Jurídica | I133: MICRO | J133: 454262 | P133: 1 | Q133: 5266 | R133: ENVIGADO | S133: 5 | T133: ANTIOQUIA | U133: ACTIVIDADES DE SERVICIOS ADMINISTRATIVOS Y DE APOYO | V133: ACTIVIDADES DE SERVICIOS ADMINISTRATIVOS Y DE APOYO | W133: Jurídica | X133: MICRO | Y133: 227131
A134: 1 | B134: 5001 | C134: MEDELLÍN | D134: 5 | E134: ANTIOQUIA | F134: INDUSTRIAS MANUFACTURERAS | G134: INDUSTRIAS MANUFACTURERAS | H134: Jurídica | I134: PEQUEÑA | J134: 227131 | P134: 1 | Q134: 5440 | R134: MARINILLA | S134: 5 | T134: ANTIOQUIA | U134: COMERCIO AL POR MAYOR Y AL POR MENOR; REPARACIÓN DE VEHÍCULOS AUTOMOTORES Y MOTOCICLETAS | V134: COMERCIO AL POR MAYOR Y AL POR MENOR; REPARACIÓN DE VEHÍCULOS AUTOMOTORES Y MOTOCICLETAS | W134: Natural | X134: MICRO | Y134: 227131
A135: 1 | B135: 11001 | C135: BOGOTÁ, D.C. | D135: 11 | E135: BOGOTÁ, D.C. | F135: ACTIVIDADES PROFESIONALES, CIENTÍFICAS Y TÉCNICAS | G135: ACTIVIDADES PROFESIONALES, CIENTÍFICAS Y TÉCNICAS | H135: Jurídica | I135: PEQUEÑA | J135: 227131 | P135: 1 | Q135: 5001 | R135: MEDELLÍN | S135: 5 | T135: ANTIOQUIA | U135: ACTIVIDADES DE SERVICIOS ADMINISTRATIVOS Y DE APOYO | V135: ACTIVIDADES DE SERVICIOS ADMINISTRATIVOS Y DE APOYO | W135: Jurídica | X135: MUY GRANDE | Y135: 27937113
A136: 1 | B136: 5318 | C136: GUARNE | D136: 5 | E136: ANTIOQUIA | F136: INDUSTRIAS MANUFACTURERAS | G136: INDUSTRIAS MANUFACTURERAS | H136: Jurídica | I136: MICRO | J136: 227131 | P136: 1 | Q136: 5001 | R136: MEDELLÍN | S136: 5 | T136: ANTIOQUIA | U136: COMERCIO AL POR MAYOR Y AL POR MENOR; REPARACIÓN DE VEHÍCULOS AUTOMOTORES Y MOTOCICLETAS | V136: COMERCIO AL POR MAYOR Y AL POR MENOR; REPARACIÓN DE VEHÍCULOS AUTOMOTORES Y MOTOCICLETAS | W136: Jurídica | X136: MEDIANA | Y136: 1362786
A137: 1 | B137: 5212 | C137: COPACABANA | D137: 5 | E137: ANTIOQUIA | F137: CONSTRUCCIÓN | G137: CONSTRUCCIÓN | H137: Jurídica | I137: MEDIANA | J137: 1362786 | P137: 1 | Q137: 5001 | R137: MEDELLÍN | S137: 5 | T137: ANTIOQUIA | U137: COMERCIO AL POR MAYOR Y AL POR MENOR; REPARACIÓN DE VEHÍCULOS AUTOMOTORES Y MOTOCICLETAS | V137: COMERCIO AL POR MAYOR Y AL POR MENOR; REPARACIÓN DE VEHÍCULOS AUTOMOTORES Y MOTOCICLETAS | W137: Natural | X137: MICRO | Y137: 227131
A138: 1 | B138: 19698 | C138: SANTANDER DE QUILICHAO | D138: 19 | E138: CAUCA | F138: INDUSTRIAS MANUFACTURERAS | G138: INDUSTRIAS MANUFACTURERAS | H138: Jurídica | I138: MUY GRANDE | J138: 454262 | P138: 1 | Q138: 5615 | R138: RIONEGRO | S138: 5 | T138: ANTIOQUIA | U138: ACTIVIDADES DE SERVICIOS ADMINISTRATIVOS Y DE APOYO | V138: ACTIVIDADES DE SERVICIOS ADMINISTRATIVOS Y DE APOYO | W138: Jurídica | X138: PEQUEÑA | Y138: 227131
A139: 1 | B139: 5001 | C139: MEDELLÍN | D139: 5 | E139: ANTIOQUIA | F139: CONSTRUCCIÓN | G139: CONSTRUCCIÓN | H139: Jurídica | I139: MICRO | J139: 908524 | P139: 1 | Q139: 5615 | R139: RIONEGRO | S139: 5 | T139: ANTIOQUIA | U139: ACTIVIDADES INMOBILIARIAS | V139: ACTIVIDADES INMOBILIARIAS | W139: Jurídica | X139: PEQUEÑA | Y139: 227131
A140: 1 | B140: 11001 | C140: BOGOTÁ, D.C. | D140: 11 | E140: BOGOTÁ, D.C. | F140: INFORMACIÓN Y COMUNICACIONES | G140: INFORMACIÓN Y COMUNICACIONES | H140: Jurídica | I140: PEQUEÑA | J140: 1362786 | P140: 1 | Q140: 5001 | R140: MEDELLÍN | S140: 5 | T140: ANTIOQUIA | U140: INDUSTRIAS MANUFACTURERAS | V140: INDUSTRIAS MANUFACTURERAS | W140: Jurídica | X140: PEQUEÑA | Y140: 227131
A141: 1 | B141: 5631 | C141: SABANETA | D141: 5 | E141: ANTIOQUIA | F141: COMERCIO AL POR MAYOR Y AL POR MENOR; REPARACIÓN DE VEHÍCULOS AUTOMOTORES Y MOTOCICLETAS | G141: COMERCIO AL POR MAYOR Y AL POR MENOR; REPARACIÓN DE VEHÍCULOS AUTOMOTORES Y MOTOCICLETAS | H141: Jurídica | I141: MEDIANA | J141: 227131 | P141: 1 | Q141: 5308 | R141: GIRARDOTA | S141: 5 | T141: ANTIOQUIA | U141: TRANSPORTE Y ALMACENAMIENTO | V141: TRANSPORTE Y ALMACENAMIENTO | W141: Jurídica | X141: MEDIANA | Y141: 1135655
A142: 1 | B142: 5001 | C142: MEDELLÍN | D142: 5 | E142: ANTIOQUIA | F142: INDUSTRIAS MANUFACTURERAS | G142: INDUSTRIAS MANUFACTURERAS | H142: Jurídica | I142: MUY GRANDE | J142: 4088358 | P142: 1 | Q142: 5001 | R142: MEDELLÍN | S142: 5 | T142: ANTIOQUIA | U142: INFORMACIÓN Y COMUNICACIONES | V142: INFORMACIÓN Y COMUNICACIONES | W142: Jurídica | X142: MICRO | Y142: 681393
A143: 1 | B143: 11001 | C143: BOGOTÁ, D.C. | D143: 11 | E143: BOGOTÁ, D.C. | F143: COMERCIO AL POR MAYOR Y AL POR MENOR; REPARACIÓN DE VEHÍCULOS AUTOMOTORES Y MOTOCICLETAS | G143: COMERCIO AL POR MAYOR Y AL POR MENOR; REPARACIÓN DE VEHÍCULOS AUTOMOTORES Y MOTOCICLETAS | H143: Jurídica | I143: MICRO | J143: 681393 | P143: 1 | Q143: 5607 | R143: RETIRO | S143: 5 | T143: ANTIOQUIA | U143: AGRICULTURA, GANADERÍA, CAZA, SILVICULTURA Y PESCA | V143: AGRICULTURA, GANADERÍA, CAZA, SILVICULTURA Y PESCA | W143: Jurídica | X143: PEQUEÑA | Y143: 227131
A144: 1 | B144: 54001 | C144: CÚCUTA | D144: 54 | E144: NORTE DE SANTANDER | F144: INDUSTRIAS MANUFACTURERAS | G144: INDUSTRIAS MANUFACTURERAS | H144: Jurídica | I144: MICRO | J144: 454262 | P144: 1 | Q144: 5001 | R144: MEDELLÍN | S144: 5 | T144: ANTIOQUIA | U144: CONSTRUCCIÓN | V144: CONSTRUCCIÓN | W144: Jurídica | X144: MEDIANA | Y144: 1362786
A145: 1 | B145: 5001 | C145: MEDELLÍN | D145: 5 | E145: ANTIOQUIA | F145: INDUSTRIAS MANUFACTURERAS | G145: INDUSTRIAS MANUFACTURERAS | H145: Jurídica | I145: MICRO | J145: 227131 | P145: 1 | Q145: 5001 | R145: MEDELLÍN | S145: 5 | T145: ANTIOQUIA | U145: ACTIVIDADES PROFESIONALES, CIENTÍFICAS Y TÉCNICAS | V145: ACTIVIDADES PROFESIONALES, CIENTÍFICAS Y TÉCNICAS | W145: Jurídica | X145: PEQUEÑA | Y145: 454262
A146: 1 | B146: 25843 | C146: VILLA DE SAN DIEGO DE UBATE | D146: 25 | E146: CUNDINAMARCA | F146: COMERCIO AL POR MAYOR Y AL POR MENOR; REPARACIÓN DE VEHÍCULOS AUTOMOTORES Y MOTOCICLETAS | G146: COMERCIO AL POR MAYOR Y AL POR MENOR; REPARACIÓN DE VEHÍCULOS AUTOMOTORES Y MOTOCICLETAS | H146: Jurídica | I146: PEQUEÑA | J146: 454262 | P146: 1 | Q146: 5001 | R146: MEDELLÍN | S146: 5 | T146: ANTIOQUIA | U146: ACTIVIDADES DE ATENCIÓN DE LA SALUD HUMANA Y DE ASISTENCIA SOCIAL | V146: ACTIVIDADES DE ATENCIÓN DE LA SALUD HUMANA Y DE ASISTENCIA SOCIAL | W146: Jurídica | X146: PEQUEÑA | Y146: 454262
A147: 1 | B147: 5001 | C147: MEDELLÍN | D147: 5 | E147: ANTIOQUIA | F147: CONSTRUCCIÓN | G147: CONSTRUCCIÓN | H147: Jurídica | I147: MEDIANA | J147: 227131 | P147: 1 | Q147: 5001 | R147: MEDELLÍN | S147: 5 | T147: ANTIOQUIA | U147: COMERCIO AL POR MAYOR Y AL POR MENOR; REPARACIÓN DE VEHÍCULOS AUTOMOTORES Y MOTOCICLETAS | V147: COMERCIO AL POR MAYOR Y AL POR MENOR; REPARACIÓN DE VEHÍCULOS AUTOMOTORES Y MOTOCICLETAS | W147: Jurídica | X147: MICRO | Y147: 681393
A148: 1 | B148: 5001 | C148: MEDELLÍN | D148: 5 | E148: ANTIOQUIA | F148: ALOJAMIENTO Y SERVICIOS DE COMIDA | G148: ALOJAMIENTO Y SERVICIOS DE COMIDA | H148: Jurídica | I148: MEDIANA | J148: 454262 | P148: 1 | Q148: 5001 | R148: MEDELLÍN | S148: 5 | T148: ANTIOQUIA | U148: COMERCIO AL POR MAYOR Y AL POR MENOR; REPARACIÓN DE VEHÍCULOS AUTOMOTORES Y MOTOCICLETAS | V148: COMERCIO AL POR MAYOR Y AL POR MENOR; REPARACIÓN DE VEHÍCULOS AUTOMOTORES Y MOTOCICLETAS | W148: Jurídica | X148: MICRO | Y148: 227131
A149: 1 | B149: 5045 | C149: APARTADÓ | D149: 5 | E149: ANTIOQUIA | F149: DISTRIBUCIÓN DE AGUA; EVACUACIÓN Y TRATAMIENTO DE AGUAS RESIDUALES, GESTIÓN DE DESECHOS Y ACTIVIDADES DE SANEAMIENTO AMBIENTAL | G149: DISTRIBUCIÓN DE AGUA; EVACUACIÓN Y TRATAMIENTO DE AGUAS RESIDUALES, GESTIÓN DE DESECHOS Y ACTIVIDADES DE SANEAMIENTO AMBIENTAL | H149: Jurídica | I149: PEQUEÑA | J149: 454262 | P149: 1 | Q149: 5001 | R149: MEDELLÍN | S149: 5 | T149: ANTIOQUIA | U149: COMERCIO AL POR MAYOR Y AL POR MENOR; REPARACIÓN DE VEHÍCULOS AUTOMOTORES Y MOTOCICLETAS | V149: COMERCIO AL POR MAYOR Y AL POR MENOR; REPARACIÓN DE VEHÍCULOS AUTOMOTORES Y MOTOCICLETAS | W149: Jurídica | X149: MEDIANA | Y149: 2271310
A150: 1 | B150: 11001 | C150: BOGOTÁ, D.C. | D150: 11 | E150: BOGOTÁ, D.C. | F150: ACTIVIDADES DE SERVICIOS ADMINISTRATIVOS Y DE APOYO | G150: ACTIVIDADES DE SERVICIOS ADMINISTRATIVOS Y DE APOYO | H150: Jurídica | I150: GRANDE | J150: 2271310 | P150: 1 | Q150: 5001 | R150: MEDELLÍN | S150: 5 | T150: ANTIOQUIA | U150: ACTIVIDADES PROFESIONALES, CIENTÍFICAS Y TÉCNICAS | V150: ACTIVIDADES PROFESIONALES, CIENTÍFICAS Y TÉCNICAS | W150: Jurídica | X150: MICRO | Y150: 227131
A151: 1 | B151: 11001 | C151: BOGOTÁ, D.C. | D151: 11 | E151: BOGOTÁ, D.C. | F151: INDUSTRIAS MANUFACTURERAS | G151: INDUSTRIAS MANUFACTURERAS | H151: Natural | I151: PEQUEÑA | J151: 227131 | P151: 1 | Q151: 5001 | R151: MEDELLÍN | S151: 5 | T151: ANTIOQUIA | U151: CONSTRUCCIÓN | V151: CONSTRUCCIÓN | W151: Jurídica | X151: MUY GRANDE | Y151: 48151772
A152: 1 | B152: 8001 | C152: BARRANQUILLA | D152: 8 | E152: ATLÁNTICO | F152: CONSTRUCCIÓN | G152: CONSTRUCCIÓN | H152: Jurídica | I152: MICRO | J152: 681393 | P152: 1 | Q152: 5001 | R152: MEDELLÍN | S152: 5 | T152: ANTIOQUIA | U152: ACTIVIDADES PROFESIONALES, CIENTÍFICAS Y TÉCNICAS | V152: ACTIVIDADES PROFESIONALES, CIENTÍFICAS Y TÉCNICAS | W152: Jurídica | X152: MICRO | Y152: 227131
A153: 1 | B153: 54001 | C153: CÚCUTA | D153: 54 | E153: NORTE DE SANTANDER | F153: ACTIVIDADES DE ATENCIÓN DE LA SALUD HUMANA Y DE ASISTENCIA SOCIAL | G153: ACTIVIDADES DE ATENCIÓN DE LA SALUD HUMANA Y DE ASISTENCIA SOCIAL | H153: Jurídica | I153: MEDIANA | J153: 454262 | P153: 1 | Q153: 5266 | R153: ENVIGADO | S153: 5 | T153: ANTIOQUIA | U153: AGRICULTURA, GANADERÍA, CAZA, SILVICULTURA Y PESCA | V153: AGRICULTURA, GANADERÍA, CAZA, SILVICULTURA Y PESCA | W153: Natural | X153: MUY GRANDE | Y153: 8858109
A154: 1 | B154: 5001 | C154: MEDELLÍN | D154: 5 | E154: ANTIOQUIA | F154: INDUSTRIAS MANUFACTURERAS | G154: INDUSTRIAS MANUFACTURERAS | H154: Jurídica | I154: MICRO | J154: 454262 | P154: 1 | Q154: 5001 | R154: MEDELLÍN | S154: 5 | T154: ANTIOQUIA | U154: ACTIVIDADES DE ATENCIÓN DE LA SALUD HUMANA Y DE ASISTENCIA SOCIAL | V154: ACTIVIDADES DE ATENCIÓN DE LA SALUD HUMANA Y DE ASISTENCIA SOCIAL | W154: Jurídica | X154: MEDIANA | Y154: 2725572
A155: 1 | B155: 8001 | C155: BARRANQUILLA | D155: 8 | E155: ATLÁNTICO | F155: INDUSTRIAS MANUFACTURERAS | G155: INDUSTRIAS MANUFACTURERAS | H155: Jurídica | I155: MEDIANA | J155: 227131 | P155: 1 | Q155: 5001 | R155: MEDELLÍN | S155: 5 | T155: ANTIOQUIA | U155: ACTIVIDADES DE SERVICIOS ADMINISTRATIVOS Y DE APOYO | V155: ACTIVIDADES DE SERVICIOS ADMINISTRATIVOS Y DE APOYO | W155: Jurídica | X155: GRANDE | Y155: 2271310
A156: 1 | B156: 54109 | C156: BUCARASICA | D156: 54 | E156: NORTE DE SANTANDER | F156: CONSTRUCCIÓN | G156: CONSTRUCCIÓN | H156: Jurídica | I156: PEQUEÑA | J156: 227131 | P156: 1 | Q156: 5001 | R156: MEDELLÍN | S156: 5 | T156: ANTIOQUIA | U156: INDUSTRIAS MANUFACTURERAS | V156: INDUSTRIAS MANUFACTURERAS | W156: Jurídica | X156: MICRO | Y156: 227131
A157: 1 | B157: 68549 | C157: PINCHOTE | D157: 68 | E157: SANTANDER | F157: ACTIVIDADES DE SERVICIOS ADMINISTRATIVOS Y DE APOYO | G157: ACTIVIDADES DE SERVICIOS ADMINISTRATIVOS Y DE APOYO | H157: Jurídica | I157: MICRO | J157: 227131 | P157: 1 | Q157: 5001 | R157: MEDELLÍN | S157: 5 | T157: ANTIOQUIA | U157: COMERCIO AL POR MAYOR Y AL POR MENOR; REPARACIÓN DE VEHÍCULOS AUTOMOTORES Y MOTOCICLETAS | V157: COMERCIO AL POR MAYOR Y AL POR MENOR; REPARACIÓN DE VEHÍCULOS AUTOMOTORES Y MOTOCICLETAS | W157: Jurídica | X157: PEQUEÑA | Y157: 227131
A158: 1 | B158: 11001 | C158: BOGOTÁ, D.C. | D158: 11 | E158: BOGOTÁ, D.C. | F158: COMERCIO AL POR MAYOR Y AL POR MENOR; REPARACIÓN DE VEHÍCULOS AUTOMOTORES Y MOTOCICLETAS | G158: COMERCIO AL POR MAYOR Y AL POR MENOR; REPARACIÓN DE VEHÍCULOS AUTOMOTORES Y MOTOCICLETAS | H158: Jurídica | I158: MEDIANA | J158: 2271310 | P158: 1 | Q158: 5001 | R158: MEDELLÍN | S158: 5 | T158: ANTIOQUIA | U158: COMERCIO AL POR MAYOR Y AL POR MENOR; REPARACIÓN DE VEHÍCULOS AUTOMOTORES Y MOTOCICLETAS | V158: COMERCIO AL POR MAYOR Y AL POR MENOR; REPARACIÓN DE VEHÍCULOS AUTOMOTORES Y MOTOCICLETAS | W158: Jurídica | X158: MEDIANA | Y158: 227131
A159: 1 | B159: 73001 | C159: IBAGUÉ | D159: 73 | E159: TOLIMA | F159: COMERCIO AL POR MAYOR Y AL POR MENOR; REPARACIÓN DE VEHÍCULOS AUTOMOTORES Y MOTOCICLETAS | G159: COMERCIO AL POR MAYOR Y AL POR MENOR; REPARACIÓN DE VEHÍCULOS AUTOMOTORES Y MOTOCICLETAS | H159: Jurídica | I159: MUY GRANDE | J159: 4542620 | P159: 1 | Q159: 5001 | R159: MEDELLÍN | S159: 5 | T159: ANTIOQUIA | U159: CONSTRUCCIÓN | V159: CONSTRUCCIÓN | W159: Jurídica | X159: PEQUEÑA | Y159: 681393
A160: 1 | B160: 76001 | C160: CALI | D160: 76 | E160: VALLE DEL CAUCA | F160: COMERCIO AL POR MAYOR Y AL POR MENOR; REPARACIÓN DE VEHÍCULOS AUTOMOTORES Y MOTOCICLETAS | G160: COMERCIO AL POR MAYOR Y AL POR MENOR; REPARACIÓN DE VEHÍCULOS AUTOMOTORES Y MOTOCICLETAS | H160: Natural | I160: MEDIANA | J160: 1817048 | P160: 1 | Q160: 5591 | R160: PUERTO TRIUNFO | S160: 5 | T160: ANTIOQUIA | U160: TRANSPORTE Y ALMACENAMIENTO | V160: TRANSPORTE Y ALMACENAMIENTO | W160: Natural | X160: MICRO | Y160: 227131
A161: 1 | B161: 5001 | C161: MEDELLÍN | D161: 5 | E161: ANTIOQUIA | F161: COMERCIO AL POR MAYOR Y AL POR MENOR; REPARACIÓN DE VEHÍCULOS AUTOMOTORES Y MOTOCICLETAS | G161: COMERCIO AL POR MAYOR Y AL POR MENOR; REPARACIÓN DE VEHÍCULOS AUTOMOTORES Y MOTOCICLETAS | H161: Jurídica | I161: MEDIANA | J161: 1589917 | P161: 1 | Q161: 5001 | R161: MEDELLÍN | S161: 5 | T161: ANTIOQUIA | U161: ACTIVIDADES DE ATENCIÓN DE LA SALUD HUMANA Y DE ASISTENCIA SOCIAL | V161: ACTIVIDADES DE ATENCIÓN DE LA SALUD HUMANA Y DE ASISTENCIA SOCIAL | W161: Natural | X161: PEQUEÑA | Y161: 454262
A162: 1 | B162: 68001 | C162: BUCARAMANGA | D162: 68 | E162: SANTANDER | F162: ACTIVIDADES PROFESIONALES, CIENTÍFICAS Y TÉCNICAS | G162: ACTIVIDADES PROFESIONALES, CIENTÍFICAS Y TÉCNICAS | H162: Jurídica | I162: PEQUEÑA | J162: 227131 | P162: 1 | Q162: 5001 | R162: MEDELLÍN | S162: 5 | T162: ANTIOQUIA | U162: ALOJAMIENTO Y SERVICIOS DE COMIDA | V162: ALOJAMIENTO Y SERVICIOS DE COMIDA | W162: Jurídica | X162: MEDIANA | Y162: 2498441
A163: 1 | B163: 8573 | C163: PUERTO COLOMBIA | D163: 8 | E163: ATLÁNTICO | F163: CONSTRUCCIÓN | G163: CONSTRUCCIÓN | H163: Jurídica | I163: MICRO | J163: 454262 | P163: 1 | Q163: 5615 | R163: RIONEGRO | S163: 5 | T163: ANTIOQUIA | U163: INDUSTRIAS MANUFACTURERAS | V163: INDUSTRIAS MANUFACTURERAS | W163: Jurídica | X163: MICRO | Y163: 227131
